Workbook

Sheet INSTRUCTIONS
B2: TCRP H-42 - DRAFT SPREADSHEET TOOL - ESTIMATED RIDERSHIP AND COST OF FIXED GUIDEWAY TRANSIT PROJECTS
B3: 8/28/2013
C6: Welcome
C8: The TCRP H42 Spreadsheet Tool implements the indicator-based methods that are discussed in greater detail in the Final Report and Handbook. The spreadsheet is designed to help local governments and transit agencies evaluate alternative proposed fixed-guideway transit projects in the early stages of planning and choosing a project or alignment. Based on user-supplied characteristics of the project, the Tool returns expected values for project-specific ridership, expected changes in system-wide passenger miles traveled, and (optionally) cost.
C9: This tool was built in MS Excel 2010. The features are backwards compatible with earlier versions of Excel that support VBA macros. Users should enable macros while using this tool.
C10: Instructions
C11: User Data Entry
C12: Users enter data into the yellow fields numbered 1 through 20 on the USER DATA ENTRY tab. The inputs are queried in three groups: ridership, PMT and costs.
C14: Project-level inputs
C15: The first 6 inputs are designed to collect information about the proposed transit project. Some characteristics apply to the design of the project or the attributes of the relevant CBD, but others will need to be calculated for the specific station catchments.
C17: 1. Metropolitan Statistical Area
C18: a. Select the Metropolitan Statistical Area (MSA) of the proposed transit project from the drop-down list.
C19: b. A field at the bottom of the Reference Panel will be autocompleted to reflect the 2008 population of the MSA. The tool does not support modifications to autocompleted MSA data.
C21: 2. Jobs within 1/2-mile of project stations
C22: a. Using the US Census Longitudinal Employer-Household Dynamics (LEHD) or another reliable source, calculate the number of jobs within 1/2-mile of the proposed stations.
C23: b. The recommended method for this calculation is to download Census blocks containing employment characteristics and select those that were located all or partially within a 1/2-mile buffer of stations. If a block does not fall completely within the 1/2-mile buffer, a fraction of the jobs proportional to the enclosed area should be assigned to the buffer.
C25: 3. Population within 1/2-mile of project stations
C26: a. Using the US Census or another reliable source, calculate the number of persons residing within 1/2-mile of the proposed stations.
C27: b. The recommended method for this calculation is to download census blocks and select those that were located all or partially within a 1/2-mile buffer of stations. If a block does not fall completely within the ½ mile buffer, a fraction of the residents proportional to the enclosed area should be assigned to the buffer.
C29: 4. Retail, entertainment, and food jobs within 1/2-mile of project stations
C30: a. The category is an aggregate of NAICS codes 44-45 (Retail Trade), 71 (Arts, Entertain and Recreation) and 72 (Food and Accommodation). Using the US Census Longitudinal Employer-Household Dynamics (LEHD) or another reliable source, calculate the number of jobs in these categories within 1/2-mile of the proposed stations.
C31: b. The recommended method for this calculation is to download census blocks containing employment characteristics and select those that were located all or partially within a 1/2-mile buffer of stations. If a block does not fall completely within the 1/2-mile buffer, a fraction of the jobs proportional to the enclosed area should be assigned to the buffer.
C33: 5. Higher wage jobs within 1/2-mile of project stations
C34: a. The category refers to jobs in the Earn3 category of the US Census Longitudinal Employer-Household Dynamics (LEHD) data: jobs earning greater than $3333/month. Using LEHD or another reliable source, calculate the number of jobs in this "higher earning" category within 1/2-mile of the proposed stations.
C35: b. The recommended method for this calculation is to download census blocks containing employment characteristics and select those that were located all or partially within a 1/2-mile buffer of stations. If a block does not fall completely within the 1/2-mile buffer, a fraction of the jobs proportional to the enclosed area should be assigned to the buffer.
C37: 6. Percent of project alignment at grade
C38: a. Enter the percent of the alignment that is at grade for the project.
C39: b. Example: If 50% of the proposed alignment is going to be in the highway median and 26% will be on the street, then the user would enter “76” for Input #7.
C41: System-level Inputs
C42: The spreadsheet tool uses inputs 8-13 and general MSA-level data to estimate the passenger-miles traveled on the entire network with and without the proposed project. The difference between these values is the incremental increase in PMT attributable to the project. Because it accounts for riders switching from one transit mode or line to another, it is a more robust measure of the success of the project than ridership alone.
C44: 7. Daily parking rate in the CBD
C45: a. Estimate the average daily (6-24 hr) parking rate in the CBD.
C46: b. The recommended method for this calculation is to identify the average daily parking rate for garages within 1/2-mile of stations in the CBD.
C48: 8. Jobs per within ½ mile of all fixed guideway stations in the system
C49: a. Using the US Census Longitudinal Employer-Household Dynamics (LEHD) or another reliable source, calculate the number of jobs within ½ mile of all existing stations on the system. This calculation should not include new stations proposed as part of the project.
C50: b. The recommended method for this calculation is to download census blocks containing employment characteristics and select those that were located all or partially within a ½ mile buffer of all stations. If a block does not fall completely within the ½ mile buffer, a fraction of the jobs proportional to the enclosed area should be assigned to the buffer. This value is similar to Input #2, but for all existing stations.
C52: 9. Population within ½ mile of all fixed guideway stations in the system
C53: a. Using the US Census or another reliable source, calculate the number of persons residing within ½ mile of all existing stations in the system. This calculation should not include new stations proposed as part of the project.
C54: b. The recommended method for this calculation is to download census blocks and select those that were located all or partially within a ½ mile buffer of stations. If a block does not fall completely within the ½ mile buffer, a fraction of the residents proportional to the enclosed area should be assigned to the buffer. This value is similar to Input #3, but for all existing stations.
C56: 10. Retail, entertainment, and food jobs within 1/2-mile of all fixed guideway stations in the system
C57: a. The category is an aggregate of NAICS codes 44-45 (Retail Trade), 71 (Arts, Entertain and Recreation) and 72 (Food and Accommodation). Using the US Census Longitudinal Employer-Household Dynamics (LEHD) or another reliable source, calculate the number of jobs in these categories within 1/2-mile of all existing stations. This calculation should not include new stations proposed as part of the project.
C58: b. The recommended method for this calculation is to download census blocks containing employment characteristics and select those that were located all or partially within a 1/2-mile buffer of stations. If a block does not fall completely within the 1/2-mile buffer, a fraction of the jobs proportional to the enclosed area should be assigned to the buffer. This value is similar to input #4 but for all existing stations.
C59: c. If these values are unavailable, the user can leave this cell blank and defaults will be used. For 273 metropolitan areas, the tool can use the average fraction of these types of jobs across the principal city with the user-supplied value for total number of jobs to calculate an estimate of the number of retail, food and entertainment jobs . For all other metropolitan areas, the default fraction of 14.8% is used, which is likely to overestimate the number of attraction-based jobs.
C61: 11. Higher wage jobs within 1/2-mile of all fixed guideway stations in the system
C62: a. The category refers to jobs in the Earn3 category of the US Census Longitudinal Employer-Household Dynamics (LEHD) data: jobs earning greater than $3333/month. Using LEHD or another reliable source, calculate the number of jobs in this "higher earning" category within 1/2-mile of all existing stations. This calculation should not include new stations proposed as part of the project.
C63: b. The recommended method for this calculation is to download census blocks containing employment characteristics and select those that were located all or partially within a 1/2-mile buffer of stations. If a block does not fall completely within the 1/2-mile buffer, a fraction of the jobs proportional to the enclosed area should be assigned to the buffer. This value is similar to input #5 but for all existing stations.
C64: c. If these values are unavailable, the user can leave this cell blank and defaults will be used. For 273 metropolitan areas, the tool can use the average fraction of these types of jobs across the principal city with the user-supplied value for the total number of jobs to calculate an estimate of the number of high-wage jobs in metropolitan-wide station catchments. For all other metropolitan areas, the default fraction of 45.1% is used, which is likely to overestimate the number of high-wage jobs.
C66: 12. Average daily VMT per freeway lane mile from FHWA
C67: a. The VMT per freeway lane mile gives an estimate for congestion on the road network.
C68: b. The recommended method for this input is to refer to HM-72 from the Federal Highway Administration.
C69: c. Values from this table for many metropolitan areas are provided in the "FHWA Reference" tab.
C71: Cost Inputs
C72: Users may select the method for calculating costs from the drop-down list. The user may supply a total cost for the project or a cost per mile. Additionally, the user may use a cost calculator to estimate costs, but this method is not preferred if local values are available. Based on the selected method, only a subset of Inputs 13-20 will be highlighted yellow. Although the tool accepts values in the white cells, that information will not be used in the output.
C74: 13. Cost method
C75: a. Select the project’s approach to capital costing from the drop-down list: User-supplied total cost (preferred), User-supplied cost per mile or Cost Calculator.
C76: b. Complete Lines 14 through 18 only if you want the tool to provide a cost estimate.
C78: 14. Number of stations
C79: a. Enter the number of new stations on the proposed transit project.
C80: b. This value should include stations where the proposed project will transfer to other modes, but not existing stations where the proposed project will transfer to other lines within the same mode.
C82: 15. Percent alignment below grade
C83: a. Enter the percent of the alignment that is below grade in a trench or subway.
C84: b. Example: If 5% of the proposed alignment is going to be subway and 3.5% would be in a trench, then the user would enter “8.5” for Input #17.
C86: 16. Type of project
C87: a. Select the type of project from the dropdown list. Projects can be new projects, extensions, expansions or enhancements.
C88: b. New projects are built in regions previously not served by fixed-guideway transit. Extensions are defined as projects that extend an existing line by adding new track and new stations. Expansions add a new branch to an existing line such that the transit network has a new intersection or node. Enhancements improve the service of a line by adding new stations or changing the mode of an existing right of way without increasing route length.
C90: 17. Mode
C91: a. Select the project’s technology from the drop-down list: HR (heavy rail), LRT (light rail), CR (commuter rail) or BRT (bus rapid transit).
C92: b. This input is only necessary if the user is calculating the cost.
C94: 18. Route Miles
C95: a. Enter the length of the proposed transit project in miles (end-to-end distance).
C97: 19. User-estimated capital cost per mile
C98: a. Enter the capital costs per mile for the proposed project.
C99: b. If the user has his or her own estimate for the capital costs, this method is preferred over the Cost Calculator.
C101: 20. User-estimated total capital costs
C102: a. Enter the total capital costs for the proposed project.
C103: b. If the user has his or her own estimate for the capital costs, this method is preferred over the Cost Calculator.
C104: Database and auto-generated values
C105: The Reference Panel in the bottom left of the USER DATA ENTRY tab contains values that are auto-generated based on the user’s selections in the three input panels.
C106: If the user selected the Cost Calculator method in the Cost input panel, then the first two auto-generated cells show the estimated capital cost per mile and total capital costs. These can be used as a comparison point for user-estimated costs per mile.
C107: The 2008 population of the MSA is generated based on the result in Input #1. These values are available from the Bureau of Economic Analysis at www.bea.gov.
C108: Evaluating the inputs
C109: When all of the yellow fields are complete, press the “Update the Results” button in the bottom right corner[1]. This button navigates to the OUTPUTS tab and displays the outputs.
C111: Outputs
C112: The inputs from the first pages are multiplied by coefficients determined through statistical analysis and summed to produce estimates for the incremental change to the annual passenger miles traveled (PMT), ridership (average weekday boardings), and capital cost. The incremental PMT is the difference between PMT on the committed network and PMT on the committed network plus the proposed project.
C113: The first output panel shows ridership on the project and the capital costs per rider. Each output is accompanied by an estimate for the uncertainty. The first chart places the project in the context of projects of the same type (new projects, extensions, expansions and enhancements).
C114: The second output panel shows the capital costs and the capital costs per mile. We assume the cost has no error. It is recommended to use user-supplied capital cost estimates and to explore a feasible range of costs. The project is shown with projects of similar cost per rider in the second chart.
C115: The final output panel shows the incremental PMT on the system due to the project and the cost per incremental PMT. The chart shows the the project in the context of other projects in cities of a similar size. VERY IMPORTANT NOTE: If increment is found to be negative (which happens in 50% of cases), this indicates a negligible result. The output panel will display "Negligible" or "NA" and the plot will treat the ouput PMT increment as equal to 0.
C117: Making changes
C118: Click the “Adjust the inputs” button to make changes to the inputs. This button navigates back to the USER DATA ENTRY tab. After making any necessary adjustments, the user should navigate back to the OUTPUTS tab using the “Update the Results” button.
C121: [1] Although it is possible to navigate to the OUTPUTS tab using the tabs of the spreadsheet, users should use the button when they want to see their results. The button initiates a macro that updates the column charts on the OUTPUTS tab. The spreadsheet tool may display outdated results if the button is not used.

Sheet USER DATA ENTRY
C2: TCRP H-42 - SPREADSHEET TOOL - ESTIMATED RIDERSHIP AND COST OF FIXED GUIDEWAY TRANSIT PROJECTS
C3: August 28, 2013
C5: Enter information into the yellow cells below.
C7: INPUT PANEL (RIDERSHIP AND PMT MODELS WHERE SPECIFIED)
C9: 1 | D9: Select Metropolitan Statistical Area (PMT Model only) | E9: Los Angeles-Long Beach-Santa Ana, CA
C10: 2 | D10: Jobs within 1/2-mile of project stations (Ridership and PMT Models) | E10: 185178.3 | F10: jobs
C11: 3 | D11: Population within 1/2-mile of project stations (Ridership and PMT Models) | E11: 180511.3 | F11: persons
C12: 4 | D12: Retail, entertainment, and food jobs within 1/2-mile of project stations (PMT Model only) | E12: 23870.16 | F12: jobs
C13: 5 | D13: Higher wage jobs within 1/2-mile of project stations (PMT Model only) | E13: 81407.64 | F13: jobs
C14: 6 | D14: Percent of project alignment at grade (Ridership Model only) | E14: 81 | F14: %
C16: 7 | D16: Daily parking rate in the CBD (Ridership Model only) | E16: 14.76111 | F16: dollars
C17: 8 | D17: Jobs within 1/2-mile of all fixed guideway stations in the system (PMT Model only) | E17: 658559.6 | F17: jobs
C18: 9 | D18: Population within 1/2-mile of all fixed guideway stations in the system (PMT Model only) | E18: 714134.6 | F18: persons
C19: 10 | D19: Retail, entertainment, and food jobs within 1/2-mile of all fixed guideway stations in the system (PMT Model only) If you don't have this data point for your city, leave the box blank. | E19: 117389.14 | F19: jobs
C20: 11 | D20: Higher wage jobs within 1/2-mile of all fixed guideway stations in the system (PMT Model only) If you don't have this data point for your city, leave the box blank. | E20: 325516.26 | F20: jobs
C21: 12 | D21: Average daily VMT per freeway lane mile from FHWA (PMT Model only) If you don't have this data point for your city, use "FHWA REFERENCE" sheet | E21: 23420.86 | F21: vehicles
C24: INPUT PANEL (COST)
C26: 13 | D26: Select cost method | E26: User-supplied total cost (preferred) | K26: New
K27: Expansion
C28: 14 | D28: Number of stations | E28: 22 | F28: stations | K28: Extension
C29: 15 | D29: % alignment below grade | E29: 3 | F29: % | K29: Enhancement
C31: 16 | D31: Type of project | E31: New | F31: (select)
C32: 17 | D32: Mode | E32: LRT | F32: (select)
C33: 18 | D33: Route miles of the project | E33: 45 | F33: miles of track
C34: 19 | D34: User-estimated capital cost per mile | F34: x 106 dollars (2009)
C35: 20 | D35: User-estimated total capital costs | E35: 1658 | F35: x 106 dollars (2009)
C38: Reference Panel (auto-generated)
D40: Calculated cost per mile | E40: =IF(E26="Cost Calculator",'Cost Data'!C19,IF(E26= "User-supplied total cost (preferred)",TotalCost/NewTrackMileage,IF(E26="User-supplied cost per mile",CostPerMile,))) -> 36.84444444 | F40: x 106 dollars (2009)
D41: Calculated total cost | E41: =IF(E26="Cost Calculator",'Cost Data'!C20,IF(E26= "User-supplied total cost (preferred)",TotalCost,IF(E26="User-supplied cost per mile",CostPerMile*NewTrackMileage,))) -> 1658 | F41: x 106 dollars (2009)
D43: 2008 population of the MSA (BEA) | E43: =SUMIF('MSAdata '!$B$2:$B$365,MSAName,'MSAdata '!$K$2:$K$365) -> 12768395 | F43: persons

Sheet NYCinc (hidden)
A2: ="" ->  | B2: ="(1)" -> (1) | C2: ="(2)" -> (2) | D2: ="(3)" -> (3) | E2: ="(4)" -> (4) | F2: ="(5)" -> (5) | G2: ="(6)" -> (6) | H2: ="(7)" -> (7) | I2: ="(8)" -> (8) | J2: ="(9)" -> (9) | K2: ="(10)" -> (10) | L2: ="(11)" -> (11) | M2: ="(12)" -> (12) | N2: ="(13)" -> (13) | O2: ="(14)" -> (14) | P2: ="(15)" -> (15) | Q2: ="(16)" -> (16) | R2: ="(17)" -> (17) | S2: ="(18)" -> (18)
A3: ="" ->  | B3: ="eden_pcity" -> eden_pcity | C3: eden_pcity | D3: eden_pcity | E3: eden_pcity | F3: eden_pcity | G3: eden_pcity | H3: eden_pcity | I3: eden_pcity | J3: ="population" -> population | K3: population | L3: population | M3: population | N3: population | O3: population | P3: ="lnwage" -> lnwage | Q3: ="lnwage" -> lnwage | R3: ="lngdppc00" -> lngdppc00 | S3: ="lngdppc00" -> lngdppc00
A5: ="apta_cleaned" -> apta_cleaned | B5: ="1.806" -> 1.806 | C5: ="5.983" -> 5.983 | D5: ="" ->  | E5: ="" ->  | F5: ="" ->  | G5: ="" ->  | H5: ="" ->  | I5: ="" ->  | J5: ="" ->  | K5: ="" ->  | L5: ="" ->  | M5: ="" ->  | N5: ="" ->  | O5: ="" ->  | P5: ="" ->  | Q5: ="" ->  | R5: ="" ->  | S5: ="" -> 
A6: ="" ->  | B6: ="(1.83)" -> (1.83) | C6: ="(4.21)" -> (4.21) | D6: ="" ->  | E6: ="" ->  | F6: ="" ->  | G6: ="" ->  | H6: ="" ->  | I6: ="" ->  | J6: ="" ->  | K6: ="" ->  | L6: ="" ->  | M6: ="" ->  | N6: ="" ->  | O6: ="" ->  | P6: ="" ->  | Q6: ="" ->  | R6: ="" ->  | S6: ="" -> 
A8: ="freeart" -> freeart | B8: ="0.0277" -> 0.0277 | C8: ="0.365" -> 0.365 | D8: ="" ->  | E8: ="" ->  | F8: ="" ->  | G8: ="" ->  | H8: ="" ->  | I8: ="" ->  | J8: ="" ->  | K8: ="" ->  | L8: ="" ->  | M8: ="" ->  | N8: ="" ->  | O8: ="" ->  | P8: ="" ->  | Q8: ="" ->  | R8: ="" ->  | S8: ="" -> 
A9: ="" ->  | B9: ="(0.15)" -> (0.15) | C9: ="(1.81)" -> (1.81) | D9: ="" ->  | E9: ="" ->  | F9: ="" ->  | G9: ="" ->  | H9: ="" ->  | I9: ="" ->  | J9: ="" ->  | K9: ="" ->  | L9: ="" ->  | M9: ="" ->  | N9: ="" ->  | O9: ="" ->  | P9: ="" ->  | Q9: ="" ->  | R9: ="" ->  | S9: ="" -> 
A11: ="population" -> population | B11: ="0.000180" -> 0.000180 | C11: ="-0.000126" -> -0.000126 | D11: ="0.000133" -> 0.000133 | E11: ="0.0000600" -> 0.0000600 | F11: ="0.000165" -> 0.000165 | G11: ="0.0000573" -> 0.0000573 | H11: ="0.000166" -> 0.000166 | I11: ="-0.0000997" -> -0.0000997 | J11: ="" ->  | K11: ="" ->  | L11: ="" ->  | M11: ="" ->  | N11: ="" ->  | O11: ="" ->  | P11: ="" ->  | Q11: ="" ->  | R11: ="" ->  | S11: ="" -> 
A12: ="" ->  | B12: ="(1.96)" -> (1.96) | C12: ="(-1.06)" -> (-1.06) | D12: ="(2.99)" -> (2.99) | E12: ="(1.15)" -> (1.15) | F12: ="(4.80)" -> (4.80) | G12: ="(1.18)" -> (1.18) | H12: ="(3.64)" -> (3.64) | I12: ="(-1.10)" -> (-1.10) | J12: ="" ->  | K12: ="" ->  | L12: ="" ->  | M12: ="" ->  | N12: ="" ->  | O12: ="" ->  | P12: ="" ->  | Q12: ="" ->  | R12: ="" ->  | S12: ="" -> 
A14: ="pct18under0507" -> pct18under0507 | B14: ="-77.48" -> -77.48 | C14: ="-77.91" -> -77.91 | D14: ="-66.03" -> -66.03 | E14: ="-64.71" -> -64.71 | F14: ="-59.87" -> -59.87 | G14: ="-61.75" -> -61.75 | H14: ="-64.18" -> -64.18 | I14: ="-65.80" -> -65.80 | J14: ="-9304.5" -> -9304.5 | K14: ="-26593.4" -> -26593.4 | L14: ="-318.0" -> -318.0 | M14: ="2123.7" -> 2123.7 | N14: ="33883.9" -> 33883.9 | O14: ="31544.3" -> 31544.3 | P14: ="-0.00683" -> -0.00683 | Q14: ="-0.00204" -> -0.00204 | R14: ="-0.00242" -> -0.00242 | S14: ="-0.0140" -> -0.0140
A15: ="" ->  | B15: ="(-3.09)" -> (-3.09) | C15: ="(-3.08)" -> (-3.08) | D15: ="(-2.50)" -> (-2.50) | E15: ="(-2.48)" -> (-2.48) | F15: ="(-2.38)" -> (-2.38) | G15: ="(-2.42)" -> (-2.42) | H15: ="(-2.57)" -> (-2.57) | I15: ="(-2.47)" -> (-2.47) | J15: ="(-0.23)" -> (-0.23) | K15: ="(-0.47)" -> (-0.47) | L15: ="(-0.01)" -> (-0.01) | M15: ="(0.03)" -> (0.03) | N15: ="(0.99)" -> (0.99) | O15: ="(0.93)" -> (0.93) | P15: ="(-2.19)" -> (-2.19) | Q15: ="(-0.41)" -> (-0.41) | R15: ="(-0.27)" -> (-0.27) | S15: ="(-1.01)" -> (-1.01)
A17: ="pct65plus0507" -> pct65plus0507 | B17: ="-13.14" -> -13.14 | C17: ="-13.22" -> -13.22 | D17: ="-10.79" -> -10.79 | E17: ="-11.24" -> -11.24 | F17: ="-2.353" -> -2.353 | G17: ="-9.852" -> -9.852 | H17: ="-21.08" -> -21.08 | I17: ="-26.13" -> -26.13 | J17: ="-9257.2" -> -9257.2 | K17: ="-67834.3" -> -67834.3 | L17: ="5189.4" -> 5189.4 | M17: ="-45427.2" -> -45427.2 | N17: ="-6894.7" -> -6894.7 | O17: ="-7025.3" -> -7025.3 | P17: ="-0.00879" -> -0.00879 | Q17: ="-0.00665" -> -0.00665 | R17: ="-0.0202" -> -0.0202 | S17: ="-0.0253" -> -0.0253
A18: ="" ->  | B18: ="(-0.66)" -> (-0.66) | C18: ="(-0.66)" -> (-0.66) | D18: ="(-0.53)" -> (-0.53) | E18: ="(-0.56)" -> (-0.56) | F18: ="(-0.12)" -> (-0.12) | G18: ="(-0.50)" -> (-0.50) | H18: ="(-1.08)" -> (-1.08) | I18: ="(-1.24)" -> (-1.24) | J18: ="(-0.28)" -> (-0.28) | K18: ="(-1.47)" -> (-1.47) | L18: ="(0.15)" -> (0.15) | M18: ="(-0.94)" -> (-0.94) | N18: ="(-0.27)" -> (-0.27) | O18: ="(-0.27)" -> (-0.27) | P18: ="(-3.04)" -> (-3.04) | Q18: ="(-1.90)" -> (-1.90) | R18: ="(-2.41)" -> (-2.41) | S18: ="(-2.57)" -> (-2.57)
A20: ="hsdippct0507" -> hsdippct0507 | B20: ="-53.52" -> -53.52 | C20: ="-48.54" -> -48.54 | D20: ="-48.07" -> -48.07 | E20: ="-45.72" -> -45.72 | F20: ="-57.43" -> -57.43 | G20: ="-49.02" -> -49.02 | H20: ="-41.63" -> -41.63 | I20: ="-30.84" -> -30.84 | J20: ="31472.8" -> 31472.8 | K20: ="87826.6" -> 87826.6 | L20: ="19017.6" -> 19017.6 | M20: ="78081.9" -> 78081.9 | N20: ="39343.4" -> 39343.4 | O20: ="38658.2" -> 38658.2 | P20: ="-0.00809" -> -0.00809 | Q20: ="-0.00448" -> -0.00448 | R20: ="-0.0266" -> -0.0266 | S20: ="-0.0353" -> -0.0353
A21: ="" ->  | B21: ="(-3.34)" -> (-3.34) | C21: ="(-2.96)" -> (-2.96) | D21: ="(-2.69)" -> (-2.69) | E21: ="(-2.60)" -> (-2.60) | F21: ="(-3.44)" -> (-3.44) | G21: ="(-2.86)" -> (-2.86) | H21: ="(-2.59)" -> (-2.59) | I21: ="(-1.75)" -> (-1.75) | J21: ="(1.20)" -> (1.20) | K21: ="(2.36)" -> (2.36) | L21: ="(0.68)" -> (0.68) | M21: ="(1.97)" -> (1.97) | N21: ="(1.69)" -> (1.69) | O21: ="(1.69)" -> (1.69) | P21: ="(-4.04)" -> (-4.04) | Q21: ="(-1.29)" -> (-1.29) | R21: ="(-4.59)" -> (-4.59) | S21: ="(-3.62)" -> (-3.62)
A23: ="collegepct0507" -> collegepct0507 | B23: ="29.54" -> 29.54 | C23: ="27.92" -> 27.92 | D23: ="31.19" -> 31.19 | E23: ="31.03" -> 31.03 | F23: ="15.50" -> 15.50 | G23: ="13.35" -> 13.35 | H23: ="27.82" -> 27.82 | I23: ="23.86" -> 23.86 | J23: ="-1131.9" -> -1131.9 | K23: ="-37073.3" -> -37073.3 | L23: ="4563.2" -> 4563.2 | M23: ="-30762.2" -> -30762.2 | N23: ="3977.0" -> 3977.0 | O23: ="2973.2" -> 2973.2 | P23: ="-0.00672" -> -0.00672 | Q23: ="-0.00917" -> -0.00917 | R23: ="-0.0259" -> -0.0259 | S23: ="-0.0201" -> -0.0201
A24: ="" ->  | B24: ="(2.77)" -> (2.77) | C24: ="(2.59)" -> (2.59) | D24: ="(2.87)" -> (2.87) | E24: ="(2.89)" -> (2.89) | F24: ="(1.46)" -> (1.46) | G24: ="(1.24)" -> (1.24) | H24: ="(2.66)" -> (2.66) | I24: ="(2.13)" -> (2.13) | J24: ="(-0.07)" -> (-0.07) | K24: ="(-1.52)" -> (-1.52) | L24: ="(0.25)" -> (0.25) | M24: ="(-1.18)" -> (-1.18) | N24: ="(0.28)" -> (0.28) | O24: ="(0.21)" -> (0.21) | P24: ="(-2.96)" -> (-2.96) | Q24: ="(-3.00)" -> (-3.00) | R24: ="(-3.95)" -> (-3.95) | S24: ="(-2.33)" -> (-2.33)
A26: ="whitepct0507" -> whitepct0507 | B26: ="0.726" -> 0.726 | C26: ="1.394" -> 1.394 | D26: ="2.461" -> 2.461 | E26: ="2.055" -> 2.055 | F26: ="10.78" -> 10.78 | G26: ="10.19" -> 10.19 | H26: ="0.707" -> 0.707 | I26: ="3.931" -> 3.931 | J26: ="-114.1" -> -114.1 | K26: ="31620.5" -> 31620.5 | L26: ="-15031.7" -> -15031.7 | M26: ="9481.7" -> 9481.7 | N26: ="-14814.6" -> -14814.6 | O26: ="-13697.1" -> -13697.1 | P26: ="-0.000644" -> -0.000644 | Q26: ="-0.00108" -> -0.00108 | R26: ="-0.00102" -> -0.00102 | S26: ="0.0000321" -> 0.0000321
A27: ="" ->  | B27: ="(0.10)" -> (0.10) | C27: ="(0.19)" -> (0.19) | D27: ="(0.35)" -> (0.35) | E27: ="(0.29)" -> (0.29) | F27: ="(1.57)" -> (1.57) | G27: ="(1.46)" -> (1.46) | H27: ="(0.10)" -> (0.10) | I27: ="(0.51)" -> (0.51) | J27: ="(-0.01)" -> (-0.01) | K27: ="(1.85)" -> (1.85) | L27: ="(-1.17)" -> (-1.17) | M27: ="(0.52)" -> (0.52) | N27: ="(-1.60)" -> (-1.60) | O27: ="(-1.50)" -> (-1.50) | P27: ="(-0.72)" -> (-0.72) | Q27: ="(-1.06)" -> (-1.06) | R27: ="(-0.39)" -> (-0.39) | S27: ="(0.01)" -> (0.01)
A29: ="blackpct0507" -> blackpct0507 | B29: ="-13.99" -> -13.99 | C29: ="-11.98" -> -11.98 | D29: ="-14.73" -> -14.73 | E29: ="-14.21" -> -14.21 | F29: ="-8.567" -> -8.567 | G29: ="-9.625" -> -9.625 | H29: ="-15.90" -> -15.90 | I29: ="-11.25" -> -11.25 | J29: ="15619.1" -> 15619.1 | K29: ="29561.4" -> 29561.4 | L29: ="4618.0" -> 4618.0 | M29: ="7419.0" -> 7419.0 | N29: ="4799.8" -> 4799.8 | O29: ="5074.3" -> 5074.3 | P29: ="-0.00112" -> -0.00112 | Q29: ="0.0000924" -> 0.0000924 | R29: ="-0.00328" -> -0.00328 | S29: ="-0.00620" -> -0.00620
A30: ="" ->  | B30: ="(-1.72)" -> (-1.72) | C30: ="(-1.46)" -> (-1.46) | D30: ="(-1.86)" -> (-1.86) | E30: ="(-1.82)" -> (-1.82) | F30: ="(-1.11)" -> (-1.11) | G30: ="(-1.23)" -> (-1.23) | H30: ="(-1.99)" -> (-1.99) | I30: ="(-1.30)" -> (-1.30) | J30: ="(1.17)" -> (1.17) | K30: ="(1.58)" -> (1.58) | L30: ="(0.32)" -> (0.32) | M30: ="(0.36)" -> (0.36) | N30: ="(0.46)" -> (0.46) | O30: ="(0.49)" -> (0.49) | P30: ="(-1.10)" -> (-1.10) | Q30: ="(0.06)" -> (0.06) | R30: ="(-1.12)" -> (-1.12) | S30: ="(-1.55)" -> (-1.55)
A32: ="hisppct0507" -> hisppct0507 | B32: ="-5.813" -> -5.813 | C32: ="-2.497" -> -2.497 | D32: ="-3.397" -> -3.397 | E32: ="-2.039" -> -2.039 | F32: ="-8.572" -> -8.572 | G32: ="-6.605" -> -6.605 | H32: ="-3.876" -> -3.876 | I32: ="1.711" -> 1.711 | J32: ="21619.2" -> 21619.2 | K32: ="33804.3" -> 33804.3 | L32: ="13857.4" -> 13857.4 | M32: ="22415.5" -> 22415.5 | N32: ="21148.7" -> 21148.7 | O32: ="20867.4" -> 20867.4 | P32: ="-0.00215" -> -0.00215 | Q32: ="-0.00148" -> -0.00148 | R32: ="-0.00781" -> -0.00781 | S32: ="-0.00941" -> -0.00941
A33: ="" ->  | B33: ="(-1.00)" -> (-1.00) | C33: ="(-0.42)" -> (-0.42) | D33: ="(-0.57)" -> (-0.57) | E33: ="(-0.35)" -> (-0.35) | F33: ="(-1.52)" -> (-1.52) | G33: ="(-1.15)" -> (-1.15) | H33: ="(-0.68)" -> (-0.68) | I33: ="(0.27)" -> (0.27) | J33: ="(2.32)" -> (2.32) | K33: ="(2.59)" -> (2.59) | L33: ="(1.37)" -> (1.37) | M33: ="(1.56)" -> (1.56) | N33: ="(2.73)" -> (2.73) | O33: ="(2.74)" -> (2.74) | P33: ="(-3.04)" -> (-3.04) | Q33: ="(-1.63)" -> (-1.63) | R33: ="(-3.82)" -> (-3.82) | S33: ="(-3.67)" -> (-3.67)
A35: ="medhhinc0507" -> medhhinc0507 | B35: ="0.0508" -> 0.0508 | C35: ="0.0513" -> 0.0513 | D35: ="0.0425" -> 0.0425 | E35: ="0.0438" -> 0.0438 | F35: ="0.0395" -> 0.0395 | G35: ="0.0332" -> 0.0332 | H35: ="0.0378" -> 0.0378 | I35: ="0.0403" -> 0.0403 | J35: ="11.11" -> 11.11 | K35: ="-40.34" -> -40.34 | L35: ="5.028" -> 5.028 | M35: ="-64.84" -> -64.84 | N35: ="9.193" -> 9.193 | O35: ="10.04" -> 10.04 | P35: ="0.0000137" -> 0.0000137 | Q35: ="0.0000118" -> 0.0000118 | R35: ="0.0000180" -> 0.0000180 | S35: ="0.0000226" -> 0.0000226
A36: ="" ->  | B36: ="(5.31)" -> (5.31) | C36: ="(5.28)" -> (5.28) | D36: ="(4.15)" -> (4.15) | E36: ="(4.32)" -> (4.32) | F36: ="(4.20)" -> (4.20) | G36: ="(3.41)" -> (3.41) | H36: ="(3.80)" -> (3.80) | I36: ="(3.77)" -> (3.77) | J36: ="(0.71)" -> (0.71) | K36: ="(-1.78)" -> (-1.78) | L36: ="(0.31)" -> (0.31) | M36: ="(-2.87)" -> (-2.87) | N36: ="(0.71)" -> (0.71) | O36: ="(0.78)" -> (0.78) | P36: ="(10.98)" -> (10.98) | Q36: ="(5.95)" -> (5.95) | R36: ="(4.98)" -> (4.98) | S36: ="(4.06)" -> (4.06)
A38: ="oohmedval0507" -> oohmedval0507 | B38: ="-0.00196" -> -0.00196 | C38: ="-0.00195" -> -0.00195 | D38: ="-0.00164" -> -0.00164 | E38: ="-0.00172" -> -0.00172 | F38: ="-0.00172" -> -0.00172 | G38: ="-0.00169" -> -0.00169 | H38: ="-0.00157" -> -0.00157 | I38: ="-0.00223" -> -0.00223 | J38: ="-1.171" -> -1.171 | K38: ="-2.602" -> -2.602 | L38: ="-0.205" -> -0.205 | M38: ="-0.505" -> -0.505 | N38: ="0.0544" -> 0.0544 | O38: ="-0.0947" -> -0.0947 | P38: ="-0.000000169" -> -0.000000169 | Q38: ="-0.000000101" -> -0.000000101 | R38: ="-0.000000450" -> -0.000000450 | S38: ="-0.000000614" -> -0.000000614
A39: ="" ->  | B39: ="(-3.01)" -> (-3.01) | C39: ="(-2.96)" -> (-2.96) | D39: ="(-2.54)" -> (-2.54) | E39: ="(-2.69)" -> (-2.69) | F39: ="(-2.87)" -> (-2.87) | G39: ="(-2.76)" -> (-2.76) | H39: ="(-2.44)" -> (-2.44) | I39: ="(-3.12)" -> (-3.12) | J39: ="(-1.13)" -> (-1.13) | K39: ="(-1.80)" -> (-1.80) | L39: ="(-0.19)" -> (-0.19) | M39: ="(-0.32)" -> (-0.32) | N39: ="(0.06)" -> (0.06) | O39: ="(-0.11)" -> (-0.11) | P39: ="(-2.15)" -> (-2.15) | Q39: ="(-1.02)" -> (-1.02) | R39: ="(-1.98)" -> (-1.98) | S39: ="(-2.20)" -> (-2.20)
A41: ="railrevmiles" -> railrevmiles | B41: ="" ->  | C41: ="" ->  | D41: ="0.0000503" -> 0.0000503 | E41: ="0.0000831" -> 0.0000831 | F41: ="" ->  | G41: ="" ->  | H41: ="" ->  | I41: ="" ->  | J41: ="" ->  | K41: ="" ->  | L41: ="" ->  | M41: ="" ->  | N41: ="0.264" -> 0.264 | O41: ="0.287" -> 0.287 | P41: ="" ->  | Q41: ="" ->  | R41: ="" ->  | S41: ="" -> 
A42: ="" ->  | B42: ="" ->  | C42: ="" ->  | D42: ="(3.31)" -> (3.31) | E42: ="(4.23)" -> (4.23) | F42: ="" ->  | G42: ="" ->  | H42: ="" ->  | I42: ="" ->  | J42: ="" ->  | K42: ="" ->  | L42: ="" ->  | M42: ="" ->  | N42: ="(20.49)" -> (20.49) | O42: ="(20.23)" -> (20.23) | P42: ="" ->  | Q42: ="" ->  | R42: ="" ->  | S42: ="" -> 
A44: ="freeartsqm" -> freeartsqm | B44: ="" ->  | C44: ="" ->  | D44: ="1399.2" -> 1399.2 | E44: ="1442.4" -> 1442.4 | F44: ="" ->  | G44: ="" ->  | H44: ="1265.2" -> 1265.2 | I44: ="912.6" -> 912.6 | J44: ="" ->  | K44: ="" ->  | L44: ="" ->  | M44: ="" ->  | N44: ="2991103.5" -> 2991103.5 | O44: ="2673313.5" -> 2673313.5 | P44: ="" ->  | Q44: ="" ->  | R44: ="" ->  | S44: ="" -> 
A45: ="" ->  | B45: ="" ->  | C45: ="" ->  | D45: ="(3.22)" -> (3.22) | E45: ="(3.36)" -> (3.36) | F45: ="" ->  | G45: ="" ->  | H45: ="(3.08)" -> (3.08) | I45: ="(2.03)" -> (2.03) | J45: ="" ->  | K45: ="" ->  | L45: ="" ->  | M45: ="" ->  | N45: ="(5.57)" -> (5.57) | O45: ="(4.99)" -> (4.99) | P45: ="" ->  | Q45: ="" ->  | R45: ="" ->  | S45: ="" -> 
A47: ="railseatcappc" -> railseatcappc | B47: ="" ->  | C47: ="" ->  | D47: ="" ->  | E47: ="" ->  | F47: ="41410.0" -> 41410.0 | G47: ="129861.3" -> 129861.3 | H47: ="" ->  | I47: ="" ->  | J47: ="" ->  | K47: ="" ->  | L47: ="" ->  | M47: ="" ->  | N47: ="" ->  | O47: ="" ->  | P47: ="" ->  | Q47: ="" ->  | R47: ="" ->  | S47: ="" -> 
A48: ="" ->  | B48: ="" ->  | C48: ="" ->  | D48: ="" ->  | E48: ="" ->  | F48: ="(2.27)" -> (2.27) | G48: ="(3.91)" -> (3.91) | H48: ="" ->  | I48: ="" ->  | J48: ="" ->  | K48: ="" ->  | L48: ="" ->  | M48: ="" ->  | N48: ="" ->  | O48: ="" ->  | P48: ="" ->  | Q48: ="" ->  | R48: ="" ->  | S48: ="" -> 
A50: ="MBseatpc" -> MBseatpc | B50: ="" ->  | C50: ="" ->  | D50: ="" ->  | E50: ="" ->  | F50: ="63709.2" -> 63709.2 | G50: ="57130.9" -> 57130.9 | H50: ="" ->  | I50: ="" ->  | J50: ="" ->  | K50: ="" ->  | L50: ="" ->  | M50: ="" ->  | N50: ="" ->  | O50: ="" ->  | P50: ="" ->  | Q50: ="" ->  | R50: ="" ->  | S50: ="" -> 
A51: ="" ->  | B51: ="" ->  | C51: ="" ->  | D51: ="" ->  | E51: ="" ->  | F51: ="(6.27)" -> (6.27) | G51: ="(5.43)" -> (5.43) | H51: ="" ->  | I51: ="" ->  | J51: ="" ->  | K51: ="" ->  | L51: ="" ->  | M51: ="" ->  | N51: ="" ->  | O51: ="" ->  | P51: ="" ->  | Q51: ="" ->  | R51: ="" ->  | S51: ="" -> 
A53: ="freeartpc" -> freeartpc | B53: ="" ->  | C53: ="" ->  | D53: ="" ->  | E53: ="" ->  | F53: ="-123935.7" -> -123935.7 | G53: ="-146804.4" -> -146804.4 | H53: ="" ->  | I53: ="" ->  | J53: ="" ->  | K53: ="" ->  | L53: ="-264958992.7" -> -264958992.7 | M53: ="-175960292.8" -> -175960292.8 | N53: ="" ->  | O53: ="" ->  | P53: ="" ->  | Q53: ="" ->  | R53: ="" ->  | S53: ="" -> 
A54: ="" ->  | B54: ="" ->  | C54: ="" ->  | D54: ="" ->  | E54: ="" ->  | F54: ="(-2.64)" -> (-2.64) | G54: ="(-3.05)" -> (-3.05) | H54: ="" ->  | I54: ="" ->  | J54: ="" ->  | K54: ="" ->  | L54: ="(-3.03)" -> (-3.03) | M54: ="(-1.41)" -> (-1.41) | N54: ="" ->  | O54: ="" ->  | P54: ="" ->  | Q54: ="" ->  | R54: ="" ->  | S54: ="" -> 
A56: ="aptasqmiles" -> aptasqmiles | B56: ="" ->  | C56: ="" ->  | D56: ="" ->  | E56: ="" ->  | F56: ="" ->  | G56: ="" ->  | H56: ="9931.3" -> 9931.3 | I56: ="46120.0" -> 46120.0 | J56: ="" ->  | K56: ="" ->  | L56: ="" ->  | M56: ="" ->  | N56: ="" ->  | O56: ="" ->  | P56: ="" ->  | Q56: ="" ->  | R56: ="" ->  | S56: ="" -> 
A57: ="" ->  | B57: ="" ->  | C57: ="" ->  | D57: ="" ->  | E57: ="" ->  | F57: ="" ->  | G57: ="" ->  | H57: ="(2.06)" -> (2.06) | I57: ="(3.96)" -> (3.96) | J57: ="" ->  | K57: ="" ->  | L57: ="" ->  | M57: ="" ->  | N57: ="" ->  | O57: ="" ->  | P57: ="" ->  | Q57: ="" ->  | R57: ="" ->  | S57: ="" -> 
A59: ="aptauza" -> aptauza | B59: ="" ->  | C59: ="" ->  | D59: ="" ->  | E59: ="" ->  | F59: ="" ->  | G59: ="" ->  | H59: ="" ->  | I59: ="" ->  | J59: ="22718912.2" -> 22718912.2 | K59: ="50652398.2" -> 50652398.2 | L59: ="" ->  | M59: ="" ->  | N59: ="" ->  | O59: ="" ->  | P59: ="" ->  | Q59: ="" ->  | R59: ="" ->  | S59: ="" -> 
A60: ="" ->  | B60: ="" ->  | C60: ="" ->  | D60: ="" ->  | E60: ="" ->  | F60: ="" ->  | G60: ="" ->  | H60: ="" ->  | I60: ="" ->  | J60: ="(14.32)" -> (14.32) | K60: ="(12.98)" -> (12.98) | L60: ="" ->  | M60: ="" ->  | N60: ="" ->  | O60: ="" ->  | P60: ="" ->  | Q60: ="" ->  | R60: ="" ->  | S60: ="" -> 
A62: ="freeartuza" -> freeartuza | B62: ="" ->  | C62: ="" ->  | D62: ="" ->  | E62: ="" ->  | F62: ="" ->  | G62: ="" ->  | H62: ="" ->  | I62: ="" ->  | J62: ="-105103.7" -> -105103.7 | K62: ="-102384.7" -> -102384.7 | L62: ="" ->  | M62: ="" ->  | N62: ="" ->  | O62: ="" ->  | P62: ="" ->  | Q62: ="" ->  | R62: ="" ->  | S62: ="" -> 
A63: ="" ->  | B63: ="" ->  | C63: ="" ->  | D63: ="" ->  | E63: ="" ->  | F63: ="" ->  | G63: ="" ->  | H63: ="" ->  | I63: ="" ->  | J63: ="(-3.19)" -> (-3.19) | K63: ="(-2.21)" -> (-2.21) | L63: ="" ->  | M63: ="" ->  | N63: ="" ->  | O63: ="" ->  | P63: ="" ->  | Q63: ="" ->  | R63: ="" ->  | S63: ="" -> 
A65: ="aptapc" -> aptapc | B65: ="" ->  | C65: ="" ->  | D65: ="" ->  | E65: ="" ->  | F65: ="" ->  | G65: ="" ->  | H65: ="" ->  | I65: ="" ->  | J65: ="" ->  | K65: ="" ->  | L65: ="7.16411e+10" -> 7.16411e+10 | M65: ="1.92112e+11" -> 1.92112e+11 | N65: ="" ->  | O65: ="" ->  | P65: ="" ->  | Q65: ="" ->  | R65: ="" ->  | S65: ="" -> 
A66: ="" ->  | B66: ="" ->  | C66: ="" ->  | D66: ="" ->  | E66: ="" ->  | F66: ="" ->  | G66: ="" ->  | H66: ="" ->  | I66: ="" ->  | J66: ="" ->  | K66: ="" ->  | L66: ="(11.09)" -> (11.09) | M66: ="(.)" -> (.) | N66: ="" ->  | O66: ="" ->  | P66: ="" ->  | Q66: ="" ->  | R66: ="" ->  | S66: ="" -> 
A68: ="lneden_pcity" -> lneden_pcity | B68: ="" ->  | C68: ="" ->  | D68: ="" ->  | E68: ="" ->  | F68: ="" ->  | G68: ="" ->  | H68: ="" ->  | I68: ="" ->  | J68: ="" ->  | K68: ="" ->  | L68: ="" ->  | M68: ="" ->  | N68: ="" ->  | O68: ="" ->  | P68: ="0.00834" -> 0.00834 | Q68: ="0.119" -> 0.119 | R68: ="0.111" -> 0.111 | S68: ="-0.155" -> -0.155
A69: ="" ->  | B69: ="" ->  | C69: ="" ->  | D69: ="" ->  | E69: ="" ->  | F69: ="" ->  | G69: ="" ->  | H69: ="" ->  | I69: ="" ->  | J69: ="" ->  | K69: ="" ->  | L69: ="" ->  | M69: ="" ->  | N69: ="" ->  | O69: ="" ->  | P69: ="(0.60)" -> (0.60) | Q69: ="(1.40)" -> (1.40) | R69: ="(2.78)" -> (2.78) | S69: ="(-0.65)" -> (-0.65)
A71: ="lnhc" -> lnhc | B71: ="" ->  | C71: ="" ->  | D71: ="" ->  | E71: ="" ->  | F71: ="" ->  | G71: ="" ->  | H71: ="" ->  | I71: ="" ->  | J71: ="" ->  | K71: ="" ->  | L71: ="" ->  | M71: ="" ->  | N71: ="" ->  | O71: ="" ->  | P71: ="0.242" -> 0.242 | Q71: ="0.266" -> 0.266 | R71: ="1.157" -> 1.157 | S71: ="1.099" -> 1.099
A72: ="" ->  | B72: ="" ->  | C72: ="" ->  | D72: ="" ->  | E72: ="" ->  | F72: ="" ->  | G72: ="" ->  | H72: ="" ->  | I72: ="" ->  | J72: ="" ->  | K72: ="" ->  | L72: ="" ->  | M72: ="" ->  | N72: ="" ->  | O72: ="" ->  | P72: ="(4.52)" -> (4.52) | Q72: ="(4.41)" -> (4.41) | R72: ="(7.48)" -> (7.48) | S72: ="(6.48)" -> (6.48)
A74: ="lnpop" -> lnpop | B74: ="" ->  | C74: ="" ->  | D74: ="" ->  | E74: ="" ->  | F74: ="" ->  | G74: ="" ->  | H74: ="" ->  | I74: ="" ->  | J74: ="" ->  | K74: ="" ->  | L74: ="" ->  | M74: ="" ->  | N74: ="" ->  | O74: ="" ->  | P74: ="0.0410" -> 0.0410 | Q74: ="0.0206" -> 0.0206 | R74: ="0.0596" -> 0.0596 | S74: ="0.109" -> 0.109
A75: ="" ->  | B75: ="" ->  | C75: ="" ->  | D75: ="" ->  | E75: ="" ->  | F75: ="" ->  | G75: ="" ->  | H75: ="" ->  | I75: ="" ->  | J75: ="" ->  | K75: ="" ->  | L75: ="" ->  | M75: ="" ->  | N75: ="" ->  | O75: ="" ->  | P75: ="(4.98)" -> (4.98) | Q75: ="(1.16)" -> (1.16) | R75: ="(2.50)" -> (2.50) | S75: ="(2.17)" -> (2.17)
A77: ="lnfreeartpc" -> lnfreeartpc | B77: ="" ->  | C77: ="" ->  | D77: ="" ->  | E77: ="" ->  | F77: ="" ->  | G77: ="" ->  | H77: ="" ->  | I77: ="" ->  | J77: ="" ->  | K77: ="" ->  | L77: ="" ->  | M77: ="" ->  | N77: ="" ->  | O77: ="" ->  | P77: ="0.0114" -> 0.0114 | Q77: ="0.0149" -> 0.0149 | R77: ="0.147" -> 0.147 | S77: ="0.138" -> 0.138
A78: ="" ->  | B78: ="" ->  | C78: ="" ->  | D78: ="" ->  | E78: ="" ->  | F78: ="" ->  | G78: ="" ->  | H78: ="" ->  | I78: ="" ->  | J78: ="" ->  | K78: ="" ->  | L78: ="" ->  | M78: ="" ->  | N78: ="" ->  | O78: ="" ->  | P78: ="(0.90)" -> (0.90) | Q78: ="(1.07)" -> (1.07) | R78: ="(3.99)" -> (3.99) | S78: ="(3.53)" -> (3.53)
A80: ="lnaptapc" -> lnaptapc | B80: ="" ->  | C80: ="" ->  | D80: ="" ->  | E80: ="" ->  | F80: ="" ->  | G80: ="" ->  | H80: ="" ->  | I80: ="" ->  | J80: ="" ->  | K80: ="" ->  | L80: ="" ->  | M80: ="" ->  | N80: ="" ->  | O80: ="" ->  | P80: ="0.00313" -> 0.00313 | Q80: ="0.00204" -> 0.00204 | R80: ="0.00517" -> 0.00517 | S80: ="0.00780" -> 0.00780
A81: ="" ->  | B81: ="" ->  | C81: ="" ->  | D81: ="" ->  | E81: ="" ->  | F81: ="" ->  | G81: ="" ->  | H81: ="" ->  | I81: ="" ->  | J81: ="" ->  | K81: ="" ->  | L81: ="" ->  | M81: ="" ->  | N81: ="" ->  | O81: ="" ->  | P81: ="(2.92)" -> (2.92) | Q81: ="(1.44)" -> (1.44) | R81: ="(1.67)" -> (1.67) | S81: ="(1.96)" -> (1.96)
A83: ="_cons" -> _cons | B83: ="5309.9" -> 5309.9 | C83: ="4814.6" -> 4814.6 | D83: ="4399.0" -> 4399.0 | E83: ="4172.5" -> 4172.5 | F83: ="5019.6" -> 5019.6 | G83: ="4941.5" -> 4941.5 | H83: ="4416.4" -> 4416.4 | I83: ="3537.9" -> 3537.9 | J83: ="-2139235.8" -> -2139235.8 | K83: ="-4975595.0" -> -4975595.0 | L83: ="-180373.9" -> -180373.9 | M83: ="-2582972.7" -> -2582972.7 | N83: ="-3850820.1" -> -3850820.1 | O83: ="-3744515.5" -> -3744515.5 | P83: ="11.03" -> 11.03 | Q83: ="10.24" -> 10.24 | R83: ="0.781" -> 0.781 | S83: ="2.698" -> 2.698
A84: ="" ->  | B84: ="(3.57)" -> (3.57) | C84: ="(3.18)" -> (3.18) | D84: ="(2.69)" -> (2.69) | E84: ="(2.58)" -> (2.58) | F84: ="(3.22)" -> (3.22) | G84: ="(3.12)" -> (3.12) | H84: ="(2.98)" -> (2.98) | I84: ="(2.20)" -> (2.20) | J84: ="(-0.88)" -> (-0.88) | K84: ="(-1.46)" -> (-1.46) | L84: ="(-0.07)" -> (-0.07) | M84: ="(-0.69)" -> (-0.69) | N84: ="(-1.81)" -> (-1.81) | O84: ="(-1.78)" -> (-1.78) | P84: ="(37.08)" -> (37.08) | Q84: ="(15.03)" -> (15.03) | R84: ="(0.91)" -> (0.91) | S84: ="(1.41)" -> (1.41)
A86: ="N" -> N | B86: ="325" -> 325 | C86: ="323" -> 323 | D86: ="294" -> 294 | E86: ="294" -> 294 | F86: ="295" -> 295 | G86: ="295" -> 295 | H86: ="325" -> 325 | I86: ="323" -> 323 | J86: ="325" -> 325 | K86: ="323" -> 323 | L86: ="335" -> 335 | M86: ="333" -> 333 | N86: ="303" -> 303 | O86: ="303" -> 303 | P86: ="323" -> 323 | Q86: ="323" -> 323 | R86: ="323" -> 323 | S86: ="323" -> 323
A87: ="r2_a" -> r2_a | B87: ="0.470" -> 0.470 | C87: ="0.439" -> 0.439 | D87: ="0.524" -> 0.524 | E87: ="0.516" -> 0.516 | F87: ="0.569" -> 0.569 | G87: ="0.533" -> 0.533 | H87: ="0.488" -> 0.488 | I87: ="0.396" -> 0.396 | J87: ="0.515" -> 0.515 | K87: ="0.0339" -> 0.0339 | L87: ="0.421" -> 0.421 | M87: ="0.200" -> 0.200 | N87: ="0.729" -> 0.729 | O87: ="0.726" -> 0.726 | P87: ="0.726" -> 0.726 | Q87: ="0.668" -> 0.668 | R87: ="0.520" -> 0.520 | S87: ="0.451" -> 0.451
A88: ="widstat" -> widstat | B88: ="" ->  | C88: ="99.74" -> 99.74 | D88: ="" ->  | E88: ="125.8" -> 125.8 | F88: ="" ->  | G88: ="44.92" -> 44.92 | H88: ="" ->  | I88: ="26.32" -> 26.32 | J88: ="" ->  | K88: ="48.32" -> 48.32 | L88: ="" ->  | M88: ="49.56" -> 49.56 | N88: ="" ->  | O88: ="379.0" -> 379.0 | P88: ="" ->  | Q88: ="4.371" -> 4.371 | R88: ="" ->  | S88: ="4.371" -> 4.371
A89: ="sargan" -> sargan | B89: ="" ->  | C89: ="1.622" -> 1.622 | D89: ="" ->  | E89: ="0.976" -> 0.976 | F89: ="" ->  | G89: ="0.0998" -> 0.0998 | H89: ="" ->  | I89: ="0.170" -> 0.170 | J89: ="" ->  | K89: ="1.533" -> 1.533 | L89: ="" ->  | M89: ="139.0" -> 139.0 | N89: ="" ->  | O89: ="13.55" -> 13.55 | P89: ="" ->  | Q89: ="1.029" -> 1.029 | R89: ="" ->  | S89: ="3.025" -> 3.025
A90: ="sarganp" -> sarganp | B90: ="" ->  | C90: ="0.445" -> 0.445 | D90: ="" ->  | E90: ="0.614" -> 0.614 | F90: ="" ->  | G90: ="0.951" -> 0.951 | H90: ="" ->  | I90: ="0.919" -> 0.919 | J90: ="" ->  | K90: ="0.465" -> 0.465 | L90: ="" ->  | M90: ="6.67e-31" -> 6.67e-31 | N90: ="" ->  | O90: ="0.00114" -> 0.00114 | P90: ="" ->  | Q90: ="0.598" -> 0.598 | R90: ="" ->  | S90: ="0.220" -> 0.220
A92: ="t statistics in parentheses" -> t statistics in parentheses

Sheet OUTPUTS
C11: Project Ridership Output
G12: Uncertainty
D13: Riders on the project | E13: =ROUND('Ridership Data'!C14,2-(INT(LOG('Ridership Data'!C14))+1)) -> 64000 | F13: ± | G13: =ROUND('Ridership Data'!C15,1-(INT(LOG('Ridership Data'!C15))+1)) -> 7000 | H13: per average weekday
D14: Capital cost per rider | E14: =ROUND(E67*1000000/(E13),1-(INT(LOG(ABS( E67*1000000/(E13)))))) -> 26000 | F14: ± | G14: =ROUND(E14*G13/E13,1-(INT(LOG(ABS( E14*G13/E13))))-1) -> 3000
C65: Capital Costs Output
D67: Capital cost (total) | E67: =IF('USER DATA ENTRY'!$E$26="User-supplied total cost (preferred)",'USER DATA ENTRY'!$E$35,IF('USER DATA ENTRY'!$E$26="User-supplied cost per mile",'USER DATA ENTRY'!$E$34*NewTrackMileage,'Cost Data'!$C$20)) -> 1658 | G67: MILLION (2009)
D68: Capital cost per mile | E68: =$E$67/NewTrackMileage -> 36.84444444 | G68: MILLION/Mile (2009)
C71: System-wide PMT Output
G72: Uncertainty
D73: New PMT on the system | E73: =IF('PMT Data'!B17>0,ROUND('PMT Data'!B17,2-(INT(LOG(ABS('PMT Data'!B17)))+1)),"Negligible") -> 360000000 | F73: ± | G73: =IF('PMT Data'!B17>0,ROUND('PMT Data'!D17, 1-(INT(LOG('PMT Data'!D17))+1)),"NA") -> 20000000 | H73: pax miles per year
D74: Capital cost per new PMT | E74: =IF('PMT Data'!B17>0,ROUND(E67*1000000/(E73),1-(INT(LOG(ABS(E67*1000000/(E73))))+1)),"NA") -> 5 | F74: ± | G74: =IF('PMT Data'!B17>0,ROUND(E74*G73/E73, 1-(INT(LOG(E74*G73/E73))+1)),"NA") -> 0.3

Sheet MSAdata (hidden)
A1: cbsa_code | B1: name | C1: CBDpark | D1: TTI | E1: IncPerCap | F1: Gas_ctywt_msa | G1: atrctnfrac_pcity | H1: earn3frac_pcity | I1: ppw00 | J1: emp08 | K1: population | L1: gdppc | M1: GDP in $ | N1: total GDP | O1: uzasqm | P1: lnwage | Q1: lngdppc00 | R1: lneden_pcity | S1: lnhc | T1: lnpop | U1: lnfwypc | V1: lnaptapc2 | W1: eden_UZA | X1: eden_pcity | Y1: raildum | Z1: apta_cleaned | AA1: freeart | AB1: population | AC1: aptapc | AD1: frwyartpc | AE1: aptasqmiles | AF1: freeartsqmiles | AG1: railseatcap | AH1: MBseatcapy | AI1: railseatpc | AJ1: MBseatpc | AK1: aptauza | AL1: freeartuza | AM1: lnppw11 | AN1: lnppw21 | AO1: lnppw22 | AP1: lnppw23 | AQ1: lnppw31 | AR1: lnppw42 | AS1: lnppw44 | AT1: lnppw48 | AU1: lnppw51 | AV1: lnppw52 | AW1: lnppw53 | AX1: lnppw54 | AY1: lnppw55 | AZ1: lnppw56 | BA1: lnppw61 | BB1: lnppw62 | BC1: lnppw71 | BD1: lnppw72 | BE1: lnppw81 | BF1: lnppw99 | BG1: railrevmiles | BH1: railrevmiles per rail mile | BI1: totrevmiles | BJ1: cbsa_area | BK1: pcity_uza_landarea | BL1: pcity_uza_landarea_sqmi | BM1: cbsa_area_gross | BN1: pcitylandarea
A2: 10180 | B2: Abilene, TX | C2: 14.84959007 | D2: 1.15 | E2: 35188 | F2: 2.154879 | G2: 0.2455161 | H2: 0.2616514 | I2: 30197.81 | J2: 101226 | K2: 159059 | L2: 0.0276375 | M2: =L2*1000000 -> 27637.5 | N2: =L2*K2*1000000 -> 4395993112 | O2: 53.69609 | P2: 10.31553 | Q2: -3.58858 | R2: 6.831068 | S2: -1.706716 | T2: 11.97703 | U2: 0.0020941 | V2: 0 | W2: 842.1469 | X2: 926.1793 | Y2: 0 | Z2: 0 | AA2: 333.4406 | AB2: 159059 | AC2: 0 | AD2: 0.0020963 | AE2: 0 | AF2: 0.1214615 | AH2: 124 | AK2: 0 | AL2: 6.209774 | AM2: 10.60361 | AN2: 11.01087 | AO2: 11.21026 | AP2: 10.75056 | AQ2: 10.4448 | AR2: 10.62656 | AS2: 10.00403 | AT2: 10.49829 | AU2: 10.59536 | AV2: 10.55307 | AW2: 10.49686 | AX2: 10.63313 | AZ2: 10.07893 | BA2: 9.884816 | BB2: 10.36834 | BC2: 9.490804 | BD2: 9.418955 | BE2: 9.741195 | BG2: 0 | BH2: =IF(Z2>0,BG2/Z2,"") ->  | BI2: 422323 | BJ2: 2745.237 | BK2: 122704203 | BL2: 47.37636 | BM2: 2757.7017 | BN2: 47.37635966
A3: 10420 | B3: Akron, OH | C3: 14.84959007 | D3: 1.05 | E3: 37066 | F3: 2.271125 | G3: 0.1374715 | H3: 0.4223669 | I3: 38704.77 | J3: 424392 | K3: 699954 | L3: 0.0356466 | M3: =L3*1000000 -> 35646.6 | N3: =L3*K3*1000000 -> 2.495098026e+10 | O3: 336.7755 | P3: 10.56372 | Q3: -3.334101 | R3: 7.453256 | S3: -1.421252 | T3: 13.45877 | U3: 0.0006349 | V3: 0 | W3: 726.9234 | X3: 1725.472 | Y3: 0 | Z3: 0 | AA3: 444.5235 | AB3: 699954 | AC3: 0 | AD3: 0.0006351 | AE3: 0 | AF3: 0.4911249 | AK3: 0 | AL3: 1.31994 | AN3: 10.89736 | AP3: 10.88639 | AQ3: 10.68713 | AR3: 10.88004 | AS3: 10.02653 | AT3: 10.68204 | AU3: 10.92273 | AV3: 10.82374 | AW3: 10.29525 | AX3: 10.85308 | AY3: 11.36318 | AZ3: 10.26954 | BA3: 10.17983 | BB3: 10.51342 | BC3: 9.770511 | BD3: 9.356152 | BE3: 10.03148 | BH3: =IF(Z3>0,BG3/Z3,"") ->  | BJ3: 905.113 | BK3: 157908539 | BL3: 60.96883 | BM3: 924.35717 | BN3: 60.96883036
A4: 10500 | B4: Albany, GA | C4: 14.84959007 | D4: 1.15 | E4: 29220 | F4: 2.081824 | G4: 0.2616281 | H4: 0.2188415 | I4: 29913.37 | J4: 82255 | K4: 164488 | L4: 0.0224819 | M4: 22481.9 | N4: =L4*K4*1000000 -> 3698002767 | O4: 73.02319 | P4: 10.30606 | Q4: -3.795045 | R4: 6.629928 | S4: -1.927334 | T4: 12.01059 | U4: 0.0023083 | V4: 0 | W4: 553.0982 | X4: 757.4273 | Y4: 0 | Z4: 0 | AA4: 380.1183 | AB4: 164488 | AC4: 0 | AD4: 0.0023109 | AE4: 0 | AF4: 0.1965772 | AH4: 190 | AK4: 0 | AL4: 5.205446 | AM4: 10.90842 | AP4: 10.50558 | AQ4: 10.78052 | AR4: 10.58621 | AS4: 9.891738 | AT4: 10.4423 | AU4: 10.46473 | AV4: 10.61813 | AW4: 10.12393 | AX4: 10.69201 | AY4: 11.44053 | AZ4: 9.981977 | BB4: 10.50717 | BC4: 8.591301 | BD4: 9.2564 | BE4: 9.950934 | BG4: 0 | BI4: 532011 | BJ4: 1933.684 | BK4: 115642526 | BL4: 44.64983 | BM4: 1957.7 | BN4: 44.64983081
A5: 10580 | B5: Albany-Schenectady-Troy, NY | C5: 14.84959007 | D5: 1.1 | E5: 42206 | F5: 2.435158 | G5: 0.0973665 | H5: 0.4991563 | I5: 39400.06 | J5: 554009 | K5: 854301 | L5: 0.0365422 | M5: 36542.2 | N5: 3.1218038e+10 | O5: 339.4524 | P5: 10.58152 | Q5: -3.309289 | R5: 8.200086 | S5: -1.229435 | T5: 13.65804 | U5: 0.0010615 | V5: 0 | W5: 1007.62 | X5: 3641.263 | Y5: 0 | Z5: 0 | AA5: 907.3066 | AB5: 854301 | AC5: 0 | AD5: 0.001062 | AE5: 0 | AF5: 0.3220393 | AH5: 669 | AK5: 0 | AL5: 2.672854 | AM5: 10.7557 | AO5: 11.46672 | AP5: 10.90171 | AQ5: 10.90455 | AR5: 10.8501 | AS5: 10.04747 | AT5: 10.50927 | AU5: 11.00851 | AV5: 10.98266 | AW5: 10.41332 | AX5: 10.96557 | AY5: 11.00904 | AZ5: 10.29144 | BA5: 10.41018 | BB5: 10.53411 | BC5: 9.812752 | BD5: 9.576674 | BE5: 10.32727 | BF5: 11.17605 | BG5: 0 | BI5: 7290739 | BJ5: 2817.379 | BK5: 107065964 | BL5: 41.3384 | BM5: 2878.1116 | BN5: 41.33840157
A6: 10740 | B6: Albuquerque, NM | C6: 14.84959007 | D6: 1.13 | E6: 35329 | F6: 2.296039 | G6: 0.2457903 | H6: 0.3156554 | I6: 35760.02 | J6: 512994 | K6: 846582 | L6: 0.0339483 | M6: 33948.3 | N6: 2.874001971e+10 | O6: 280.5144 | P6: 10.48459 | Q6: -3.382917 | R6: 7.658737 | S6: -1.316759 | T6: 13.64896 | U6: 0.0008781 | V6: 4.96e-05 | W6: 1153.082 | X6: 2119.08 | Y6: 1 | Z6: 42 | AA6: 743.6896 | AB6: 846582 | AC6: 4.96e-05 | AD6: 0.0008785 | AE6: 0.0045221 | AF6: 0.0800716 | AH6: 279 | AK6: 0.1497249 | AL6: 2.651164 | AM6: 9.882434 | AN6: 11.01734 | AO6: 10.89832 | AP6: 10.61102 | AQ6: 10.78086 | AR6: 10.71364 | AS6: 10.08218 | AT6: 10.46292 | AU6: 10.62542 | AV6: 10.77706 | AW6: 10.32389 | AX6: 10.95212 | AY6: 10.84816 | AZ6: 10.1907 | BA6: 10.36385 | BB6: 10.64202 | BC6: 10.00964 | BD6: 9.551586 | BE6: 10.11405 | BH6: 0 | BI6: 5068244 | BJ6: 9287.811 | BK6: 323797461 | BL6: 125.0189 | BM6: 9297.0893 | BN6: 125.0189039
A7: 10780 | B7: Alexandria, LA | C7: 14.84959007 | D7: 1.15 | E7: 35885 | F7: 2.084788 | G7: 0.2123748 | H7: 0.2840758 | I7: 30911.47 | J7: 85873 | K7: 153451 | L7: 0.0266339 | M7: 26633.9 | N7: 4086998589 | O7: 58.59414 | P7: 10.33888 | Q7: -3.62557 | R7: 7.125393 | S7: -1.877735 | T7: 11.94114 | U7: 0.002131 | V7: 0 | W7: 743.5214 | X7: 1243.137 | Y7: 0 | Z7: 0 | AA7: 327.3557 | AB7: 153451 | AC7: 0 | AD7: 0.0021333 | AE7: 0 | AF7: 0.1663684 | AH7: 99 | AK7: 0 | AL7: 5.586833 | AM7: 10.61002 | AP7: 10.63669 | AQ7: 10.53711 | AR7: 10.57293 | AS7: 10.01787 | AT7: 10.53701 | AU7: 10.45954 | AV7: 10.54089 | AW7: 10.14922 | AX7: 10.59366 | AY7: 11.08995 | AZ7: 9.984643 | BA7: 9.825958 | BB7: 10.49647 | BC7: 9.35435 | BD7: 9.354277 | BE7: 9.820256 | BG7: 0 | BI7: 520402 | BJ7: 1967.656 | BK7: 67209329 | BL7: 25.94967 | BM7: 2026.3102 | BN7: 25.94966811
A8: 10900 | B8: Allentown-Bethlehem-Easton, PA-NJ | C8: 14.84959007 | D8: 1.08 | E8: 38505 | F8: 2.298187 | G8: 0.1676299 | H8: 0.3984546 | I8: 41078.98 | J8: 434311 | K8: 811669 | L8: 0.0333153 | M8: 33315.3 | N8: 2.704099624e+10 | O8: 296.3094 | P8: 10.62325 | Q8: -3.401738 | R8: 7.754556 | S8: -1.479718 | T8: 13.60685 | U8: 0.000738 | V8: 0 | W8: 791.8681 | X8: 2332.174 | Y8: 0 | Z8: 0 | AA8: 599.2046 | AB8: 811669 | AC8: 0 | AD8: 0.0007382 | AE8: 0 | AF8: 0.4105933 | AH8: 419 | AK8: 0 | AL8: 2.022226 | AM8: 11.6685 | AN8: 10.80171 | AO8: 11.51148 | AP8: 10.82669 | AQ8: 10.79754 | AR8: 11.13648 | AS8: 10.00369 | AT8: 10.47009 | AU8: 10.80963 | AV8: 10.80819 | AW8: 10.37457 | AX8: 10.9704 | AY8: 11.58661 | AZ8: 10.29455 | BA8: 10.31604 | BB8: 10.6803 | BC8: 9.890585 | BD8: 9.512428 | BE8: 10.03145 | BF8: 9.740969 | BG8: 0 | BI8: 2369621 | BJ8: 1459.363 | BK8: 87814250 | BL8: 33.90527 | BM8: 1475.8997 | BN8: 33.90527292
A9: 11020 | B9: Altoona, PA | C9: 14.84959007 | D9: 1.15 | E9: 32663 | F9: 2.346 | G9: 0.1924549 | H9: 0.2928625 | I9: 30581.5 | J9: 75556 | K9: 125923 | L9: 0.0292719 | M9: 29271.9 | N9: 3686005464 | O9: 44.76262 | P9: 10.32815 | Q9: -3.531129 | R9: 7.811893 | S9: -1.909518 | T9: 11.74343 | U9: 0.0011859 | V9: 0 | W9: 1062.762 | X9: 2469.802 | Y9: 0 | Z9: 0 | AA9: 149.4195 | AB9: 125923 | AC9: 0 | AD9: 0.0011866 | AE9: 0 | AF9: 0.2841743 | AH9: 321 | AK9: 0 | AL9: 3.338042 | AP9: 10.49619 | AQ9: 10.53485 | AR9: 10.54702 | AS9: 9.925796 | AT9: 10.56586 | AU9: 10.42767 | AV9: 10.66181 | AW9: 10.20655 | AX9: 10.47907 | AY9: 11.09885 | AZ9: 9.730392 | BA9: 9.727178 | BB9: 10.57899 | BC9: 9.862281 | BD9: 9.377088 | BE9: 9.79389 | BG9: 0 | BI9: 445692 | BJ9: 525.8023 | BK9: 25211932 | BL9: 9.734382 | BM9: 526.86381 | BN9: 9.734381781
A10: 11100 | B10: Amarillo, TX | C10: 14.84959007 | D10: 1.15 | E10: 35489 | F10: 2.401624 | G10: 0.2449682 | H10: 0.3302236 | I10: 34160.63 | J10: 158038 | K10: 243682 | L10: 0.0352262 | M10: 35226.2 | N10: 8583990868 | O10: 85.36008 | P10: 10.43883 | Q10: -3.345964 | R10: 7.036788 | S10: -1.623464 | T10: 12.40362 | U10: 0.0015043 | V10: 0 | W10: 1006.466 | X10: 1137.727 | Y10: 0 | Z10: 0 | AA10: 366.8537 | AB10: 243682 | AC10: 0 | AD10: 0.0015055 | AE10: 0 | AF10: 0.1002196 | AH10: 53 | AK10: 0 | AL10: 4.297719 | AN10: 11.30687 | AP10: 10.56397 | AQ10: 10.61222 | AR10: 10.66927 | AS10: 10.01705 | AT10: 10.54982 | AU10: 10.63343 | AV10: 10.68436 | AW10: 10.28883 | AX10: 10.83459 | AY10: 10.92714 | AZ10: 9.972181 | BA10: 9.802069 | BB10: 10.61178 | BC10: 9.642933 | BD10: 9.384178 | BE10: 9.930162 | BG10: 0 | BI10: 655128 | BJ10: 3660.498 | BK10: 181304052 | BL10: 70.00188 | BM10: 3682.3442 | BN10: 70.00188881
A11: 11180 | B11: Ames, IA | C11: 14.84959007 | D11: 1.15 | E11: 35616 | F11: 2.241 | G11: 0.2265628 | H11: 0.4182765 | I11: 30557.7 | J11: 57218 | K11: 86219 | L11: 0.0305037 | M11: 30503.7 | N11: 2629998510 | O11: 18.30555 | P11: 10.32737 | Q11: -3.489907 | R11: 7.345252 | S11: -1.157517 | T11: 11.36465 | U11: 0.0014345 | V11: 0 | W11: 1409.955 | X11: 1548.825 | Y11: 0 | Z11: 0 | AA11: 123.7714 | AB11: 86219 | AC11: 0 | AD11: 0.0014355 | AE11: 0 | AF11: 0.2160586 | AH11: 769 | AK11: 0 | AL11: 6.761414 | AM11: 10.9167 | AO11: 10.54128 | AP11: 10.68612 | AQ11: 10.7458 | AR11: 10.90815 | AS11: 9.903029 | AT11: 10.30872 | AU11: 10.23882 | AV11: 10.57667 | AW11: 10.22615 | AX11: 10.69315 | AY11: 10.81386 | AZ11: 10.05531 | BA11: 9.739217 | BB11: 10.58177 | BD11: 9.259781 | BE11: 10.0268 | BF11: 9.249561 | BG11: 0 | BI11: 1093276 | BJ11: 572.8601 | BK11: 38867599 | BL11: 15.00686 | BM11: 573.64937 | BN11: 15.00686451
A12: 11260 | B12: Anchorage, AK | C12: 14.84959007 | D12: 1.05 | E12: 46217 | F12: 2.848598 | G12: 0.2224766 | H12: 0.4646837 | I12: 52499.14 | J12: 236261 | K12: 365790 | L12: 0.060696 | M12: 60696 | N12: 22201989840 | O12: 117.7265 | P12: 10.86855 | Q12: -2.801877 | R12: 7.218347 | S12: -1.444329 | T12: 12.80981 | U12: 0.0010682 | V12: 0 | W12: 1183.141 | X12: 1364.231 | Y12: 0 | Z12: 0 | AA12: 390.9503 | AB12: 365790 | AC12: 0 | AD12: 0.0010688 | AE12: 0 | AF12: 0.0148207 | AH12: 142 | AK12: 0 | AL12: 3.320836 | AM12: 11.14322 | AN12: 11.65007 | AP12: 11.38668 | AQ12: 10.92588 | AR12: 10.83286 | AS12: 10.24617 | AT12: 11.0778 | AU12: 10.97925 | AV12: 11.03105 | AW12: 10.38999 | AX12: 11.12226 | AY12: 11.52901 | AZ12: 10.73483 | BA12: 10.20153 | BB12: 10.80417 | BC12: 9.772847 | BD12: 10.025 | BE12: 10.33215 | BF12: 10.08581 | BG12: 0 | BI12: 2150344 | BJ12: 26378.75 | BK12: 242094350 | BL12: 93.47315 | BM12: 27219.783 | BN12: 93.47315509
A13: 11300 | B13: Anderson, IN | C13: 14.84959007 | D13: 1.15 | E13: 30627 | F13: 2.36 | G13: 0.2941648 | H13: 0.2585024 | I13: 29337.73 | J13: 53469 | K13: 131253 | L13: 0.0215081 | M13: 21508.1 | N13: 2823002649 | O13: 64.37132 | P13: 10.28663 | Q13: -3.839327 | R13: 6.380587 | S13: -1.911354 | T13: 11.78488 | U13: 0.0010998 | V13: 0 | W13: 424.366 | X13: 590.2737 | Y13: 0 | Z13: 0 | AA13: 144.4251 | AB13: 131253 | AC13: 0 | AD13: 0.0011004 | AE13: 0 | AF13: 0.3194329 | AH13: 214 | AK13: 0 | AL13: 2.243626 | AP13: 10.59333 | AQ13: 10.6108 | AR13: 10.88142 | AS13: 9.931563 | AT13: 10.63408 | AU13: 10.57265 | AV13: 10.48778 | AW13: 9.950185 | AX13: 10.21986 | AY13: 11.44456 | AZ13: 10.11113 | BA13: 9.650628 | BB13: 10.46778 | BC13: 10.30699 | BD13: 9.300128 | BE13: 9.762874 | BF13: 9.472705 | BG13: 0 | BI13: 294900 | BJ13: 452.1299 | BK13: 87601920 | BL13: 33.82329 | BM13: 452.90441 | BN13: 33.82329185
A14: 11340 | B14: Anderson, SC | C14: 14.84959007 | D14: 1.15 | E14: 30280 | F14: 1.905 | I14: 30150.93 | J14: 90035 | K14: 182937 | L14: 0.0210619 | M14: 21061.9 | N14: 3853000800 | O14: 104.2849 | P14: 10.31397 | Q14: -3.86029 | R14: 7.24491 | S14: -1.821276 | T14: 12.1169 | U14: 0.0012996 | V14: 0 | W14: 411.5649 | X14: 1400.955 | Y14: 0 | Z14: 0 | AA14: 237.8937 | AB14: 182937 | AC14: 0 | AD14: 0.0013004 | AE14: 0 | AF14: 0.3313202 | AK14: 0 | AL14: 2.281191 | AM14: 10.27348 | AN14: 11.03516 | AO14: 11.12034 | AP14: 10.32654 | AQ14: 10.5766 | AR14: 10.71572 | AS14: 9.948896 | AT14: 10.51535 | AU14: 10.59919 | AV14: 10.52885 | AW14: 10.15794 | AX14: 10.37411 | AY14: 11.27148 | AZ14: 10.27059 | BB14: 10.51107 | BC14: 9.586796 | BD14: 9.29961 | BE14: 10.06789 | BF14: 9.392662 | BJ14: 718.0176 | BK14: 45968670 | BL14: 17.7486 | BM14: 757.41483 | BN14: 17.74860347
A15: 11460 | B15: Ann Arbor, MI | C15: 14.84959007 | D15: 1.15 | E15: 37859 | F15: 2.595 | G15: 0.1440644 | H15: 0.4200876 | I15: 49048.7 | J15: 240701 | K15: 344767 | L15: 0.0385159 | M15: 38515.9 | N15: 1.32790113e+10 | O15: 111.2299 | P15: 10.80057 | Q15: -3.256685 | R15: 8.153141 | S15: -0.9164549 | T15: 12.75062 | U15: 0.0005509 | V15: 0 | W15: 1425.237 | X15: 3474.275 | Y15: 0 | Z15: 0 | AA15: 189.97 | AB15: 344767 | AC15: 0 | AD15: 0.000551 | AE15: 0 | AF15: 0.2675863 | AH15: 814 | AK15: 0 | AL15: 1.707904 | AP15: 10.98722 | AQ15: 10.95478 | AR15: 10.90945 | AS15: 10.02756 | AT15: 10.74112 | AU15: 11.08788 | AV15: 10.98307 | AW15: 10.55203 | AX15: 11.47494 | AY15: 12.26779 | AZ15: 10.37554 | BA15: 10.1804 | BB15: 10.79072 | BC15: 9.884387 | BD15: 9.519421 | BE15: 10.20907 | BG15: 0 | BI15: 3302611 | BJ15: 709.939 | BK15: 73836397 | BL15: 28.50839 | BM15: 722.41907 | BN15: 28.50839348
A16: 11500 | B16: Anniston-Oxford, AL | C16: 14.84959007 | D16: 1.15 | E16: 32045 | F16: 1.988 | I16: 29444.72 | J16: 66665 | K16: 113422 | L16: 0.0248188 | M16: 24818.8 | N16: 2814997934 | O16: 76.82863 | P16: 10.29027 | Q16: -3.696153 | R16: 6.481809 | S16: -1.882162 | T16: 11.63887 | U16: 0.0011554 | V16: 0 | W16: 461.3254 | X16: 653.1514 | Y16: 0 | Z16: 0 | AA16: 131.1221 | AB16: 113422 | AC16: 0 | AD16: 0.0011561 | AE16: 0 | AF16: 0.2154979 | AK16: 0 | AL16: 1.706683 | AO16: 10.93847 | AP16: 10.28965 | AQ16: 10.64684 | AR16: 10.67089 | AS16: 9.902127 | AT16: 10.3716 | AU16: 10.44497 | AV16: 10.58342 | AW16: 10.11246 | AX16: 10.6559 | AZ16: 9.978446 | BA16: 10.20795 | BB16: 10.419 | BC16: 9.779802 | BD16: 9.348869 | BE16: 9.902785 | BJ16: 608.4614 | BK16: 106513845 | BL16: 41.12523 | BM16: 612.28675 | BN16: 41.12522722
A17: 11540 | B17: Appleton, WI | C17: 14.84959007 | D17: 1.15 | E17: 36800 | F17: 2.159362 | G17: 0.2224598 | H17: 0.3792596 | I17: 37370.67 | J17: 151240 | K17: 219780 | L17: 0.0389253 | M17: 38925.3 | N17: 8555002434 | O17: 60.02888 | P17: 10.52864 | Q17: -3.246111 | R17: 7.83662 | S17: -1.551121 | T17: 12.30038 | U17: 0.0012146 | V17: 0 | W17: 1434.426 | X17: 2531.633 | Y17: 0 | Z17: 0 | AA17: 267.1003 | AB17: 219780 | AC17: 0 | AD17: 0.0012153 | AE17: 0 | AF17: 0.2781773 | AH17: 355 | AK17: 0 | AL17: 4.44953 | AM17: 10.71613 | AP17: 10.99013 | AQ17: 10.7459 | AR17: 10.77848 | AS17: 9.937515 | AT17: 10.63466 | AU17: 10.72643 | AV17: 10.83719 | AW17: 10.2268 | AX17: 10.70233 | AY17: 11.00055 | AZ17: 10.33525 | BA17: 9.894134 | BB17: 10.6568 | BC17: 9.375374 | BD17: 9.251754 | BE17: 10.01029 | BG17: 0 | BI17: 1025222 | BJ17: 960.1803 | BK17: 45932910 | BL17: 17.7348 | BM17: 1041.6221 | BN17: 17.73479645
A18: 11700 | B18: Asheville, NC | C18: 14.84959007 | D18: 1.15 | E18: 34381 | F18: 2.128542 | I18: 31321.51 | J18: 250357 | K18: 409001 | L18: 0.0287285 | M18: 28728.5 | N18: 1.174998523e+10 | P18: 10.35206 | Q18: -3.549864 | S18: -1.378574 | T18: 12.92147 | U18: 0.0009066 | V18: 0 | Y18: 0 | Z18: 0 | AA18: 370.9787 | AB18: 409001 | AC18: 0 | AD18: 0.000907 | AE18: 0 | AF18: 0.1824717 | AH18: 58 | AN18: 10.69235 | AP18: 10.42222 | AQ18: 10.65342 | AR18: 10.66068 | AS18: 10.01091 | AT18: 10.38619 | AU18: 10.64424 | AV18: 10.8707 | AW18: 10.26724 | AX18: 10.66287 | AZ18: 10.20458 | BA18: 10.04599 | BB18: 10.57729 | BC18: 10.06827 | BD18: 9.565881 | BE18: 9.907927 | BG18: 0 | BI18: 914665 | BJ18: 2033.076 | BM18: 2041.0835 | BN18: 45.39723311
A19: 12020 | B19: Athens-Clarke County, GA | C19: 14.84959007 | D19: 1.15 | E19: 29770 | F19: 2.127894 | G19: 0.2278163 | H19: 0.3000703 | I19: 30693.91 | J19: 115868 | K19: 189926 | L19: 0.0239883 | M19: 23988.3 | N19: 4556001866 | O19: 78.60275 | P19: 10.33182 | Q19: -3.73019 | R19: 6.805767 | S19: -1.387998 | T19: 12.15439 | U19: 0.0011679 | V19: 0 | W19: 704.9498 | X19: 903.04 | Y19: 0 | Z19: 0 | AA19: 221.9378 | AB19: 189926 | AC19: 0 | AD19: 0.0011685 | AE19: 0 | AF19: 0.215163 | AH19: 300 | AK19: 0 | AL19: 2.823538 | AN19: 10.45819 | AP19: 10.47668 | AQ19: 10.55854 | AR19: 10.59868 | AS19: 9.937227 | AT19: 10.56311 | AU19: 10.47712 | AV19: 10.86313 | AW19: 10.27097 | AX19: 10.61113 | AY19: 11.22793 | AZ19: 10.02901 | BA19: 10.40517 | BB19: 10.69879 | BC19: 10.01039 | BD19: 9.330572 | BE19: 9.874726 | BF19: 12.38422 | BG19: 0 | BI19: 771529 | BJ19: 1031.487 | BK19: 142701164 | BL19: 55.09723 | BM19: 1035.0626 | BN19: 55.09722979
A20: 12060 | B20: Atlanta-Sandy Springs-Marietta, GA | C20: 6.78 | D20: 1.22 | E20: 37101 | F20: 2.168067 | G20: 0.1561292 | H20: 0.5082588 | I20: 44729.85 | J20: 3235326 | K20: 5385586 | L20: 0.0453665 | M20: 45366.5 | N20: 244325187269 | O20: 2119.193 | P20: 10.7084 | Q20: -3.092982 | R20: 7.856838 | S20: -1.254375 | T20: 15.49924 | U20: 0.0004797 | V20: 9.19e-06 | W20: 872.9243 | X20: 2583.339 | Y20: 1 | Z20: 49.5 | AA20: 2584.201 | AB20: 5385586 | AC20: 9.19e-06 | AD20: 0.0004798 | AE20: 0.0059094 | AF20: 0.3085065 | AH20: 1585 | AK20: 0.023358 | AL20: 1.219427 | AM20: 10.87469 | AN20: 10.86037 | AO20: 11.00045 | AP20: 10.72401 | AQ20: 10.70659 | AR20: 11.02326 | AS20: 10.067 | AT20: 10.67246 | AU20: 11.21182 | AV20: 11.18677 | AW20: 10.83948 | AX20: 11.09832 | AY20: 11.51414 | AZ20: 10.3518 | BA20: 10.55755 | BB20: 10.67446 | BC20: 10.33968 | BD20: 9.587604 | BE20: 10.21362 | BF20: 11.09338 | BG20: 4349928 | BH20: 87877.33333 | BI20: 40400000 | BJ20: 8376.488 | BK20: 554227795 | BL20: 213.9885 | BM20: 8481.081 | BN20: 213.9885571
A21: 12100 | B21: Atlantic City, NJ | C21: 14.84959007 | D21: 1.15 | E21: 39156 | F21: 2.179 | I21: 35148.08 | J21: 186480 | K21: 270609 | L21: 0.0449726 | M21: 44972.6 | N21: 1.216999031e+10 | O21: 110.8735 | P21: 10.46733 | Q21: -3.101701 | R21: 8.526545 | S21: -1.653531 | T21: 12.50843 | U21: 0.0008436 | V21: 0 | W21: 998.1013 | X21: 5046.977 | Y21: 0 | Z21: 0 | AA21: 228.3727 | AB21: 270609 | AC21: 0 | AD21: 0.0008439 | AE21: 0 | AF21: 0.4070275 | AK21: 0 | AL21: 2.059759 | AM21: 10.2877 | AO21: 11.37001 | AP21: 10.92306 | AQ21: 10.55133 | AR21: 10.71823 | AS21: 10.13323 | AT21: 10.24957 | AU21: 10.8199 | AV21: 10.8965 | AW21: 10.56912 | AX21: 11.08189 | AZ21: 10.18431 | BA21: 10.23879 | BB21: 10.67203 | BC21: 10.01507 | BD21: 10.27467 | BE21: 10.14752 | BJ21: 561.0743 | BK21: 28007614 | BL21: 10.8138 | BM21: 671.82721 | BN21: 10.81380068
A22: 12220 | B22: Auburn-Opelika, AL | C22: 14.84959007 | D22: 1.15 | E22: 27643 | F22: 2.149 | G22: 0.2952289 | H22: 0.2791794 | I22: 26619.3 | J22: 68995 | K22: 133105 | L22: 0.0191728 | M22: 19172.8 | N22: 2551995544 | O22: 63.96428 | P22: 10.18939 | Q22: -3.954261 | R22: 6.717185 | S22: -1.572441 | T22: 11.79889 | U22: 0.0009492 | V22: 0 | W22: 528.2792 | X22: 826.4879 | Y22: 0 | Z22: 0 | AA22: 126.3995 | AB22: 133105 | AC22: 0 | AD22: 0.0009496 | AE22: 0 | AF22: 0.2076513 | AH22: 180 | AK22: 0 | AL22: 1.976095 | AM22: 10.14027 | AN22: 10.97953 | AO22: 11.2224 | AP22: 10.47826 | AQ22: 10.59766 | AR22: 10.60944 | AS22: 9.870895 | AT22: 10.38382 | AU22: 10.36449 | AV22: 10.69136 | AW22: 10.0942 | AX22: 10.3267 | AZ22: 9.675867 | BA22: 9.546151 | BB22: 10.37201 | BC22: 9.625314 | BD22: 9.223344 | BE22: 9.69416 | BG22: 0 | BI22: 79549 | BJ22: 608.7103 | BK22: 100360763 | BL22: 38.74951 | BM22: 615.8424 | BN22: 38.74950888
A23: 12260 | B23: Augusta-Richmond County, GA-SC | C23: 14.84959007 | D23: 1.15 | E23: 33613 | F23: 2.259206 | G23: 0.2363643 | H23: 0.2923434 | I23: 34759.18 | J23: 306044 | K23: 534612 | L23: 0.0251192 | M23: 25119.2 | N23: 1.342902575e+10 | O23: 247.1086 | P23: 10.4562 | Q23: -3.684125 | R23: 6.575908 | S23: -1.642487 | T23: 13.1893 | U23: 0.0013947 | V23: 0 | W23: 614.7258 | X23: 717.597 | Y23: 0 | Z23: 0 | AA23: 746.1378 | AB23: 534612 | AC23: 0 | AD23: 0.0013957 | AE23: 0 | AF23: 0.2275607 | AH23: 192 | AK23: 0 | AL23: 3.019474 | AM23: 10.52626 | AN23: 10.59891 | AP23: 10.42308 | AQ23: 10.78274 | AR23: 10.83478 | AS23: 9.967928 | AT23: 10.42945 | AU23: 10.56853 | AV23: 10.68752 | AW23: 10.26474 | AX23: 10.85387 | AY23: 10.9784 | AZ23: 10.11414 | BA23: 10.08842 | BB23: 10.64692 | BC23: 9.512801 | BD23: 9.329011 | BE23: 9.870472 | BF23: 9.498983 | BG23: 0 | BI23: 570128 | BJ23: 3278.852 | BK23: 301549325 | BL23: 116.4288 | BM23: 3323.5542 | BN23: 116.4288502
A24: 12420 | B24: Austin-Round Rock, TX | C24: 14.84959007 | D24: 1.28 | E24: 37544 | F24: 2.207088 | G24: 0.1703747 | H24: 0.4628017 | I24: 44621.43 | J24: 1064064 | K24: 1654100 | L24: 0.0417919 | M24: 41791.9 | N24: 69127981790 | O24: 424.1254 | P24: 10.70597 | Q24: -3.175052 | R24: 7.752733 | S24: -1.164692 | T24: 14.31877 | U24: 0.0004706 | V24: 0 | W24: 1507.151 | X24: 2327.927 | Y24: 0 | Z24: 0 | AA24: 778.6232 | AB24: 1654100 | AC24: 0 | AD24: 0.0004707 | AE24: 0 | AF24: 0.1843323 | AK24: 0 | AL24: 1.835832 | AN24: 11.11654 | AO24: 11.24625 | AP24: 10.69656 | AQ24: 10.95575 | AR24: 11.17459 | AS24: 10.11652 | AT24: 10.54767 | AU24: 11.19139 | AV24: 11.09716 | AW24: 10.56489 | AX24: 11.16809 | AY24: 11.34089 | AZ24: 10.23194 | BA24: 10.25593 | BB24: 10.66802 | BC24: 10.0446 | BD24: 9.641644 | BE24: 10.308 | BF24: 9.930268 | BJ24: 4224.02 | BK24: 599291736 | BL24: 231.3878 | BM24: 4280.6137 | BN24: 231.3878427
A25: 12540 | B25: Bakersfield, CA | C25: 14.84959007 | D25: 1.08 | E25: 29630 | F25: 2.727 | G25: 0.2079191 | H25: 0.3629315 | I25: 37829.41 | J25: 370844 | K25: 797145 | L25: 0.0288342 | M25: 28834.2 | N25: 2.298503836e+10 | O25: 191.8234 | P25: 10.54084 | Q25: -3.546195 | R25: 7.40179 | S25: -2.101764 | T25: 13.58879 | U25: 0.0014379 | V25: 0 | W25: 883.985 | X25: 1638.916 | Y25: 0 | Z25: 0 | AA25: 1147.012 | AB25: 797145 | AC25: 0 | AD25: 0.0014389 | AE25: 0 | AF25: 0.1408939 | AH25: 188 | AK25: 0 | AL25: 5.979524 | AM25: 10.11932 | AN25: 11.36483 | AP25: 10.75273 | AQ25: 10.74949 | AR25: 10.8158 | AS25: 10.07405 | AT25: 10.65088 | AU25: 10.56992 | AV25: 10.83101 | AW25: 10.41212 | AX25: 10.8688 | AY25: 11.30325 | AZ25: 10.34141 | BA25: 10.20149 | BB25: 10.64701 | BC25: 9.676012 | BD25: 9.526248 | BE25: 10.12081 | BG25: 0 | BI25: 3437792 | BJ25: 8140.964 | BK25: 168345258 | BL25: 64.99847 | BM25: 8163.0677 | BN25: 64.99847026
A26: 12580 | B26: Baltimore-Towson, MD | C26: 13.85714 | D26: 1.17 | E26: 48201 | F26: 2.238318 | G26: 0.1357041 | H26: 0.4897832 | I26: 44573.68 | J26: 1711130 | K26: 2677712 | L26: 0.0406676 | M26: 40667.6 | N26: 1.088961205e+11 | O26: 856.2657 | P26: 10.7049 | Q26: -3.202325 | R26: 8.217829 | S26: -1.241581 | T26: 14.80047 | U26: 0.0004486 | V26: 4e-05 | W26: 1159.382 | X26: 3706.447 | Y26: 1 | Z26: 107 | AA26: 1201.423 | AB26: 2677712 | AC26: 4e-05 | AD26: 0.0004487 | AE26: 0.0410111 | AF26: 0.4604833 | AH26: 655 | AK26: 0.1249612 | AL26: 1.403096 | AM26: 10.44551 | AN26: 10.79501 | AP26: 10.79805 | AQ26: 10.90916 | AR26: 10.93295 | AS26: 10.06825 | AT26: 10.61583 | AU26: 11.05948 | AV26: 11.24611 | AW26: 10.75425 | AX26: 11.17907 | AY26: 11.24531 | AZ26: 10.43721 | BA26: 10.6678 | BB26: 10.68746 | BC26: 10.33237 | BD26: 9.641829 | BE26: 10.25875 | BF26: 10.23913 | BH26: 0 | BJ26: 2609.048 | BK26: 246290294 | BL26: 95.09322 | BM26: 3105.0234 | BN26: 95.09321819
A27: 12620 | B27: Bangor, ME | C27: 14.84959007 | D27: 1.15 | E27: 33767 | F27: 2.327 | G27: 0.212971 | H27: 0.3251026 | I27: 32412.02 | J27: 95667 | K27: 149268 | L27: 0.0298054 | M27: 29805.4 | N27: 4448992447 | O27: 41.9264 | P27: 10.38628 | Q27: -3.513064 | R27: 7.379821 | S27: -1.631253 | T27: 11.9135 | U27: 0.0022691 | V27: 0 | W27: 982.9606 | X27: 1603.303 | Y27: 0 | Z27: 0 | AA27: 339.0922 | AB27: 149268 | AC27: 0 | AD27: 0.0022717 | AE27: 0 | AF27: 0.0998585 | AH27: 259 | AK27: 0 | AL27: 8.087797 | AM27: 10.53644 | AO27: 10.9374 | AP27: 10.69244 | AQ27: 10.59691 | AR27: 10.59097 | AS27: 10.00555 | AT27: 10.58016 | AU27: 10.67663 | AV27: 10.63929 | AW27: 10.21341 | AX27: 10.68496 | AZ27: 10.01937 | BA27: 9.809755 | BB27: 10.58913 | BC27: 9.906026 | BD27: 9.474902 | BE27: 9.914172 | BG27: 0 | BI27: 540855 | BJ27: 3395.726 | BK27: 42916542 | BL27: 16.57017 | BM27: 3556.9177 | BN27: 16.57017021
A28: 12700 | B28: Barnstable Town, MA | C28: 14.84959007 | D28: 1.15 | E28: 50128 | F28: 2.348 | I28: 37656.81 | J28: 144639 | K28: 221521 | L28: 0.0337485 | M28: 33748.5 | N28: 7476001469 | P28: 10.53627 | Q28: -3.388819 | S28: -0.8829368 | T28: 12.30827 | U28: 0.0009292 | V28: 0 | Y28: 0 | Z28: 0 | AA28: 205.9266 | AB28: 221521 | AC28: 0 | AD28: 0.0009296 | AE28: 0 | AF28: 0.5206551 | AH28: 248 | AM28: 10.5602 | AO28: 11.49373 | AP28: 10.73982 | AQ28: 10.79239 | AR28: 10.78201 | AS28: 10.21415 | AT28: 10.42319 | AU28: 10.80378 | AV28: 10.97479 | AW28: 10.42851 | AX28: 10.92373 | AY28: 11.05197 | AZ28: 10.64299 | BA28: 10.35698 | BB28: 10.63888 | BC28: 10.49172 | BD28: 10.16037 | BE28: 10.24303 | BF28: 9.716712 | BG28: 0 | BI28: 1040583 | BJ28: 395.5145 | BM28: 1305.5374
A29: 12940 | B29: Baton Rouge, LA | C29: 14.84959007 | D29: 1.15 | E29: 38107 | F29: 2.391322 | G29: 0.2007595 | H29: 0.372151 | I29: 38533.21 | J29: 483553 | K29: 779340 | L29: 0.0439128 | M29: 43912.8 | N29: 34223001552 | O29: 312.0978 | P29: 10.55928 | Q29: -3.12555 | R29: 7.504716 | S29: -1.59931 | T29: 13.5662 | U29: 0.0007439 | V29: 0 | W29: 830.0538 | X29: 1816.59 | Y29: 0 | Z29: 0 | AA29: 579.9609 | AB29: 779340 | AC29: 0 | AD29: 0.0007442 | AE29: 0 | AF29: 0.1439132 | AH29: 606 | AK29: 0 | AL29: 1.858266 | AM29: 10.52302 | AN29: 11.01246 | AO29: 11.27124 | AP29: 10.84383 | AQ29: 11.07538 | AR29: 10.80119 | AS29: 9.999735 | AT29: 10.67859 | AU29: 10.75124 | AV29: 10.88072 | AW29: 10.41743 | AX29: 10.97921 | AY29: 11.31819 | AZ29: 10.24768 | BA29: 10.07789 | BB29: 10.42083 | BC29: 9.708631 | BD29: 9.440881 | BE29: 10.18036 | BG29: 0 | BI29: 2333836 | BJ29: 4029.935 | BK29: 235017894 | BL29: 90.74091 | BM29: 4214.5332 | BN29: 90.74092004
A30: 12980 | B30: Battle Creek, MI | C30: 14.84959007 | D30: 1.15 | E30: 32227 | F30: 2.396 | G30: 0.1755906 | H30: 0.4085261 | I30: 39451.65 | J30: 68614 | K30: 136404 | L30: 0.0306369 | M30: 30636.9 | N30: 4178995708 | O30: 59.86588 | P30: 10.58283 | Q30: -3.485549 | R30: 6.968655 | S30: -1.826516 | T30: 11.82338 | U30: 0.0015354 | V30: 0 | W30: 568.4374 | X30: 1062.792 | Y30: 0 | Z30: 0 | AA30: 209.5951 | AB30: 136404 | AC30: 0 | AD30: 0.0015366 | AE30: 0 | AF30: 0.2957391 | AH30: 256 | AK30: 0 | AL30: 3.501078 | AN30: 10.71381 | AP30: 10.70801 | AQ30: 10.72027 | AR30: 10.7589 | AS30: 9.956442 | AT30: 10.5902 | AU30: 10.40116 | AV30: 10.93384 | AW30: 10.16364 | AX30: 10.61403 | AZ30: 9.967602 | BB30: 10.60822 | BC30: 9.783663 | BD30: 9.438773 | BE30: 10.14052 | BF30: 9.769957 | BG30: 0 | BI30: 377440 | BJ30: 708.7162 | BK30: 59622820 | BL30: 23.0205 | BM30: 718.35296 | BN30: 23.02050048
A31: 13020 | B31: Bay City, MI | C31: 14.84959007 | D31: 1.15 | E31: 31165 | F31: 2.33 | G31: 0.2339439 | H31: 0.3478757 | I31: 36092.14 | J31: 50175 | K31: 107597 | L31: 0.0227609 | M31: 22760.9 | N31: 2449004557 | O31: 43.67062 | P31: 10.49383 | Q31: -3.782713 | R31: 7.165251 | S31: -1.922056 | T31: 11.58615 | U31: 0.0011229 | V31: 0 | W31: 540.9587 | X31: 1293.686 | Y31: 0 | Z31: 0 | AA31: 120.8866 | AB31: 107597 | AC31: 0 | AD31: 0.0011235 | AE31: 0 | AF31: 0.2721164 | AH31: 295 | AK31: 0 | AL31: 2.768146 | AM31: 10.30617 | AN31: 11.01024 | AP31: 10.77136 | AQ31: 10.89902 | AR31: 10.53758 | AS31: 9.967343 | AT31: 10.37276 | AU31: 10.56684 | AV31: 10.54852 | AW31: 9.885017 | AX31: 10.4955 | AY31: 11.71029 | AZ31: 10.34506 | BA31: 9.630869 | BB31: 10.47963 | BC31: 9.912503 | BD31: 9.281812 | BE31: 9.864496 | BG31: 0 | BI31: 1023787 | BJ31: 444.246 | BK31: 26340599 | BL31: 10.17016 | BM31: 630.71668 | BN31: 10.17016256
A32: 13140 | B32: Beaumont-Port Arthur, TX | C32: 14.84959007 | D32: 1.24 | E32: 36597 | F32: 2.199817 | G32: 0.2011554 | H32: 0.3938182 | I32: 41429.88 | J32: 214052 | K32: 377477 | L32: 0.0361505 | M32: 36150.5 | N32: 1.364598229e+10 | O32: 163.9835 | P32: 10.63176 | Q32: -3.320063 | R32: 7.013472 | S32: -1.935582 | T32: 12.84126 | U32: 0.001096 | V32: 0 | W32: 737.0679 | X32: 1111.507 | Y32: 0 | Z32: 0 | AA32: 413.9367 | AB32: 377477 | AC32: 0 | AD32: 0.0010966 | AE32: 0 | AF32: 0.192146 | AH32: 174 | AK32: 0 | AL32: 2.524257 | AM32: 11.16384 | AN32: 10.81819 | AP32: 10.90426 | AQ32: 11.11565 | AR32: 10.84911 | AS32: 10.06199 | AT32: 10.64122 | AU32: 10.71933 | AV32: 10.69178 | AW32: 10.43779 | AX32: 11.14542 | AY32: 11.37884 | AZ32: 10.14847 | BA32: 9.900931 | BB32: 10.43239 | BC32: 9.426879 | BD32: 9.389772 | BE32: 9.960202 | BF32: 9.222763 | BG32: 0 | BI32: 911153 | BJ32: 2154.282 | BK32: 188770867 | BL32: 72.88484 | BM32: 2389.7864 | BN32: 72.88484232
A33: 13380 | B33: Bellingham, WA | C33: 14.84959007 | D33: 1.15 | E33: 35478 | F33: 2.57 | G33: 0.2745679 | H33: 0.325213 | I33: 35949.52 | J33: 116172 | K33: 196960 | L33: 0.0327071 | M33: 32707.1 | N33: 6441990416 | O33: 57.41743 | P33: 10.48987 | Q33: -3.420162 | R33: 7.417055 | S33: -1.411999 | T33: 12.19076 | U33: 0.0008717 | V33: 0 | W33: 846.7813 | X33: 1664.125 | Y33: 0 | Z33: 0 | AA33: 171.7598 | AB33: 196960 | AC33: 0 | AD33: 0.0008721 | AE33: 0 | AF33: 0.0810366 | AH33: 483 | AK33: 0 | AL33: 2.991422 | AM33: 10.62712 | AN33: 10.72053 | AP33: 10.85978 | AQ33: 10.78544 | AR33: 10.66793 | AS33: 10.09979 | AT33: 10.52427 | AU33: 10.64835 | AV33: 10.84163 | AW33: 10.17522 | AX33: 10.81759 | AY33: 11.12239 | AZ33: 10.3553 | BA33: 10.02569 | BB33: 10.57123 | BC33: 9.841147 | BD33: 9.613492 | BE33: 10.06593 | BG33: 0 | BI33: 1902962 | BJ33: 2119.533 | BK33: 58265670 | BL33: 22.4965 | BM33: 2503.4645 | BN33: 22.49650191
A34: 13460 | B34: Bend, OR | C34: 14.84959007 | D34: 1.15 | E34: 35966 | F34: 2.449 | I34: 32447.22 | J34: 101177 | K34: 157730 | L34: 0.0357319 | M34: 35731.9 | N34: 5635992587 | O34: 43.72596 | P34: 10.38737 | Q34: -3.33171 | R34: 7.224179 | S34: -1.383169 | T34: 11.96864 | U34: 0.0011666 | V34: 0 | W34: 971.1165 | X34: 1372.212 | Y34: 0 | Z34: 0 | AA34: 184.1202 | AB34: 157730 | AC34: 0 | AD34: 0.0011673 | AE34: 0 | AF34: 0.0610042 | AH34: 186 | AK34: 0 | AL34: 4.210776 | AN34: 10.33646 | AO34: 11.19357 | AP34: 10.46983 | AQ34: 10.49701 | AR34: 10.71496 | AS34: 10.10979 | AT34: 10.78989 | AU34: 10.60892 | AV34: 10.80846 | AW34: 10.20797 | AX34: 10.72395 | AY34: 11.25487 | AZ34: 10.19374 | BA34: 10.06383 | BB34: 10.65047 | BC34: 9.708571 | BD34: 9.69269 | BE34: 9.988379 | BF34: 10.54534 | BG34: 0 | BI34: 196682 | BJ34: 3018.154 | BK34: 71394893 | BL34: 27.56572 | BM34: 3054.738 | BN34: 27.56572347
A35: 13740 | B35: Billings, MT | C35: 14.84959007 | D35: 1.15 | E35: 39212 | F35: 2.393949 | G35: 0.260521 | H35: 0.3049198 | I35: 33995.19 | J35: 110554 | K35: 152320 | L35: 0.0396074 | M35: 39607.4 | N35: 6032999168 | O35: 52.76145 | P35: 10.43397 | Q35: -3.228739 | R35: 7.220712 | S35: -1.344751 | T35: 11.93374 | U35: 0.0023984 | V35: 0 | W35: 1082.04 | X35: 1367.463 | Y35: 0 | Z35: 0 | AA35: 365.7606 | AB35: 152320 | AC35: 0 | AD35: 0.0024013 | AE35: 0 | AF35: 0.0781015 | AH35: 196 | AK35: 0 | AL35: 6.932344 | AM35: 10.28648 | AN35: 11.48231 | AO35: 11.32227 | AP35: 10.57196 | AQ35: 10.80684 | AR35: 10.70491 | AS35: 10.10447 | AT35: 10.3083 | AU35: 10.71884 | AV35: 10.7807 | AW35: 10.32148 | AX35: 10.73818 | AY35: 11.33777 | AZ35: 9.98297 | BA35: 8.804875 | BB35: 10.65741 | BC35: 9.655741 | BD35: 9.508334 | BE35: 10.04698 | BG35: 0 | BI35: 582256 | BJ35: 4683.145 | BK35: 100632553 | BL35: 38.85445 | BM35: 4711.2875 | BN35: 38.85444759
A36: 13780 | B36: Binghamton, NY | C36: 14.84959007 | D36: 1.15 | E36: 34360 | F36: 2.418175 | G36: 0.1239873 | H36: 0.3962311 | I36: 36418.5 | J36: 140905 | K36: 244870 | L36: 0.0254747 | M36: 25474.7 | N36: 6237989789 | O36: 80.47766 | P36: 10.50283 | Q36: -3.670068 | R36: 7.956281 | S36: -1.48981 | T36: 12.40848 | U36: 0.001409 | V36: 0 | W36: 1088.041 | X36: 2853.44 | Y36: 0 | Z36: 0 | AA36: 345.2657 | AB36: 244870 | AC36: 0 | AD36: 0.00141 | AE36: 0 | AF36: 0.2817311 | AH36: 217 | AK36: 0 | AL36: 4.290205 | AN36: 10.56956 | AP36: 10.89527 | AQ36: 10.71523 | AR36: 10.63547 | AS36: 9.92044 | AT36: 10.37301 | AU36: 10.57128 | AV36: 10.72569 | AW36: 10.18128 | AX36: 10.86617 | AY36: 10.9557 | AZ36: 10.10687 | BA36: 9.744685 | BB36: 10.50401 | BC36: 9.817859 | BD36: 9.40161 | BE36: 9.904986 | BG36: 0 | BI36: 1834049 | BJ36: 1225.515 | BK36: 25432061 | BL36: 9.819374 | BM36: 1238.3947 | BN36: 9.819374067
A37: 13820 | B37: Birmingham-Hoover, AL | C37: 14.84959007 | D37: 1.14 | E37: 38592 | F37: 2.132339 | G37: 0.1724396 | H37: 0.435046 | I37: 40845.02 | J37: 683998 | K37: 1123146 | L37: 0.0431306 | M37: 43130.6 | N37: 4.844196087e+10 | O37: 449.4415 | P37: 10.61754 | Q37: -3.143522 | R37: 7.266757 | S37: -1.491598 | T37: 13.93164 | U37: 0.00097 | V37: 0 | W37: 833.7236 | X37: 1431.899 | Y37: 0 | Z37: 0 | AA37: 1089.978 | AB37: 1123146 | AC37: 0 | AD37: 0.0009705 | AE37: 0 | AF37: 0.2057325 | AH37: 242 | AK37: 0 | AL37: 2.425183 | AM37: 10.73443 | AN37: 11.05627 | AP37: 10.70907 | AQ37: 10.75322 | AR37: 10.90262 | AS37: 10.03307 | AT37: 10.59 | AU37: 10.90077 | AV37: 11.14725 | AW37: 10.49206 | AX37: 10.92783 | AY37: 11.35039 | AZ37: 10.24842 | BA37: 10.09204 | BB37: 10.67915 | BC37: 9.828703 | BD37: 9.510798 | BE37: 10.05267 | BG37: 0 | BI37: 2791997 | BJ37: 5298.034 | BK37: 364336948 | BL37: 140.6713 | BM37: 5369.7709 | BN37: 140.6712881
A38: 13900 | B38: Bismarck, ND | C38: 14.84959007 | D38: 1.15 | E38: 39337 | F38: 2.297487 | G38: 0.2131074 | H38: 0.3327145 | I38: 34038.95 | J38: 79821 | K38: 104629 | L38: 0.0355924 | M38: 35592.4 | N38: 3723997220 | O38: 34.00799 | P38: 10.43526 | Q38: -3.335622 | R38: 7.522352 | S38: -1.397339 | T38: 11.55818 | U38: 0.0035837 | V38: 0 | W38: 1449.512 | X38: 1848.911 | Y38: 0 | Z38: 0 | AA38: 375.6318 | AB38: 104629 | AC38: 0 | AD38: 0.0035901 | AE38: 0 | AF38: 0.1055336 | AH38: 195 | AK38: 0 | AL38: 11.0454 | AM38: 10.81978 | AN38: 11.09101 | AP38: 10.7946 | AQ38: 10.74043 | AR38: 10.65472 | AS38: 10.01726 | AT38: 10.45328 | AU38: 10.53559 | AV38: 10.6397 | AW38: 10.03433 | AX38: 10.63005 | AY38: 10.87014 | AZ38: 10.0393 | BA38: 9.947383 | BB38: 10.59623 | BC38: 9.456546 | BD38: 9.414054 | BE38: 10.05656 | BG38: 0 | BI38: 305000 | BJ38: 3559.356 | BK38: 59613220 | BL38: 23.01679 | BM38: 3613.741 | BN38: 23.0167939
A39: 13980 | B39: Blacksburg-Christiansburg-Radford, VA | C39: 14.84959007 | D39: 1.15 | E39: 28384 | F39: 2.131774 | G39: 0.2309906 | H39: 0.310262 | I39: 32417.74 | J39: 84568 | K39: 158521 | L39: 0.0235994 | M39: 23599.4 | N39: 3741000487 | O39: 46.93519 | P39: 10.38646 | Q39: -3.746534 | R39: 6.926602 | S39: -1.609108 | T39: 11.97364 | U39: 0.0005975 | V39: 0 | W39: 871.9044 | X39: 1019.025 | Y39: 0 | Z39: 0 | AA39: 94.73724 | AB39: 158521 | AC39: 0 | AD39: 0.0005976 | AE39: 0 | AF39: 0.1397521 | AH39: 341 | AK39: 0 | AL39: 2.018469 | AO39: 11.19807 | AP39: 10.31344 | AQ39: 10.83857 | AR39: 10.77639 | AS39: 9.931478 | AT39: 10.39657 | AU39: 10.40793 | AV39: 10.90315 | AW39: 10.24591 | AX39: 10.83812 | AZ39: 9.799752 | BA39: 10.40375 | BB39: 10.59253 | BC39: 9.60547 | BD39: 9.336073 | BE39: 9.85507 | BG39: 0 | BI39: 710852 | BJ39: 677.8947 | BK39: 85670828 | BL39: 33.07769 | BM39: 1089.4912 | BN39: 33.07769302
A40: 14020 | B40: Bloomington, IN | C40: 14.84959007 | D40: 1.15 | E40: 30950 | F40: 2.255044 | G40: 0.2318094 | H40: 0.2932369 | I40: 31276.44 | J40: 105177 | K40: 184165 | L40: 0.0246681 | M40: 24668.1 | N40: 4543000636 | O40: 53.50242 | P40: 10.35062 | Q40: -3.702245 | R40: 7.498836 | S40: -1.459257 | T40: 12.12359 | U40: 0.0011484 | V40: 0 | W40: 993.9924 | X40: 1805.938 | Y40: 0 | Z40: 0 | AA40: 211.6201 | AB40: 184165 | AC40: 0 | AD40: 0.0011491 | AE40: 0 | AF40: 0.1601663 | AH40: 468 | AK40: 0 | AL40: 3.955336 | AM40: 9.337233 | AN40: 12.05327 | AO40: 10.79161 | AP40: 10.76515 | AQ40: 10.66705 | AR40: 10.80241 | AS40: 9.859947 | AT40: 10.43968 | AU40: 10.69339 | AV40: 10.53668 | AW40: 10.18688 | AX40: 10.54662 | AY40: 11.73016 | AZ40: 9.94048 | BA40: 9.951379 | BB40: 10.51072 | BC40: 9.534084 | BD40: 9.346081 | BE40: 10.07443 | BG40: 0 | BI40: 976332 | BJ40: 1321.252 | BK40: 64274334 | BL40: 24.81646 | BM40: 1345.0638 | BN40: 24.81646015
A41: 14060 | B41: Bloomington-Normal, IL | C41: 14.84959007 | D41: 1.15 | E41: 38695 | F41: 2.301 | G41: 0.2059772 | H41: 0.4142595 | I41: 40334.11 | J41: 112403 | K41: 165571 | L41: 0.0452374 | M41: 45237.4 | N41: 7490001555 | O41: 38.74287 | P41: 10.60495 | Q41: -3.095831 | R41: 7.438487 | S41: -1.217477 | T41: 12.01716 | U41: 0.0015017 | V41: 0 | W41: 1620.685 | X41: 1700.175 | Y41: 0 | Z41: 0 | AA41: 248.8221 | AB41: 165571 | AC41: 0 | AD41: 0.0015028 | AE41: 0 | AF41: 0.2102377 | AH41: 145 | AK41: 0 | AL41: 6.422398 | AO41: 11.30916 | AP41: 10.68667 | AQ41: 10.76999 | AR41: 11.02372 | AS41: 9.929943 | AT41: 10.51484 | AU41: 10.79416 | AV41: 11.04208 | AW41: 10.30713 | AX41: 10.66892 | AY41: 10.90103 | AZ41: 10.22243 | BA41: 9.737708 | BB41: 10.58014 | BC41: 9.372578 | BD41: 9.416724 | BE41: 10.14456 | BF41: 9.300588 | BG41: 0 | BI41: 1083044 | BJ41: 1183.527 | BK41: 94503502 | BL41: 36.48801 | BM41: 1186.2697 | BN41: 36.48800767
A42: 14260 | B42: Boise City-Nampa, ID | C42: 14.84959007 | D42: 1.15 | E42: 33950 | F42: 2.294482 | G42: 0.2167109 | H42: 0.3247117 | I42: 36215.62 | J42: 378922 | K42: 598719 | L42: 0.0354273 | M42: 35427.3 | N42: 2.121099763e+10 | O42: 165.6517 | P42: 10.49725 | Q42: -3.340272 | R42: 7.485958 | S42: -1.451258 | T42: 13.30255 | U42: 0.0009826 | V42: 0 | W42: 1306.005 | X42: 1782.831 | Y42: 0 | Z42: 0 | AA42: 588.575 | AB42: 598719 | AC42: 0 | AD42: 0.0009831 | AE42: 0 | AF42: 0.0499311 | AH42: 205 | AK42: 0 | AL42: 3.553087 | AM42: 10.39475 | AN42: 10.69794 | AP42: 10.47225 | AQ42: 10.85923 | AR42: 10.81391 | AS42: 10.09884 | AT42: 10.36959 | AU42: 10.58768 | AV42: 10.70534 | AW42: 10.36444 | AX42: 10.82519 | AY42: 11.58548 | AZ42: 10.13599 | BA42: 9.932849 | BB42: 10.56396 | BC42: 9.608349 | BD42: 9.422729 | BE42: 10.06086 | BG42: 0 | BI42: 1375651 | BJ42: 11787.73 | BK42: 227419072 | BL42: 87.80699 | BM42: 11833.053 | BN42: 87.80699833
A43: 14460 | B43: Boston-Cambridge-Quincy, MA-NH | C43: 35.29167 | D43: 1.2 | E43: 53553 | F43: 2.306125 | I43: 57007.16 | J43: 3171444 | K43: 4544705 | L43: 0.0606919 | M43: 60691.9 | N43: 2.758267814e+11 | P43: 10.95093 | Q43: -2.801944 | S43: -1.000788 | T43: 15.32947 | U43: 0.0004006 | V43: 9.42e-05 | Y43: 1 | Z43: 428.1 | AA43: 1820.756 | AB43: 4544705 | AC43: 9.42e-05 | AD43: 0.0004006 | AE43: 0.1220771 | AF43: 0.519207 | AH43: 5492 | AM43: 10.57226 | AN43: 11.32923 | AO43: 11.62568 | AP43: 11.04494 | AQ43: 11.04336 | AR43: 11.23001 | AS43: 10.15642 | AT43: 10.6081 | AU43: 11.37742 | AV43: 11.60579 | AW43: 10.89223 | AX43: 11.42688 | AY43: 11.56667 | AZ43: 10.58061 | BA43: 10.61039 | BB43: 10.77798 | BC43: 10.48817 | BD43: 9.813373 | BE43: 10.31926 | BF43: 10.33108 | BG43: 12800000 | BH43: 29899.55618 | BI43: 52200000 | BJ43: 3506.801 | BM43: 4511.245
A44: 14500 | B44: Boulder, CO | C44: 14.84959007 | D44: 1.13 | E44: 48056 | F44: 2.21 | I44: 48276.81 | J44: 241178 | K44: 300452 | L44: 0.0524144 | M44: 52414.4 | N44: 1.574801131e+10 | O44: 82.94524 | P44: 10.78471 | Q44: -2.948575 | R44: 8.128229 | S44: -0.7152651 | T44: 12.61304 | U44: 0.0007606 | V44: 0 | W44: 1529.479 | X44: 3388.794 | Y44: 0 | Z44: 0 | AA44: 228.6245 | AB44: 300452 | AC44: 0 | AD44: 0.0007609 | AE44: 0 | AF44: 0.3079283 | AK44: 0 | AL44: 2.75633 | AM44: 10.21793 | AP44: 10.70134 | AQ44: 10.9712 | AR44: 11.38332 | AS44: 10.18015 | AT44: 10.30728 | AU44: 11.19993 | AV44: 11.07117 | AW44: 10.41188 | AX44: 11.22824 | AY44: 11.22482 | AZ44: 10.30381 | BA44: 10.01541 | BB44: 10.66868 | BC44: 9.694409 | BD44: 9.626015 | BE44: 10.39014 | BF44: 10.45929 | BJ44: 742.4601 | BK44: 52355482 | BL44: 20.21457 | BM44: 740.36674 | BN44: 20.21456547
A45: 14540 | B45: Bowling Green, KY | C45: 14.84959007 | D45: 1.15 | E45: 30912 | F45: 2.220598 | I45: 33016.59 | J45: 75418 | K45: 118588 | L45: 0.032887 | M45: 32887 | N45: 3900003556 | O45: 36.30591 | P45: 10.40477 | Q45: -3.414679 | R45: 7.240713 | S45: -1.63714 | T45: 11.68341 | U45: 0.0009637 | V45: 0 | W45: 1108.58 | X45: 1395.088 | Y45: 0 | Z45: 0 | AA45: 114.3418 | AB45: 118588 | AC45: 0 | AD45: 0.0009642 | AE45: 0 | AF45: 0.1348634 | AK45: 0 | AL45: 3.149399 | AN45: 11.11772 | AP45: 10.54794 | AQ45: 10.65004 | AR45: 10.64512 | AS45: 9.914152 | AT45: 10.41528 | AU45: 10.4625 | AV45: 10.70977 | AW45: 10.305 | AX45: 10.90619 | AY45: 11.06199 | AZ45: 9.983297 | BA45: 9.954181 | BB45: 10.52513 | BC45: 9.809213 | BD45: 9.374393 | BE45: 9.912976 | BJ45: 847.8342 | BK45: 68993325 | BL45: 26.63847 | BM45: 855.69498 | BN45: 26.63847284
A46: 14600 | B46: Bradenton-Sarasota-Venice, FL | C46: 14.84959007 | D46: 1.15 | E46: 36440.165 | F46: 2.29 | I46: 33197.12 | J46: 390477 | K46: 685926 | L46: 0.0316871 | M46: 31687.1 | N46: 2.173500575e+10 | O46: 254.0143 | P46: 10.41022 | Q46: -3.451846 | R46: 7.664971 | S46: -1.107555 | T46: 13.43853 | U46: 0.0004731 | V46: 0 | W46: 780.3538 | X46: 2132.331 | Y46: 0 | Z46: 0 | AA46: 324.5767 | AB46: 685926 | AC46: 0 | AD46: 0.0004732 | AE46: 0 | AF46: 0.2472818 | AH46: 553 | AK46: 0 | AL46: 1.277789 | AM46: 9.758245 | AN46: 10.55231 | AP46: 10.54901 | AQ46: 10.69533 | AR46: 10.75718 | AS46: 10.06091 | AT46: 10.43767 | AU46: 10.78431 | AV46: 10.98851 | AW46: 10.46003 | AX46: 10.78784 | AY46: 10.54073 | AZ46: 10.21661 | BA46: 10.39403 | BB46: 10.5988 | BC46: 9.891308 | BD46: 9.623267 | BE46: 9.941076 | BG46: 0 | BI46: 3677745 | BJ46: 1312.578 | BK46: 107066999 | BL46: 41.3388 | BM46: 1618.0171 | BN46: 41.33880118
A47: 14740 | B47: Bremerton-Silverdale, WA | C47: 14.84959007 | D47: 1.15 | E47: 43404 | F47: 2.567 | G47: 0.2877644 | H47: 0.3182262 | I47: 33306.45 | J47: 130123 | K47: 239865 | L47: 0.0201572 | M47: 20157.2 | N47: 4835006778 | O47: 130.008 | P47: 10.41351 | Q47: -3.904195 | R47: 7.318361 | S47: -1.424815 | T47: 12.38783 | U47: 0.0006702 | V47: 0 | W47: 418.6203 | X47: 1507.731 | Y47: 0 | Z47: 0 | AA47: 160.8195 | AB47: 239865 | AC47: 0 | AD47: 0.0006705 | AE47: 0 | AF47: 0.4061369 | AH47: 583 | AK47: 0 | AL47: 1.236997 | AM47: 11.15127 | AP47: 10.69954 | AQ47: 10.55221 | AR47: 10.64091 | AS47: 10.13042 | AT47: 10.56204 | AU47: 10.94406 | AV47: 10.75664 | AW47: 10.28334 | AX47: 10.8383 | AZ47: 10.22479 | BA47: 10.22391 | BB47: 10.62293 | BC47: 10.01086 | BD47: 9.621256 | BE47: 9.985748 | BF47: 9.528794 | BG47: 0 | BI47: 2375439 | BJ47: 395.9738 | BK47: 43929429 | BL47: 16.96125 | BM47: 565.92509 | BN47: 16.96124808
A48: 14860 | B48: Bridgeport-Stamford-Norwalk, CT | C48: 14.84959007 | D48: 1.25 | E48: 74767 | F48: 2.523 | I48: 73205.27 | J48: 627377 | K48: 894401 | L48: 0.0867441 | M48: 86744.1 | N48: 7.758400978e+10 | P48: 11.20102 | Q48: -2.444793 | S48: -0.8816196 | T48: 13.70391 | U48: 0.0003299 | V48: 0 | Y48: 0 | Z48: 0 | AA48: 295.11 | AB48: 894401 | AC48: 0 | AD48: 0.00033 | AE48: 0 | AF48: 0.4715708 | AH48: 2195 | AM48: 10.79925 | AN48: 11.52404 | AO48: 12.31112 | AP48: 10.97695 | AQ48: 11.08074 | AR48: 11.38788 | AS48: 10.34652 | AT48: 10.93001 | AU48: 11.17719 | AV48: 12.31584 | AW48: 11.05522 | AX48: 11.36028 | AY48: 11.86381 | AZ48: 10.82096 | BA48: 10.47074 | BB48: 10.72798 | BC48: 10.5992 | BD48: 9.812452 | BE48: 10.32696 | BG48: 0 | BJ48: 625.8021 | BM48: 837.01048
A49: 15180 | B49: Brownsville-Harlingen, TX | C49: 14.84959007 | D49: 1.04 | E49: 22388 | F49: 2.149 | G49: 0.2209935 | H49: 0.2253514 | I49: 23255.38 | J49: 170980 | K49: 389164 | L49: 0.0148369 | M49: 14836.9 | N49: 5773987352 | O49: 123.6033 | P49: 10.05429 | Q49: -4.210636 | R49: 7.076291 | S49: -2.100545 | T49: 12.87176 | U49: 0.0005061 | V49: 0 | W49: 775.4808 | X49: 1183.57 | Y49: 0 | Z49: 0 | AA49: 196.9995 | AB49: 389164 | AC49: 0 | AD49: 0.0005062 | AE49: 0 | AF49: 0.2174971 | AH49: 191 | AK49: 0 | AL49: 1.593804 | AM49: 9.996022 | AP49: 10.21349 | AQ49: 10.34148 | AR49: 10.20957 | AS49: 9.866963 | AT49: 10.33112 | AU49: 10.24312 | AV49: 10.45442 | AW49: 9.880798 | AX49: 10.2273 | AY49: 10.80808 | AZ49: 9.909027 | BA49: 9.9927 | BB49: 10.18008 | BC49: 9.741693 | BD49: 9.310287 | BE49: 9.720852 | BF49: 10.59037 | BG49: 0 | BI49: 791934 | BJ49: 905.7567 | BK49: 180266483 | BL49: 69.60128 | BM49: 1276.4599 | BN49: 69.60128116
A50: 15260 | B50: Brunswick, GA | C50: 14.84959007 | D50: 1.15 | E50: 35149 | F50: 2.148565 | I50: 29383.15 | J50: 59983 | K50: 103020 | L50: 0.0241312 | M50: 24131.2 | N50: 2485996224 | O50: 45.03338 | P50: 10.28818 | Q50: -3.724248 | R50: 7.323456 | S50: -1.622588 | T50: 11.54268 | U50: 0.0024627 | V50: 0 | W50: 643.0785 | X50: 1515.432 | Y50: 0 | Z50: 0 | AA50: 254.0201 | AB50: 103020 | AC50: 0 | AD50: 0.0024657 | AE50: 0 | AF50: 0.1953673 | AH50: 653 | AK50: 0 | AL50: 5.640707 | AM50: 10.51928 | AP50: 10.31189 | AQ50: 10.87761 | AR50: 10.56545 | AS50: 10.03455 | AT50: 10.35254 | AU50: 10.39312 | AV50: 10.88081 | AW50: 10.23608 | AX50: 10.66689 | AZ50: 10.11501 | BA50: 9.733848 | BB50: 10.61104 | BC50: 9.660892 | BD50: 9.917124 | BE50: 9.930012 | BG50: 379439 | BI50: 10200000 | BJ50: 1300.218 | BK50: 23689503 | BL50: 9.146568 | BM50: 1606.3806 | BN50: 9.146568633
A51: 15380 | B51: Buffalo-Niagara Falls, NY | C51: 6.785714 | D51: 1.1 | E51: 37469 | F51: 2.470788 | G51: 0.1975646 | H51: 0.3767403 | I51: 35849.88 | J51: 658725 | K51: 1124055 | L51: 0.0334094 | M51: 33409.4 | N51: 37554003117 | O51: 394.9897 | P51: 10.4871 | Q51: -3.398918 | R51: 7.678472 | S51: -1.413513 | T51: 13.93245 | U51: 0.0007525 | V51: 5.69e-06 | W51: 1111.158 | X51: 2161.315 | Y51: 1 | Z51: 6.4 | AA51: 846.1335 | AB51: 1124055 | AC51: 5.69e-06 | AD51: 0.0007528 | AE51: 0.0040838 | AF51: 0.5399159 | AH51: 536 | AK51: 0.016203 | AL51: 2.142166 | AM51: 9.803667 | AN51: 11.10718 | AO51: 11.39555 | AP51: 10.91056 | AQ51: 10.79694 | AR51: 10.82485 | AS51: 9.944764 | AT51: 10.44224 | AU51: 10.85858 | AV51: 10.85646 | AW51: 10.28011 | AX51: 10.79024 | AY51: 11.18114 | AZ51: 10.25877 | BA51: 10.08451 | BB51: 10.46232 | BC51: 10.79864 | BD51: 9.490876 | BE51: 9.96935 | BF51: 10.42066 | BH51: 0 | BJ51: 1567.158 | BK51: 242288562 | BL51: 93.54813 | BM51: 2366.5252 | BN51: 93.54814076
A52: 15500 | B52: Burlington, NC | C52: 14.84959007 | D52: 1.15 | E52: 30671 | F52: 2.246 | I52: 30038.31 | J52: 83424 | K52: 147910 | L52: 0.0274086 | M52: 27408.6 | N52: 4054006026 | P52: 10.31023 | Q52: -3.5969 | S52: -1.650129 | T52: 11.90436 | U52: 0.0005002 | V52: 0 | Y52: 0 | Z52: 0 | AA52: 74.00972 | AB52: 147910 | AC52: 0 | AD52: 0.0005004 | AE52: 0 | AF52: 0.1721199 | AO52: 11.10309 | AP52: 10.43989 | AQ52: 10.51231 | AR52: 10.69373 | AS52: 9.914921 | AT52: 10.43664 | AU52: 10.60068 | AV52: 11.02782 | AW52: 10.19418 | AX52: 10.54934 | AZ52: 9.948588 | BB52: 10.46849 | BC52: 9.489779 | BD52: 9.344055 | BE52: 9.912004 | BF52: 12.42118 | BJ52: 429.9892 | BM52: 434.73879 | BN52: 21.73073736
A53: 15540 | B53: Burlington-South Burlington, VT | C53: 14.84959007 | D53: 1.15 | E53: 41641 | F53: 2.158201 | G53: 0.2296283 | H53: 0.4061275 | I53: 41717.44 | J53: 153534 | K53: 207028 | L53: 0.0425353 | M53: 42535.3 | N53: 8805998088 | O53: 68.36285 | P53: 10.63867 | Q53: -3.157421 | R53: 7.709836 | S53: -1.145896 | T53: 12.24061 | U53: 0.0013947 | V53: 0 | W53: 1094.937 | X53: 2230.175 | Y53: 0 | Z53: 0 | AA53: 288.9482 | AB53: 207028 | AC53: 0 | AD53: 0.0013957 | AE53: 0 | AF53: 0.2295554 | AK53: 0 | AL53: 4.226685 | AM53: 10.1778 | AN53: 11.1177 | AP53: 10.84604 | AQ53: 10.8859 | AR53: 10.85496 | AS53: 10.06506 | AT53: 10.42524 | AU53: 10.74952 | AV53: 11.1891 | AW53: 10.43266 | AX53: 11.18147 | AZ53: 9.987204 | BA53: 10.06404 | BB53: 10.62524 | BC53: 9.843115 | BD53: 9.672245 | BE53: 10.1419 | BJ53: 1258.73 | BK53: 52461147 | BL53: 20.25536 | BM53: 1506.0011 | BN53: 20.25536296
A54: 15940 | B54: Canton-Massillon, OH | C54: 14.84959007 | D54: 1.15 | E54: 32356 | F54: 2.259853 | G54: 0.1722506 | H54: 0.389664 | I54: 32435.34 | J54: 224848 | K54: 408782 | L54: 0.0290301 | M54: 29030.1 | N54: 1.186698234e+10 | O54: 189.082 | P54: 10.387 | Q54: -3.539421 | R54: 7.142399 | S54: -1.716291 | T54: 12.92094 | U54: 0.0008809 | V54: 0 | W54: 734.8823 | X54: 1264.458 | Y54: 0 | Z54: 0 | AA54: 360.2552 | AB54: 408782 | AC54: 0 | AD54: 0.0008813 | AE54: 0 | AF54: 0.3710875 | AH54: 279 | AK54: 0 | AL54: 1.905285 | AM54: 8.804875 | AN54: 10.85348 | AO54: 11.02395 | AP54: 10.71564 | AQ54: 10.70645 | AR54: 10.70006 | AS54: 10.00121 | AT54: 10.42697 | AU54: 10.59101 | AV54: 10.611 | AW54: 10.17905 | AX54: 10.62393 | AY54: 11.0805 | AZ54: 10.16056 | BA54: 9.817843 | BB54: 10.4524 | BC54: 9.564423 | BD54: 9.344213 | BE54: 9.910315 | BG54: 0 | BI54: 2518231 | BJ54: 970.8093 | BK54: 125085502 | BL54: 48.29578 | BM54: 979.45824 | BN54: 48.29578438
A55: 15980 | B55: Cape Coral-Fort Myers, FL | C55: 14.84959007 | D55: 1.12 | E55: 40750 | F55: 2.17 | G55: 0.1617242 | H55: 0.3645318 | I55: 32942.61 | J55: 299691 | K55: 588709 | L55: 0.0311886 | M55: 31188.6 | N55: 1.836100952e+10 | O55: 231.5379 | P55: 10.40252 | Q55: -3.467703 | R55: 6.884664 | S55: -1.319591 | T55: 13.28569 | U55: 0.0003291 | V55: 0 | W55: 670.171 | X55: 977.1735 | Y55: 0 | Z55: 0 | AA55: 193.7764 | AB55: 588709 | AC55: 0 | AD55: 0.0003292 | AE55: 0 | AF55: 0.2411262 | AH55: 318 | AK55: 0 | AL55: 0.8369098 | AM55: 10.26715 | AP55: 10.54646 | AQ55: 10.4504 | AR55: 10.68959 | AS55: 10.08415 | AT55: 10.29224 | AU55: 10.73997 | AV55: 10.85125 | AW55: 10.33183 | AX55: 10.83932 | AY55: 11.27355 | AZ55: 10.18755 | BA55: 10.34883 | BB55: 10.70175 | BC55: 10.018 | BD55: 9.641709 | BE55: 10.00651 | BF55: 9.815826 | BG55: 0 | BI55: 3006028 | BJ55: 803.6304 | BK55: 203157373 | BL55: 78.4395 | BM55: 1212.3751 | BN55: 78.43950358
A56: 16020 | B56: Cape Girardeau-Jackson, MO-IL | C56: 14.84959007 | D56: 1.15 | E56: 32643.325 | F56: 2.124176 | I56: 29763.08 | J56: 62905 | K56: 93287 | L56: 0.0283855 | M56: 28385.5 | N56: 2647998138 | O56: 27.21549 | P56: 10.30102 | Q56: -3.561876 | R56: 7.211333 | T56: 11.44344 | U56: 0.0022905 | V56: 0 | W56: 1144.311 | X56: 1354.696 | Y56: 0 | Z56: 0 | AA56: 213.9142 | AB56: 93287 | AC56: 0 | AD56: 0.0022931 | AE56: 0 | AF56: 0.148992 | AK56: 0 | AL56: 7.860016 | AN56: 10.35057 | AP56: 10.45074 | AQ56: 10.61098 | AR56: 10.66486 | AS56: 9.911057 | AT56: 10.75777 | AU56: 10.66335 | AV56: 10.57468 | AW56: 10.20005 | AX56: 10.3764 | AY56: 10.40662 | AZ56: 9.404687 | BA56: 9.888707 | BB56: 10.54198 | BC56: 9.744394 | BD56: 9.30198 | BE56: 9.81454 | BJ56: 1435.743 | BK56: 57613867 | BL56: 22.24484 | BM56: 1460.008 | BN56: 22.24483936
A57: 16180 | B57: Carson City, NV | C57: 14.84959007 | D57: 1.15 | E57: 40218 | F57: 2.477 | I57: 37841.3 | J57: 42179 | K57: 55274 | L57: 0.0401093 | M57: 40109.3 | N57: 2217001448 | O57: 20.23501 | P57: 10.54116 | Q57: -3.216148 | R57: 7.054017 | S57: -1.645996 | T57: 10.92006 | U57: 0.0005131 | V57: 0 | W57: 1157.499 | X57: 1157.499 | Y57: 0 | Z57: 0 | AA57: 28.36716 | AB57: 55274 | AC57: 0 | AD57: 0.0005132 | AE57: 0 | AF57: 0.1978814 | AK57: 0 | AL57: 1.401885 | AP57: 10.54867 | AQ57: 10.75207 | AR57: 10.8815 | AS57: 10.24469 | AT57: 10.32536 | AU57: 10.92233 | AV57: 10.79603 | AW57: 10.21649 | AX57: 10.9416 | AY57: 11.56587 | AZ57: 10.33702 | BB57: 10.80863 | BC57: 10.1532 | BD57: 9.592313 | BE57: 10.22756 | BF57: 10.43412 | BJ57: 143.3544 | BK57: 52408427 | BL57: 20.23501 | BM57: 157.24517 | BN57: 20.23500765
A58: 16220 | B58: Casper, WY | C58: 14.84959007 | D58: 1.15 | E58: 53361 | F58: 1.994 | G58: 0.2501512 | H58: 0.3446259 | I58: 39936.98 | J58: 55922 | K58: 73057 | L58: 0.0829489 | M58: 82948.9 | N58: 6059997787 | O58: 26.36549 | P58: 10.59506 | Q58: -2.48953 | R58: 6.955341 | S58: -1.642658 | T58: 11.199 | U58: 0.0036174 | V58: 0 | W58: 925.2627 | X58: 1048.737 | Y58: 0 | Z58: 0 | AA58: 264.7586 | AB58: 73057 | AC58: 0 | AD58: 0.003624 | AE58: 0 | AF58: 0.0495814 | AH58: 183 | AK58: 0 | AL58: 10.04186 | AN58: 11.23452 | AP58: 10.64077 | AQ58: 10.85614 | AR58: 11.00049 | AS58: 10.13462 | AT58: 10.86973 | AU58: 10.49197 | AV58: 10.83022 | AW58: 10.73287 | AX58: 10.77822 | AY58: 10.90549 | AZ58: 9.851752 | BB58: 10.74668 | BC58: 9.700035 | BD58: 9.552444 | BE58: 10.23347 | BG58: 0 | BI58: 209197 | BJ58: 5339.882 | BK58: 48987525 | BL58: 18.91419 | BM58: 5375.6437 | BN58: 18.91418995
A59: 16300 | B59: Cedar Rapids, IA | C59: 14.84959007 | D59: 1.15 | E59: 39022 | F59: 2.272283 | G59: 0.1940797 | H59: 0.3871377 | I59: 39152 | J59: 176099 | K59: 254911 | L59: 0.0450275 | M59: 45027.5 | N59: 1.147800505e+10 | O59: 71.29517 | P59: 10.57521 | Q59: -3.100482 | R59: 7.395322 | S59: -1.406866 | T59: 12.44867 | U59: 0.0014764 | V59: 0 | W59: 1413.546 | X59: 1628.349 | Y59: 0 | Z59: 0 | AA59: 376.6303 | AB59: 254911 | AC59: 0 | AD59: 0.0014775 | AE59: 0 | AF59: 0.1874585 | AH59: 694 | AK59: 0 | AL59: 5.282691 | AN59: 10.93039 | AP59: 10.93234 | AQ59: 11.00518 | AR59: 10.76862 | AS59: 10.03031 | AT59: 10.16462 | AU59: 10.70496 | AV59: 10.93916 | AW59: 10.99091 | AX59: 10.96842 | AY59: 11.15474 | AZ59: 10.09425 | BA59: 10.19644 | BB59: 10.4924 | BC59: 9.617515 | BD59: 9.353354 | BE59: 9.981144 | BF59: 9.828525 | BG59: 0 | BI59: 1041326 | BJ59: 2009.14 | BK59: 116759893 | BL59: 45.08125 | BM59: 2019.9981 | BN59: 45.08124864
A60: 16580 | B60: Champaign-Urbana, IL | C60: 14.84959007 | D60: 1.15 | E60: 34624 | F60: 2.101565 | G60: 0.1985935 | H60: 0.3867626 | I60: 32163.49 | J60: 143142 | K60: 223998 | L60: 0.0272101 | M60: 27210.1 | N60: 6095007980 | O60: 66.05064 | P60: 10.37859 | Q60: -3.604168 | R60: 7.609862 | S60: -1.274965 | T60: 12.31939 | U60: 0.0020089 | V60: 0 | W60: 1102.866 | X60: 2018 | Y60: 0 | Z60: 0 | AA60: 450.4422 | AB60: 223998 | AC60: 0 | AD60: 0.0020109 | AE60: 0 | AF60: 0.2342726 | AH60: 641 | AK60: 0 | AL60: 6.819649 | AO60: 11.21495 | AP60: 10.87923 | AQ60: 10.5462 | AR60: 10.67174 | AS60: 9.92797 | AT60: 10.45643 | AU60: 10.65528 | AV60: 10.65236 | AW60: 10.40388 | AX60: 10.7306 | AY60: 11.14907 | AZ60: 9.898827 | BA60: 9.545069 | BB60: 10.66077 | BC60: 9.598217 | BD60: 9.348808 | BE60: 9.969709 | BF60: 8.837665 | BG60: 0 | BI60: 3578700 | BJ60: 1922.727 | BK60: 77196551 | BL60: 29.80576 | BM60: 1924.0994 | BN60: 29.80575624
A61: 16620 | B61: Charleston, WV | C61: 14.84959007 | D61: 1.15 | E61: 37687 | F61: 2.415321 | G61: 0.1889387 | H61: 0.353379 | I61: 38115.96 | J61: 182844 | K61: 303331 | L61: 0.0414102 | M61: 41410.2 | N61: 1.256099738e+10 | O61: 115.5062 | P61: 10.54839 | Q61: -3.184228 | R61: 7.682145 | S61: -1.678188 | T61: 12.62258 | U61: 0.0011783 | V61: 0 | W61: 955.8538 | X61: 2169.267 | Y61: 0 | Z61: 0 | AA61: 357.6291 | AB61: 303331 | AC61: 0 | AD61: 0.001179 | AE61: 0 | AF61: 0.1412357 | AH61: 229 | AK61: 0 | AL61: 3.096191 | AM61: 10.30444 | AN61: 11.29296 | AO61: 11.16194 | AP61: 10.83727 | AQ61: 10.95697 | AR61: 10.79776 | AS61: 9.907413 | AT61: 10.69449 | AU61: 10.80484 | AV61: 10.77106 | AW61: 10.39857 | AX61: 10.79066 | AY61: 11.27111 | AZ61: 10.27331 | BA61: 9.993776 | BB61: 10.57263 | BC61: 9.949743 | BD61: 9.423504 | BE61: 10.04857 | BG61: 0 | BI61: 2319541 | BJ61: 2532.144 | BK61: 72664751 | BL61: 28.05602 | BM61: 2546.9331 | BN61: 28.05601841
A62: 16700 | B62: Charleston-North Charleston, SC | C62: 14.84959007 | D62: 1.15 | E62: 35342 | F62: 2.197804 | G62: 0.2494077 | H62: 0.3273348 | I62: 34801.84 | J62: 407920 | K62: 647194 | L62: 0.0325034 | M62: 32503.4 | N62: 2.103600546e+10 | O62: 237.0366 | P62: 10.45743 | Q62: -3.426411 | R62: 7.170134 | S62: -1.465395 | T62: 13.3804 | U62: 0.0007936 | V62: 0 | W62: 890.5799 | X62: 1300.019 | Y62: 0 | Z62: 0 | AA62: 513.838 | AB62: 647194 | AC62: 0 | AD62: 0.0007939 | AE62: 0 | AF62: 0.19832 | AH62: 188 | AK62: 0 | AL62: 2.167758 | AM62: 10.81305 | AN62: 10.51807 | AP62: 10.52754 | AQ62: 10.82052 | AR62: 10.83476 | AS62: 10.0327 | AT62: 10.51878 | AU62: 10.83778 | AV62: 10.85482 | AW62: 10.47526 | AX62: 11.0377 | AY62: 11.30508 | AZ62: 10.00892 | BA62: 10.09067 | BB62: 10.70799 | BC62: 9.702517 | BD62: 9.594547 | BE62: 10.06335 | BG62: 0 | BI62: 2720358 | BJ62: 2590.954 | BK62: 328802145 | BL62: 126.9512 | BM62: 3163.0513 | BN62: 126.9512233
A63: 16740 | B63: Charlotte-Gastonia-Concord, NC-SC | C63: 10.34615 | D63: 1.17 | E63: 38034 | F63: 2.257779 | G63: 0.2782131 | H63: 0.258716 | I63: 44341.88 | J63: 1111511 | K63: 1706469 | L63: 0.0648931 | M63: 64893.1 | N63: 1.107380635e+11 | O63: 700.4671 | P63: 10.69969 | Q63: -2.735014 | R63: 6.542332 | S63: -1.325968 | T63: 14.34994 | U63: 0.0005198 | V63: 5.63e-06 | W63: 66.38142 | X63: 693.9028 | Y63: 1 | Z63: 9.6 | AA63: 887.222 | AB63: 1706469 | AC63: 5.63e-06 | AD63: 0.0005199 | AE63: 0.0030985 | AF63: 0.2863607 | AH63: 1084 | AK63: 0.0137051 | AL63: 1.266615 | AM63: 10.5839 | AN63: 10.85675 | AO63: 11.51787 | AP63: 10.65357 | AQ63: 10.69496 | AR63: 10.94559 | AS63: 10.02635 | AT63: 10.59146 | AU63: 11.11396 | AV63: 11.29501 | AW63: 10.66267 | AX63: 11.04204 | AY63: 11.5044 | AZ63: 10.36161 | BA63: 10.23672 | BB63: 10.70645 | BC63: 10.49609 | BD63: 9.558227 | BE63: 10.12243 | BF63: 10.66052 | BG63: 347660 | BH63: 36214.58333 | BI63: 12100000 | BJ63: 3098.267 | BK63: 122903569 | BL63: 47.45333 | BM63: 3146.8862 | BN63: 398.0252221
A64: 16820 | B64: Charlottesville, VA | C64: 14.84959007 | D64: 1.15 | E64: 42921 | F64: 2.21968 | G64: 0.2589658 | H64: 0.3559669 | I64: 38672.86 | J64: 136767 | K64: 195012 | L64: 0.0332697 | M64: 33269.7 | N64: 6487990736 | O64: 46.72456 | P64: 10.56289 | Q64: -3.403107 | R64: 7.816089 | S64: -1.043759 | T64: 12.18082 | U64: 0.0008426 | V64: 0 | W64: 1372.169 | X64: 2480.186 | Y64: 0 | Z64: 0 | AA64: 164.3855 | AB64: 195012 | AC64: 0 | AD64: 0.000843 | AE64: 0 | AF64: 0.1794005 | AH64: 0 | AK64: 0 | AL64: 3.518182 | AM64: 10.188 | AN64: 10.88155 | AO64: 11.28551 | AP64: 10.43996 | AQ64: 10.88247 | AR64: 10.83825 | AS64: 10.06902 | AT64: 10.27057 | AU64: 10.92684 | AV64: 11.18265 | AW64: 10.52735 | AX64: 11.06262 | AY64: 11.0323 | AZ64: 10.14653 | BA64: 10.41599 | BB64: 10.76614 | BC64: 10.23247 | BD64: 9.635972 | BE64: 10.44569 | BF64: 10.57452 | BG64: 0 | BJ64: 916.3043 | BK64: 27021573 | BL64: 10.43309 | BM64: 1658.4602 | BN64: 10.43308811
A65: 16860 | B65: Chattanooga, TN-GA | C65: 14.84959007 | D65: 1.15 | E65: 33760 | F65: 2.304096 | G65: 0.2023075 | H65: 0.3240647 | I65: 33600.61 | J65: 321197 | K65: 520089 | L65: 0.0349382 | M65: 34938.2 | N65: 1.81709735e+10 | O65: 303.8003 | P65: 10.4223 | Q65: -3.354173 | R65: 7.11955 | S65: -1.6353 | T65: 13.16176 | U65: 0.0010413 | V65: 0 | W65: 607.8895 | X65: 1235.894 | Y65: 0 | Z65: 0 | AA65: 541.829 | AB65: 520089 | AC65: 0 | AD65: 0.0010418 | AE65: 0 | AF65: 0.2593193 | AH65: 350 | AK65: 0 | AL65: 1.783504 | AM65: 9.758462 | AN65: 11.29094 | AP65: 10.70473 | AQ65: 10.58935 | AR65: 10.73948 | AS65: 10.01188 | AT65: 10.37267 | AU65: 10.58716 | AV65: 10.93374 | AW65: 10.68927 | AX65: 10.77913 | AY65: 11.09567 | AZ65: 9.921649 | BA65: 10.04558 | BB65: 10.62365 | BC65: 9.927241 | BD65: 9.432731 | BE65: 10.04155 | BF65: 9.481215 | BG65: 0 | BI65: 1972586 | BJ65: 2089.428 | BK65: 306969236 | BL65: 118.5215 | BM65: 2137.8108 | BN65: 118.5214897
A66: 16940 | B66: Cheyenne, WY | C66: 14.84959007 | D66: 1.15 | E66: 45950 | F66: 2.116 | G66: 0.245223 | H66: 0.3573455 | I66: 33411.25 | J66: 63480 | K66: 87759 | L66: 0.0343668 | M66: 34366.8 | N66: 3015996001 | O66: 33.81439 | P66: 10.41665 | Q66: -3.370663 | R66: 7.331124 | S66: -1.486213 | T66: 11.38235 | U66: 0.0023482 | V66: 0 | W66: 984.6695 | X66: 1527.097 | Y66: 0 | Z66: 0 | AA66: 206.3202 | AB66: 87759 | AC66: 0 | AD66: 0.002351 | AE66: 0 | AF66: 0.0768117 | AH66: 285 | AK66: 0 | AL66: 6.10155 | AP66: 10.60367 | AQ66: 10.77666 | AR66: 10.68191 | AS66: 10.11219 | AT66: 10.42671 | AV66: 10.62989 | AW66: 10.29186 | AX66: 10.72519 | AY66: 10.88418 | AZ66: 10.23801 | BA66: 9.987823 | BB66: 10.62535 | BC66: 10.21514 | BD66: 9.543761 | BE66: 10.15055 | BF66: 9.93481 | BG66: 0 | BI66: 382479 | BJ66: 2686.052 | BK66: 54410039 | BL66: 21.00783 | BM66: 2687.5451 | BN66: 21.0078344
A67: 16980 | B67: Chicago-Naperville-Joliet, IL-IN-WI | C67: 28.8 | D67: 1.25 | E67: 44379 | F67: 2.46371 | G67: 0.1778167 | H67: 0.477542 | I67: 49692.34 | J67: 5777274 | K67: 9515636 | L67: 0.050117 | M67: =L67*1000000 -> 50117 | N67: 476895129412 | O67: 2395.625 | P67: 10.81361 | Q67: -2.993395 | R67: 8.129027 | S67: -1.285125 | T67: 16.06845 | U67: 0.0003412 | V67: 7.26e-05 | W67: 1545.668 | X67: 3391.5 | Y67: 1 | Z67: 691.3 | AA67: 3246.916 | AB67: 9515636 | AC67: 7.26e-05 | AD67: 0.0003412 | AE67: 0.095854 | AF67: 0.4502096 | AH67: 2961 | AK67: 0.2885676 | AL67: 1.355352 | AM67: 10.18255 | AN67: 13.43144 | AO67: 11.63514 | AP67: 11.04079 | AQ67: 10.8904 | AR67: 11.08197 | AS67: 10.12939 | AT67: 10.6672 | AU67: 11.20885 | AV67: 11.49791 | AW67: 10.87924 | AX67: 11.25864 | AY67: 11.49498 | AZ67: 10.33577 | BA67: 10.54546 | BB67: 10.67322 | BC67: 10.44546 | BD67: 9.721503 | BE67: 10.33539 | BF67: 12.39669 | BG67: 41200000 | BH67: =IF(Z67>0,BG67/Z67,"") -> 59597.85911 | BI67: 133000000 | BJ67: 7212.008 | BK67: 1211863379 | BL67: 467.9031 | BM67: 9578.5987 | BN67: 467.9030864
A68: 17020 | B68: Chico, CA | C68: 14.84959007 | D68: 1.15 | E68: 32593 | F68: 2.511 | G68: 0.2881326 | H68: 0.2943939 | I68: 30257.82 | J68: 108520 | K68: 219503 | L68: 0.0232024 | M68: 23202.4 | N68: =L68*K68*1000000 -> 5092996407 | O68: 89.15726 | P68: 10.31751 | Q68: -3.763499 | R68: 7.232899 | S68: -1.562256 | T68: 12.29912 | U68: 0.0010517 | V68: 0 | W68: 602.6542 | X68: 1384.23 | Y68: 0 | Z68: 0 | AA68: 230.9819 | AB68: 219503 | AC68: 0 | AD68: 0.0010523 | AE68: 0 | AF68: 0.1408865 | AH68: 379 | AK68: 0 | AL68: 2.590724 | AM68: 10.74978 | AO68: 10.96766 | AP68: 10.60186 | AQ68: 10.55284 | AR68: 10.63602 | AS68: 10.09537 | AT68: 10.41019 | AU68: 10.78362 | AV68: 10.67709 | AW68: 10.08323 | AX68: 10.53156 | AY68: 10.82916 | AZ68: 9.991842 | BA68: 10.0318 | BB68: 10.51657 | BC68: 9.723697 | BD68: 9.478073 | BE68: 9.989779 | BG68: 0 | BI68: 1009113 | BJ68: 1639.488 | BK68: 64548104 | BL68: 24.92216 | BM68: 1677.1605 | BN68: 24.92216335
A69: 17140 | B69: Cincinnati-Middletown, OH-KY-IN | C69: 14.84959007 | D69: 1.12 | E69: 37967 | F69: 2.296445 | G69: 0.1254977 | H69: 0.4549864 | I69: 42040.34 | J69: 1309385 | K69: 2158643 | L69: 0.0415437 | M69: 41543.7 | N69: 8.96780172e+10 | O69: 771.6935 | P69: 10.64639 | Q69: -3.18101 | R69: 7.75414 | S69: -1.430189 | T69: 14.58499 | U69: 0.000559 | V69: 0 | W69: 1021.645 | X69: 2331.203 | Y69: 0 | Z69: 0 | AA69: 1206.996 | AB69: 2158643 | AC69: 0 | AD69: 0.0005591 | AE69: 0 | AF69: 0.2744283 | AH69: 1345 | AK69: 0 | AL69: 1.564088 | AM69: 11.01115 | AN69: 10.8273 | AP69: 10.74163 | AQ69: 10.87521 | AR69: 11.02188 | AS69: 10.03891 | AT69: 10.74455 | AU69: 11.08187 | AV69: 11.04672 | AW69: 10.50384 | AX69: 11.03193 | AY69: 11.45552 | AZ69: 10.21515 | BA69: 10.22348 | BB69: 10.63483 | BC69: 10.45215 | BD69: 9.504794 | BE69: 10.09679 | BF69: 10.95518 | BG69: 0 | BI69: 14000000 | BJ69: 4398.22 | BK69: 256997522 | BL69: 99.22729 | BM69: 4465.4046 | BN69: 99.22730221
A70: 17300 | B70: Clarksville, TN-KY | C70: 14.84959007 | D70: 1.15 | E70: 35318 | F70: 2.004351 | I70: 28013.72 | J70: 147168 | K70: 261757 | L70: 0.0189833 | M70: 18983.3 | N70: 4969011658 | O70: 98.55006 | P70: 10.24045 | Q70: -3.964198 | R70: 6.15857 | S70: -1.939868 | T70: 12.47517 | U70: 0.0012254 | V70: 0 | W70: 496.9048 | X70: 472.7517 | Y70: 0 | Z70: 0 | AA70: 320.9461 | AB70: 261757 | AC70: 0 | AD70: 0.0012261 | AE70: 0 | AF70: 0.1484355 | AH70: 134 | AK70: 0 | AL70: 3.256681 | AP70: 10.42772 | AQ70: 10.57246 | AR70: 10.54508 | AS70: 10.0147 | AT70: 10.14497 | AU70: 10.51287 | AV70: 10.57659 | AW70: 10.62081 | AX70: 10.63128 | AY70: 10.95618 | AZ70: 10.15907 | BA70: 9.934449 | BB70: 10.37309 | BC70: 9.43083 | BD70: 9.317123 | BE70: 9.716828 | BG70: 0 | BI70: 843433 | BJ70: 2162.192 | BK70: 170223646 | BL70: 65.72372 | BM70: 2241.7043 | BN70: 65.72371996
A71: 17420 | B71: Cleveland, TN | C71: 14.84959007 | D71: 1.15 | E71: 29939 | F71: 2.172537 | I71: 31243.04 | J71: 54125 | K71: 112414 | L71: 0.0284484 | M71: 28448.4 | N71: 3197998438 | O71: 48.49467 | P71: 10.34955 | Q71: -3.559663 | R71: 6.934032 | S71: -1.969733 | T71: 11.62994 | U71: 0.0014009 | V71: 0 | W71: 586.9924 | X71: 1026.625 | Y71: 0 | Z71: 0 | AA71: 157.5965 | AB71: 112414 | AC71: 0 | AD71: 0.0014019 | AE71: 0 | AF71: 0.2063383 | AK71: 0 | AL71: 3.24977 | AP71: 10.50228 | AQ71: 10.54386 | AR71: 10.52077 | AS71: 10.00943 | AT71: 10.5315 | AU71: 10.41881 | AV71: 10.39648 | AW71: 10.23717 | AX71: 10.24811 | AZ71: 10.07908 | BB71: 10.45178 | BC71: 9.88954 | BD71: 9.330722 | BE71: 9.910033 | BJ71: 763.7774 | BK71: 67853682 | BL71: 26.19845 | BM71: 773.78618 | BN71: 26.1984542
A72: 17460 | B72: Cleveland-Elyria-Mentor, OH | C72: 11.70833 | D72: 1.1 | E72: 39451 | F72: 2.304252 | G72: 0.1477517 | H72: 0.4409992 | I72: 41348.39 | J72: 1316713 | K72: 2094051 | L72: 0.0447959 | M72: 44795.9 | N72: 9.380489919e+10 | O72: 716.6978 | P72: 10.62979 | Q72: -3.105638 | R72: 7.777194 | S72: -1.393584 | T72: 14.55461 | U72: 0.0004392 | V72: 1.65e-05 | W72: 1137.12 | X72: 2385.573 | Y72: 1 | Z72: 34.5 | AA72: 919.8225 | AB72: 2094051 | AC72: 1.65e-05 | AD72: 0.0004393 | AE72: 0.0172121 | AF72: 0.4589005 | AH72: 2368 | AK72: 0.0481374 | AL72: 1.283418 | AM72: 9.872305 | AN72: 11.81387 | AO72: 11.13295 | AP72: 10.84603 | AQ72: 10.77686 | AR72: 10.88502 | AS72: 10.00599 | AT72: 10.57789 | AU72: 10.96578 | AV72: 11.07595 | AW72: 10.66639 | AX72: 10.98583 | AY72: 11.28797 | AZ72: 10.23034 | BA72: 10.25319 | BB72: 10.61604 | BC72: 10.84681 | BD72: 9.437079 | BE72: 10.10805 | BF72: 9.864153 | BG72: 1969967 | BH72: 57100.49275 | BI72: 27000000 | BJ72: 2004.405 | BK72: 327238271 | BL72: 126.3474 | BM72: 3979.4324 | BN72: 126.3474082
A73: 17660 | B73: Coeur d'Alene, ID | C73: 14.84959007 | D73: 1.15 | E73: 31770 | F73: 2.237 | I73: 30889.1 | J73: 79741 | K73: 136998 | L73: 0.0262121 | M73: 26212.1 | N73: 3591005276 | O73: 44.17207 | P73: 10.33816 | Q73: -3.641536 | R73: 7.501204 | S73: -1.681868 | T73: 11.82772 | U73: 0.0011055 | V73: 0 | W73: 978.3331 | X73: 1810.221 | Y73: 0 | Z73: 0 | AA73: 151.5395 | AB73: 136998 | AC73: 0 | AD73: 0.0011061 | AE73: 0 | AF73: 0.1217067 | AK73: 0 | AL73: 3.430662 | AM73: 10.63386 | AN73: 11.19812 | AO73: 11.01174 | AP73: 10.56998 | AQ73: 10.51136 | AR73: 10.63735 | AS73: 10.10189 | AT73: 10.37412 | AU73: 10.59603 | AV73: 10.66981 | AW73: 10.23626 | AX73: 10.59029 | AY73: 11.12451 | AZ73: 10.20688 | BA73: 9.902884 | BB73: 10.33468 | BC73: 10.51139 | BD73: 9.613485 | BE73: 9.917971 | BF73: 9.10498 | BJ73: 1245.12 | BK73: 40679311 | BL73: 15.70637 | BM73: 1315.6239 | BN73: 15.70637045
A74: 17780 | B74: College Station-Bryan, TX | C74: 14.84959007 | D74: 1.15 | E74: 29847 | F74: 2.242876 | G74: 0.3160622 | H74: 0.2744537 | I74: 29503.57 | J74: 121819 | K74: 207140 | L74: 0.0219706 | M74: 21970.6 | N74: 4550990084 | O74: 52.89127 | P74: 10.29227 | Q74: -3.818048 | R74: 6.829051 | S74: -1.543976 | T74: 12.24115 | U74: 0.0015358 | V74: 0 | W74: 882.3951 | X74: 924.3131 | Y74: 0 | Z74: 0 | AA74: 318.3798 | AB74: 207140 | AC74: 0 | AD74: 0.001537 | AE74: 0 | AF74: 0.1511855 | AH74: 151 | AK74: 0 | AL74: 6.019515 | AN74: 11.01191 | AO74: 10.7021 | AP74: 10.53874 | AQ74: 10.50472 | AR74: 10.65081 | AS74: 9.947746 | AT74: 10.60499 | AU74: 10.62367 | AV74: 10.5322 | AW74: 10.38409 | AX74: 10.77696 | AY74: 11.08447 | AZ74: 9.891773 | BA74: 9.633666 | BB74: 10.61065 | BC74: 9.852136 | BD74: 9.379986 | BE74: 9.889142 | BG74: 0 | BI74: 1879986 | BJ74: 2105.889 | BK74: 124383799 | BL74: 48.02485 | BM74: 2133.4047 | BN74: 48.02485533
A75: 17820 | B75: Colorado Springs, CO | C75: 14.84959007 | D75: 1.12 | E75: 38401 | F75: 2.167552 | G75: 0.2386184 | H75: 0.3769866 | I75: 37982.88 | J75: 382201 | K75: 616975 | L75: 0.0285522 | M75: 28552.2 | N75: 17615993595 | O75: 204.8333 | P75: 10.54489 | Q75: -3.556021 | R75: 7.315323 | S75: -1.245679 | T75: 13.33258 | U75: 0.0007769 | V75: 0 | W75: 962.3877 | X75: 1503.157 | Y75: 0 | Z75: 0 | AA75: 479.4888 | AB75: 616975 | AC75: 0 | AD75: 0.0007772 | AE75: 0 | AF75: 0.1786796 | AK75: 0 | AL75: 2.340874 | AO75: 11.18771 | AP75: 10.62843 | AQ75: 10.83919 | AR75: 11.03599 | AS75: 10.13515 | AT75: 10.69012 | AU75: 11.07885 | AV75: 10.74694 | AW75: 10.29164 | AX75: 11.03623 | AY75: 11.23464 | AZ75: 10.5591 | BA75: 10.25868 | BB75: 10.59443 | BC75: 9.95544 | BD75: 9.62403 | BE75: 10.25926 | BJ75: 2683.512 | BK75: 304439077 | BL75: 117.5446 | BM75: 2688.5255 | BN75: 117.5445898
A76: 17860 | B76: Columbia, MO | C76: 14.84959007 | D76: 1.15 | E76: 36568 | F76: 2.174247 | G76: 0.2286195 | H76: 0.3106117 | I76: 30922.92 | J76: 117487 | K76: 164182 | L76: 0.0256057 | M76: 25605.7 | N76: 4203995037 | O76: 58.0694 | P76: 10.33925 | Q76: -3.664939 | R76: 7.174101 | S76: -1.134755 | T76: 12.00873 | U76: 0.0009182 | V76: 0 | W76: 1123.828 | X76: 1305.186 | Y76: 0 | Z76: 0 | AA76: 150.8182 | AB76: 164182 | AC76: 0 | AD76: 0.0009186 | AE76: 0 | AF76: 0.1310135 | AH76: 304 | AK76: 0 | AL76: 2.597206 | AO76: 11.06303 | AP76: 10.50933 | AQ76: 10.56995 | AR76: 10.72912 | AS76: 9.973587 | AT76: 10.3551 | AU76: 10.4789 | AV76: 10.85383 | AW76: 10.15165 | AX76: 10.51289 | AY76: 10.82609 | AZ76: 9.96124 | BA76: 10.04838 | BB76: 10.57758 | BC76: 9.638168 | BD76: 9.303081 | BE76: 10.01556 | BG76: 0 | BI76: 606134 | BJ76: 1151.165 | BK76: 122559423 | BL76: 47.32046 | BM76: 1162.5872 | BN76: 47.32045979
A77: 17900 | B77: Columbia, SC | C77: 14.84959007 | D77: 1.09 | E77: 35473 | F77: 2.089611 | G77: 0.1817544 | H77: 0.3378184 | I77: 34438.73 | J77: 477256 | K77: 732558 | L77: 0.0320234 | M77: 32023.4 | N77: 2.345899786e+10 | O77: 298.7436 | P77: 10.44694 | Q77: -3.441288 | R77: 7.63189 | S77: -1.400181 | T77: 13.5043 | U77: 0.0012475 | V77: 0 | W77: 928.6661 | X77: 2062.946 | Y77: 0 | Z77: 0 | AA77: 914.4003 | AB77: 732558 | AC77: 0 | AD77: 0.0012482 | AE77: 0 | AF77: 0.2470538 | AH77: 191 | AK77: 0 | AL77: 3.06082 | AM77: 10.16392 | AN77: 10.80614 | AP77: 10.49141 | AQ77: 10.59815 | AR77: 10.8821 | AS77: 9.957885 | AT77: 10.47252 | AU77: 10.76228 | AV77: 10.86557 | AW77: 10.41281 | AX77: 10.85313 | AY77: 11.0375 | AZ77: 10.01919 | BA77: 10.081 | BB77: 10.64309 | BC77: 9.523263 | BD77: 9.375976 | BE77: 10.04946 | BG77: 0 | BI77: 1567272 | BJ77: 3701.219 | BK77: 179057846 | BL77: 69.13462 | BM77: 3833.9808 | BN77: 69.13462379
A78: 17980 | B78: Columbus, GA-AL | C78: 14.84959007 | D78: 1.15 | E78: 36577 | F78: 2.195965 | G78: 0.2377576 | H78: 0.288456 | I78: 32899.43 | J78: 174237 | K78: 287251 | L78: 0.0258345 | M78: 25834.5 | N78: 7420985960 | O78: 114.5988 | P78: 10.40121 | Q78: -3.656043 | R78: 6.881577 | S78: -1.773986 | T78: 12.56811 | U78: 0.001348 | V78: 0 | W78: 787.8618 | X78: 974.1611 | Y78: 0 | Z78: 0 | AA78: 387.4831 | AB78: 287251 | AC78: 0 | AD78: 0.0013489 | AE78: 0 | AF78: 0.2000391 | AH78: 298 | AK78: 0 | AL78: 3.381215 | AM78: 9.932631 | AO78: 11.02309 | AP78: 10.40602 | AQ78: 10.61519 | AR78: 10.66914 | AS78: 9.914783 | AT78: 10.4879 | AU78: 10.62411 | AV78: 10.47347 | AW78: 10.38583 | AX78: 10.4983 | AY78: 11.43771 | AZ78: 10.33643 | BA78: 9.952278 | BB78: 10.59819 | BC78: 9.556413 | BD78: 9.429922 | BE78: 9.906896 | BF78: 9.06242 | BG78: 0 | BI78: 919775 | BJ78: 1937.037 | BK78: 212229585 | BL78: 81.9423 | BM78: 1959.8284 | BN78: 81.94230437
A79: 18020 | B79: Columbus, IN | C79: 14.84959007 | D79: 1.15 | E79: 37589 | F79: 2.28 | I79: 41014.05 | J79: 55765 | K79: 75494 | L79: 0.0497126 | M79: 49712.6 | N79: 3753003024 | O79: 26.07001 | P79: 10.62167 | Q79: -3.001498 | R79: 7.201997 | S79: -1.511575 | T79: 11.23181 | U79: 0.0011863 | V79: 0 | W79: 998.3887 | X79: 1342.109 | Y79: 0 | Z79: 0 | AA79: 89.61327 | AB79: 75494 | AC79: 0 | AD79: 0.001187 | AE79: 0 | AF79: 0.2202676 | AK79: 0 | AL79: 3.437409 | AN79: 10.79908 | AO79: 11.29069 | AP79: 10.79074 | AQ79: 10.63788 | AR79: 11.06409 | AS79: 9.893419 | AT79: 10.49156 | AU79: 10.76564 | AV79: 10.91764 | AW79: 10.27335 | AX79: 11.02332 | AZ79: 10.13079 | BA79: 9.865876 | BB79: 10.52735 | BC79: 9.718565 | BD79: 9.446744 | BE79: 9.896324 | BJ79: 406.8383 | BK79: 47451603 | BL79: 18.32117 | BM79: 409.52398 | BN79: 18.32116713
A80: 18140 | B80: Columbus, OH | C80: 14.84959007 | D80: 1.11 | E80: 37999 | F80: 2.296108 | G80: 0.1980088 | H80: 0.4027569 | I80: 41755.07 | J80: 1197740 | K80: 1779822 | L80: 0.0441842 | M80: 44184.2 | N80: 7.864001121e+10 | O80: 517.7399 | P80: 10.63958 | Q80: -3.119388 | R80: 7.584841 | S80: -1.333595 | T80: 14.39202 | U80: 0.0005342 | V80: 0 | W80: 1303.12 | X80: 1968.134 | Y80: 0 | Z80: 0 | AA80: 951.1131 | AB80: 1779822 | AC80: 0 | AD80: 0.0005344 | AE80: 0 | AF80: 0.2387262 | AH80: 549 | AK80: 0 | AL80: 1.837048 | AM80: 10.67697 | AN80: 11.03373 | AO80: 11.07271 | AP80: 10.79227 | AQ80: 10.79045 | AR80: 10.87944 | AS80: 10.12281 | AT80: 10.62856 | AU80: 11.01492 | AV80: 11.06096 | AW80: 10.5443 | AX80: 10.99086 | AY80: 11.25311 | AZ80: 10.22293 | BA80: 10.18579 | BB80: 10.61977 | BC80: 10.1252 | BD80: 9.503375 | BE80: 10.29598 | BF80: 10.96348 | BG80: 0 | BI80: 7628914 | BJ80: 3984.118 | BK80: 516671303 | BL80: 199.4879 | BM80: 4015.0759 | BN80: 199.4879138
A81: 18580 | B81: Corpus Christi, TX | C81: 14.84959007 | D81: 1.07 | E81: 36558 | F81: 2.211082 | G81: 0.2498372 | H81: 0.3106798 | I81: 34143.05 | J81: 247857 | K81: 413206 | L81: 0.0325649 | M81: 32564.9 | N81: 1.345601207e+10 | O81: 153.531 | P81: 10.43831 | Q81: -3.424521 | R81: 7.078799 | S81: -1.787898 | T81: 12.9317 | U81: 0.0010308 | V81: 0 | W81: 877.1063 | X81: 1186.543 | Y81: 0 | Z81: 0 | AA81: 426.1727 | AB81: 413206 | AC81: 0 | AD81: 0.0010314 | AE81: 0 | AF81: 0.2395133 | AH81: 577 | AK81: 0 | AL81: 2.775809 | AM81: 10.62942 | AN81: 11.21172 | AO81: 10.84064 | AP81: 10.59465 | AQ81: 11.04916 | AR81: 10.78178 | AS81: 9.988214 | AT81: 10.62761 | AU81: 10.72398 | AV81: 10.64492 | AW81: 10.31505 | AX81: 10.76493 | AZ81: 10.13693 | BA81: 10.10244 | BB81: 10.46989 | BC81: 9.57556 | BD81: 9.425988 | BE81: 10.11141 | BG81: 0 | BI81: 2778104 | BJ81: 1779.328 | BK81: 248084168 | BL81: 95.78584 | BM81: 2401.4841 | BN81: 95.78583685
A82: 18700 | B82: Corvallis, OR | C82: 14.84959007 | D82: 1.15 | E82: 37922 | F82: 2.341 | I82: 40541.06 | J82: 56171 | K82: 81775 | L82: 0.0378967 | M82: 37896.7 | N82: 3099002642 | O82: 33.13764 | P82: 10.61007 | Q82: -3.272892 | R82: 7.4647 | S82: -0.9617285 | T82: 11.31173 | U82: 0.001346 | V82: 0 | W82: 865.0284 | X82: 1745.331 | Y82: 0 | Z82: 0 | AA82: 110.1444 | AB82: 81775 | AC82: 0 | AD82: 0.0013469 | AE82: 0 | AF82: 0.1628244 | AK82: 0 | AL82: 3.323846 | AM82: 10.5596 | AP82: 10.5767 | AQ82: 11.21521 | AR82: 11.01598 | AS82: 9.90862 | AT82: 10.45758 | AU82: 10.93168 | AV82: 10.82035 | AW82: 9.991193 | AX82: 10.90856 | AZ82: 10.06706 | BA82: 9.9449 | BB82: 10.74768 | BC82: 9.351894 | BD82: 9.416023 | BE82: 9.988567 | BJ82: 676.4613 | BK82: 38530823 | BL82: 14.87683 | BM82: 678.46259 | BN82: 14.87683456
A83: 19060 | B83: Cumberland, MD-WV | C83: 14.84959007 | D83: 1.15 | E83: 31432 | F83: 2.290687 | G83: 0.2048789 | H83: 0.2970564 | I83: 28692.43 | J83: 49565 | K83: 99772 | L83: 0.0191938 | M83: 19193.8 | N83: 1915003814 | O83: 40.54988 | P83: 10.26439 | Q83: -3.95317 | R83: 7.199062 | S83: -1.964689 | T83: 11.51064 | U83: 0.0018375 | V83: 0 | W83: 636.1054 | X83: 1338.175 | Y83: 0 | Z83: 0 | AA83: 183.4966 | AB83: 99772 | AC83: 0 | AD83: 0.0018392 | AE83: 0 | AF83: 0.2436381 | AH83: 83 | AK83: 0 | AL83: 4.525208 | AO83: 11.16907 | AP83: 10.57569 | AQ83: 10.61312 | AR83: 10.60363 | AS83: 9.845696 | AT83: 10.42493 | AV83: 10.62456 | AW83: 10.30653 | AX83: 10.43474 | AZ83: 10.10408 | BA83: 9.84803 | BB83: 10.41525 | BC83: 9.103695 | BD83: 9.329041 | BE83: 9.686602 | BG83: 0 | BI83: 267128 | BJ83: 753.1525 | BK83: 21501051 | BL83: 8.301602 | BM83: 759.1497 | BN83: 8.301602556
A84: 19100 | B84: Dallas-Fort Worth-Arlington, TX | C84: 5.887097 | D84: 1.22 | E84: 41764 | F84: 2.184791 | G84: 0.1851706 | H84: 0.4593364 | I84: 47180.46 | J84: 4013361 | K84: 6301085 | L84: 0.0559291 | M84: 55929.1 | N84: 3.524140131e+11 | O84: 1696.428 | P84: 10.76173 | Q84: -2.883671 | R84: 7.533354 | S84: -1.359046 | T84: 15.65623 | U84: 0.0004378 | V84: 1.34e-05 | W84: 1360.686 | X84: 1869.365 | Y84: 1 | Z84: 84.6 | AA84: 2759.335 | AB84: 6301085 | AC84: 1.34e-05 | AD84: 0.0004379 | AE84: 0.0094109 | AF84: 0.3069468 | AH84: 1167 | AK84: 0.0498695 | AL84: 1.626556 | AM84: 11.13607 | AN84: 11.6227 | AO84: 11.82856 | AP84: 10.76737 | AQ84: 10.8752 | AR84: 11.03796 | AS84: 10.13812 | AT84: 10.67877 | AU84: 11.22784 | AV84: 11.17686 | AW84: 10.81569 | AX84: 11.12595 | AY84: 11.57554 | AZ84: 10.39161 | BA84: 10.44702 | BB84: 10.71295 | BC84: 10.401 | BD84: 9.633523 | BE84: 10.15656 | BF84: 10.63589 | BG84: 3071800 | BH84: 36309.69267 | BI84: 36500000 | BJ84: 8989.62 | BK84: 2200931218 | BL84: 849.7843 | BM84: 9284.399 | BN84: 849.7843303
A85: 19140 | B85: Dalton, GA | C85: 14.84959007 | D85: 1.15 | E85: 28027 | F85: 2.063625 | I85: 32390.69 | J85: 86354 | K85: 134288 | L85: 0.0383653 | M85: 38365.3 | N85: 5151999406 | O85: 65.10373 | P85: 10.38563 | Q85: -3.260602 | R85: 7.578341 | S85: -2.272573 | T85: 11.80774 | U85: 0.0013994 | V85: 0 | W85: 870.9333 | X85: 1955.383 | Y85: 0 | Z85: 0 | AA85: 188.0476 | AB85: 134288 | AC85: 0 | AD85: 0.0014003 | AE85: 0 | AF85: 0.2964197 | AK85: 0 | AL85: 2.888431 | AN85: 10.81515 | AP85: 10.28071 | AQ85: 10.3513 | AR85: 10.62656 | AS85: 9.989518 | AT85: 10.66029 | AV85: 10.8059 | AW85: 10.29226 | AX85: 10.72711 | AY85: 10.99468 | AZ85: 10.02743 | BA85: 9.598834 | BB85: 10.67979 | BC85: 9.819305 | BD85: 9.397841 | BE85: 10.02493 | BJ85: 634.3966 | BK85: 54045301 | BL85: 20.86701 | BM85: 637.77343 | BN85: 20.86700826
A86: 19180 | B86: Danville, IL | C86: 14.84959007 | D86: 1.15 | E86: 30713 | F86: 2.285 | G86: 0.2128972 | H86: 0.2812039 | I86: 33842.76 | J86: 40256 | K86: 80453 | L86: 0.0235666 | M86: 23566.6 | N86: 1896003670 | O86: 33.51609 | P86: 10.42948 | Q86: -3.747927 | R86: 6.888723 | S86: -2.034927 | T86: 11.29543 | U86: 0.0018221 | V86: 0 | W86: 546.0361 | X86: 981.148 | Y86: 0 | Z86: 0 | AA86: 146.7247 | AB86: 80453 | AC86: 0 | AD86: 0.0018237 | AE86: 0 | AF86: 0.1631942 | AK86: 0 | AL86: 4.377738 | AO86: 11.04721 | AP86: 10.50734 | AQ86: 10.62737 | AR86: 10.70195 | AS86: 9.945398 | AT86: 10.43571 | AU86: 10.38668 | AV86: 10.55632 | AW86: 10.15428 | AX86: 10.43992 | AZ86: 10.10682 | BA86: 10.02939 | BB86: 10.69711 | BC86: 9.244882 | BD86: 9.291604 | BE86: 9.672229 | BJ86: 899.0801 | BK86: 39379831 | BL86: 15.20464 | BM86: 901.27258 | BN86: 15.2046384
A87: 19340 | B87: Davenport-Moline-Rock Island, IA-IL | C87: 14.84959007 | D87: 1.15 | E87: 38670 | F87: 2.265857 | G87: 0.2375022 | H87: 0.3387001 | I87: 37289.91 | J87: 238059 | K87: 376980 | L87: 0.0391294 | M87: 39129.4 | N87: 1.475100121e+10 | O87: 136.9924 | P87: 10.52648 | Q87: -3.240881 | R87: 7.227337 | S87: -1.611537 | T87: 12.83995 | U87: 0.001415 | V87: 0 | W87: 1010.925 | X87: 1376.552 | Y87: 0 | Z87: 0 | AA87: 533.8191 | AB87: 376980 | AC87: 0 | AD87: 0.001416 | AE87: 0 | AF87: 0.2352743 | AH87: 868 | AK87: 0 | AL87: 3.896706 | AM87: 10.92039 | AO87: 10.65136 | AP87: 10.86484 | AQ87: 10.76514 | AR87: 10.73866 | AS87: 10.01766 | AT87: 10.53774 | AU87: 10.64654 | AV87: 10.80244 | AW87: 10.17848 | AX87: 10.73697 | AY87: 11.24889 | AZ87: 10.17593 | BA87: 10.08585 | BB87: 10.51109 | BC87: 9.757432 | BD87: 9.412497 | BE87: 9.977337 | BG87: 0 | BI87: 3234926 | BJ87: 2268.922 | BK87: 170268536 | BL87: 65.74105 | BM87: 2313.8357 | BN87: 65.74105208
A88: 19380 | B88: Dayton, OH | C88: 14.84959007 | D88: 1.06 | E88: 35251 | F88: 2.290886 | G88: 0.0950976 | H88: 0.4189269 | I88: 38217.02 | J88: 493099 | K88: 837036 | L88: 0.0334323 | M88: 33432.3 | N88: 2.798403866e+10 | O88: 330.3124 | P88: 10.55104 | Q88: -3.398234 | R88: 7.436727 | S88: -1.493629 | T88: 13.63762 | U88: 0.000589 | V88: 0 | W88: 896.0184 | X88: 1697.186 | Y88: 0 | Z88: 0 | AA88: 493.1926 | AB88: 837036 | AC88: 0 | AD88: 0.0005892 | AE88: 0 | AF88: 0.2886867 | AH88: 346 | AK88: 0 | AL88: 1.493109 | AN88: 11.30612 | AO88: 10.92736 | AP88: 10.74465 | AQ88: 10.76733 | AR88: 10.84586 | AS88: 10.01038 | AT88: 10.51863 | AU88: 10.9637 | AV88: 10.8252 | AW88: 10.35201 | AX88: 11.03078 | AY88: 11.38595 | AZ88: 10.14565 | BA88: 10.04571 | BB88: 10.65195 | BC88: 9.780455 | BD88: 9.403831 | BE88: 10.07917 | BG88: 0 | BI88: 5706803 | BJ88: 1708.401 | BK88: 135037012 | BL88: 52.13808 | BM88: 1716.6742 | BN88: 52.13808404
A89: 19460 | B89: Decatur, AL | C89: 14.84959007 | D89: 1.15 | E89: 31974 | F89: 2.169287 | G89: 0.2270804 | H89: 0.287962 | I89: 34650.1 | J89: 78502 | K89: 150344 | L89: 0.031408 | M89: 31408 | N89: 4722004352 | O89: 39.15535 | P89: 10.45306 | Q89: -3.460694 | R89: 7.08474 | S89: -1.856152 | T89: 11.92068 | U89: 0.00146 | V89: 0 | W89: 813.452 | X89: 1193.612 | Y89: 0 | Z89: 0 | AA89: 219.6624 | AB89: 150344 | AC89: 0 | AD89: 0.0014611 | AE89: 0 | AF89: 0.1722038 | AH89: 0 | AK89: 0 | AL89: 5.610022 | AM89: 10.30592 | AN89: 10.43379 | AP89: 10.53741 | AQ89: 10.86182 | AR89: 10.68135 | AS89: 9.942722 | AT89: 10.63082 | AU89: 10.63357 | AV89: 10.78138 | AW89: 10.35073 | AX89: 10.34482 | AY89: 10.69779 | AZ89: 9.960018 | BB89: 10.41369 | BC89: 9.539037 | BD89: 9.307586 | BE89: 10.04778 | BF89: 10.05406 | BG89: 0 | BI89: 0 | BJ89: 1275.596 | BK89: 54886959 | BL89: 21.19197 | BM89: 1316.248 | BN89: 21.19197425
A90: 19500 | B90: Decatur, IL | C90: 14.84959007 | D90: 1.15 | E90: 39174 | F90: 2.337 | G90: 0.179119 | H90: 0.4056745 | I90: 37665.75 | J90: 67919 | K90: 108326 | L90: 0.0444861 | M90: 44486.1 | N90: 4819001269 | O90: 50.26261 | P90: 10.53651 | Q90: -3.112579 | R90: 6.960386 | S90: -1.757769 | T90: 11.5929 | U90: 0.0013761 | V90: 0 | W90: 871.2639 | X90: 1054.04 | Y90: 0 | Z90: 0 | AA90: 149.1718 | AB90: 108326 | AC90: 0 | AD90: 0.0013771 | AE90: 0 | AF90: 0.2569612 | AH90: 92 | AK90: 0 | AL90: 2.967849 | AP90: 10.86143 | AQ90: 10.84731 | AR90: 10.83822 | AS90: 10.00875 | AT90: 10.49234 | AU90: 10.31197 | AV90: 10.66603 | AW90: 10.15147 | AX90: 10.67471 | AZ90: 10.02894 | BB90: 10.5938 | BC90: 9.817832 | BD90: 9.332661 | BE90: 9.971562 | BG90: 0 | BI90: 932091 | BJ90: 580.5227 | BK90: 98730331 | BL90: 38.12 | BM90: 585.86487 | BN90: 38.11999554
A91: 19660 | B91: Deltona-Daytona Beach-Ormond Beach, FL | C91: 14.84959007 | D91: 1.15 | E91: 32255 | F91: 2.378 | G91: 0.2889362 | H91: 0.2670215 | I91: 28576.24 | J91: 215822 | K91: 497344 | L91: 0.0217113 | M91: 21711.3 | N91: 1.079798479e+10 | O91: 200.6189 | P91: 10.26033 | Q91: -3.829921 | R91: 6.702524 | S91: -1.585242 | T91: 13.11704 | U91: 0.0009482 | V91: 0 | W91: 661.3184 | X91: 814.4587 | Y91: 0 | Z91: 0 | AA91: 471.795 | AB91: 497344 | AC91: 0 | AD91: 0.0009486 | AE91: 0 | AF91: 0.4276412 | AH91: 307 | AK91: 0 | AL91: 2.351697 | AM91: 9.891882 | AO91: 11.47868 | AP91: 10.36394 | AQ91: 10.56722 | AR91: 10.50155 | AS91: 9.993058 | AT91: 10.32139 | AU91: 10.51019 | AV91: 10.75154 | AW91: 10.20684 | AX91: 10.57205 | AZ91: 10.06164 | BA91: 10.22518 | BB91: 10.54044 | BC91: 9.986665 | BD91: 9.396778 | BE91: 9.948355 | BG91: 0 | BI91: 2480335 | BJ91: 1103.25 | BK91: 194155600 | BL91: 74.9639 | BM91: 1432.4591 | BN91: 74.96389945
A92: 19740 | B92: Denver-Aurora, CO | C92: 12.53333 | D92: 1.22 | E92: 46611 | F92: 2.150779 | G92: 0.1903162 | H92: 0.4493015 | I92: 47081.16 | J92: 1701841 | K92: 2500384 | L92: 0.0546348 | M92: 54634.8 | N92: 1.366079798e+11 | O92: 542.0226 | P92: 10.75963 | Q92: -2.907084 | R92: 7.867992 | S92: -1.131135 | T92: 14.73195 | U92: 0.0005271 | V92: 1.38e-05 | W92: 1659.573 | X92: 2612.316 | Y92: 1 | Z92: 34.6 | AA92: 1318.416 | AB92: 2500384 | AC92: 1.38e-05 | AD92: 0.0005273 | AE92: 0.00414 | AF92: 0.1577539 | AH92: 1819 | AK92: 0.063835 | AL92: 2.4324 | AM92: 11.55704 | AN92: 11.7555 | AO92: 11.25019 | AP92: 10.74932 | AQ92: 10.8287 | AR92: 11.00431 | AS92: 10.15164 | AT92: 10.58629 | AU92: 11.20404 | AV92: 11.25862 | AW92: 10.7977 | AX92: 11.22083 | AY92: 11.50674 | AZ92: 10.44983 | BA92: 10.24955 | BB92: 10.71638 | BC92: 10.4704 | BD92: 9.696439 | BE92: 10.2539 | BF92: 11.06374 | BG92: 3694586 | BH92: 106779.9422 | BI92: 45900000 | BJ92: 8357.42 | BK92: 432956492 | BL92: 167.1654 | BM92: 8402.9842 | BN92: 167.1654432
A93: 19780 | B93: Des Moines, IA | C93: 14.84959007 | D93: 1.15 | E93: 42012 | F93: 2.262846 | G93: 0.1525133 | H93: 0.4452382 | I93: 41561.08 | J93: 408872 | K93: 554101 | L93: 0.0563273 | M93: 56327.3 | N93: 3.121101326e+10 | O93: 161.7291 | P93: 10.63492 | Q93: -2.876576 | R93: 7.648188 | S93: -1.304073 | T93: 13.2251 | U93: 0.0011577 | V93: 0 | W93: 1402.005 | X93: 2096.842 | Y93: 0 | Z93: 0 | AA93: 641.8583 | AB93: 554101 | AC93: 0 | AD93: 0.0011584 | AE93: 0 | AF93: 0.22293 | AH93: 833 | AK93: 0 | AL93: 3.968724 | AM93: 10.69497 | AP93: 10.84365 | AQ93: 10.82224 | AR93: 10.80316 | AS93: 10.00766 | AT93: 10.51491 | AU93: 10.86608 | AV93: 11.06078 | AW93: 10.55994 | AX93: 10.9232 | AY93: 11.31275 | AZ93: 10.18898 | BA93: 10.13384 | BB93: 10.65816 | BC93: 9.886641 | BD93: 9.48137 | BE93: 10.2551 | BG93: 0 | BI93: 2318224 | BJ93: 2879.193 | BK93: 204026690 | BL93: 78.77515 | BM93: 2911.8149 | BN93: 78.77514877
A94: 19820 | B94: Detroit-Warren-Livonia, MI | C94: 14.84959007 | D94: 1.15 | E94: 37927 | F94: 2.336779 | I94: 46027.11 | J94: 2416644 | K94: 4423781 | L94: 0.0414697 | M94: 41469.7 | N94: 1.834528709e+11 | O94: 1455.243 | P94: 10.73699 | Q94: -3.182791 | R94: 7.63797 | S94: -1.465184 | T94: 15.30251 | U94: 0.0004074 | V94: 0 | W94: 1132.963 | X94: 2075.527 | Y94: 0 | Z94: 0 | AA94: 1802.682 | AB94: 4423781 | AC94: 0 | AD94: 0.0004075 | AE94: 0 | AF94: 0.460564 | AH94: 884 | AK94: 0 | AL94: 1.23875 | AM94: 10.36633 | AN94: 11.09535 | AO94: 11.37284 | AP94: 10.98617 | AQ94: 10.90114 | AR94: 11.02736 | AS94: 10.06129 | AT94: 10.65147 | AU94: 11.12074 | AV94: 10.96017 | AW94: 10.5021 | AX94: 11.16304 | AY94: 11.46146 | AZ94: 10.47638 | BA94: 10.23882 | BB94: 10.67513 | BC94: 10.61924 | BD94: 9.556785 | BE94: 10.141 | BF94: 9.694728 | BI94: 26600000 | BJ94: 3914.075 | BK94: 1006163733 | BL94: 388.482 | BM94: 4235.5771 | BN94: 388.4820057
A95: 20020 | B95: Dothan, AL | C95: 14.84959007 | D95: 1.15 | E95: 33028 | F95: 2.157336 | G95: 0.2942414 | H95: 0.2518158 | I95: 31389.33 | J95: 81303 | K95: 141446 | L95: 0.0268795 | M95: 26879.5 | N95: 3801997757 | O95: 48.30937 | P95: 10.35422 | Q95: -3.616391 | R95: 6.687026 | S95: -1.809695 | T95: 11.85967 | U95: 0.0022692 | V95: 0 | W95: 741.4297 | X95: 801.9334 | Y95: 0 | Z95: 0 | AA95: 321.3313 | AB95: 141446 | AC95: 0 | AD95: 0.0022718 | AE95: 0 | AF95: 0.1869905 | AH95: 0 | AK95: 0 | AL95: 6.651532 | AM95: 10.48725 | AO95: 10.82493 | AP95: 10.39255 | AQ95: 10.44803 | AR95: 10.58628 | AS95: 9.984432 | AT95: 10.42686 | AU95: 10.54936 | AV95: 10.6913 | AW95: 10.27734 | AX95: 10.50511 | AY95: 10.73921 | AZ95: 9.76052 | BA95: 9.748226 | BB95: 10.60944 | BC95: 9.542423 | BD95: 9.32275 | BE95: 9.882356 | BG95: 0 | BI95: 0 | BJ95: 1718.436 | BK95: 112056968 | BL95: 43.26544 | BM95: 1728.9125 | BN95: 43.26543907
A96: 20100 | B96: Dover, DE | C96: 14.84959007 | D96: 1.15 | E96: 31127 | F96: 2.238 | I96: 31015.27 | J96: 87965 | K96: 155492 | L96: 0.0273969 | M96: 27396.9 | N96: 4259998775 | O96: 54.67977 | P96: 10.34223 | Q96: -3.597325 | R96: 7.571729 | S96: -1.730338 | T96: 11.95435 | U96: 0.0007493 | V96: 0 | W96: 831.0386 | X96: 1942.496 | Y96: 0 | Z96: 0 | AA96: 116.55 | AB96: 155492 | AC96: 0 | AD96: 0.0007496 | AE96: 0 | AF96: 0.1976358 | AK96: 0 | AL96: 2.131502 | AM96: 10.4592 | AO96: 11.1474 | AP96: 10.62781 | AQ96: 10.66681 | AR96: 10.61432 | AS96: 10.0767 | AT96: 10.08752 | AU96: 10.6406 | AV96: 10.69379 | AW96: 10.85268 | AX96: 10.80401 | AZ96: 10.18773 | BB96: 10.51862 | BC96: 10.05416 | BD96: 9.531991 | BE96: 10.02462 | BJ96: 589.7213 | BK96: 41622566 | BL96: 16.07056 | BM96: 798.82076 | BN96: 16.07056326
A97: 20220 | B97: Dubuque, IA | C97: 14.84959007 | D97: 1.15 | E97: 35635 | F97: 2.234 | G97: 0.2033841 | H97: 0.3023507 | I97: 33052.63 | J97: 67386 | K97: 92589 | L97: 0.0436013 | M97: 43601.3 | N97: 4037000766 | O97: 31.3324 | P97: 10.40586 | Q97: -3.132668 | R97: 7.312111 | S97: -1.549559 | T97: 11.43593 | U97: 0.0015606 | V97: 0 | W97: 1200.61 | X97: 1498.338 | Y97: 0 | Z97: 0 | AA97: 144.6076 | AB97: 92589 | AC97: 0 | AD97: 0.0015618 | AE97: 0 | AF97: 0.2377803 | AH97: 133 | AK97: 0 | AL97: 4.615274 | AM97: 10.17006 | AP97: 10.78537 | AQ97: 10.64085 | AR97: 10.54674 | AS97: 9.909625 | AT97: 10.51226 | AU97: 10.74113 | AV97: 10.81113 | AW97: 10.29305 | AX97: 10.7001 | AZ97: 10.07117 | BA97: 9.917555 | BB97: 10.57285 | BD97: 9.187277 | BE97: 9.818654 | BF97: 9.185022 | BG97: 0 | BI97: 301395 | BJ97: 608.1564 | BK97: 60887306 | BL97: 23.50872 | BM97: 616.6325 | BN97: 23.50872128
A98: 20260 | B98: Duluth, MN-WI | C98: 14.84959007 | D98: 1.15 | E98: 34855 | F98: 2.32204 | G98: 0.174248 | H98: 0.4024832 | I98: 33884.67 | J98: 165180 | K98: 275188 | L98: 0.0300231 | M98: 30023.1 | N98: 8261996843 | O98: 99.42313 | P98: 10.43072 | Q98: -3.505788 | R98: 7.090776 | S98: -1.579758 | T98: 12.52521 | U98: 0.0032927 | V98: 0 | W98: 850.8483 | X98: 1200.84 | Y98: 0 | Z98: 0 | AA98: 907.5948 | AB98: 275188 | AC98: 0 | AD98: 0.0032981 | AE98: 0 | AF98: 0.1081161 | AH98: 351 | AK98: 0 | AL98: 9.128608 | AM98: 10.11498 | AN98: 11.31296 | AO98: 11.0944 | AP98: 10.91253 | AQ98: 10.73242 | AR98: 10.70958 | AS98: 9.936422 | AT98: 10.68671 | AU98: 10.4933 | AV98: 10.60467 | AW98: 10.05169 | AX98: 10.70175 | AY98: 11.00284 | AZ98: 9.854744 | BA98: 9.943894 | BB98: 10.57213 | BC98: 9.737217 | BD98: 9.423552 | BE98: 9.818782 | BG98: 0 | BI98: 1766017 | BJ98: 8394.628 | BK98: 116735417 | BL98: 45.0718 | BM98: 9214.4713 | BN98: 45.0717984
A99: 20500 | B99: Durham, NC | C99: 14.84959007 | D99: 1.15 | E99: 41008 | F99: 2.330255 | I99: 51683.95 | J99: 372452 | K99: 490907 | L99: 0.0573306 | M99: 57330.6 | N99: 2.814399285e+10 | P99: 10.8529 | Q99: -2.858921 | S99: -1.04746 | T99: 13.10401 | U99: 0.0006778 | V99: 0 | Y99: 0 | Z99: 0 | AA99: 332.8687 | AB99: 490907 | AC99: 0 | AD99: 0.0006781 | AE99: 0 | AF99: 0.1885601 | AH99: 519 | AM99: 10.51867 | AN99: 10.69973 | AO99: 11.04784 | AP99: 10.75296 | AQ99: 10.90045 | AR99: 11.52125 | AS99: 10.01655 | AT99: 10.39502 | AU99: 11.11003 | AV99: 11.18129 | AW99: 10.41967 | AX99: 11.38047 | AY99: 11.38145 | AZ99: 10.25136 | BA99: 10.26195 | BB99: 10.645 | BC99: 9.87817 | BD99: 9.584537 | BE99: 10.28588 | BF99: 9.65013 | BG99: 0 | BI99: 4193473 | BJ99: 1765.319 | BM99: 1813.3964 | BN99: 115.7222929
A100: 20740 | B100: Eau Claire, WI | C100: 14.84959007 | D100: 1.15 | E100: 33659 | F100: 2.420558 | G100: 0.208272 | H100: 0.2944273 | I100: 33180.52 | J100: 107051 | K100: 158495 | L100: 0.0331872 | M100: 33187.2 | N100: 5260005264 | O100: 62.8869 | P100: 10.40972 | Q100: -3.405592 | R100: 7.338718 | S100: -1.592095 | T100: 11.97348 | U100: 0.0021128 | V100: 0 | W100: 979.0115 | X100: 1538.739 | Y100: 0 | Z100: 0 | AA100: 335.2218 | AB100: 158495 | AC100: 0 | AD100: 0.002115 | AE100: 0 | AF100: 0.2034027 | AH100: 90 | AK100: 0 | AL100: 5.330551 | AP100: 11.37704 | AQ100: 10.57144 | AR100: 10.62927 | AS100: 9.898329 | AT100: 10.27776 | AU100: 10.49538 | AV100: 10.55294 | AW100: 10.19612 | AX100: 10.82699 | AY100: 10.97754 | AZ100: 10.07708 | BA100: 10.15282 | BB100: 10.62639 | BC100: 9.424623 | BD100: 9.182555 | BE100: 9.894592 | BF100: 10.26763 | BG100: 0 | BI100: 678151 | BJ100: 1648.07 | BK100: 75450633 | BL100: 29.13165 | BM100: 1686.5285 | BN100: 29.13165351
A101: 20940 | B101: El Centro, CA | C101: 14.84959007 | D101: 1.15 | E101: 28681 | F101: 2.551 | G101: 0.1819095 | H101: 0.3064609 | I101: 26249.6 | J101: 70817 | K101: 163093 | L101: 0.0169167 | M101: 16916.7 | N101: 2758995353 | O101: 34.73026 | P101: 10.17541 | Q101: -4.079453 | R101: 7.467525 | S101: -2.357742 | T101: 12.00208 | U101: 0.002319 | V101: 0 | W101: 950.0648 | X101: 1750.269 | Y101: 0 | Z101: 0 | AA101: 378.6507 | AB101: 163093 | AC101: 0 | AD101: 0.0023217 | AE101: 0 | AF101: 0.0907006 | AH101: 92 | AK101: 0 | AL101: 10.90262 | AM101: 9.51897 | AP101: 10.49528 | AQ101: 10.27059 | AR101: 10.53674 | AS101: 9.957258 | AT101: 10.34033 | AU101: 10.54636 | AV101: 10.54594 | AW101: 10.04662 | AX101: 10.46332 | AZ101: 9.609893 | BA101: 9.555433 | BB101: 10.44463 | BC101: 9.371441 | BD101: 9.491003 | BE101: 10.06615 | BF101: 9.305651 | BG101: 0 | BI101: 651072 | BJ101: 4174.732 | BK101: 20613138 | BL101: 7.958777 | BM101: 4481.673 | BN101: 7.958777415
A102: 21060 | B102: Elizabethtown, KY | C102: 14.84959007 | D102: 1.15 | E102: 35126 | F102: 2.155216 | G102: 0.2833203 | H102: 0.2595949 | I102: 29365.39 | J102: 71418 | K102: 112408 | L102: 0.0240997 | M102: 24099.7 | N102: 2708999078 | O102: 43.633 | P102: 10.28757 | Q102: -3.725556 | R102: 7.002863 | S102: -1.98776 | T102: 11.62989 | U102: 0.0011303 | V102: 0 | W102: 627.1171 | X102: 1099.778 | Y102: 0 | Z102: 0 | AA102: 127.1256 | AB102: 112408 | AC102: 0 | AD102: 0.0011309 | AE102: 0 | AF102: 0.1426497 | AK102: 0 | AL102: 2.913521 | AN102: 10.93226 | AP102: 10.44277 | AQ102: 10.67618 | AR102: 10.46546 | AS102: 9.995467 | AT102: 10.30709 | AU102: 10.64803 | AV102: 10.44904 | AW102: 9.915539 | AX102: 10.25079 | AY102: 10.91176 | AZ102: 9.958934 | BA102: 10.25424 | BB102: 10.47281 | BC102: 9.507265 | BD102: 9.415546 | BE102: 9.831889 | BJ102: 891.1734 | BK102: 40181189 | BL102: 15.51404 | BM102: 893.84982 | BN102: 15.51404447
A103: 21140 | B103: Elkhart-Goshen, IN | C103: 14.84959007 | D103: 1.15 | E103: 30064 | F103: 2.299 | G103: 0.1852625 | H103: 0.3215576 | I103: 32346.81 | J103: 145709 | K103: 200125 | L103: 0.043128 | M103: 43128 | N103: 8630991000 | O103: 85.8075 | P103: 10.38427 | Q103: -3.143582 | R103: 7.311469 | S103: -1.916526 | T103: 12.2067 | U103: 0.0008572 | V103: 0 | W103: 915.3978 | X103: 1497.375 | Y103: 0 | Z103: 0 | AA103: 171.6114 | AB103: 200125 | AC103: 0 | AD103: 0.0008575 | AE103: 0 | AF103: 0.3700008 | AH103: 31 | AK103: 0 | AL103: 1.999958 | AP103: 10.74347 | AQ103: 10.43654 | AR103: 10.57496 | AS103: 10.01709 | AT103: 10.5118 | AU103: 10.50377 | AV103: 10.63295 | AW103: 10.16978 | AX103: 10.52586 | AY103: 11.12952 | AZ103: 9.889981 | BA103: 9.704006 | BB103: 10.49958 | BC103: 9.58348 | BD103: 9.231931 | BE103: 9.941998 | BF103: 10.16585 | BG103: 0 | BI103: 431264 | BJ103: 463.8136 | BK103: 98657845 | BL103: 38.09201 | BM103: 467.95859 | BN103: 38.09200853
A104: 21300 | B104: Elmira, NY | C104: 14.84959007 | D104: 1.15 | E104: 32881 | F104: 2.531 | G104: 0.1088281 | H104: 0.3768646 | I104: 33016.28 | J104: 49747 | K104: 87902 | L104: 0.0261996 | M104: 26199.6 | N104: 2302997239 | O104: 34.17078 | P104: 10.40476 | Q104: -3.64201 | R104: 7.780609 | S104: -1.64843 | T104: 11.38398 | U104: 0.001231 | V104: 0 | W104: 861.467 | X104: 2393.732 | Y104: 0 | Z104: 0 | AA104: 108.2769 | AB104: 87902 | AC104: 0 | AD104: 0.0012318 | AE104: 0 | AF104: 0.2652742 | AH104: 143 | AK104: 0 | AL104: 3.1687 | AM104: 9.185022 | AP104: 10.88477 | AQ104: 10.74799 | AR104: 10.68249 | AS104: 9.939404 | AT104: 10.63327 | AV104: 10.65621 | AW104: 10.22236 | AX104: 10.61783 | AZ104: 9.998035 | BB104: 10.51849 | BC104: 9.583497 | BD104: 9.379559 | BE104: 9.805285 | BG104: 0 | BI104: 729407 | BJ104: 408.1699 | BK104: 18641562 | BL104: 7.197547 | BM104: 410.77875 | BN104: 7.197547633
A105: 21340 | B105: El Paso, TX | C105: 14.84959007 | D105: 1.15 | E105: 29381 | F105: 2.311 | I105: 27438.88 | J105: 382591 | K105: 738416 | L105: 0.027452 | M105: 27452 | N105: 20270996032 | O105: 206.3883 | P105: 10.21972 | Q105: -3.595316 | R105: 7.443554 | S105: -1.897123 | T105: 13.51226 | U105: 0.0004409 | V105: 0 | W105: 1297.608 | X105: 1708.813 | Y105: 0 | Z105: 0 | AA105: 325.636 | AB105: 738416 | AC105: 0 | AD105: 0.000441 | AE105: 0 | AF105: 0.3214234 | AH105: 273 | AK105: 0 | AL105: 1.577783 | AM105: 9.848058 | AP105: 10.45275 | AQ105: 10.4509 | AR105: 10.50122 | AS105: 9.89008 | AT105: 10.44113 | AU105: 10.3292 | AV105: 10.55923 | AW105: 10.22617 | AX105: 10.47449 | AY105: 10.93641 | AZ105: 10.00093 | BA105: 10.05007 | BB105: 10.47505 | BC105: 9.70252 | BD105: 9.361891 | BE105: 9.809969 | BG105: 0 | BI105: 6523543 | BJ105: 1013.106 | BK105: 389818417 | BL105: 150.5097 | BM105: 1014.9407 | BN105: 150.5097387
A106: 21500 | B106: Erie, PA | C106: 14.84959007 | D106: 1.15 | E106: 32615 | F106: 2.423 | G106: 0.1200974 | H106: 0.3154447 | I106: 32780.05 | J106: 164959 | K106: 279647 | L106: 0.0301916 | M106: 30191.6 | N106: 8442990365 | O106: 96.69019 | P106: 10.39758 | Q106: -3.50019 | R106: 7.825211 | S106: -1.582524 | T106: 12.54128 | U106: 0.0011547 | V106: 0 | W106: 1014.498 | X106: 2502.913 | Y106: 0 | Z106: 0 | AA106: 323.0862 | AB106: 279647 | AC106: 0 | AD106: 0.0011553 | AE106: 0 | AF106: 0.4028769 | AH106: 422 | AK106: 0 | AL106: 3.341458 | AP106: 10.64703 | AQ106: 10.80629 | AR106: 10.6377 | AS106: 9.936593 | AT106: 10.32999 | AU106: 10.53013 | AW106: 10.17024 | AX106: 10.26867 | AY106: 10.90373 | AZ106: 9.800921 | BA106: 9.886807 | BB106: 10.52365 | BC106: 9.817106 | BD106: 9.279487 | BE106: 9.892932 | BF106: 10.68815 | BG106: 0 | BI106: 1660161 | BJ106: 801.9478 | BK106: 49284960 | BL106: 19.02903 | BM106: 1557.9858 | BN106: 19.02903025
A107: 21660 | B107: Eugene-Springfield, OR | C107: 3.5 | D107: 1.07 | E107: 33562 | F107: 2.328 | G107: 0.2385683 | H107: 0.3211022 | I107: 32670.87 | J107: 205956 | K107: 348425 | L107: 0.0276329 | M107: 27632.9 | N107: 9627993182 | O107: 91.73344 | P107: 10.39424 | Q107: -3.588748 | R107: 7.419453 | S107: -1.410772 | T107: 12.76118 | U107: 0.0010462 | V107: 0 | W107: 1212.633 | X107: 1668.12 | Y107: 0 | Z107: 0 | AA107: 364.7018 | AB107: 348425 | AC107: 0 | AD107: 0.0010467 | AE107: 0 | AF107: 0.0800838 | AH107: 590 | AK107: 0 | AL107: 3.97567 | AM107: 10.50061 | AN107: 10.65183 | AO107: 11.14198 | AP107: 10.61938 | AQ107: 10.5855 | AR107: 10.68541 | AS107: 10.02921 | AT107: 10.41619 | AU107: 10.76063 | AV107: 10.76715 | AW107: 10.12306 | AX107: 10.60636 | AY107: 11.126 | AZ107: 10.04446 | BA107: 9.99019 | BB107: 10.59763 | BC107: 9.496943 | BD107: 9.529549 | BE107: 10.03883 | BG107: 0 | BI107: 3334041 | BJ107: 4554.004 | BK107: 150045466 | BL107: 57.93288 | BM107: 4721.696 | BN107: 57.93288077
A108: 21780 | B108: Evansville, IN-KY | C108: 14.84959007 | D108: 1.15 | E108: 36475 | F108: 2.42941 | G108: 0.2010271 | H108: 0.3203081 | I108: 35386.19 | J108: 211987 | K108: 350614 | L108: 0.0417268 | M108: 41726.8 | N108: 1.463000026e+10 | O108: 124.4743 | P108: 10.47408 | Q108: -3.176612 | R108: 7.551776 | S108: -1.748176 | T108: 12.76744 | U108: 0.0011823 | V108: 0 | W108: 1010.594 | X108: 1904.122 | Y108: 0 | Z108: 0 | AA108: 414.775 | AB108: 350614 | AC108: 0 | AD108: 0.001183 | AE108: 0 | AF108: 0.1810606 | AH108: 141 | AK108: 0 | AL108: 3.332213 | AN108: 11.32869 | AO108: 11.03402 | AP108: 10.87948 | AQ108: 10.69019 | AR108: 10.60111 | AS108: 9.973243 | AT108: 10.11154 | AU108: 10.60197 | AV108: 10.81765 | AW108: 10.19344 | AX108: 10.6454 | AY108: 11.25431 | AZ108: 9.933999 | BA108: 10.15718 | BB108: 10.53206 | BC108: 9.583719 | BD108: 9.471996 | BE108: 10.05964 | BG108: 0 | BI108: 1191468 | BJ108: 2290.808 | BK108: 113896412 | BL108: 43.97565 | BM108: 2347.8136 | BN108: 43.9756524
A109: 21820 | B109: Fairbanks, AK | C109: 14.84959007 | D109: 1.15 | E109: 38895 | F109: 2.928 | G109: 0.1814707 | H109: 0.414966 | I109: 43813.14 | J109: 60183 | K109: 98351 | L109: 0.0309402 | M109: 30940.2 | N109: 3042999610 | O109: 82.77933 | P109: 10.68769 | Q109: -3.475699 | R109: 6.928819 | S109: -1.49851 | T109: 11.4963 | U109: 0.0024987 | V109: 0 | W109: 239.1418 | X109: 1021.287 | Y109: 0 | Z109: 0 | AA109: 246.0614 | AB109: 98351 | AC109: 0 | AD109: 0.0025019 | AE109: 0 | AF109: 0.0334039 | AH109: 96 | AK109: 0 | AL109: 2.972498 | AN109: 11.16511 | AP109: 11.32405 | AQ109: 10.97897 | AR109: 10.80951 | AS109: 10.28533 | AT109: 10.81491 | AU109: 10.97289 | AV109: 10.76855 | AW109: 10.62832 | AX109: 10.90048 | AZ109: 11.02449 | BA109: 9.926635 | BB109: 10.82313 | BC109: 9.205698 | BD109: 9.838853 | BE109: 10.23831 | BG109: 0 | BI109: 375675 | BJ109: 7366.244 | BK109: 39143215 | BL109: 15.11328 | BM109: 7443.8436 | BN109: 15.11328045
A110: 22020 | B110: Fargo, ND-MN | C110: 14.84959007 | D110: 1.15 | E110: 39883 | F110: 2.378911 | I110: 33288.58 | J110: 152423 | K110: 195948 | L110: 0.0462368 | M110: 46236.8 | N110: 9060008486 | O110: 45.63716 | P110: 10.41297 | Q110: -3.07398 | R110: 7.674054 | S110: -1.378803 | T110: 12.18561 | U110: 0.0018951 | V110: 0 | W110: 1575.755 | X110: 2151.787 | Y110: 0 | Z110: 0 | AA110: 371.6881 | AB110: 195948 | AC110: 0 | AD110: 0.0018969 | AE110: 0 | AF110: 0.1322511 | AK110: 0 | AL110: 8.144419 | AP110: 10.90495 | AQ110: 10.59992 | AR110: 10.78454 | AS110: 9.979959 | AT110: 10.44652 | AU110: 11.03756 | AV110: 10.74887 | AW110: 10.22868 | AX110: 10.68174 | AY110: 9.956068 | AZ110: 10.12551 | BA110: 9.868487 | BB110: 10.55982 | BC110: 9.673505 | BD110: 9.361593 | BE110: 9.932998 | BJ110: 2810.472 | BK110: 67458296 | BL110: 26.04579 | BM110: 2820.5487 | BN110: 26.04579481
A111: 22140 | B111: Farmington, NM | C111: 14.84959007 | D111: 1.15 | E111: 30702 | F111: 2.208 | I111: 40577.93 | J111: 67574 | K111: 122407 | L111: 0.0533548 | M111: 53354.8 | N111: 6531001004 | O111: 55.6681 | P111: 10.61098 | Q111: -2.930791 | R111: 7.215292 | S111: -2.121428 | T111: 11.71511 | U111: 0.0024789 | V111: 0 | W111: 705.8261 | X111: 1360.07 | Y111: 0 | Z111: 0 | AA111: 303.8058 | AB111: 122407 | AC111: 0 | AD111: 0.0024819 | AE111: 0 | AF111: 0.055097 | AK111: 0 | AL111: 5.457448 | AN111: 11.12896 | AP111: 10.7251 | AQ111: 10.63713 | AR111: 10.86384 | AS111: 10.12381 | AT111: 10.96868 | AU111: 10.41179 | AV111: 10.39133 | AW111: 10.88713 | AX111: 10.7707 | AY111: 11.3855 | AZ111: 10.40679 | BA111: 10.23755 | BB111: 10.56909 | BC111: 9.892425 | BD111: 9.402514 | BE111: 10.24964 | BJ111: 5514.017 | BK111: 56950140 | BL111: 21.98857 | BM111: 5538.389 | BN111: 21.98857292
A112: 22180 | B112: Fayetteville, NC | C112: 14.84959007 | D112: 1.15 | E112: 40045 | F112: 2.015101 | G112: 0.1988518 | H112: 0.3201396 | I112: 29440.57 | J112: 221491 | K112: 354334 | L112: 0.0201702 | M112: 20170.2 | N112: 7146987647 | P112: 10.29013 | Q112: -3.903547 | S112: -1.856247 | T112: 12.778 | U112: 0.0007772 | V112: 0 | Y112: 0 | Z112: 0 | AA112: 275.4952 | AB112: 354334 | AC112: 0 | AD112: 0.0007775 | AE112: 0 | AF112: 0.2639017 | AH112: 159 | AN112: 10.42731 | AO112: 10.87137 | AP112: 10.36792 | AQ112: 10.64285 | AR112: 10.63638 | AS112: 10.02171 | AT112: 10.53191 | AU112: 10.43199 | AV112: 10.61086 | AW112: 10.39458 | AX112: 10.78319 | AY112: 11.06493 | AZ112: 9.982194 | BA112: 10.00873 | BB112: 10.4668 | BC112: 9.556833 | BD112: 9.384159 | BE112: 10.0458 | BG112: 0 | BI112: 908152 | BJ112: 1043.931 | BM112: 1050.6632 | BN112: 113.0770861
A113: 22220 | B113: Fayetteville-Springdale-Rogers, AR-MO | C113: 14.84959007 | D113: 1.15 | E113: 31776 | F113: 2.157402 | I113: 37201.99 | J113: 266751 | K113: 455408 | L113: 0.0344021 | M113: 34402.1 | N113: 1.566699156e+10 | O113: 134.4554 | P113: 10.52412 | Q113: -3.369637 | R113: 7.055071 | S113: -1.632528 | T113: 13.02895 | U113: 0.0010641 | V113: 0 | W113: 939.9472 | X113: 1158.72 | Y113: 0 | Z113: 0 | AA113: 484.8735 | AB113: 455408 | AC113: 0 | AD113: 0.0010647 | AE113: 0 | AF113: 0.1528588 | AH113: 650 | AK113: 0 | AL113: 3.606203 | AM113: 10.21714 | AN113: 11.19579 | AO113: 10.93086 | AP113: 10.50291 | AQ113: 10.36187 | AR113: 10.80036 | AS113: 10.00857 | AT113: 10.61559 | AU113: 10.84838 | AV113: 10.63227 | AW113: 10.18702 | AX113: 10.86918 | AY113: 11.09739 | AZ113: 10.19988 | BA113: 9.702067 | BB113: 10.56062 | BC113: 9.865778 | BD113: 9.397717 | BE113: 10.04205 | BF113: 10.7579 | BG113: 0 | BI113: 617528 | BJ113: 3172.036 | BK113: 250339559 | BL113: 96.65665 | BM113: 3213.0919 | BN113: 96.65664822
A114: 22380 | B114: Flagstaff, AZ | C114: 14.84959007 | D114: 1.15 | E114: 34510 | F114: 2.347 | G114: 0.3166962 | H114: 0.3069103 | I114: 31467.84 | J114: 86170 | K114: 128426 | L114: 0.0259994 | M114: 25999.4 | N114: 3338998944 | O114: 47.91411 | P114: 10.35672 | Q114: -3.649682 | R114: 7.18796 | S114: -1.410817 | T114: 11.76311 | U114: 0.0042009 | V114: 0 | W114: 826.3537 | X114: 1323.401 | Y114: 0 | Z114: 0 | AA114: 540.6341 | AB114: 128426 | AC114: 0 | AD114: 0.0042097 | AE114: 0 | AF114: 0.0290391 | AH114: 179 | AK114: 0 | AL114: 11.2834 | AP114: 10.36052 | AR114: 10.5419 | AS114: 9.949475 | AT114: 10.5746 | AU114: 10.42803 | AV114: 10.4806 | AW114: 10.49459 | AX114: 10.49263 | AY114: 10.89768 | AZ114: 9.922759 | BA114: 10.3152 | BB114: 10.67449 | BC114: 9.860609 | BD114: 9.800304 | BE114: 10.00533 | BG114: 0 | BI114: 650082 | BJ114: 18617.42 | BK114: 61796442 | BL114: 23.85974 | BM114: 18661.326 | BN114: 23.85974066
A115: 22420 | B115: Flint, MI | C115: 14.84959007 | D115: 1.15 | E115: 29526 | F115: 2.325 | G115: 0.1367757 | H115: 0.4381506 | I115: 36288.06 | J115: 199443 | K115: 428859 | L115: 0.0227837 | M115: 22783.7 | N115: 9770994798 | O115: 228.4827 | P115: 10.49924 | Q115: -3.781709 | R115: 7.229798 | S115: -1.847634 | T115: 12.96888 | U115: 0.0005867 | V115: 0 | W115: 535.0339 | X115: 1379.944 | Y115: 0 | Z115: 0 | AA115: 251.6658 | AB115: 428859 | AC115: 0 | AD115: 0.0005868 | AE115: 0 | AF115: 0.393449 | AH115: 422 | AK115: 0 | AL115: 1.101465 | AP115: 10.75388 | AQ115: 10.96457 | AR115: 11.08647 | AS115: 10.00281 | AT115: 10.41806 | AU115: 10.85068 | AV115: 10.79695 | AW115: 10.35803 | AX115: 10.52461 | AY115: 11.18062 | AZ115: 10.25073 | BA115: 10.36367 | BB115: 10.6362 | BC115: 9.623711 | BD115: 9.346745 | BE115: 10.14535 | BF115: 10.52205 | BG115: 0 | BI115: 3208478 | BJ115: 639.6401 | BK115: 86546668 | BL115: 33.41586 | BM115: 649.58694 | BN115: 33.41585675
A116: 22500 | B116: Florence, SC | C116: 14.84959007 | D116: 1.15 | E116: 32747 | F116: 2.060857 | G116: 0.2819008 | H116: 0.2714589 | I116: 34081.7 | J116: 117854 | K116: 200231 | L116: 0.028602 | M116: 28602 | N116: 5727007062 | O116: 95.1505 | P116: 10.43652 | Q116: -3.55428 | R116: 6.907785 | S116: -1.811434 | T116: 12.20723 | U116: 0.0015813 | V116: 0 | W116: 607.9001 | X116: 1000.03 | Y116: 0 | Z116: 0 | AA116: 316.8672 | AB116: 200231 | AC116: 0 | AD116: 0.0015825 | AE116: 0 | AF116: 0.2328217 | AH116: 127 | AK116: 0 | AL116: 3.330169 | AM116: 10.17041 | AP116: 10.46449 | AQ116: 10.75429 | AR116: 10.5774 | AS116: 9.895924 | AT116: 10.63992 | AU116: 10.40517 | AV116: 10.69262 | AW116: 10.27876 | AX116: 10.5648 | AY116: 13.8203 | AZ116: 10.10216 | BA116: 9.765866 | BB116: 10.62676 | BC116: 9.41564 | BD116: 9.341949 | BE116: 9.834545 | BG116: 0 | BI116: 144738 | BJ116: 1360.987 | BK116: 87803128 | BL116: 33.90098 | BM116: 1370.5379 | BN116: 33.90097869
A117: 22520 | B117: Florence-Muscle Shoals, AL | C117: 14.84959007 | D117: 1.15 | E117: 30792 | F117: 2.164693 | G117: 0.317185 | H117: 0.2567478 | I117: 27700.98 | J117: 75519 | K117: 143826 | L117: 0.0216164 | M117: 21616.4 | N117: 3109000346 | O117: 52.16024 | P117: 10.22922 | Q117: -3.834303 | R117: 6.782705 | S117: -1.758496 | T117: 11.87636 | U117: 0.0014625 | V117: 0 | W117: 663.4555 | X117: 882.4529 | Y117: 0 | Z117: 0 | AA117: 210.4951 | AB117: 143826 | AC117: 0 | AD117: 0.0014635 | AE117: 0 | AF117: 0.1665318 | AH117: 0 | AK117: 0 | AL117: 4.035547 | AM117: 10.53983 | AP117: 10.58572 | AQ117: 10.54279 | AR117: 10.40019 | AS117: 9.976999 | AT117: 10.40692 | AU117: 10.34758 | AV117: 11.17043 | AW117: 10.14807 | AX117: 10.35045 | AY117: 11.01238 | AZ117: 9.651368 | BA117: 9.679481 | BB117: 10.45412 | BC117: 10.08723 | BD117: 9.259627 | BE117: 9.855186 | BF117: 9.903487 | BG117: 0 | BJ117: 1263.993 | BK117: 80031237 | BL117: 30.90023 | BM117: 1343.1141 | BN117: 30.90023467
A118: 22540 | B118: Fond du Lac, WI | C118: 14.84959007 | D118: 1.15 | E118: 35389 | F118: 2.382 | G118: 0.2023974 | H118: 0.3697172 | I118: 33793.7 | J118: 60915 | K118: 99864 | L118: 0.0345169 | M118: 34516.9 | N118: 3446995702 | O118: 26.72917 | P118: 10.42803 | Q118: -3.366305 | R118: 7.575184 | S118: -1.783199 | T118: 11.51156 | U118: 0.0019953 | V118: 0 | W118: 1200.935 | X118: 1949.22 | Y118: 0 | Z118: 0 | AA118: 199.4526 | AB118: 99864 | AC118: 0 | AD118: 0.0019972 | AE118: 0 | AF118: 0.2759039 | AH118: 132 | AK118: 0 | AL118: 7.461985 | AN118: 10.87973 | AP118: 10.91899 | AQ118: 10.66744 | AR118: 10.81853 | AS118: 9.956917 | AT118: 10.45323 | AU118: 10.54707 | AV118: 10.64606 | AW118: 9.951087 | AX118: 10.87966 | AZ118: 9.901665 | BA118: 9.781734 | BB118: 10.48153 | BC118: 9.561134 | BD118: 9.231807 | BE118: 9.907172 | BF118: 9.323669 | BG118: 0 | BI118: 169083 | BJ118: 722.9063 | BK118: 34584200 | BL118: 13.35303 | BM118: 765.83994 | BN118: 13.35303484
A119: 22660 | B119: Fort Collins-Loveland, CO | C119: 14.84959007 | D119: 1.15 | E119: 37844 | F119: 2.28 | G119: 0.2332605 | H119: 0.3373302 | I119: 36290.74 | J119: 195684 | K119: 292889 | L119: 0.0316673 | M119: 31667.3 | N119: 9275003830 | O119: 90.60102 | P119: 10.49932 | Q119: -3.452471 | R119: 7.183956 | S119: -1.063694 | T119: 12.58755 | U119: 0.0009965 | V119: 0 | W119: 1047.935 | X119: 1318.112 | Y119: 0 | Z119: 0 | AA119: 292.0215 | AB119: 292889 | AC119: 0 | AD119: 0.000997 | AE119: 0 | AF119: 0.1122598 | AH119: 454 | AK119: 0 | AL119: 3.223159 | AM119: 9.844064 | AN119: 10.83887 | AO119: 11.14463 | AP119: 10.6438 | AQ119: 10.97095 | AR119: 11.16601 | AS119: 10.05743 | AT119: 10.53319 | AU119: 10.71896 | AV119: 10.69111 | AW119: 10.28777 | AX119: 10.75556 | AY119: 10.8903 | AZ119: 10.24639 | BA119: 9.948793 | BB119: 10.58989 | BC119: 9.738298 | BD119: 9.550773 | BE119: 10.02593 | BG119: 0 | BI119: 935763 | BJ119: 2601.301 | BK119: 165509379 | BL119: 63.90353 | BM119: 2633.9464 | BN119: 63.90353121
A120: 22900 | B120: Fort Smith, AR-OK | C120: 14.84959007 | D120: 1.15 | E120: 30896 | F120: 2.040209 | G120: 0.202798 | H120: 0.2688408 | I120: 31221.63 | J120: 163979 | K120: 290977 | L120: 0.0307722 | M120: 30772.2 | N120: 8954002439 | O120: 83.67923 | P120: 10.34887 | Q120: -3.481144 | R120: 7.27141 | S120: -2.039394 | T120: 12.581 | U120: 0.0016827 | V120: 0 | W120: 951.7296 | X120: 1438.577 | Y120: 0 | Z120: 0 | AA120: 490.0526 | AB120: 290977 | AC120: 0 | AD120: 0.0016842 | AE120: 0 | AF120: 0.1224877 | AH120: 200 | AK120: 0 | AL120: 5.856323 | AM120: 10.53409 | AN120: 10.9569 | AO120: 10.75356 | AP120: 10.53809 | AQ120: 10.46147 | AR120: 10.56214 | AS120: 9.93849 | AT120: 10.47888 | AU120: 10.64723 | AV120: 10.55446 | AW120: 10.43763 | AX120: 10.47555 | AY120: 11.13078 | AZ120: 9.928536 | BA120: 9.922652 | BB120: 10.42919 | BC120: 10.75073 | BD120: 9.352281 | BE120: 9.838867 | BF120: 10.19429 | BG120: 0 | BI120: 281454 | BJ120: 4000.83 | BK120: 99093053 | BL120: 38.26004 | BM120: 4092.6696 | BN120: 38.26004329
A121: 23020 | B121: Fort Walton Beach-Crestview-Destin, FL | C121: 14.84959007 | D121: 1.15 | E121: 41585.495 | F121: 2.29 | G121: 0.2202427 | H121: 0.3235166 | I121: 32113.91 | J121: 127514 | K121: 179529 | L121: 0.0361613 | M121: 36161.3 | N121: 6492002028 | O121: 85.36855 | P121: 10.37704 | Q121: -3.319766 | R121: 7.315822 | S121: -1.443663 | T121: 12.09809 | U121: 0.0011199 | V121: 0 | W121: 897.2976 | X121: 1503.907 | Y121: 0 | Z121: 0 | AA121: 201.1585 | AB121: 179529 | AC121: 0 | AD121: 0.0011205 | AE121: 0 | AF121: 0.2149988 | AH121: 93 | AK121: 0 | AL121: 2.356354 | AO121: 11.0066 | AP121: 10.42795 | AQ121: 10.78764 | AR121: 10.64683 | AS121: 10.02576 | AT121: 10.67073 | AU121: 10.55725 | AV121: 10.57554 | AW121: 10.29006 | AX121: 10.99788 | AY121: 10.84538 | AZ121: 10.297 | BA121: 9.981969 | BB121: 10.60311 | BC121: 9.75336 | BD121: 9.60494 | BE121: 9.908968 | BG121: 0 | BI121: 442358 | BJ121: 935.6262 | BK121: 79915741 | BL121: 30.85564 | BM121: 1082.0875 | BN121: 30.85564142
A122: 23060 | B122: Fort Wayne, IN | C122: 14.84959007 | D122: 1.15 | E122: 33669 | F122: 2.436497 | I122: 35456.45 | J122: 261525 | K122: 411625 | L122: 0.037556 | M122: 37556 | N122: 15458988500 | O122: 150.8271 | P122: 10.47606 | Q122: -3.281921 | R122: 7.053122 | S122: -1.579994 | T122: 12.92787 | U122: 0.0006925 | V122: 0 | W122: 961.3989 | X122: 1156.464 | Y122: 0 | Z122: 0 | AA122: 285.1539 | AB122: 411625 | AC122: 0 | AD122: 0.0006928 | AE122: 0 | AF122: 0.2092523 | AH122: 278 | AK122: 0 | AL122: 1.890601 | AM122: 10.0542 | AN122: 10.86351 | AP122: 10.73405 | AQ122: 10.71062 | AR122: 10.63963 | AS122: 9.912359 | AT122: 10.61402 | AU122: 10.76252 | AV122: 11.06498 | AW122: 10.30953 | AX122: 10.8146 | AY122: 10.98693 | AZ122: 10.07627 | BA122: 10.03858 | BB122: 10.55702 | BC122: 9.826653 | BD122: 9.274485 | BE122: 9.971264 | BG122: 0 | BI122: 1526520 | BJ122: 1362.728 | BK122: 277187834 | BL122: 107.0228 | BM122: 1368.1842 | BN122: 107.0228256
A123: 23420 | B123: Fresno, CA | C123: 14.84959007 | D123: 1.07 | E123: 30646 | F123: 2.591 | G123: 0.2135547 | H123: 0.3489018 | I123: 35214.41 | J123: 450031 | K123: 903133 | L123: 0.0266782 | M123: 26678.2 | N123: 2.40939628e+10 | O123: 177.0343 | P123: 10.46921 | Q123: -3.623907 | R123: 7.484516 | S123: -1.849513 | T123: 13.71362 | U123: 0.0007883 | V123: 0 | W123: 1315.384 | X123: 1780.261 | Y123: 0 | Z123: 0 | AA123: 712.2607 | AB123: 903133 | AC123: 0 | AD123: 0.0007887 | AE123: 0 | AF123: 0.1194522 | AH123: 525 | AK123: 0 | AL123: 4.023293 | AM123: 10.41854 | AN123: 11.06647 | AP123: 10.68116 | AQ123: 10.63328 | AR123: 10.75202 | AS123: 10.08036 | AT123: 10.58648 | AU123: 10.77778 | AV123: 10.80965 | AW123: 10.3048 | AX123: 10.58226 | AY123: 11.03503 | AZ123: 10.19638 | BA123: 10.08914 | BB123: 10.73222 | BC123: 10.03208 | BD123: 9.468684 | BE123: 10.11222 | BG123: 0 | BI123: 4661278 | BJ123: 5962.726 | BK123: 240378162 | BL123: 92.81052 | BM123: 6011.1743 | BN123: 92.81053117
A124: 23460 | B124: Gadsden, AL | C124: 14.84959007 | D124: 1.15 | E124: 29984 | F124: 1.851 | I124: 28045.11 | J124: 50551 | K124: 103435 | L124: 0.0219171 | M124: 21917.1 | N124: 2266995238 | O124: 61.35777 | P124: 10.24157 | Q124: -3.820486 | R124: 6.458151 | S124: -1.961143 | T124: 11.5467 | U124: 0.0014275 | V124: 0 | W124: 431.502 | X124: 637.8809 | Y124: 0 | Z124: 0 | AA124: 147.762 | AB124: 103435 | AC124: 0 | AD124: 0.0014285 | AE124: 0 | AF124: 0.2762823 | AK124: 0 | AL124: 2.408203 | AM124: 10.15713 | AP124: 10.46084 | AQ124: 10.43257 | AR124: 10.41064 | AS124: 9.865251 | AT124: 10.4614 | AU124: 10.45128 | AV124: 10.53914 | AW124: 10.27601 | AX124: 10.29609 | AZ124: 9.838275 | BA124: 9.77329 | BB124: 10.5276 | BC124: 9.523153 | BD124: 9.317012 | BE124: 9.797587 | BJ124: 534.8224 | BK124: 83183379 | BL124: 32.11728 | BM124: 548.63131 | BN124: 32.11728355
A125: 23540 | B125: Gainesville, FL | C125: 14.84959007 | D125: 1.15 | E125: 35149 | F125: 2.340888 | G125: 0.2945819 | H125: 0.2714298 | I125: 32927.6 | J125: 165907 | K125: 259179 | L125: 0.0254264 | M125: 25426.4 | N125: 6589988926 | O125: 78.78089 | P125: 10.40207 | Q125: -3.671966 | R125: 7.059505 | S125: -1.256372 | T125: 12.46527 | U125: 0.0012425 | V125: 0 | W125: 887.7914 | X125: 1163.869 | Y125: 0 | Z125: 0 | AA125: 322.2193 | AB125: 259179 | AC125: 0 | AD125: 0.0012432 | AE125: 0 | AF125: 0.2634368 | AH125: 516 | AK125: 0 | AL125: 4.090069 | AM125: 10.67287 | AP125: 10.47193 | AQ125: 10.75131 | AR125: 10.62282 | AS125: 9.956734 | AT125: 10.32647 | AU125: 10.73428 | AV125: 10.76753 | AW125: 10.29335 | AX125: 10.78149 | AY125: 10.86179 | AZ125: 10.10853 | BA125: 9.955245 | BB125: 10.73721 | BC125: 9.54958 | BD125: 9.35342 | BE125: 10.11904 | BG125: 0 | BI125: 2846734 | BJ125: 1223.137 | BK125: 130815853 | BL125: 50.50828 | BM125: 1324.044 | BN125: 50.50828537
A126: 23580 | B126: Gainesville, GA | C126: 14.84959007 | D126: 1.15 | E126: 29038 | F126: 2.185 | I126: 35749.16 | J126: 101042 | K126: 184731 | L126: 0.0310939 | M126: 31093.9 | N126: 5744007241 | O126: 95.21495 | P126: 10.48428 | Q126: -3.470745 | R126: 7.133787 | S126: -1.77341 | T126: 12.12666 | U126: 0.0007298 | V126: 0 | W126: 516.547 | X126: 1253.616 | Y126: 0 | Z126: 0 | AA126: 134.8588 | AB126: 184731 | AC126: 0 | AD126: 0.00073 | AE126: 0 | AF126: 0.3425786 | AK126: 0 | AL126: 1.416362 | AM126: 10.58871 | AO126: 11.00948 | AP126: 10.46118 | AQ126: 10.49105 | AR126: 10.75318 | AS126: 10.10372 | AT126: 10.53425 | AU126: 10.77691 | AV126: 10.8147 | AW126: 10.34332 | AX126: 10.59075 | AY126: 11.19028 | AZ126: 10.10779 | BA126: 10.07752 | BB126: 10.66725 | BC126: 12.11819 | BD126: 9.36306 | BE126: 10.01661 | BJ126: 393.6581 | BK126: 79427924 | BL126: 30.66729 | BM126: 429.29331 | BN126: 30.66729421
A127: 24020 | B127: Glens Falls, NY | C127: 14.84959007 | D127: 1.15 | E127: 33106 | F127: 2.579945 | G127: 0.1210327 | H127: 0.3628129 | I127: 33199.95 | J127: 70059 | K127: 128653 | L127: 0.0239637 | M127: 23963.7 | N127: 3083001896 | O127: 32.55251 | P127: 10.4103 | Q127: -3.731216 | R127: 8.104714 | S127: -1.631585 | T127: 11.76487 | U127: 0.0027982 | V127: 0 | W127: 913.5702 | X127: 3310.037 | Y127: 0 | Z127: 0 | AA127: 360.5002 | AB127: 128653 | AC127: 0 | AD127: 0.0028021 | AE127: 0 | AF127: 0.2114706 | AH127: 228 | AK127: 0 | AL127: 11.07442 | AM127: 11.96081 | AN127: 10.34087 | AP127: 10.72186 | AQ127: 10.68412 | AR127: 10.68783 | AS127: 10.06161 | AT127: 10.46001 | AU127: 10.61938 | AV127: 10.78556 | AW127: 10.31938 | AX127: 10.54639 | AY127: 11.13433 | AZ127: 10.05899 | BB127: 10.50157 | BC127: 10.22447 | BD127: 9.873701 | BE127: 10.06106 | BG127: 0 | BI127: 305687 | BJ127: 1704.729 | BK127: 10970942 | BL127: 4.235904 | BM127: 1777.4784 | BN127: 4.235904568
A128: 24140 | B128: Goldsboro, NC | C128: 14.84959007 | D128: 1.15 | E128: 31673 | F128: 2.082 | I128: 28443.06 | J128: 60909 | K128: 113419 | L128: 0.0230737 | M128: 23073.7 | N128: 2616995980 | P128: 10.25566 | Q128: -3.76906 | S128: -1.93341 | T128: 11.63884 | U128: 0.0007945 | V128: 0 | Y128: 0 | Z128: 0 | AA128: 90.15181 | AB128: 113419 | AC128: 0 | AD128: 0.0007949 | AE128: 0 | AF128: 0.1631503 | AO128: 11.14244 | AP128: 10.52457 | AQ128: 10.53888 | AR128: 10.57294 | AS128: 9.911442 | AT128: 10.54348 | AU128: 10.39444 | AV128: 10.54779 | AW128: 10.04404 | AX128: 10.09594 | AY128: 10.69954 | AZ128: 9.605468 | BA128: 10.05355 | BB128: 10.40335 | BC128: 9.324999 | BD128: 9.277831 | BE128: 9.757524 | BJ128: 552.5692 | BM128: 556.85496 | BN128: 26.65296017
A129: 24220 | B129: Grand Forks, ND-MN | C129: 14.84959007 | D129: 1.15 | E129: 36126 | F129: 2.331149 | G129: 0.2837956 | H129: 0.2915032 | I129: 30227.14 | J129: 70785 | K129: 97261 | L129: 0.0292615 | M129: 29261.5 | N129: 2846002752 | O129: 28.95588 | P129: 10.3165 | Q129: -3.531484 | R129: 7.357539 | S129: -1.555656 | T129: 11.48515 | U129: 0.0052814 | V129: 0 | W129: 951.8963 | X129: 1567.973 | Y129: 0 | Z129: 0 | AA129: 515.0345 | AB129: 97261 | AC129: 0 | AD129: 0.0052954 | AE129: 0 | AF129: 0.1511173 | AH129: 196 | AK129: 0 | AL129: 17.78687 | AO129: 11.48837 | AP129: 10.7319 | AQ129: 10.53025 | AR129: 10.64047 | AS129: 9.961901 | AT129: 10.1993 | AU129: 10.84562 | AV129: 10.80018 | AW129: 10.09234 | AX129: 10.7733 | AZ129: 10.03409 | BA129: 9.666187 | BB129: 10.49964 | BC129: 9.347385 | BD129: 9.313822 | BE129: 9.822402 | BG129: 0 | BI129: 374692 | BJ129: 3408.178 | BK129: 35789698 | BL129: 13.81848 | BM129: 3437.2823 | BN129: 13.81848024
A130: 24300 | B130: Grand Junction, CO | C130: 14.84959007 | D130: 1.15 | E130: 34791 | F130: 2.249 | G130: 0.2306539 | H130: 0.342855 | I130: 35538.07 | J130: 91728 | K130: 141905 | L130: 0.0322399 | M130: 32239.9 | N130: 4575003010 | O130: 60.16268 | P130: 10.47836 | Q130: -3.434551 | R130: 6.959534 | S130: -1.508587 | T130: 11.86291 | U130: 0.001732 | V130: 0 | W130: 749.2186 | X130: 1053.142 | Y130: 0 | Z130: 0 | AA130: 245.9926 | AB130: 141905 | AC130: 0 | AD130: 0.0017335 | AE130: 0 | AF130: 0.0739217 | AH130: 217 | AK130: 0 | AL130: 4.088791 | AN130: 11.24057 | AO130: 11.10331 | AP130: 10.73877 | AQ130: 10.52889 | AR130: 10.80963 | AS130: 10.15316 | AT130: 10.73817 | AV130: 10.76649 | AW130: 10.40908 | AX130: 10.65409 | AY130: 10.20267 | AZ130: 10.19872 | BA130: 9.84588 | BB130: 10.64677 | BC130: 9.423319 | BD130: 9.553421 | BE130: 10.16175 | BF130: 11.39639 | BG130: 0 | BI130: 743668 | BJ130: 3327.746 | BK130: 96770823 | BL130: 37.36342 | BM130: 3341.1335 | BN130: 37.36342524
A131: 24340 | B131: Grand Rapids-Wyoming, MI | C131: 14.84959007 | D131: 1.06 | E131: 32445 | F131: 2.341324 | G131: 0.1508711 | H131: 0.4032122 | I131: 37932.39 | J131: 487530 | K131: 776505 | L131: 0.0394962 | M131: =L131*1000000 -> 39496.2 | N131: 30668996781 | O131: 256.7781 | P131: 10.54356 | Q131: -3.231551 | R131: 7.761075 | S131: -1.552375 | T131: 13.56256 | U131: 0.0008708 | V131: 0 | W131: 1192.283 | X131: 2347.426 | Y131: 0 | Z131: 0 | AA131: 676.5129 | AB131: 776505 | AC131: 0 | AD131: 0.0008712 | AE131: 0 | AF131: 0.2392288 | AH131: 448 | AK131: 0 | AL131: 2.634621 | AM131: 9.559391 | AN131: 11.06509 | AP131: 10.76384 | AQ131: 10.76537 | AR131: 10.87037 | AS131: 9.983097 | AT131: 10.58516 | AU131: 10.88392 | AV131: 10.85893 | AW131: 10.3995 | AX131: 10.80477 | AY131: 11.09474 | AZ131: 10.22625 | BA131: 10.16735 | BB131: 10.61694 | BC131: 9.664363 | BD131: 9.394784 | BE131: 10.0696 | BF131: 9.632335 | BG131: 0 | BH131: =IF(Z131>0,BG131/Z131,"") ->  | BI131: 4114157 | BJ131: 2827.891 | BK131: 176617946 | BL131: 68.19257 | BM131: 2890.6936 | BN131: 68.19257309
A132: 24500 | B132: Great Falls, MT | C132: 14.84959007 | D132: 1.15 | E132: 37437 | F132: 2.17 | G132: 0.2965639 | H132: 0.2443545 | I132: 28743.83 | J132: 52296 | K132: 82022 | L132: 0.0256029 | M132: 25602.9 | N132: =L132*K132*1000000 -> 2100001064 | O132: 28.63674 | P132: 10.26618 | Q132: -3.66505 | R132: 7.175365 | S132: -1.529312 | T132: 11.31474 | U132: 0.002675 | V132: 0 | W132: 985.4475 | X132: 1306.837 | Y132: 0 | Z132: 0 | AA132: 219.7003 | AB132: 82022 | AC132: 0 | AD132: 0.0026786 | AE132: 0 | AF132: 0.0814337 | AH132: 90 | AK132: 0 | AL132: 7.671975 | AN132: 10.99093 | AP132: 10.58269 | AQ132: 10.69663 | AR132: 10.56385 | AS132: 9.990602 | AT132: 10.3618 | AU132: 10.45749 | AV132: 10.67407 | AW132: 9.974671 | AX132: 10.58583 | AY132: 10.84607 | AZ132: 9.85351 | BA132: 9.906761 | BB132: 10.41932 | BC132: 9.612224 | BD132: 9.379482 | BE132: 9.935581 | BG132: 0 | BI132: 440808 | BJ132: 2697.904 | BK132: 54852348 | BL132: 21.17861 | BM132: 2711.4793 | BN132: 21.17861087
A133: 24540 | B133: Greeley, CO | C133: 14.84959007 | D133: 1.15 | E133: 27186 | F133: 2.1 | G133: 0.1832751 | H133: 0.317316 | I133: 37881.33 | J133: 120420 | K133: 248852 | L133: 0.0255413 | M133: 25541.3 | N133: 6356003588 | O133: 48.07352 | P133: 10.54221 | Q133: -3.667459 | R133: 7.343307 | S133: -1.682221 | T133: 12.42461 | U133: 0.0016763 | V133: 0 | W133: 1017.442 | X133: 1545.815 | Y133: 0 | Z133: 0 | AA133: 417.4905 | AB133: 248852 | AC133: 0 | AD133: 0.0016777 | AE133: 0 | AF133: 0.1045701 | AH133: 171 | AK133: 0 | AL133: 8.684417 | AM133: 10.87289 | AN133: 11.12949 | AO133: 11.14349 | AP133: 10.82921 | AQ133: 10.60757 | AR133: 10.71188 | AS133: 10.14579 | AT133: 10.60627 | AU133: 10.43148 | AV133: 10.85413 | AW133: 10.24274 | AX133: 10.60328 | AY133: 11.23925 | AZ133: 10.18082 | BA133: 9.951047 | BB133: 10.53313 | BC133: 9.833813 | BD133: 9.357154 | BE133: 10.07442 | BF133: 12.00762 | BG133: 0 | BI133: 392470 | BJ133: 3992.447 | BK133: 63773955 | BL133: 24.62326 | BM133: 4017.0013 | BN133: 24.62326273
A134: 24580 | B134: Green Bay, WI | C134: 14.84959007 | D134: 1.15 | E134: 36742 | F134: 2.527248 | G134: 0.1568142 | H134: 0.3998033 | I134: 38983.25 | J134: 209142 | K134: 302322 | L134: 0.0434735 | M134: 43473.5 | N134: 1.314299547e+10 | O134: 92.63345 | P134: 10.57089 | Q134: -3.135603 | R134: 7.250066 | S134: -1.649277 | T134: 12.61925 | U134: 0.0013509 | V134: 0 | W134: 1209.757 | X134: 1408.198 | Y134: 0 | Z134: 0 | AA134: 408.6721 | AB134: 302322 | AC134: 0 | AD134: 0.0013518 | AE134: 0 | AF134: 0.2186253 | AH134: 255 | AK134: 0 | AL134: 4.411712 | AM134: 10.30152 | AN134: 10.99039 | AP134: 10.79992 | AQ134: 10.70049 | AR134: 10.84821 | AS134: 9.967077 | AT134: 10.62469 | AU134: 10.58917 | AV134: 10.71675 | AW134: 10.24973 | AX134: 10.79301 | AY134: 11.71576 | AZ134: 10.01527 | BA134: 9.9542 | BB134: 10.59225 | BC134: 11.03071 | BD134: 9.328242 | BE134: 9.902 | BG134: 0 | BI134: 1296480 | BJ134: 1869.281 | BK134: 93524446 | BL134: 36.10999 | BM134: 2848.8433 | BN134: 36.10999202
A135: 24660 | B135: Greensboro-High Point, NC | C135: 14.84959007 | D135: 1.15 | E135: 34948 | F135: 2.250432 | I135: 35610.06 | J135: 458235 | K135: 707185 | L135: 0.0429336 | M135: 42933.6 | N135: 30361997916 | P135: 10.48038 | Q135: -3.1481 | S135: -1.472638 | T135: 13.46905 | U135: 0.0007187 | V135: 0 | Y135: 0 | Z135: 0 | AA135: 508.4689 | AB135: 707185 | AC135: 0 | AD135: 0.000719 | AE135: 0 | AF135: 0.2538259 | AH135: 358 | AM135: 10.64605 | AN135: 10.87706 | AO135: 11.049 | AP135: 10.57006 | AQ135: 10.61718 | AR135: 10.75944 | AS135: 10.04977 | AT135: 10.51878 | AU135: 10.77597 | AV135: 10.92565 | AW135: 10.50144 | AX135: 10.81594 | AY135: 11.35918 | AZ135: 10.10701 | BA135: 10.22124 | BB135: 10.56744 | BC135: 9.861905 | BD135: 9.438599 | BE135: 10.04722 | BF135: 9.978764 | BG135: 0 | BI135: 2569955 | BJ135: 2003.219 | BM135: 2019.7034 | BN135: 145.2909477
A136: 24780 | B136: Greenville, NC | C136: 14.84959007 | D136: 1.15 | E136: 32334 | F136: 2.310203 | I136: 30332.44 | J136: 102749 | K136: 176589 | L136: 0.0245599 | M136: 24559.9 | N136: 4337008181 | P136: 10.31997 | Q136: -3.706642 | S136: -1.592035 | T136: 12.08158 | U136: 0.0007777 | V136: 0 | Y136: 0 | Z136: 0 | AA136: 137.3881 | AB136: 176589 | AC136: 0 | AD136: 0.000778 | AE136: 0 | AF136: 0.1498275 | AM136: 10.27205 | AP136: 10.41587 | AQ136: 10.6309 | AR136: 10.59167 | AS136: 9.949691 | AT136: 10.36054 | AU136: 10.52891 | AV136: 10.74823 | AW136: 10.33826 | AX136: 10.65974 | AY136: 11.14801 | AZ136: 9.723222 | BA136: 9.702587 | BB136: 10.56265 | BC136: 9.504016 | BD136: 9.294417 | BE136: 9.8456 | BJ136: 916.9754 | BM136: 921.22392 | BN136: 31.25094865
A137: 24860 | B137: Greenville, SC | C137: 14.84959007 | D137: 1.15 | E137: 33410 | F137: 2.071485 | G137: 0.200134 | H137: 0.3064932 | I137: 35794.89 | J137: 401269 | K137: 630098 | L137: 0.0344978 | M137: 34497.8 | N137: 2.173699478e+10 | O137: 278.2739 | P137: 10.48556 | Q137: -3.366859 | R137: 7.533131 | S137: -1.516432 | T137: 13.35363 | U137: 0.000929 | V137: 0 | W137: 753.4987 | X137: 1868.948 | Y137: 0 | Z137: 0 | AA137: 585.6028 | AB137: 630098 | AC137: 0 | AD137: 0.0009294 | AE137: 0 | AF137: 0.2924967 | AH137: 94 | AK137: 0 | AL137: 2.104412 | AM137: 10.08235 | AO137: 10.96794 | AP137: 10.60459 | AQ137: 10.60003 | AR137: 10.85665 | AS137: 10.01954 | AT137: 10.62469 | AU137: 10.86434 | AV137: 10.86719 | AW137: 10.50441 | AX137: 11.08243 | AY137: 11.22613 | AZ137: 10.12441 | BA137: 9.858943 | BB137: 10.64911 | BC137: 9.691051 | BD137: 9.387894 | BE137: 10.00412 | BG137: 0 | BI137: 577666 | BJ137: 2002.083 | BK137: 132366065 | BL137: 51.10682 | BM137: 2030.7565 | BN137: 51.10682559
A138: 25060 | B138: Gulfport-Biloxi, MS | C138: 14.84959007 | D138: 1.15 | E138: 35879 | F138: 2.144929 | G138: 0.3842877 | H138: 0.2714275 | I138: 33200.01 | J138: 152117 | K138: 236155 | L138: 0.0299845 | M138: 29984.5 | N138: 7080989598 | O138: 114.7476 | P138: 10.41031 | Q138: -3.507073 | R138: 6.828017 | S138: -1.775746 | T138: 12.37224 | U138: 0.001437 | V138: 0 | W138: 592.9622 | X138: 923.3578 | Y138: 0 | Z138: 0 | AA138: 339.5915 | AB138: 236155 | AC138: 0 | AD138: 0.001438 | AE138: 0 | AF138: 0.2259088 | AK138: 0 | AL138: 2.959465 | AM138: 10.42284 | AO138: 10.50447 | AP138: 10.4986 | AQ138: 10.76773 | AR138: 10.69004 | AS138: 10.01494 | AT138: 10.47809 | AU138: 10.60661 | AV138: 10.76305 | AW138: 10.25912 | AX138: 10.81169 | AY138: 11.27187 | AZ138: 10.03881 | BA138: 10.10095 | BB138: 10.73655 | BC138: 9.305651 | BD138: 10.00311 | BE138: 10.07404 | BJ138: 1503.224 | BK138: 149493519 | BL138: 57.71977 | BM138: 1976.7803 | BN138: 57.71977283
A139: 25180 | B139: Hagerstown-Martinsburg, MD-WV | C139: 14.84959007 | D139: 1.15 | E139: 33137 | F139: 2.247952 | G139: 0.2245702 | H139: 0.3386604 | I139: 32463.68 | J139: 126897 | K139: 264278 | L139: 0.023971 | M139: 23971 | N139: 6335007938 | O139: 89.65957 | P139: 10.38788 | Q139: -3.730912 | R139: 7.581803 | S139: -1.914827 | T139: 12.48476 | U139: 0.0009782 | V139: 0 | W139: 784.9469 | X139: 1962.164 | Y139: 0 | Z139: 0 | AA139: 258.6455 | AB139: 264278 | AC139: 0 | AD139: 0.0009787 | AE139: 0 | AF139: 0.2565269 | AH139: 64 | AK139: 0 | AL139: 2.884751 | AP139: 10.51985 | AQ139: 10.73608 | AR139: 10.68583 | AS139: 9.962718 | AT139: 10.42422 | AU139: 10.30608 | AV139: 10.6698 | AW139: 10.25112 | AX139: 10.57525 | AY139: 10.84305 | AZ139: 9.987149 | BA139: 10.06358 | BB139: 10.62867 | BC139: 9.768055 | BD139: 9.444536 | BE139: 9.951787 | BG139: 0 | BI139: 410144 | BJ139: 1008.259 | BK139: 52282494 | BL139: 20.18638 | BM139: 1018.5167 | BN139: 20.18638465
A140: 25260 | B140: Hanford-Corcoran, CA | C140: 14.84959007 | D140: 1.15 | E140: 26426 | F140: 2.609 | G140: 0.2646375 | H140: 0.2781285 | I140: 32879.68 | J140: 57973 | K140: 148746 | L140: 0.0165383 | M140: 16538.3 | N140: 2460005972 | O140: 35.80812 | P140: 10.40061 | Q140: -4.102079 | R140: 6.882829 | S140: -2.405599 | T140: 11.91 | U140: 0.0019152 | V140: 0 | W140: 572.6076 | X140: 975.3817 | Y140: 0 | Z140: 0 | AA140: 285.1556 | AB140: 148746 | AC140: 0 | AD140: 0.0019171 | AE140: 0 | AF140: 0.2050015 | AH140: 165 | AK140: 0 | AL140: 7.963436 | AM140: 10.63287 | AO140: 11.05895 | AP140: 10.61636 | AQ140: 10.69296 | AR140: 10.67789 | AS140: 9.993891 | AT140: 10.24961 | AU140: 10.65661 | AV140: 10.6104 | AW140: 10.09026 | AX140: 10.43914 | AY140: 10.88626 | AZ140: 10.15877 | BA140: 10.0322 | BB140: 10.67847 | BC140: 9.961082 | BD140: 9.911496 | BE140: 9.94299 | BF140: 11.14186 | BG140: 0 | BI140: 767251 | BJ140: 1390.993 | BK140: 39955181 | BL140: 15.42678 | BM140: 1391.5425 | BN140: 15.42678229
A141: 25420 | B141: Harrisburg-Carlisle, PA | C141: 14.84959007 | D141: 1.15 | E141: 39693 | F141: 2.333022 | G141: 0.0835664 | H141: 0.4577908 | I141: 39059.41 | J141: 402933 | K141: 533802 | L141: 0.0435648 | M141: 43564.8 | N141: 2.325497737e+10 | O141: 199.0914 | P141: 10.57284 | Q141: -3.133505 | R141: 8.663237 | S141: -1.391563 | T141: 13.18778 | U141: 0.0009985 | V141: 0 | W141: 1240.4 | X141: 5786.234 | Y141: 0 | Z141: 0 | AA141: 533.2488 | AB141: 533802 | AC141: 0 | AD141: 0.000999 | AE141: 0 | AF141: 0.3273528 | AH141: 346 | AK141: 0 | AL141: 2.678411 | AN141: 10.56363 | AO141: 11.44272 | AP141: 10.77127 | AQ141: 10.69548 | AR141: 10.79485 | AS141: 10.02163 | AT141: 10.63286 | AU141: 10.87735 | AV141: 10.90444 | AW141: 10.53667 | AX141: 11.00425 | AY141: 11.27402 | AZ141: 10.08063 | BA141: 10.20391 | BB141: 10.6102 | BC141: 9.978255 | BD141: 9.574699 | BE141: 10.27668 | BF141: 9.790692 | BG141: 0 | BI141: 1739043 | BJ141: 1628.973 | BK141: 31522186 | BL141: 12.17078 | BM141: 1664.1323 | BN141: 12.17078458
A142: 25540 | B142: Hartford-West Hartford-East Hartford, CT | C142: 14.84959007 | D142: 1.13 | E142: 50675 | F142: 2.431731 | I142: 48842.64 | J142: 815967 | K142: 1191170 | L142: 0.0556512 | M142: 55651.2 | N142: 6.62900399e+10 | P142: 10.79636 | Q142: -2.888652 | S142: -1.162222 | T142: 13.99045 | U142: 0.0005402 | V142: 0 | Y142: 0 | Z142: 0 | AA142: 643.6555 | AB142: 1191170 | AC142: 0 | AD142: 0.0005404 | AE142: 0 | AF142: 0.4249187 | AH142: 2037 | AM142: 10.24039 | AN142: 11.25578 | AO142: 13.86752 | AP142: 11.01195 | AQ142: 10.9935 | AR142: 11.0006 | AS142: 10.12705 | AT142: 10.50837 | AU142: 11.05048 | AV142: 11.35865 | AW142: 10.71553 | AX142: 11.04148 | AY142: 11.5377 | AZ142: 10.40796 | BA142: 10.29028 | BB142: 10.68083 | BC142: 10.24349 | BD142: 9.646696 | BE142: 10.27845 | BF142: 10.56875 | BG142: 196021 | BJ142: 1514.773 | BM142: 1606.6988
A143: 25620 | B143: Hattiesburg, MS | C143: 14.84959007 | D143: 1.15 | E143: 29274 | F143: 2.071085 | I143: 28902.27 | J143: 81755 | K143: 141000 | L143: 0.0255248 | M143: 25524.8 | N143: 3598996800 | O143: 38.9459 | P143: 10.27168 | Q143: -3.668104 | R143: 7.213556 | S143: -1.632851 | T143: 11.85651 | U143: 0.0017348 | V143: 0 | W143: 927.7228 | X143: 1357.711 | Y143: 0 | Z143: 0 | AA143: 244.821 | AB143: 141000 | AC143: 0 | AD143: 0.0017363 | AE143: 0 | AF143: 0.1519852 | AK143: 0 | AL143: 6.286183 | AM143: 11.00407 | AN143: 10.72363 | AO143: 10.98884 | AP143: 10.55878 | AQ143: 10.42591 | AR143: 10.44011 | AS143: 9.898679 | AT143: 10.73824 | AU143: 10.56352 | AV143: 10.53314 | AW143: 10.1187 | AX143: 10.54715 | AY143: 11.02608 | AZ143: 9.831969 | BA143: 9.777952 | BB143: 10.66805 | BC143: 9.634941 | BD143: 9.245199 | BE143: 9.796927 | BJ143: 1610.821 | BK143: 64328533 | BL143: 24.83739 | BM143: 1620.8666 | BN143: 24.83738651
A144: 25860 | B144: Hickory-Lenoir-Morganton, NC | C144: 14.84959007 | D144: 1.15 | E144: 29840 | F144: 2.204436 | I144: 31070.92 | J144: 208970 | K144: 363237 | L144: 0.0285736 | M144: 28573.6 | N144: 1.037898874e+10 | P144: 10.34403 | Q144: -3.555271 | S144: -1.990922 | T144: 12.80281 | U144: 0.0010017 | V144: 0 | Y144: 0 | Z144: 0 | AA144: 364.027 | AB144: 363237 | AC144: 0 | AD144: 0.0010022 | AE144: 0 | AF144: 0.2221742 | AM144: 10.47326 | AN144: 10.52541 | AP144: 10.36002 | AQ144: 10.43028 | AR144: 10.74969 | AS144: 9.953988 | AT144: 10.46811 | AU144: 10.6154 | AV144: 10.68037 | AW144: 10.38495 | AX144: 10.62148 | AY144: 11.27736 | AZ144: 10.0451 | BA144: 9.856188 | BB144: 10.48662 | BC144: 9.805064 | BD144: 9.309637 | BE144: 9.976515 | BJ144: 1638.476 | BM144: 1665.798 | BN144: 68.99309302
A145: 25980 | B145: Hinesville-Fort Stewart, GA | C145: 14.84959007 | D145: 1.15 | E145: 26372 | F145: 1.87229 | I145: 28942.13 | J145: 42427 | K145: 70284 | L145: 0.0109129 | M145: 10912.9 | N145: 767002263.6 | O145: 26.90008 | P145: 10.27305 | Q145: -4.517813 | R145: 5.970906 | S145: -2.319839 | T145: 11.1603 | U145: 0.0019852 | V145: 0 | W145: 320.4823 | X145: 391.8607 | Y145: 0 | Z145: 0 | AA145: 139.6674 | AB145: 70284 | AC145: 0 | AD145: 0.0019872 | AE145: 0 | AF145: 0.1518172 | AK145: 0 | AL145: 5.192081 | AM145: 10.54032 | AO145: 10.92984 | AP145: 10.53945 | AQ145: 10.70721 | AR145: 10.81923 | AS145: 9.932908 | AT145: 11.24246 | AU145: 10.53645 | AV145: 10.47631 | AW145: 10.03902 | AX145: 10.30119 | AZ145: 10.07487 | BB145: 10.56492 | BC145: 9.161409 | BD145: 9.140249 | BE145: 9.772943 | BJ145: 919.9706 | BK145: 54296731 | BL145: 20.96408 | BM145: 1006.3904 | BN145: 20.96408593
A146: 26100 | B146: Holland-Grand Haven, MI | C146: 14.84959007 | D146: 1.15 | E146: 32334 | F146: 2.341 | G146: 0.1462766 | H146: 0.3155687 | I146: 34475 | J146: 139364 | K146: 260891 | L146: 0.0321207 | M146: 32120.7 | N146: 8380001544 | O146: 115.1369 | P146: 10.44799 | Q146: -3.438255 | R146: 7.447752 | S146: -1.455946 | T146: 12.47186 | U146: 0.0005121 | V146: 0 | W146: 691.5422 | X146: 1716.001 | Y146: 0 | Z146: 0 | AA146: 133.6342 | AB146: 260891 | AC146: 0 | AD146: 0.0005122 | AE146: 0 | AF146: 0.2362474 | AH146: 117 | AK146: 0 | AL146: 1.160655 | AM146: 11.33346 | AN146: 10.71885 | AO146: 11.33103 | AP146: 10.72814 | AQ146: 10.65172 | AR146: 10.74404 | AS146: 9.992153 | AT146: 10.4573 | AU146: 10.52244 | AV146: 10.70975 | AW146: 10.21307 | AX146: 10.80836 | AY146: 11.02443 | AZ146: 10.13475 | BB146: 10.3334 | BC146: 9.726718 | BD146: 9.395187 | BE146: 10.0609 | BG146: 0 | BI146: 314845 | BJ146: 565.6539 | BK146: 14755071 | BL146: 5.696965 | BM146: 1631.4106 | BN146: 5.696965005
A147: 26180 | B147: Honolulu, HI | C147: 14.84959007 | D147: 1.18 | E147: 45496 | F147: 2.819 | G147: 0.2699348 | H147: 0.3728758 | I147: 37387.13 | J147: 626137 | K147: 902745 | L147: 0.0388892 | M147: 38889.2 | N147: 35107030854 | O147: 202.2611 | P147: 10.52908 | Q147: -3.24704 | R147: 8.120187 | S147: -1.283235 | T147: 13.7132 | U147: 0.0002868 | V147: 0 | W147: 1569.343 | X147: 3361.648 | Y147: 0 | Z147: 0 | AA147: 258.9387 | AB147: 902745 | AC147: 0 | AD147: 0.0002868 | AE147: 0 | AF147: 0.4317327 | AH147: 920 | AK147: 0 | AL147: 1.28022 | AM147: 10.01582 | AN147: 11.36293 | AP147: 11.02934 | AQ147: 10.50247 | AR147: 10.6606 | AS147: 10.11658 | AT147: 10.60471 | AU147: 10.91953 | AV147: 10.98034 | AW147: 10.63897 | AX147: 10.96366 | AY147: 11.06364 | AZ147: 10.13336 | BA147: 10.40226 | BB147: 10.71482 | BC147: 9.945246 | BD147: 9.927473 | BE147: 10.17948 | BG147: 0 | BI147: 18300000 | BJ147: 599.7664 | BK147: 186788370 | BL147: 72.11939 | BM147: 2126.8091 | BN147: 72.11939592
A148: 26300 | B148: Hot Springs, AR | C148: 14.84959007 | D148: 1.15 | E148: 33715 | F148: 2.145 | I148: 26672.66 | J148: 54194 | K148: 97700 | L148: 0.0234493 | M148: 23449.3 | N148: 2290996610 | O148: 50.82035 | P148: 10.19139 | Q148: -3.752913 | R148: 6.70514 | S148: -1.573462 | T148: 11.48966 | U148: 0.0011239 | V148: 0 | W148: 514.9709 | X148: 816.5922 | Y148: 0 | Z148: 0 | AA148: 109.8713 | AB148: 97700 | AC148: 0 | AD148: 0.0011246 | AE148: 0 | AF148: 0.1622381 | AK148: 0 | AL148: 2.161955 | AM148: 10.48976 | AP148: 10.17609 | AQ148: 10.47812 | AR148: 10.55253 | AS148: 9.974957 | AT148: 10.23078 | AU148: 10.43076 | AV148: 10.51524 | AW148: 10.09958 | AX148: 10.44534 | AY148: 11.07749 | AZ148: 9.936698 | BA148: 9.831227 | BB148: 10.59633 | BC148: 9.896961 | BD148: 9.361221 | BE148: 9.806064 | BJ148: 677.2227 | BK148: 75892511 | BL148: 29.30226 | BM148: 734.63517 | BN148: 29.30226356
A149: 26380 | B149: Houma-Bayou Cane-Thibodaux, LA | C149: 14.84959007 | D149: 1.15 | E149: 40506 | F149: 2.235848 | I149: 41401.06 | J149: 126752 | K149: 202717 | L149: 0.047993 | M149: 47993 | N149: 9728996981 | O149: 93.10339 | P149: 10.63106 | Q149: -3.0367 | R149: 7.406459 | S149: -2.176293 | T149: 12.21957 | U149: 0.0011337 | V149: 0 | W149: 676.4201 | X149: 1646.585 | Y149: 0 | Z149: 0 | AA149: 229.9588 | AB149: 202717 | AC149: 0 | AD149: 0.0011344 | AE149: 0 | AF149: 0.0982894 | AK149: 0 | AL149: 2.469929 | AM149: 10.02681 | AN149: 11.05565 | AO149: 11.07253 | AP149: 10.84806 | AQ149: 10.7971 | AR149: 10.732 | AS149: 10.0287 | AT149: 11.17214 | AU149: 11.23217 | AV149: 10.66799 | AW149: 10.88025 | AX149: 10.79671 | AY149: 10.89825 | AZ149: 10.26092 | BA149: 9.453593 | BB149: 10.58786 | BC149: 9.812033 | BD149: 9.506435 | BE149: 10.44554 | BF149: 10.89055 | BJ149: 2339.61 | BK149: 59655520 | BL149: 23.03312 | BM149: 3556.375 | BN149: 23.03312602
A150: 26420 | B150: Houston-Baytown-Sugar Land, TX | C150: 10.28788 | D150: 1.25 | E150: 46570 | F150: 2.156104 | G150: 0.1759457 | H150: 0.4752612 | I150: 52427.95 | J150: 3487033 | K150: 5726705 | L150: 0.0658709 | M150: 65870.9 | N150: 3.772232124e+11 | O150: 1559.51 | P150: 10.8672 | Q150: -2.720059 | R150: 7.796962 | S150: -1.441798 | T150: 15.56065 | U150: 0.000427 | V150: 2.5e-06 | W150: 1385.913 | X150: 2433.199 | Y150: 1 | Z150: 14.3 | AA150: 2445.863 | AB150: 5726705 | AC150: 2.5e-06 | AD150: 0.0004271 | AE150: 0.0016017 | AF150: 0.273947 | AH150: 1505 | AK150: 0.0091695 | AL150: 1.568353 | AM150: 10.54302 | AN150: 11.72247 | AO150: 11.58334 | AP150: 10.88268 | AQ150: 11.01827 | AR150: 11.07552 | AS150: 10.1069 | AT150: 10.88086 | AU150: 11.20308 | AV150: 11.30866 | AW150: 10.7063 | AX150: 11.31288 | AY150: 11.82523 | AZ150: 10.4514 | BA150: 10.58992 | BB150: 10.68629 | BC150: 10.37302 | BD150: 9.616479 | BE150: 10.25663 | BF150: 11.82502 | BG150: 770505 | BH150: 53881.46853 | BI150: 40700000 | BJ150: 8928.234 | BK150: 1688893868 | BL150: 652.0856 | BM150: 10071.742 | BN150: 652.0855958
A151: 26580 | B151: Huntington-Ashland, WV-KY-OH | C151: 14.84959007 | D151: 1.15 | E151: 31597 | F151: 2.317915 | G151: 0.2004094 | H151: 0.3275113 | I151: 33787.71 | J151: 147009 | K151: 284903 | L151: 0.0282447 | M151: 28244.7 | N151: 8046999764 | O151: 109.4873 | P151: 10.42785 | Q151: -3.566849 | R151: 7.545151 | S151: -1.8885 | T151: 12.5599 | U151: 0.0012839 | V151: 0 | W151: 732.1668 | X151: 1891.548 | Y151: 0 | Z151: 0 | AA151: 366.0149 | AB151: 284903 | AC151: 0 | AD151: 0.0012847 | AE151: 0 | AF151: 0.2093167 | AH151: 196 | AK151: 0 | AL151: 3.342988 | AM151: 10.08997 | AN151: 11.20103 | AP151: 10.80358 | AQ151: 10.92909 | AR151: 10.72157 | AS151: 9.889103 | AT151: 10.56165 | AU151: 10.52217 | AV151: 10.65468 | AW151: 10.27981 | AX151: 10.41103 | AY151: 11.03944 | AZ151: 9.940697 | BA151: 10.01922 | BB151: 10.53937 | BC151: 9.567962 | BD151: 9.293901 | BE151: 10.03474 | BG151: 0 | BI151: 782021 | BJ151: 1748.618 | BK151: 71574411 | BL151: 27.63503 | BM151: 1773.6841 | BN151: 27.63503576
A152: 26620 | B152: Huntsville, AL | C152: 14.84959007 | D152: 1.15 | E152: 38364 | F152: 2.457462 | G152: 0.2452677 | H152: 0.3545023 | I152: 41668.21 | J152: 270156 | K152: 397228 | L152: 0.037092 | M152: 37092 | N152: 14733980976 | O152: 178.3705 | P152: 10.63749 | Q152: -3.294353 | R152: 6.811805 | S152: -1.215053 | T152: 12.89227 | U152: 0.0005797 | V152: 0 | W152: 591.572 | X152: 908.5093 | Y152: 0 | Z152: 0 | AA152: 230.3288 | AB152: 397228 | AC152: 0 | AD152: 0.0005798 | AE152: 0 | AF152: 0.1677593 | AH152: 227 | AK152: 0 | AL152: 1.291294 | AP152: 10.49296 | AQ152: 10.78134 | AR152: 10.89762 | AS152: 10.00875 | AT152: 10.4152 | AU152: 10.71202 | AV152: 10.81785 | AW152: 10.27382 | AX152: 11.22866 | AY152: 11.12676 | AZ152: 10.20749 | BA152: 10.21517 | BB152: 10.68256 | BC152: 9.597435 | BD152: 9.371938 | BE152: 10.02325 | BF152: 9.25913 | BG152: 0 | BI152: 612046 | BJ152: 1372.972 | BK152: 252864066 | BL152: 97.63136 | BM152: 1419.9019 | BN152: 97.63136586
A153: 26820 | B153: Idaho Falls, ID | C153: 14.84959007 | D153: 1.15 | E153: 32606 | F153: 2.235435 | I153: 34605.38 | J153: 73784 | K153: 123123 | L153: 0.0262014 | M153: 26201.4 | N153: 3225994972 | O153: 32.62947 | P153: 10.45176 | Q153: -3.641941 | R153: 7.421055 | S153: -1.511667 | T153: 11.72094 | U153: 0.0018491 | V153: 0 | W153: 1263.796 | X153: 1670.796 | Y153: 0 | Z153: 0 | AA153: 227.8773 | AB153: 123123 | AC153: 0 | AD153: 0.0018508 | AE153: 0 | AF153: 0.0768931 | AK153: 0 | AL153: 6.983789 | AP153: 10.46415 | AQ153: 10.35723 | AR153: 10.51687 | AS153: 9.965342 | AT153: 10.45027 | AU153: 10.48924 | AV153: 10.70885 | AW153: 10.129 | AX153: 10.21685 | AZ153: 10.10852 | BA153: 9.765018 | BB153: 10.3752 | BC153: 9.423817 | BD153: 9.31416 | BE153: 10.07102 | BJ153: 2963.561 | BK153: 58446953 | BL153: 22.56649 | BM153: 3006.1293 | BN153: 22.56649567
A154: 26900 | B154: Indianapolis, IN | C154: 14.84959007 | D154: 1.18 | E154: 38532 | F154: 2.283549 | G154: 0.1751659 | H154: 0.4223392 | I154: 41526.29 | J154: 1130429 | K154: 1720796 | L154: 0.0511775 | M154: 51177.5 | N154: 88066037290 | O154: 589.2623 | P154: 10.63408 | Q154: -2.972456 | R154: 7.401288 | S154: -1.368336 | T154: 14.3583 | U154: 0.0006134 | V154: 0 | W154: 1203.15 | X154: 1638.093 | Y154: 0 | Z154: 0 | AA154: 1055.787 | AB154: 1720796 | AC154: 0 | AD154: 0.0006135 | AE154: 0 | AF154: 0.2732766 | AH154: 388 | AK154: 0 | AL154: 1.79171 | AN154: 11.06227 | AO154: 11.50791 | AP154: 10.80303 | AQ154: 10.87693 | AR154: 10.84172 | AS154: 10.06225 | AT154: 10.48969 | AU154: 10.94716 | AV154: 11.01576 | AW154: 10.55676 | AX154: 11.03113 | AY154: 11.58154 | AZ154: 10.2719 | BA154: 10.30264 | BB154: 10.64819 | BC154: 10.76086 | BD154: 9.533362 | BE154: 10.18627 | BG154: 0 | BI154: 6798132 | BJ154: 3863.438 | BK154: 836512411 | BL154: 322.9792 | BM154: 3887.7953 | BN154: 322.9792613
A155: 26980 | B155: Iowa City, IA | C155: 14.84959007 | D155: 1.15 | E155: 38299 | F155: 2.29907 | G155: 0.1638079 | H155: 0.4245749 | I155: 32216.15 | J155: 115376 | K155: 149359 | L155: 0.0319633 | M155: 31963.3 | N155: 4774006525 | O155: 40.69735 | P155: 10.38022 | Q155: -3.443168 | R155: 7.631874 | S155: -1.102054 | T155: 11.91411 | U155: 0.0015188 | V155: 0 | W155: 1462.011 | X155: 2062.912 | Y155: 0 | Z155: 0 | AA155: 227.0201 | AB155: 149359 | AC155: 0 | AD155: 0.00152 | AE155: 0 | AF155: 0.1918709 | AH155: 758 | AK155: 0 | AL155: 5.578253 | AP155: 10.66492 | AQ155: 10.57985 | AR155: 10.69782 | AS155: 9.907393 | AT155: 10.64319 | AU155: 10.98112 | AV155: 10.60265 | AW155: 10.45798 | AX155: 10.58947 | AZ155: 9.802258 | BB155: 10.5315 | BC155: 9.241334 | BD155: 9.437743 | BE155: 10.01608 | BG155: 0 | BI155: 1544697 | BJ155: 1183.192 | BK155: 50577862 | BL155: 19.52822 | BM155: 1194.0699 | BN155: 19.52822252
A156: 27060 | B156: Ithaca, NY | C156: 14.84959007 | D156: 1.15 | E156: 33684 | F156: 2.466 | G156: 0.2642607 | H156: 0.2928446 | I156: 33516.26 | J156: 68268 | K156: 101027 | L156: 0.0331397 | M156: 33139.7 | N156: 3348004472 | O156: 32.13396 | P156: 10.41979 | Q156: -3.407025 | R156: 7.995636 | S156: -1.060453 | T156: 11.52314 | U156: 0.0012863 | V156: 0 | W156: 1249.021 | X156: 2967.977 | Y156: 0 | Z156: 0 | AA156: 130.0318 | AB156: 101027 | AC156: 0 | AD156: 0.0012871 | AE156: 0 | AF156: 0.2731467 | AH156: 418 | AK156: 0 | AL156: 4.046554 | AM156: 10.31967 | AO156: 11.43429 | AP156: 10.60253 | AQ156: 10.73976 | AR156: 10.68905 | AS156: 9.946047 | AT156: 10.38758 | AU156: 10.78167 | AV156: 10.79925 | AW156: 10.25436 | AX156: 10.84349 | AY156: 11.27278 | AZ156: 10.19944 | BB156: 10.3935 | BC156: 9.930914 | BD156: 9.573237 | BE156: 10.00404 | BG156: 0 | BI156: 1625848 | BJ156: 476.0511 | BK156: 13951838 | BL156: 5.386835 | BM156: 491.55856 | BN156: 5.386834997
A157: 27100 | B157: Jackson, MI | C157: 14.84959007 | D157: 1.15 | E157: 29488 | F157: 2.29 | G157: 0.1597624 | H157: 0.4480658 | I157: 37490.89 | J157: 74845 | K157: 160266 | L157: 0.0263187 | M157: 26318.7 | N157: 4217992774 | O157: 55.94806 | P157: 10.53185 | Q157: -3.637474 | R157: 7.8987 | S157: -1.812125 | T157: 11.98459 | U157: 0.0010476 | V157: 0 | W157: 687.7986 | X157: 2693.778 | Y157: 0 | Z157: 0 | AA157: 167.9758 | AB157: 160266 | AC157: 0 | AD157: 0.0010481 | AE157: 0 | AF157: 0.2377248 | AH157: 31 | AK157: 0 | AL157: 3.002352 | AP157: 10.76538 | AQ157: 10.68089 | AR157: 10.67252 | AS157: 9.968035 | AT157: 10.74476 | AU157: 10.54301 | AV157: 10.6544 | AW157: 9.969432 | AX157: 10.93535 | AZ157: 10.0684 | BA157: 9.759516 | BB157: 10.71076 | BC157: 9.78261 | BD157: 9.297201 | BE157: 10.08172 | BF157: 9.413281 | BG157: 0 | BI157: 351738 | BJ157: 706.5975 | BK157: 25252057 | BL157: 9.749874 | BM157: 723.49609 | BN157: 9.749874131
A158: 27140 | B158: Jackson, MS | C158: 14.84959007 | D158: 1.15 | E158: 35994 | F158: 2.102316 | G158: 0.1589823 | H158: 0.3275778 | I158: 34641.96 | J158: 342633 | K158: 537194 | L158: 0.0363314 | M158: 36331.4 | N158: 1.951701009e+10 | O158: 207.6459 | P158: 10.45282 | Q158: -3.315073 | R158: 7.104949 | S158: -1.419984 | T158: 13.19411 | U158: 0.0015854 | V158: 0 | W158: 816.2599 | X158: 1217.98 | Y158: 0 | Z158: 0 | AA158: 852.3447 | AB158: 537194 | AC158: 0 | AD158: 0.0015867 | AE158: 0 | AF158: 0.2287471 | AH158: 130 | AK158: 0 | AL158: 4.1048 | AM158: 10.47305 | AN158: 11.13786 | AO158: 11.02368 | AP158: 10.57582 | AQ158: 10.57158 | AR158: 10.74474 | AS158: 9.984015 | AT158: 10.42632 | AU158: 10.75845 | AV158: 10.87853 | AW158: 10.52706 | AX158: 10.88165 | AY158: 11.17501 | AZ158: 9.89831 | BA158: 9.981935 | BB158: 10.62429 | BC158: 9.828884 | BD158: 9.343157 | BE158: 10.05641 | BG158: 0 | BI158: 953368 | BJ158: 3726.144 | BK158: 227837634 | BL158: 87.96861 | BM158: 3795.4038 | BN158: 87.96860603
A159: 27180 | B159: Jackson, TN | C159: 14.84959007 | D159: 1.15 | E159: 32078 | F159: 2.20197 | G159: 0.2331452 | H159: 0.3093551 | I159: 33077.94 | J159: 77424 | K159: 113008 | L159: 0.0340153 | M159: 34015.3 | N159: 3844001022 | O159: 44.08014 | P159: 10.40662 | Q159: -3.380945 | R159: 7.091327 | S159: -1.658797 | T159: 11.63521 | U159: 0.001297 | V159: 0 | W159: 984.7972 | X159: 1201.502 | Y159: 0 | Z159: 0 | AA159: 146.672 | AB159: 113008 | AC159: 0 | AD159: 0.0012979 | AE159: 0 | AF159: 0.17347 | AH159: 179 | AK159: 0 | AL159: 3.327395 | AP159: 10.80878 | AQ159: 10.71675 | AR159: 10.60254 | AS159: 9.963002 | AT159: 10.59224 | AU159: 10.52334 | AV159: 10.71997 | AW159: 10.30843 | AX159: 10.53108 | AY159: 10.79218 | AZ159: 9.943438 | BA159: 10.10511 | BB159: 10.65732 | BC159: 9.457869 | BD159: 9.344642 | BE159: 9.869133 | BG159: 0 | BI159: 555425 | BJ159: 845.5183 | BK159: 89749499 | BL159: 34.65247 | BM159: 844.5841 | BN159: 34.65247677
A160: 27260 | B160: Jacksonville, FL | C160: 14.84959007 | D160: 1.12 | E160: 39376 | F160: 2.292115 | G160: 0.2357321 | H160: 0.3397856 | I160: 38499.52 | J160: 826575 | K160: 1316528 | L160: 0.0392943 | M160: 39294.3 | N160: 5.173204619e+10 | O160: 497.0376 | P160: 10.5584 | Q160: -3.236677 | R160: 7.16828 | S160: -1.524443 | T160: 14.09051 | U160: 0.0006295 | V160: 0 | W160: 1067.267 | X160: 1297.61 | Y160: 0 | Z160: 0 | AA160: 829.0536 | AB160: 1316528 | AC160: 0 | AD160: 0.0006297 | AE160: 0 | AF160: 0.2574262 | AH160: 654 | AK160: 0 | AL160: 1.66799 | AM160: 10.40194 | AO160: 11.21458 | AP160: 10.63669 | AQ160: 10.80772 | AR160: 10.82057 | AS160: 10.04639 | AT160: 10.55678 | AU160: 10.85712 | AV160: 10.95205 | AW160: 10.6675 | AX160: 11.02275 | AY160: 11.22278 | AZ160: 10.27508 | BA160: 10.21003 | BB160: 10.62224 | BC160: 10.52857 | BD160: 9.576306 | BE160: 10.13923 | BF160: 11.98137 | BG160: 0 | BI160: 9935161 | BJ160: 3220.548 | BK160: 813264931 | BL160: 314.0034 | BM160: 3698.375 | BN160: 314.0033587
A161: 27340 | B161: Jacksonville, NC | C161: 14.84959007 | D161: 1.15 | E161: 42463 | F161: 2.276 | I161: 22844.32 | J161: 109103 | K161: 169233 | L161: 0.0118358 | M161: 11835.8 | N161: 2003007941 | P161: 10.03646 | Q161: -4.43663 | S161: -2.261242 | T161: 12.03903 | U161: 0.0005476 | V161: 0 | Y161: 0 | Z161: 0 | AA161: 92.70303 | AB161: 169233 | AC161: 0 | AD161: 0.0005478 | AE161: 0 | AF161: 0.1208931 | AM161: 10.28524 | AO161: 10.86252 | AP161: 10.28846 | AQ161: 10.27796 | AR161: 10.55993 | AS161: 9.962259 | AT161: 10.35256 | AU161: 10.53626 | AV161: 10.50074 | AW161: 10.12523 | AX161: 10.27346 | AZ161: 9.860674 | BA161: 9.866041 | BB161: 10.31538 | BC161: 9.625822 | BD161: 9.343204 | BE161: 9.805312 | BJ161: 766.8181 | BM161: 905.93618 | BN161: 40.59270468
A162: 27500 | B162: Janesville, WI | C162: 14.84959007 | D162: 1.15 | E162: 31294 | F162: 2.284 | G162: 0.2457184 | H162: 0.3438998 | I162: 36059.02 | J162: 84361 | K162: 160186 | L162: 0.0272558 | M162: 27255.8 | N162: 4365997579 | O162: 56.09007 | P162: 10.49291 | Q162: -3.602488 | R162: 7.125524 | S162: -1.799246 | T162: 11.98409 | U162: 0.0015151 | V162: 0 | W162: 933.249 | X162: 1243.299 | Y162: 0 | Z162: 0 | AA162: 242.8781 | AB162: 160186 | AC162: 0 | AD162: 0.0015162 | AE162: 0 | AF162: 0.3371114 | AH162: 389 | AK162: 0 | AL162: 4.330145 | AP162: 10.86671 | AQ162: 10.84664 | AR162: 10.8125 | AS162: 10.0896 | AT162: 10.4641 | AU162: 10.39051 | AV162: 10.58654 | AW162: 10.08014 | AX162: 10.55117 | AZ162: 9.667118 | BB162: 10.6138 | BC162: 9.549604 | BD162: 9.27529 | BE162: 9.802723 | BG162: 0 | BI162: 1239799 | BJ162: 720.4684 | BK162: 66898540 | BL162: 25.82967 | BM162: 726.10603 | BN162: 25.8296718
A163: 27620 | B163: Jefferson City, MO | C163: 14.84959007 | D163: 1.15 | E163: 34691 | F163: 2.134565 | G163: 0.1701939 | H163: 0.3267858 | I163: 33773.29 | J163: 102421 | K163: 146465 | L163: 0.0278906 | M163: 27890.6 | N163: 4084996729 | O163: 47.20028 | P163: 10.42743 | Q163: -3.579465 | R163: 7.462087 | S163: -1.59041 | T163: 11.89454 | U163: 0.0015949 | V163: 0 | W163: 1244.972 | X163: 1740.777 | Y163: 0 | Z163: 0 | AA163: 233.7907 | AB163: 146465 | AC163: 0 | AD163: 0.0015962 | AE163: 0 | AF163: 0.1037729 | AH163: 173 | AK163: 0 | AL163: 4.953164 | AO163: 11.76845 | AP163: 10.66988 | AQ163: 10.5672 | AR163: 10.35056 | AS163: 9.941328 | AT163: 10.33917 | AU163: 10.66918 | AV163: 10.85602 | AW163: 11.32257 | AX163: 10.73385 | AY163: 10.56394 | AZ163: 10.10789 | BA163: 10.08482 | BB163: 10.49328 | BC163: 9.87309 | BD163: 9.395612 | BE163: 10.19718 | BG163: 0 | BI163: 376210 | BJ163: 2252.906 | BK163: 70443019 | BL163: 27.1982 | BM163: 2278.7306 | BN163: 27.19820285
A164: 27740 | B164: Johnson City, TN | C164: 14.84959007 | D164: 1.15 | E164: 30778 | F164: 2.203351 | G164: 0.2949384 | H164: 0.2367054 | I164: 29152.83 | J164: 109002 | K164: 195783 | L164: 0.0250124 | M164: 25012.4 | N164: 4897002709 | O164: 101.913 | P164: 10.28031 | Q164: -3.688384 | R164: 6.8954 | S164: -1.675537 | T164: 12.18476 | U164: 0.0009269 | V164: 0 | W164: 630.067 | X164: 987.721 | Y164: 0 | Z164: 0 | AA164: 181.5624 | AB164: 195783 | AC164: 0 | AD164: 0.0009274 | AE164: 0 | AF164: 0.2127293 | AH164: 151 | AK164: 0 | AL164: 1.781544 | AP164: 10.45083 | AQ164: 10.48845 | AR164: 10.63441 | AS164: 9.907867 | AT164: 10.42035 | AU164: 13.48987 | AV164: 10.51952 | AW164: 10.07672 | AX164: 10.2699 | AY164: 11.1853 | AZ164: 9.607113 | BA164: 9.727106 | BB164: 10.68334 | BC164: 9.776906 | BD164: 9.368197 | BE164: 9.866487 | BG164: 0 | BI164: 417281 | BJ164: 853.4902 | BK164: 112573067 | BL164: 43.4647 | BM164: 863.92172 | BN164: 43.46470601
A165: 27780 | B165: Johnstown, PA | C165: 14.84959007 | D165: 1.15 | E165: 31961 | F165: 2.321 | G165: 0.1162585 | H165: 0.3093833 | I165: 29701.25 | J165: 78091 | K165: 144488 | L165: 0.0231299 | M165: 23129.9 | N165: 3341992991 | O165: 65.86826 | P165: 10.29894 | Q165: -3.766627 | R165: 7.755355 | S165: -1.884847 | T165: 11.88095 | U165: 0.0013573 | V165: 0 | W165: 600.8965 | X165: 2334.037 | Y165: 0 | Z165: 0 | AA165: 196.2459 | AB165: 144488 | AC165: 0 | AD165: 0.0013582 | AE165: 0 | AF165: 0.2852318 | AH165: 260 | AK165: 0 | AL165: 2.979371 | AN165: 10.93999 | AP165: 10.55146 | AQ165: 10.65761 | AR165: 10.47047 | AS165: 9.871945 | AT165: 10.26439 | AU165: 10.52225 | AV165: 10.56463 | AW165: 10.26411 | AX165: 10.79983 | AY165: 10.77989 | AZ165: 9.79886 | BA165: 10.02715 | BB165: 10.44672 | BC165: 9.554111 | BD165: 9.241135 | BE165: 9.680388 | BG165: 0 | BI165: 677186 | BJ165: 688.0228 | BK165: 15042554 | BL165: 5.807962 | BM165: 693.56585 | BN165: 5.807962817
A166: 27860 | B166: Jonesboro, AR | C166: 14.84959007 | D166: 1.15 | E166: 30192 | F166: 2.103779 | I166: 29351.71 | J166: 65860 | K166: 118135 | L166: 0.0273416 | M166: 27341.6 | N166: 3229999916 | O166: 47.26181 | P166: 10.28711 | Q166: -3.599346 | R166: 6.574454 | S166: -1.82795 | T166: 11.67958 | U166: 0.0024656 | V166: 0 | W166: 620.7972 | X166: 716.5542 | Y166: 0 | Z166: 0 | AA166: 291.6385 | AB166: 118135 | AC166: 0 | AD166: 0.0024687 | AE166: 0 | AF166: 0.1985856 | AK166: 0 | AL166: 6.170702 | AM166: 11.3756 | AP166: 10.44752 | AQ166: 10.43909 | AR166: 10.5946 | AS166: 9.898355 | AT166: 10.50998 | AV166: 10.66644 | AW166: 10.1453 | AX166: 10.57277 | AZ166: 9.994437 | BA166: 9.705465 | BB166: 10.52809 | BC166: 9.614694 | BD166: 9.264134 | BE166: 9.878926 | BJ166: 1468.578 | BK166: 97522940 | BL166: 37.65382 | BM166: 1476.2886 | BN166: 37.65381925
A167: 27900 | B167: Joplin, MO | C167: 14.84959007 | D167: 1.15 | E167: 29836 | F167: 2.082357 | I167: 30991.33 | J167: 106561 | K167: 172615 | L167: 0.0286649 | M167: 28664.9 | N167: 4947991714 | O167: 72.64121 | P167: 10.34146 | Q167: -3.55208 | R167: 7.14464 | S167: -1.825067 | T167: 12.05882 | U167: 0.0016718 | V167: 0 | W167: 785.119 | X167: 1267.296 | Y167: 0 | Z167: 0 | AA167: 288.8262 | AB167: 172615 | AC167: 0 | AD167: 0.0016732 | AE167: 0 | AF167: 0.2281138 | AK167: 0 | AL167: 3.976066 | AM167: 8.993132 | AP167: 10.39698 | AQ167: 10.54449 | AR167: 10.46875 | AS167: 9.93255 | AT167: 10.68653 | AU167: 11.03191 | AV167: 10.85358 | AW167: 10.13182 | AX167: 10.50309 | AY167: 10.90196 | AZ167: 9.8555 | BA167: 9.799745 | BB167: 10.46267 | BC167: 9.559506 | BD167: 9.313509 | BE167: 9.828699 | BJ167: 1266.15 | BK167: 72394422 | BL167: 27.95164 | BM167: 1267.8657 | BN167: 27.95164379
A168: 28020 | B168: Kalamazoo-Portage, MI | C168: 14.84959007 | D168: 1.15 | E168: 33075 | F168: 2.239034 | G168: 0.2181799 | H168: 0.3865419 | I168: 36942.97 | J168: 180716 | K168: 324135 | L168: 0.0323415 | M168: 32341.5 | N168: 1.04830121e+10 | O168: 130.8376 | P168: 10.51713 | Q168: -3.431405 | R168: 7.190359 | S168: -1.406696 | T168: 12.68892 | U168: 0.000908 | V168: 0 | W168: 761.2416 | X168: 1326.579 | Y168: 0 | Z168: 0 | AA168: 294.4432 | AB168: 324135 | AC168: 0 | AD168: 0.0009084 | AE168: 0 | AF168: 0.2510763 | AH168: 342 | AK168: 0 | AL168: 2.250449 | AM168: 11.80466 | AO168: 10.2998 | AP168: 10.78342 | AQ168: 10.82604 | AR168: 11.18959 | AS168: 9.936048 | AT168: 10.5073 | AU168: 10.63007 | AV168: 10.79572 | AW168: 10.21382 | AX168: 10.83694 | AY168: 11.32705 | AZ168: 10.23006 | BA168: 10.22862 | BB168: 10.60232 | BC168: 9.846971 | BD168: 9.401454 | BE168: 10.07104 | BG168: 0 | BI168: 1515208 | BJ168: 1172.724 | BK168: 144142400 | BL168: 55.65369 | BM168: 1670.1946 | BN168: 55.65369415
A169: 28100 | B169: Kankakee-Bradley, IL | C169: 14.84959007 | D169: 1.15 | E169: 31780 | F169: 2.301 | G169: 0.2100662 | H169: 0.3403325 | I169: 31264.99 | J169: 55912 | K169: 112719 | L169: 0.0241219 | M169: 24121.9 | N169: 2718996446 | O169: 35.06665 | P169: 10.35025 | Q169: -3.724634 | R169: 7.208433 | S169: -1.91749 | T169: 11.63265 | U169: 0.0012078 | V169: 0 | W169: 874.5917 | X169: 1350.774 | Y169: 0 | Z169: 0 | AA169: 136.2281 | AB169: 112719 | AC169: 0 | AD169: 0.0012086 | AE169: 0 | AF169: 0.2012977 | AH169: 202 | AK169: 0 | AL169: 3.884833 | AP169: 10.80088 | AQ169: 10.77971 | AR169: 10.69668 | AS169: 9.896102 | AT169: 10.35353 | AU169: 10.54898 | AV169: 10.40871 | AW169: 10.19612 | AX169: 10.40207 | AY169: 10.7784 | AZ169: 10.12607 | BB169: 10.49971 | BC169: 9.704345 | BD169: 9.294129 | BE169: 9.969358 | BG169: 0 | BI169: 643503 | BJ169: 676.7491 | BK169: 42553077 | BL169: 16.42983 | BM169: 681.3634 | BN169: 16.42983558
A170: 28140 | B170: Kansas City, MO-KS | C170: 14.84959007 | D170: 1.1 | E170: 40438 | F170: 2.157643 | G170: 0.1703363 | H170: 0.4455506 | I170: 41787.36 | J170: 1318998 | K170: 2046083 | L170: 0.0437846 | M170: 43784.6 | N170: 8.958692572e+10 | O170: 704.9833 | P170: 10.64035 | Q170: -3.128472 | R170: 7.231063 | S170: -1.296633 | T170: 14.53144 | U170: 0.0008386 | V170: 0 | W170: 1093.054 | X170: 1381.691 | Y170: 0 | Z170: 0 | AA170: 1716.49 | AB170: 2046083 | AC170: 0 | AD170: 0.0008389 | AE170: 0 | AF170: 0.218479 | AH170: 1099 | AK170: 0 | AL170: 2.434795 | AM170: 10.57943 | AN170: 10.65408 | AO170: 11.37675 | AP170: 10.84069 | AQ170: 10.80486 | AR170: 10.74543 | AS170: 10.05166 | AT170: 10.49038 | AU170: 11.13315 | AV170: 11.04489 | AW170: 10.50919 | AX170: 11.06405 | AY170: 11.23183 | AZ170: 10.24128 | BA170: 10.25313 | BB170: 10.65497 | BC170: 10.39653 | BD170: 9.597274 | BE170: 10.11591 | BF170: 9.79955 | BG170: 0 | BI170: 9688815 | BJ170: 7856.543 | BK170: 797216311 | BL170: 307.8069 | BM170: 7950.0499 | BN170: 307.8069516
A171: 28420 | B171: Kennewick-Richland-Pasco, WA | C171: 14.84959007 | D171: 1.15 | E171: 34539 | F171: 2.543627 | G171: 0.292634 | H171: 0.3217988 | I171: 41884.51 | J171: 126413 | K171: 237206 | L171: 0.031656 | M171: 31656 | N171: 7508993136 | O171: 94.48605 | P171: 10.64267 | Q171: -3.452827 | R171: 6.749113 | S171: -1.535958 | T171: 12.37668 | U171: 0.0011577 | V171: 0 | W171: 628.6219 | X171: 853.3012 | Y171: 0 | Z171: 0 | AA171: 274.7716 | AB171: 237206 | AC171: 0 | AD171: 0.0011584 | AE171: 0 | AF171: 0.0932854 | AH171: 400 | AK171: 0 | AL171: 2.908065 | AM171: 10.40539 | AP171: 10.72957 | AQ171: 10.79255 | AR171: 10.75215 | AS171: 10.09693 | AT171: 10.53563 | AU171: 10.53571 | AV171: 10.80482 | AW171: 10.39862 | AX171: 11.23891 | AZ171: 10.84345 | BA171: 9.930168 | BB171: 10.59726 | BC171: 9.693822 | BD171: 9.520832 | BE171: 10.00546 | BG171: 0 | BI171: 2537360 | BJ171: 2945.493 | BK171: 166307771 | BL171: 64.21179 | BM171: 3025.3298 | BN171: 64.2117921
A172: 28660 | B172: Killeen-Temple-Fort Hood, TX | C172: 14.84959007 | D172: 1.15 | E172: 39344 | F172: 2.173817 | G172: 0.2296375 | H172: 0.3196308 | I172: 31612.51 | J172: 225225 | K172: 379569 | L172: 0.01767 | M172: 17670 | N172: 6706984230 | O172: 115.5583 | P172: 10.36131 | Q172: -4.035885 | R172: 6.76996 | S172: -1.880234 | T172: 12.84679 | U172: 0.0009504 | V172: 0 | W172: 701.5681 | X172: 871.2776 | Y172: 0 | Z172: 0 | AA172: 360.912 | AB172: 379569 | AC172: 0 | AD172: 0.0009508 | AE172: 0 | AF172: 0.1278232 | AH172: 270 | AK172: 0 | AL172: 3.123204 | AN172: 10.65762 | AO172: 11.00363 | AP172: 10.50877 | AQ172: 10.5396 | AR172: 10.72578 | AS172: 9.981918 | AT172: 10.4299 | AU172: 10.82044 | AV172: 10.47663 | AW172: 10.20279 | AX172: 10.67192 | AY172: 11.23946 | AZ172: 10.4388 | BA172: 9.919317 | BB172: 10.73109 | BC172: 9.287918 | BD172: 9.343618 | BE172: 9.823023 | BF172: 10.12663 | BG172: 0 | BI172: 795480 | BJ172: 2823.524 | BK172: 186497018 | BL172: 72.0069 | BM172: 2858.6189 | BN172: 72.00690428
A173: 28700 | B173: Kingsport-Bristol-Bristol, TN-VA | C173: 14.84959007 | D173: 1.15 | E173: 31770 | F173: 2.12982 | I173: 35165.47 | J173: 165497 | K173: 304679 | L173: 0.0292045 | M173: 29204.5 | N173: 8897997856 | O173: 171.2582 | P173: 10.46782 | Q173: -3.533432 | R173: 6.76328 | S173: -1.800547 | T173: 12.62701 | U173: 0.000941 | V173: 0 | W173: 528.5821 | X173: 865.4768 | Y173: 0 | Z173: 0 | AA173: 286.8513 | AB173: 304679 | AC173: 0 | AD173: 0.0009415 | AE173: 0 | AF173: 0.1997211 | AK173: 0 | AL173: 1.674964 | AM173: 10.00858 | AN173: 11.10008 | AP173: 10.47295 | AQ173: 10.72078 | AR173: 11.0288 | AS173: 9.977843 | AT173: 10.46108 | AU173: 10.76385 | AV173: 10.67616 | AW173: 10.16693 | AX173: 10.51541 | AY173: 10.7845 | AZ173: 10.22228 | BA173: 10.05143 | BB173: 10.55888 | BC173: 9.11052 | BD173: 9.342534 | BE173: 9.96352 | BJ173: 1436.259 | BK173: 190332574 | BL173: 73.48782 | BM173: 2047.0909 | BN173: 73.48782079
A174: 28740 | B174: Kingston, NY | C174: 14.84959007 | D174: 1.15 | E174: 36519 | F174: 2.439 | I174: 31276.14 | J174: 89075 | K174: 181722 | L174: 0.0197169 | M174: 19716.9 | N174: 3582994502 | O174: 71.98371 | P174: 10.35061 | Q174: -3.926278 | R174: 7.505481 | S174: -1.380062 | T174: 12.11023 | U174: 0.0015419 | V174: 0 | W174: 449.7823 | X174: 1817.979 | Y174: 0 | Z174: 0 | AA174: 280.4205 | AB174: 181722 | AC174: 0 | AD174: 0.0015431 | AE174: 0 | AF174: 0.2489358 | AK174: 0 | AL174: 3.89561 | AM174: 10.28529 | AP174: 10.65159 | AQ174: 10.606 | AR174: 10.85326 | AS174: 10.03972 | AT174: 10.21563 | AU174: 10.62621 | AV174: 10.70564 | AW174: 10.237 | AX174: 10.93114 | AZ174: 9.99027 | BA174: 10.18459 | BB174: 10.41846 | BC174: 10.07861 | BD174: 9.658522 | BE174: 9.854186 | BJ174: 1126.477 | BK174: 19408036 | BL174: 7.493484 | BM174: 1160.7608 | BN174: 7.493484912
A175: 28940 | B175: Knoxville, TN | C175: 14.84959007 | D175: 1.15 | E175: 33912 | F175: 2.111204 | G175: 0.2624976 | H175: 0.3143886 | I175: 36553.91 | J175: 457464 | K175: 692210 | L175: 0.0377689 | M175: 37768.9 | N175: 2.614401027e+10 | O175: 367.6703 | P175: 10.50654 | Q175: -3.27627 | R175: 7.301172 | S175: -1.409452 | T175: 13.44764 | U175: 0.0006454 | V175: 0 | W175: 759.4548 | X175: 1482.036 | Y175: 0 | Z175: 0 | AA175: 446.8676 | AB175: 692210 | AC175: 0 | AD175: 0.0006456 | AE175: 0 | AF175: 0.2406427 | AH175: 534 | AK175: 0 | AL175: 1.215403 | AM175: 10.70989 | AN175: 10.82566 | AP175: 10.66407 | AQ175: 10.78578 | AR175: 10.69652 | AS175: 10.062 | AT175: 10.53644 | AU175: 10.99871 | AV175: 10.7571 | AW175: 10.40572 | AX175: 10.98326 | AY175: 11.06458 | AZ175: 10.33693 | BA175: 10.12095 | BB175: 10.63568 | BC175: 9.73584 | BD175: 9.485422 | BE175: 10.05615 | BF175: 9.960898 | BG175: 0 | BI175: 2672176 | BJ175: 1856.975 | BK175: 304382728 | BL175: 117.5228 | BM175: 1931.8191 | BN175: 117.5228333
A176: 29020 | B176: Kokomo, IN | C176: 14.84959007 | D176: 1.15 | E176: 31677 | F176: 2.282327 | G176: 0.2322608 | H176: 0.458894 | I176: 40974.8 | J176: 55672 | K176: 99450 | L176: 0.031091 | M176: 31091 | N176: 3091999950 | O176: 40.60297 | P176: 10.62071 | Q176: -3.470837 | R176: 7.439933 | S176: -1.747329 | T176: 11.50741 | U176: 0.0008086 | V176: 0 | W176: 897.4713 | X176: 1702.637 | Y176: 0 | Z176: 0 | AA176: 80.44594 | AB176: 99450 | AC176: 0 | AD176: 0.0008089 | AE176: 0 | AF176: 0.145353 | AH176: 0 | AK176: 0 | AL176: 1.981282 | AO176: 11.08655 | AP176: 10.64459 | AQ176: 10.67923 | AR176: 10.7843 | AS176: 9.966489 | AT176: 10.43431 | AU176: 10.85971 | AV176: 10.69448 | AW176: 10.07283 | AX176: 10.49334 | AZ176: 9.826459 | BA176: 9.774149 | BB176: 10.4806 | BC176: 9.424337 | BD176: 9.321619 | BE176: 9.763735 | BG176: 0 | BI176: 0 | BJ176: 553.452 | BK176: 49735951 | BL176: 19.20316 | BM176: 554.48858 | BN176: 19.20315886
A177: 29100 | B177: La Crosse, WI-MN | C177: 14.84959007 | D177: 1.15 | E177: 35908 | F177: 2.31982 | G177: 0.1831345 | H177: 0.3492094 | I177: 31804.54 | J177: 94998 | K177: 131728 | L177: 0.0347231 | M177: 34723.1 | N177: 4574004517 | O177: 44.07581 | P177: 10.36736 | Q177: -3.360351 | R177: 7.624713 | S177: -1.489797 | T177: 11.78849 | U177: 0.0015403 | V177: 0 | W177: 1267.634 | X177: 2048.193 | Y177: 0 | Z177: 0 | AA177: 203.0618 | AB177: 131728 | AC177: 0 | AD177: 0.0015415 | AE177: 0 | AF177: 0.2008233 | AH177: 175 | AK177: 0 | AL177: 4.607103 | AO177: 11.15913 | AP177: 10.85852 | AQ177: 10.45132 | AR177: 10.60556 | AS177: 9.909149 | AT177: 10.4291 | AU177: 10.66703 | AV177: 10.74469 | AW177: 10.20743 | AX177: 10.75288 | AY177: 10.64579 | AZ177: 10.24209 | BA177: 10.05406 | BB177: 10.5882 | BC177: 9.554495 | BD177: 9.221303 | BE177: 9.935661 | BG177: 0 | BI177: 750397 | BJ177: 1011.146 | BK177: 45586065 | BL177: 17.60088 | BM177: 1048.795 | BN177: 17.60087885
A178: 29140 | B178: Lafayette, IN | C178: 14.84959007 | D178: 1.15 | E178: 30620 | F178: 2.331678 | G178: 0.1606166 | H178: 0.4048517 | I178: 34471.19 | J178: 116665 | K178: 193753 | L178: 0.0304873 | M178: 30487.3 | N178: 5907005837 | O178: 58.12859 | P178: 10.44788 | Q178: -3.490446 | R178: 7.531903 | S178: -1.486556 | T178: 12.17434 | U178: 0.0013889 | V178: 0 | W178: 1146.338 | X178: 1866.655 | Y178: 0 | Z178: 0 | AA178: 269.2833 | AB178: 193753 | AC178: 0 | AD178: 0.0013898 | AE178: 0 | AF178: 0.2106475 | AH178: 673 | AK178: 0 | AL178: 4.632545 | AO178: 11.1289 | AP178: 10.71219 | AQ178: 10.87488 | AR178: 10.67054 | AS178: 9.911191 | AT178: 10.47497 | AU178: 10.28645 | AV178: 10.83996 | AW178: 10.36858 | AX178: 10.74898 | AY178: 11.17491 | AZ178: 10.11576 | BA178: 10.00433 | BB178: 10.57209 | BC178: 9.351541 | BD178: 9.383512 | BE178: 10.00802 | BG178: 0 | BI178: 1494773 | BJ178: 1278.36 | BK178: 55537547 | BL178: 21.44317 | BM178: 1284.7707 | BN178: 21.44316769
A179: 29180 | B179: Lafayette, LA | C179: 14.84959007 | D179: 1.15 | E179: 41670 | F179: 2.202053 | G179: 0.2444981 | H179: 0.3720733 | I179: 38536.25 | J179: 192849 | K179: 259773 | L179: 0.0670701 | M179: 67070.1 | N179: 1.742300109e+10 | O179: 125.4428 | P179: 10.55935 | Q179: -2.702017 | R179: 7.471288 | S179: -1.614345 | T179: 12.46756 | U179: 0.0006239 | V179: 0 | W179: 930.2409 | X179: 1756.868 | Y179: 0 | Z179: 0 | AA179: 162.1187 | AB179: 259773 | AC179: 0 | AD179: 0.0006241 | AE179: 0 | AF179: 0.1605633 | AH179: 321 | AK179: 0 | AL179: 1.292372 | AM179: 10.02506 | AN179: 11.24244 | AP179: 10.66048 | AQ179: 10.66462 | AR179: 10.89468 | AS179: 10.04133 | AT179: 10.74675 | AU179: 10.58714 | AV179: 10.79531 | AW179: 10.91317 | AX179: 10.83501 | AY179: 11.02162 | AZ179: 10.35211 | BA179: 10.29495 | BB179: 10.43573 | BC179: 9.750753 | BD179: 9.564446 | BE179: 10.09078 | BF179: 9.975808 | BG179: 0 | BI179: 625395 | BJ179: 1009.687 | BK179: 140469840 | BL179: 54.23571 | BM179: 1085.6984 | BN179: 54.23571074
A180: 29340 | B180: Lake Charles, LA | C180: 14.84959007 | D180: 1.15 | E180: 36210 | F180: 2.175097 | I180: 36383.14 | J180: 116954 | K180: 192972 | L180: 0.0611488 | M180: 61148.8 | N180: 1.180000623e+10 | O180: 98.51676 | P180: 10.50186 | Q180: -2.794446 | R180: 7.152925 | S180: -1.861245 | T180: 12.1703 | U180: 0.0007901 | V180: 0 | W180: 641.5964 | X180: 1277.839 | Y180: 0 | Z180: 0 | AA180: 152.5304 | AB180: 192972 | AC180: 0 | AD180: 0.0007904 | AE180: 0 | AF180: 0.0639787 | AK180: 0 | AL180: 1.548269 | AM180: 11.08981 | AN180: 11.16178 | AO180: 11.36119 | AP180: 10.58326 | AQ180: 11.18309 | AR180: 10.77373 | AS180: 9.976104 | AT180: 10.73489 | AU180: 10.72368 | AV180: 10.54484 | AW180: 10.48241 | AX180: 10.84529 | AY180: 11.15957 | AZ180: 10.24381 | BA180: 9.786077 | BB180: 10.43718 | BC180: 10.07042 | BD180: 9.820238 | BE180: 9.930604 | BJ180: 2384.082 | BK180: 93826951 | BL180: 36.22679 | BM180: 3030.926 | BN180: 36.22678985
A181: 29420 | B181: Lake Havasu City-Kingman, AZ | C181: 14.84959007 | D181: 1.15 | E181: 26185 | F181: 2.343 | I181: 27628.06 | J181: 71828 | K181: 195601 | L181: 0.0154652 | M181: 15465.2 | N181: 3025008585 | O181: 75.84 | P181: 10.22659 | Q181: -4.169166 | R181: 6.549687 | S181: -2.160656 | T181: 12.18383 | U181: 0.0018449 | V181: 0 | W181: 503.3359 | X181: 699.0257 | Y181: 0 | Z181: 0 | AA181: 361.195 | AB181: 195601 | AC181: 0 | AD181: 0.0018466 | AE181: 0 | AF181: 0.0271338 | AK181: 0 | AL181: 4.762592 | AM181: 11.0219 | AO181: 10.92976 | AP181: 10.2188 | AQ181: 10.55082 | AR181: 10.47545 | AS181: 10.01795 | AT181: 10.52506 | AU181: 10.50904 | AV181: 10.51728 | AW181: 10.0307 | AX181: 10.27616 | AZ181: 9.975755 | BA181: 10.06687 | BB181: 10.57321 | BC181: 9.75173 | BD181: 9.410194 | BE181: 9.872908 | BJ181: 13311.64 | BK181: 101031754 | BL181: 39.00858 | BM181: 13460.489 | BN181: 39.00857996
A182: 29460 | B182: Lakeland, FL | C182: 14.84959007 | D182: 1.15 | E182: 32336 | F182: 2.321 | G182: 0.1964037 | H182: 0.284109 | I182: 33487.68 | J182: 273280 | K182: 580282 | L182: 0.0246846 | M182: 24684.6 | N182: 1.432402906e+10 | O182: 241.6228 | P182: 10.41893 | Q182: -3.701578 | R182: 7.246919 | S182: -1.813205 | T182: 13.27127 | U182: 0.0006167 | V182: 0 | W182: 654.218 | X182: 1403.773 | Y182: 0 | Z182: 0 | AA182: 357.9502 | AB182: 580282 | AC182: 0 | AD182: 0.0006169 | AE182: 0 | AF182: 0.1909698 | AH182: 484 | AK182: 0 | AL182: 1.481442 | AM182: 10.25052 | AO182: 11.31139 | AP182: 10.49015 | AQ182: 10.58836 | AR182: 10.65008 | AS182: 10.03436 | AT182: 10.49069 | AU182: 10.71449 | AV182: 10.87163 | AW182: 10.42843 | AX182: 10.70602 | AY182: 10.8965 | AZ182: 10.05717 | BA182: 10.0742 | BB182: 10.54211 | BC182: 9.731578 | BD182: 9.465979 | BE182: 9.978297 | BG182: 0 | BI182: 2092492 | BJ182: 1874.381 | BK182: 150727020 | BL182: 58.19603 | BM182: 2010.5275 | BN182: 58.19603025
A183: 29540 | B183: Lancaster, PA | C183: 14.84959007 | D183: 1.15 | E183: 36336 | F183: 2.24 | G183: 0.1763193 | H183: 0.397519 | I183: 35402.96 | J183: 310444 | K183: 503807 | L183: 0.0357796 | M183: 35779.6 | N183: 1.802601294e+10 | O183: 227.0653 | P183: 10.47455 | Q183: -3.330378 | R183: 8.543594 | S183: -1.578037 | T183: 13.12995 | U183: 0.0005956 | V183: 0 | W183: 785.0958 | X183: 5133.765 | Y183: 0 | Z183: 0 | AA183: 300.1472 | AB183: 503807 | AC183: 0 | AD183: 0.0005958 | AE183: 0 | AF183: 0.3162571 | AH183: 318 | AK183: 0 | AL183: 1.321854 | AM183: 10.26418 | AN183: 10.82546 | AO183: 11.25717 | AP183: 10.77506 | AQ183: 10.69154 | AR183: 10.57656 | AS183: 10.00374 | AT183: 10.47213 | AU183: 10.68063 | AV183: 10.88876 | AW183: 10.47196 | AX183: 10.74238 | AY183: 11.25525 | AZ183: 10.10307 | BA183: 10.00813 | BB183: 10.52193 | BC183: 9.916848 | BD183: 9.540257 | BE183: 9.937557 | BG183: 0 | BI183: 1479889 | BJ183: 949.0609 | BK183: 20009002 | BL183: 7.725519 | BM183: 983.72776 | BN183: 7.725519192
A184: 29620 | B184: Lansing-East Lansing, MI | C184: 14.84959007 | D184: 1.15 | E184: 34192 | F184: 2.320295 | G184: 0.1154791 | H184: 0.4013664 | I184: 36458.86 | J184: 283164 | K184: 454605 | L184: 0.0311413 | M184: 31141.3 | N184: 1.415699069e+10 | O184: 155.2312 | P184: 10.50394 | Q184: -3.46922 | R184: 7.981498 | S184: -1.396949 | T184: 13.02718 | U184: 0.0009637 | V184: 0 | W184: 1211.992 | X184: 2926.312 | Y184: 0 | Z184: 0 | AA184: 438.3072 | AB184: 454605 | AC184: 0 | AD184: 0.0009641 | AE184: 0 | AF184: 0.2567621 | AH184: 374 | AK184: 0 | AL184: 2.823577 | AP184: 10.89796 | AQ184: 10.87488 | AR184: 10.72502 | AS184: 9.947225 | AT184: 10.40245 | AU184: 10.90093 | AV184: 11.03612 | AW184: 10.24992 | AX184: 10.82159 | AY184: 10.80368 | AZ184: 10.17838 | BA184: 10.24874 | BB184: 10.60568 | BC184: 9.707982 | BD184: 9.346894 | BE184: 10.31727 | BF184: 9.752665 | BG184: 0 | BI184: 3149047 | BJ184: 1707.056 | BK184: 107392515 | BL184: 41.46448 | BM184: 1714.7027 | BN184: 41.46448362
A185: 29700 | B185: Laredo, TX | C185: 14.84959007 | D185: 1.11 | E185: 23294 | F185: 2.372 | G185: 0.2635628 | H185: 0.2305128 | I185: 24407.41 | J185: 115282 | K185: 235937 | L185: 0.0202639 | M185: 20263.9 | N185: 4781003774 | O185: 47.90225 | P185: 10.10264 | Q185: -3.898915 | R185: 7.214986 | S185: -2.144049 | T185: 12.37132 | U185: 0.0007911 | V185: 0 | W185: 1221.153 | X185: 1359.655 | Y185: 0 | Z185: 0 | AA185: 186.7281 | AB185: 235937 | AC185: 0 | AD185: 0.0007914 | AE185: 0 | AF185: 0.0556263 | AH185: 327 | AK185: 0 | AL185: 3.898107 | AN185: 11.02898 | AO185: 10.99455 | AP185: 10.1251 | AQ185: 10.22594 | AR185: 10.41852 | AS185: 9.860147 | AT185: 10.33384 | AU185: 10.41131 | AV185: 10.43018 | AW185: 10.21149 | AX185: 10.26176 | AY185: 10.56744 | AZ185: 9.883164 | BA185: 10.23135 | BB185: 10.09066 | BC185: 9.695781 | BD185: 9.391935 | BE185: 9.944346 | BG185: 0 | BI185: 1645217 | BJ185: 3356.833 | BK185: 111411080 | BL185: 43.01606 | BM185: 3375.6536 | BN185: 43.01606031
A186: 29740 | B186: Las Cruces, NM | C186: 14.84959007 | D186: 1.15 | E186: 28165 | F186: 2.283 | G186: 0.2626021 | H186: 0.2508915 | I186: 26746.09 | J186: 91977 | K186: 201428 | L186: 0.0180114 | M186: 18011.4 | N186: 3628000279 | O186: 88.21809 | P186: 10.19414 | Q186: -4.01675 | R186: 7.089371 | S186: -1.627638 | T186: 12.21319 | U186: 0.0012904 | V186: 0 | W186: 590.7178 | X186: 1199.153 | Y186: 0 | Z186: 0 | AA186: 260.0854 | AB186: 201428 | AC186: 0 | AD186: 0.0012912 | AE186: 0 | AF186: 0.0683144 | AH186: 171 | AK186: 0 | AL186: 2.948209 | AM186: 10.37619 | AN186: 10.2762 | AO186: 11.02341 | AP186: 10.29568 | AQ186: 10.43156 | AR186: 10.37057 | AS186: 9.921377 | AT186: 9.992012 | AU186: 10.67982 | AV186: 10.55589 | AW186: 9.981242 | AX186: 10.73792 | AY186: 11.0621 | AZ186: 9.993302 | BA186: 9.912723 | BB186: 10.36164 | BC186: 9.689093 | BD186: 9.309979 | BE186: 9.871361 | BG186: 0 | BI186: 442185 | BJ186: 3807.184 | BK186: 93877790 | BL186: 36.24642 | BM186: 3814.6482 | BN186: 36.2464189
A187: 29820 | B187: Las Vegas-Paradise, NV | C187: 14.84959007 | D187: 1.26 | E187: 36711 | F187: 2.442 | G187: 0.433869 | H187: 0.3710698 | I187: 37940.36 | J187: 1165516 | K187: 1879093 | L187: 0.0469051 | M187: 46905.1 | N187: 8.813904507e+10 | O187: 297.4547 | P187: 10.54377 | Q187: -3.059629 | R187: 8.22969 | S187: -1.795878 | T187: 14.4463 | U187: 0.0002802 | V187: 0 | W187: 2313.3 | X187: 3750.668 | Y187: 0 | Z187: 0 | AA187: 526.5761 | AB187: 1879093 | AC187: 0 | AD187: 0.0002802 | AE187: 0 | AF187: 0.0665681 | AH187: 907 | AK187: 0 | AL187: 1.770273 | AN187: 10.90682 | AP187: 10.88002 | AQ187: 10.69427 | AR187: 10.86832 | AS187: 10.17269 | AT187: 10.40463 | AU187: 10.86647 | AV187: 10.86031 | AW187: 10.48554 | AX187: 10.98478 | AY187: 11.63939 | AZ187: 10.15696 | BA187: 10.27616 | BB187: 10.75716 | BC187: 10.28291 | BD187: 10.2643 | BE187: 10.15018 | BF187: 9.89183 | BG187: 0 | BI187: 16600000 | BJ187: 7910.335 | BK187: 331199757 | BL187: 127.8769 | BM187: 8060.8677 | BN187: 127.8769465
A188: 29940 | B188: Lawrence, KS | C188: 14.84959007 | D188: 1.15 | E188: 32070 | F188: 2.165 | G188: 0.2560285 | H188: 0.2990159 | I188: 27093.68 | J188: 65768 | K188: 114752 | L188: 0.0219778 | M188: 21977.8 | N188: 2521996506 | O188: 26.17315 | P188: 10.20706 | Q188: -3.817721 | R188: 7.404918 | S188: -1.196723 | T188: 11.65053 | U188: 0.0009848 | V188: 0 | W188: 1437.81 | X188: 1644.049 | Y188: 0 | Z188: 0 | AA188: 113.0604 | AB188: 114752 | AC188: 0 | AD188: 0.0009853 | AE188: 0 | AF188: 0.2474672 | AH188: 102 | AK188: 0 | AL188: 4.319711 | AP188: 10.43383 | AQ188: 10.61841 | AR188: 10.54853 | AS188: 9.812803 | AT188: 10.17795 | AU188: 10.50437 | AV188: 10.6132 | AW188: 10.25094 | AX188: 10.4708 | AZ188: 9.913204 | BA188: 9.970469 | BB188: 10.38415 | BC188: 9.573734 | BD188: 9.30339 | BE188: 10.00506 | BF188: 9.721166 | BG188: 0 | BI188: 643502 | BJ188: 456.8704 | BK188: 56510143 | BL188: 21.81869 | BM188: 474.63646 | BN188: 21.81868912
A189: 30020 | B189: Lawton, OK | C189: 14.84959007 | D189: 1.15 | E189: 36564 | F189: 2.161 | G189: 0.3067999 | H189: 0.1599143 | I189: 28377.43 | J189: 67037 | K189: 112249 | L189: 0.0182986 | M189: 18298.6 | N189: 2053999551 | O189: 55.27991 | P189: 10.25335 | Q189: -4.00093 | R189: 6.023337 | S189: -1.789603 | T189: 11.62848 | U189: 0.0010957 | V189: 0 | W189: 405.4276 | X189: 412.9543 | Y189: 0 | Z189: 0 | AA189: 123.0587 | AB189: 112249 | AC189: 0 | AD189: 0.0010963 | AE189: 0 | AF189: 0.1150785 | AH189: 42 | AK189: 0 | AL189: 2.226101 | AO189: 11.00788 | AP189: 10.2475 | AQ189: 10.75008 | AR189: 10.37014 | AS189: 9.887662 | AT189: 10.30478 | AU189: 10.42645 | AV189: 10.19906 | AW189: 10.00363 | AX189: 10.64035 | AY189: 10.55222 | AZ189: 10.1447 | BA189: 10.32535 | BB189: 10.58521 | BC189: 10.00802 | BD189: 9.383436 | BE189: 9.708699 | BG189: 0 | BI189: 578246 | BJ189: 1069.345 | BK189: 140564731 | BL189: 54.27235 | BM189: 1083.7057 | BN189: 54.27234837
A190: 30140 | B190: Lebanon, PA | C190: 14.84959007 | D190: 1.15 | E190: 36850 | F190: 2.275 | G190: 0.1750932 | H190: 0.2289143 | I190: 31198.04 | J190: 64007 | K190: 129302 | L190: 0.0236501 | M190: 23650.1 | N190: 3058005230 | O190: 42.7584 | P190: 10.34811 | Q190: -3.74439 | R190: 7.58863 | S190: -1.810544 | T190: 11.76991 | U190: 0.0008482 | V190: 0 | W190: 643.5694 | X190: 1975.604 | Y190: 0 | Z190: 0 | AA190: 109.7181 | AB190: 129302 | AC190: 0 | AD190: 0.0008485 | AE190: 0 | AF190: 0.3032086 | AH190: 225 | AK190: 0 | AL190: 2.566 | AM190: 10.49349 | AO190: 11.34923 | AP190: 10.63441 | AQ190: 10.51898 | AR190: 10.56244 | AS190: 9.985939 | AT190: 10.29143 | AU190: 10.54882 | AV190: 10.60423 | AW190: 10.20997 | AX190: 10.68174 | AZ190: 9.790315 | BA190: 9.792062 | BB190: 10.59309 | BC190: 9.57891 | BD190: 9.360515 | BE190: 9.851914 | BG190: 0 | BI190: 444118 | BJ190: 361.8568 | BK190: 11253497 | BL190: 4.344999 | BM190: 362.60096 | BN190: 4.344999668
A191: 30300 | B191: Lewiston, ID-WA | C191: 14.84959007 | D191: 1.15 | E191: 34166 | F191: 2.341992 | I191: 32105.39 | J191: 36040 | K191: 60260 | L191: 0.0252738 | M191: 25273.8 | N191: 1522999188 | O191: 28.47032 | P191: 10.37678 | Q191: -3.677986 | R191: 6.96369 | S191: -1.644496 | T191: 11.00642 | U191: 0.0022787 | V191: 0 | W191: 708.2816 | X191: 1057.529 | Y191: 0 | Z191: 0 | AA191: 137.4731 | AB191: 60260 | AC191: 0 | AD191: 0.0022813 | AE191: 0 | AF191: 0.0926104 | AK191: 0 | AL191: 4.828647 | AM191: 11.03085 | AP191: 10.6207 | AQ191: 10.74659 | AR191: 10.55713 | AS191: 10.11463 | AT191: 10.39814 | AU191: 10.44117 | AV191: 10.6118 | AW191: 10.14217 | AX191: 10.37121 | AZ191: 10.16238 | BB191: 10.45346 | BC191: 9.703875 | BD191: 9.42136 | BE191: 9.747952 | BJ191: 1484.423 | BK191: 37059686 | BL191: 14.30882 | BM191: 1496.903 | BN191: 14.30882537
A192: 30340 | B192: Lewiston-Auburn, ME | C192: 14.84959007 | D192: 1.15 | E192: 35455 | F192: 2.363 | G192: 0.2084135 | H192: 0.2809008 | I192: 33307.03 | J192: 65807 | K192: 107061 | L192: 0.030973 | M192: 30973 | N192: 3316000353 | O192: 28.16532 | P192: 10.41352 | Q192: -3.474639 | R192: 7.328566 | S192: -1.925401 | T192: 11.58115 | U192: 0.0014519 | V192: 0 | W192: 1133.77 | X192: 1523.195 | Y192: 0 | Z192: 0 | AA192: 155.5522 | AB192: 107061 | AC192: 0 | AD192: 0.0014529 | AE192: 0 | AF192: 0.3307695 | AH192: 71 | AK192: 0 | AL192: 5.522827 | AM192: 9.989939 | AP192: 10.65705 | AQ192: 10.62627 | AR192: 10.61639 | AS192: 10.03878 | AT192: 10.48981 | AU192: 10.38068 | AV192: 10.60003 | AW192: 10.12919 | AX192: 10.69056 | AY192: 10.84368 | AZ192: 10.04306 | BA192: 10.04437 | BB192: 10.57749 | BC192: 9.735651 | BD192: 9.547812 | BE192: 9.993299 | BG192: 0 | BI192: 212736 | BJ192: 470.2738 | BK192: 50363110 | BL192: 19.4453 | BM192: 497.11564 | BN192: 19.44530631
A193: 30460 | B193: Lexington-Fayette, KY | C193: 14.84959007 | D193: 1.15 | E193: 35715 | F193: 2.260503 | G193: 0.2330536 | H193: 0.3802796 | I193: 37015.7 | J193: 324154 | K193: 464042 | L193: 0.0419423 | M193: 41942.3 | N193: 1.946298878e+10 | O193: 114.5716 | P193: 10.5191 | Q193: -3.17146 | R193: 7.563437 | S193: -1.30626 | T193: 13.04773 | U193: 0.0007396 | V193: 0 | W193: 1424.175 | X193: 1926.454 | Y193: 0 | Z193: 0 | AA193: 343.3243 | AB193: 464042 | AC193: 0 | AD193: 0.0007399 | AE193: 0 | AF193: 0.232166 | AH193: 281 | AK193: 0 | AL193: 2.996592 | AM193: 10.45233 | AO193: 11.21925 | AP193: 10.6682 | AQ193: 10.79911 | AR193: 11.00354 | AS193: 10.04165 | AT193: 10.54725 | AU193: 10.7002 | AV193: 10.83484 | AW193: 10.33693 | AX193: 10.84651 | AY193: 11.21594 | AZ193: 10.02443 | BA193: 9.941744 | BB193: 10.71089 | BC193: 10.04435 | BD193: 9.476265 | BE193: 10.15179 | BG193: 0 | BI193: 2144664 | BJ193: 1478.788 | BK193: 177649332 | BL193: 68.59079 | BM193: 1486.3089 | BN193: 68.59079347
A194: 30620 | B194: Lima, OH | C194: 14.84959007 | D194: 1.15 | E194: 30596 | F194: 2.259 | I194: 33530.73 | J194: 67234 | K194: 104826 | L194: 0.0356782 | M194: 35678.2 | N194: 3740002993 | O194: 48.17015 | P194: 10.42022 | Q194: -3.333216 | R194: 7.224666 | S194: -2.01285 | T194: 11.56006 | U194: 0.0010004 | V194: 0 | W194: 758.2496 | X194: 1372.88 | Y194: 0 | Z194: 0 | AA194: 104.9251 | AB194: 104826 | AC194: 0 | AD194: 0.0010009 | AE194: 0 | AF194: 0.259442 | AK194: 0 | AL194: 2.178218 | AP194: 10.69414 | AQ194: 10.9308 | AR194: 10.60479 | AS194: 9.884797 | AT194: 10.41604 | AU194: 10.46535 | AV194: 10.51931 | AW194: 10.10494 | AX194: 10.43874 | AY194: 11.21215 | AZ194: 10.06638 | BB194: 10.52629 | BC194: 9.551118 | BD194: 9.336127 | BE194: 9.753211 | BJ194: 404.426 | BK194: 39994562 | BL194: 15.44199 | BM194: 406.84688 | BN194: 15.44198738
A195: 30700 | B195: Lincoln, NE | C195: 14.84959007 | D195: 1.15 | E195: 37361 | F195: 2.332341 | G195: 0.1986366 | H195: 0.3192561 | I195: 33709.55 | J195: 216925 | K195: 294665 | L195: 0.0377004 | M195: =L195*1000000 -> 37700.4 | N195: 1.110898837e+10 | O195: 80.86006 | P195: 10.42554 | Q195: -3.278084 | R195: 7.405958 | S195: -1.279584 | T195: 12.59359 | U195: 0.0009591 | V195: 0 | W195: 1566.608 | X195: 1645.76 | Y195: 0 | Z195: 0 | AA195: 282.7459 | AB195: 294665 | AC195: 0 | AD195: 0.0009596 | AE195: 0 | AF195: 0.2000135 | AH195: 133 | AK195: 0 | AL195: 3.496731 | AP195: 10.55594 | AQ195: 10.72288 | AR195: 10.67291 | AS195: 9.920609 | AT195: 10.71206 | AU195: 10.60608 | AV195: 10.84125 | AW195: 10.2128 | AX195: 10.70278 | AY195: 10.90845 | AZ195: 9.943411 | BA195: 9.841811 | BB195: 10.56426 | BC195: 9.361005 | BD195: 9.302671 | BE195: 10.13962 | BG195: 0 | BH195: =IF(Z195>0,BG195/Z195,"") ->  | BI195: 1480332 | BJ195: 1413.634 | BK195: 195301897 | BL195: 75.40649 | BM195: 1422.2605 | BN195: 75.40648721
A196: 30780 | B196: Little Rock-North Little Rock, AR | C196: 14.84959007 | D196: 1.1 | E196: 39431 | F196: 2.1645 | G196: 0.1973462 | H196: 0.3531867 | I196: 36943.61 | J196: 436103 | K196: 675921 | L196: 0.0378151 | M196: 37815.1 | N196: =L196*K196*1000000 -> 2.556002021e+10 | O196: 246.5361 | P196: 10.51715 | Q196: -3.275048 | R196: 7.353425 | S196: -1.46777 | T196: 13.42383 | U196: 0.0011429 | V196: 5.03e-06 | W196: 976.5547 | X196: 1561.536 | Y196: 1 | Z196: 3.4 | AA196: 772.9659 | AB196: 675921 | AC196: 5.03e-06 | AD196: 0.0011436 | AE196: 0.0008312 | AF196: 0.1889734 | AH196: 360 | AK196: 0.0137911 | AL196: 3.135305 | AM196: 10.73278 | AN196: 11.33019 | AO196: 11.3735 | AP196: 10.59108 | AQ196: 10.63374 | AR196: 10.73884 | AS196: 10.05065 | AT196: 10.52714 | AU196: 10.98457 | AV196: 11.01904 | AW196: 10.28851 | AX196: 10.77326 | AY196: 11.39262 | AZ196: 10.06516 | BA196: 10.1558 | BB196: 10.666 | BC196: 9.819101 | BD196: 9.43726 | BE196: 10.05347 | BF196: 10.20906 | BG196: 53000 | BH196: 15588.23529 | BI196: 2323240 | BJ196: 4090.342 | BK196: 344866094 | BL196: 133.1535 | BM196: 4198.5288 | BN196: 133.153549
A197: 30860 | B197: Logan, UT-ID | C197: 14.84959007 | D197: 1.15 | E197: 25176 | F197: 2.25589 | G197: 0.2299011 | H197: 0.2377698 | I197: 28090.81 | J197: 71973 | K197: 124362 | L197: 0.0198935 | M197: 19893.5 | N197: 2473995447 | O197: 40.21303 | P197: 10.2432 | Q197: -3.91736 | R197: 7.438733 | S197: -1.552954 | T197: 11.73095 | U197: 0.0010489 | V197: 0 | W197: 849.0781 | X197: 1700.594 | Y197: 0 | Z197: 0 | AA197: 130.5135 | AB197: 124362 | AC197: 0 | AD197: 0.0010495 | AE197: 0 | AF197: 0.0713205 | AH197: 248 | AK197: 0 | AL197: 3.245553 | AN197: 10.33134 | AP197: 10.51252 | AQ197: 10.47136 | AR197: 10.47208 | AS197: 9.81838 | AT197: 10.39381 | AU197: 10.07699 | AV197: 10.5356 | AW197: 10.06502 | AX197: 10.48066 | AY197: 10.94833 | AZ197: 9.796269 | BA197: 9.861818 | BB197: 10.22744 | BC197: 9.204158 | BD197: 9.280067 | BE197: 9.943309 | BG197: 0 | BI197: 867284 | BJ197: 1829.957 | BK197: 33871293 | BL197: 13.07778 | BM197: 1841.3567 | BN197: 13.0777799
A198: 30980 | B198: Longview, TX | C198: 14.84959007 | D198: 1.15 | E198: 37616 | F198: 2.237861 | I198: 35428.88 | J198: 134466 | K198: 204496 | L198: 0.0441965 | M198: 44196.5 | N198: 9038007464 | O198: 80.98137 | P198: 10.47528 | Q198: -3.119111 | R198: 6.975824 | S198: -1.82078 | T198: 12.2283 | U198: 0.0018242 | V198: 0 | W198: 788.9716 | X198: 1070.439 | Y198: 0 | Z198: 0 | AA198: 373.3749 | AB198: 204496 | AC198: 0 | AD198: 0.0018258 | AE198: 0 | AF198: 0.2091476 | AK198: 0 | AL198: 4.610627 | AM198: 10.27655 | AN198: 11.07226 | AO198: 10.70749 | AP198: 10.58072 | AQ198: 10.70715 | AR198: 10.78416 | AS198: 10.08028 | AT198: 10.46579 | AU198: 10.59723 | AV198: 10.53814 | AW198: 10.87227 | AX198: 10.90275 | AY198: 11.01046 | AZ198: 10.067 | BB198: 10.5281 | BC198: 9.779994 | BD198: 9.359972 | BE198: 10.03602 | BJ198: 1785.222 | BK198: 113177228 | BL198: 43.69797 | BM198: 1806.7686 | BN198: 43.69797389
A199: 31020 | B199: Longview, WA | C199: 14.84959007 | D199: 1.15 | E199: 30859 | F199: 2.547 | G199: 0.2404952 | H199: 0.339031 | I199: 37439.56 | J199: 48337 | K199: 101537 | L199: 0.0248087 | M199: 24808.7 | N199: 2519000972 | O199: 27.54983 | P199: 10.53048 | Q199: -3.696561 | R199: 7.250511 | S199: -2.014786 | T199: 11.52818 | U199: 0.0009899 | V199: 0 | W199: 906.8658 | X199: 1408.824 | Y199: 0 | Z199: 0 | AA199: 100.5587 | AB199: 101537 | AC199: 0 | AD199: 0.0009904 | AE199: 0 | AF199: 0.0883145 | AH199: 99 | AK199: 0 | AL199: 3.650065 | AM199: 10.70136 | AN199: 11.00566 | AP199: 10.77967 | AQ199: 10.95483 | AR199: 10.69354 | AS199: 10.07691 | AT199: 10.56073 | AU199: 10.54127 | AV199: 10.65977 | AW199: 10.01848 | AX199: 10.54317 | AY199: 11.3267 | AZ199: 9.758838 | BA199: 9.801593 | BB199: 10.58304 | BC199: 9.736113 | BD199: 9.494418 | BE199: 9.915689 | BG199: 0 | BI199: 214747 | BJ199: 1138.643 | BK199: 29254531 | BL199: 11.29524 | BM199: 1166.0148 | BN199: 11.29523805
A200: 31100 | B200: Los Angeles-Long Beach-Santa Ana, CA | C200: 14.76111 | D200: 1.38 | E200: 42784 | F200: 2.650381 | G200: 0.1984329 | H200: 0.4292027 | I200: 47279 | J200: 7823094 | K200: 12768395 | L200: 0.0513263 | M200: 51326.3 | N200: 6.553544723e+11 | O200: 1851.368 | P200: 10.76382 | Q200: -2.969551 | R200: 8.180893 | S200: -1.409331 | T200: 16.36248 | U200: 0.0002866 | V200: 3.77e-05 | W200: 2645.846 | X200: 3572.042 | Y200: 1 | Z200: 481.3 | AA200: 3660.068 | AB200: 12768395 | AC200: 3.77e-05 | AD200: 0.0002867 | AE200: 0.0992315 | AF200: 0.7546103 | AH200: 11926 | AK200: 0.2599699 | AL200: 1.976953 | AM200: 10.32593 | AN200: 11.32304 | AP200: 10.80425 | AQ200: 10.77422 | AR200: 10.91684 | AS200: 10.1783 | AT200: 10.67873 | AU200: 11.1713 | AV200: 11.39027 | AW200: 10.80899 | AX200: 11.17666 | AY200: 11.46521 | AZ200: 10.30174 | BA200: 10.39902 | BB200: 10.74035 | BC200: 11.08079 | BD200: 9.771271 | BE200: 10.21321 | BF200: 10.16091 | BG200: 31800000 | BH200: 66071.05755 | BI200: 221000000 | BJ200: 4850.275 | BK200: 2242943688 | BL200: 866.0054 | BM200: 5698.8198 | BN200: 866.0054363
... 166 more rows

Sheet todo-questions-scraps (hidden)
A1: Questions
A2: Check units of GDP per capita. I am multiplying by a million and that SEEMS to be right…
A3: Six of 34 MSAs with rail have missing values for rail revenue miles -- how was this handled in rail revenue mile regressions?
A4: Was the rail dummy variable used in any of the estimates, in the end? (If so, need to include the effect in the spreadsheet tool)
A5: Why only 6.9 rail miles in Trenton-Ewing--shouldn't the River Line be attributed to that MSA?
A6: Four of 33 MSAs with rail have missing or zero values for rail seat capacity --how was this handled in seat capacity regressions?
A8: To do
A9: Alter models to include the base number of track miles as an independent variable, see how results change
A10: Incorporate standard deviations of coefficients into estimate-ranges
A11: Incorporate variance of the different output measures as some check on reliability for that proposal in that MSA
A12: e.g., does the seat capacity measure vary wildly from the train revenue miles measure?
A13: Add additional measures -- not all are included yet (e.g., total revenue miles)
A14: For future work: Better transit capacity measures? Seat miles?
A15: Define train revenue miles for users (the number of miles traveled by train cars per year)
A16: Remind user that impacts are 2 + 4 years out because of lag structure
A17: Add population and central-city-employment-density based effects together
A18: Add revenue miles and seat capacity based estimates
A19: Figure out how to handle change-in-pop and change-in-cc-density estimates
A20: Add protection to all non-user-entry cells
A21: Hide all non-user-entry worksheets (?)
A24: SCRAPS
C25: ='USER DATA ENTRY'!E33/'USER DATA ENTRY'!E44*'USER DATA ENTRY'!#REF! -> 
A26: Example to check calculations: trackmiles/UZAarea->population->total_wages | C26: =C25/'USER DATA ENTRY'!#REF!*100 ->  | I26: That's too big
A27: Additional population from TMA | C27: =C26/100*'USER DATA ENTRY'!#REF! -> 
A28: % increase in population | I28: ='USER DATA ENTRY'!#REF!/'USER DATA ENTRY'!#REF! -> 
A29: subseq % increase in wage
A30: applied to total wages
A32: below needs to be redone
A33: Example to check calculations: track_mileage->pcity_density->total_wages | B33: =LN('USER DATA ENTRY'!E43) -> 16.36248353
A34: Additional pcity density from track mileage addition | B34: =LN('USER DATA ENTRY'!E43+'USER DATA ENTRY'!#REF!) -> 
A35: log of pcity density before | B35: =B33*'USER DATA ENTRY'!#REF!*LN('USER DATA ENTRY'!#REF!) -> 
A36: log of pcity density after | B36: =B34*'USER DATA ENTRY'!#REF!*LN('USER DATA ENTRY'!#REF!) -> 
A37: effect of pcity density on log of per capita wages before | B37: =B36-B35 -> 
A38: effect of pcity density on log of per capita wages after | B38: =EXP(B37) -> 
A39: difference | B39: =EXP(LN(B36/B35)) -> 
A40: exponentiated difference (difference in unlogged dollars per capita) | B40: ='USER DATA ENTRY'!#REF!/'USER DATA ENTRY'!E43 -> 
B41: =B40*'USER DATA ENTRY'!#REF! -> 
A42: % increase in pcity density | B42: =B41*'USER DATA ENTRY'!#REF!*'USER DATA ENTRY'!#REF! -> 
A43: subseq % increase in per capita wage | B43: =EXP(LN('USER DATA ENTRY'!#REF!)*'USER DATA ENTRY'!#REF!*LN('USER DATA ENTRY'!#REF!)) ->  | C43: =B43*'USER DATA ENTRY'!#REF! -> 
A44: applied to total wages | B44: =EXP(LN('USER DATA ENTRY'!E43)*'USER DATA ENTRY'!#REF!*LN('USER DATA ENTRY'!#REF!)) -> 
A45: contribution of pcity density to wages after change | B45: =B43-B44 -> 
B46: =B45*'USER DATA ENTRY'!#REF! -> 
A47: difference
A48: Multiplied across all workers

Sheet Track mile pop elasticities (hidden)
A1: Elasticity calculations for population w.r.t. track miles (per capita and per sq mile UZA)
A2: note: total track miles and track miles per CBSA area are over identified
A3: Sample means for all MSAs 2008
A4: Pcity density 2008 | B4: 1698.6
A5: Track miles per capita 2008 (/1000) | B5: =0.00000264 -> 2.64e-06 | D5: note: per capita is divided by 1000, but does not matter for elasticity
A6: Track miles per sq mile UZA 2008 | B6: 0.0097814
A7: Rail revenue miles 2008 | B7: 894629.7
A8: Total revenue miles 2008 | B8: 8081743
A9: Population 2008 | B9: =699416.2 -> 699416.2
B11: ="lnwage" -> lnwage | C11: ="lngdppc00" -> lngdppc00 | D11: ="lnwage" -> lnwage | E11: ="lngdppc00" -> lngdppc00
A12: Productivity elasticity w.r.t. population | B12: OLS | C12: OLS | D12: IV | E12: IV
A13: no lag, from 2 year lag models | B13: =+'Productivity model estimates'!B18 -> 0.0420 | C13: =+'Productivity model estimates'!D18 -> 0.0610 | D13: =+'Productivity model estimates'!F18 -> 0.0344 | E13: =+'Productivity model estimates'!H18 -> 0.0633
B15: population | C15: population
A16: Track mile per capita coefficient | B16: OLS | C16: IV
A17: 4 year lags | B17: =+'Track miles population'!C9 -> 7.96294e+10 | C17: =+'Track miles population'!E9 -> 1.74931e+11 | F17: Effect of 1% change | H17: Totals: emp density + population effects
A18: Mean track mile per capita elasticity | B18: =+$B$5/$B$9*B17 -> 0.3005672674 | C18: =+$B$5/$B$9*C17 -> 0.6602904537 | F18: OLS | G18: IV | H18: OLS | I18: IV
A19: Mean agglomeration elasticity wages | B19: =+B18*B13 -> 0.01262382523 | C19: =+C18*D13 -> 0.02271399161 | E19: Average wages | F19: =+'all wage calcs'!$D$2*B19*0.01 -> 5.542240175 | G19: =+'all wage calcs'!$D$2*C19*0.01 -> 9.972127665 | H19: =+F19+'Track mile elasticities'!G18 ->  | I19: =+G19+'Track mile elasticities'!H18 -> 
A20: Mean agglomeration elasticity gdp per capita | B20: =+B18*C13 -> 0.01833460331 | C20: =+C18*E13 -> 0.04179638572 | E20: GDP per capita | F20: =+'all wage calcs'!$G$2*B20*0.01 -> 8.076192428 | G20: =+'all wage calcs'!$G$2*C20*0.01 -> 18.41085123 | H20: =+F20+'Track mile elasticities'!G19 ->  | I20: =+G20+'Track mile elasticities'!H19 -> 
B22: population | C22: population
A23: Track mile per UZA sq mile coefficient | B23: OLS | C23: IV
A24: 4 year lags | B24: =+'Track miles population'!K21 -> 24677544.7 | C24: =+'Track miles population'!M21 -> 46151583.8
A25: Mean track mile per sqm UZA elasticity | B25: =+$B$6/$B$9*B24 -> 0.3451177364 | C25: =+$B$6/$B$9*C24 -> 0.6454341518
A26: Mean agglomeration elasticity wages | B26: =+B25*B13 -> 0.01449494493 | C26: =+C25*D13 -> 0.02220293482 | E26: Average wages | F26: =+'all wage calcs'!$D$2*B26*0.01 -> 6.36371818 | G26: =+'all wage calcs'!$D$2*C26*0.01 -> 9.747758316
A27: Mean agglomeration elasticity gdp per capita | B27: =+B25*C13 -> 0.02105218192 | C27: =+C25*E13 -> 0.04085598181 | E27: GDP per capita | F27: =+'all wage calcs'!$G$2*B27*0.01 -> 9.273256111 | G27: =+'all wage calcs'!$G$2*C27*0.01 -> 17.99661358
B28: Note: these are defined by matching OLS with OLS model, IV with IV model
B29: Note: MSA specific elasticities were not calculated with 'omit NYC' elasticities
H30: Note: there is a constant ratio between the GDP pc and wage elasticities | P30: Note: there is a constant ratio between the GDP pc and wage elasticities
A31: name | B31: Population 2008 | C31: total track miles per capita 2008 | F31: MSA specific elasticity of density to transit track miles per capita | H31: MSA specific elasticity wages to transit track miles | J31: MSA specific elasticity GDP per capita to transit track miles | M31: MSA track miles per UZA sq mile 2008 | N31: MSA specific elasticity of density to transit per sqm | P31: MSA specific elasticity wages to transit per sqm | R31: MSA specific elasticity GDP per capita to transit per sqm
F32: OLS | G32: IV | H32: OLS | I32: IV | J32: OLS | K32: IV | N32: OLS | O32: IV | P32: OLS | Q32: IV | R32: OLS | S32: IV
A33: Albuquerque, NM | B33: 846582 | C33: =+'Track mile elasticities'!C32/('Track mile pop elasticities'!B33) -> 4.961126034e-05 | F33: =+C33/B33*$B$17 -> 4.666429116 | G33: =+C33/B33*$C$17 -> 10.25127794 | H33: =+F33*$B$13 -> 0.1959900229 | I33: =+G33*$D$13 -> 0.3526439612 | J33: =+F33*$C$13 -> 0.2846521761 | K33: =+G33*$E$13 -> 0.6489058937 | M33: 0.1497249 | N33: =+M33/B33*$B$24 -> 4.364424134 | O33: =+M33/B33*$C$24 -> 8.162282294 | P33: =+N33*$B$13 -> 0.1833058136 | Q33: =+O33*$D$13 -> 0.2807825109 | R33: =+N33*$C$13 -> 0.2662298722 | S33: =+O33*$E$13 -> 0.5166724692
A34: Atlanta-Sandy Springs-Marietta, GA | B34: 5385586 | C34: =+'Track mile elasticities'!C33/('Track mile pop elasticities'!B34) -> 9.191200363e-06 | F34: 0.1358978893 | G34: 0.2985424187 | H34: =+F34*$B$13 -> 0.005707711352 | I34: =+G34*$D$13 -> 0.0102698592 | J34: =+F34*$C$13 -> 0.008289771249 | K34: =+G34*$E$13 -> 0.01889773511 | M34: 0.023358 | N34: 0.1070297808 | O34: 0.2001655334 | P34: =+N34*$B$13 -> 0.004495250794 | Q34: =+O34*$D$13 -> 0.006885694349 | R34: =+N34*$C$13 -> 0.006528816629 | S34: =+O34*$E$13 -> 0.01267047826
A35: Baltimore-Towson, MD | B35: 2677712 | C35: =+'Track mile elasticities'!C34/('Track mile pop elasticities'!B35) -> 3.99594878e-05 | F35: 1.188309287 | G35: 2.610494766 | H35: 0.04990899006 | I35: 0.08980101995 | J35: 0.07248686652 | K35: 0.1652443187 | M35: 0.1249612 | N35: 1.151630795 | O35: 2.153763098 | P35: 0.04836849338 | Q35: 0.07408945058 | R35: 0.07024947848 | S35: 0.1363332041
A36: Buffalo-Niagara Falls, NY | B36: 1124055 | C36: =+'Track mile elasticities'!C35/('Track mile pop elasticities'!B36) -> 5.693671573e-06 | F36: 0.403346501 | G36: 0.8860773378 | H36: 0.01694055304 | I36: 0.03048106042 | J36: 0.02460413656 | K36: 0.05608869548 | M36: 0.016203 | N36: 0.3557212563 | O36: 0.6652647 | P36: 0.01494029277 | Q36: 0.02288510568 | R36: 0.02169899664 | S36: 0.04211125551
A37: Charlotte-Gastonia-Concord, NC-SC | B37: 1706469 | C37: =+'Track mile elasticities'!C36/('Track mile pop elasticities'!B37) -> 5.625651565e-06 | F37: 0.2625112198 | G37: 0.5766883863 | H37: 0.01102547123 | I37: 0.01983808049 | J37: 0.01601318441 | K37: 0.03650437485 | M37: 0.0137051 | N37: 0.1981918323 | O37: 0.3706554711 | P37: 0.008324056956 | Q37: 0.01275054821 | R37: 0.01208970177 | S37: 0.02346249132
A38: Chicago-Naperville-Joliet, IL-IN-WI | B38: 9515636 | C38: =+'Track mile elasticities'!C37/('Track mile pop elasticities'!B38) -> 7.264884869e-05 | F38: 0.607945095 | G38: 1.335542443 | H38: 0.02553369399 | I38: 0.04594266004 | J38: 0.0370846508 | K38: 0.08453983665 | M38: 0.2885676 | N38: 0.7483619432 | O38: 1.39957558 | P38: 0.03143120162 | Q38: 0.04814539995 | R38: 0.04565007854 | S38: 0.08859313421
A39: Cleveland-Elyria-Mentor, OH | B39: 2094051 | C39: =+'Track mile elasticities'!C38/('Track mile pop elasticities'!B39) -> 1.647524344e-05 | F39: 0.6264956059 | G39: 1.376294469 | H39: 0.02631281545 | I39: 0.04734452975 | J39: 0.03821623196 | K39: 0.08711943992 | M39: 0.0481374 | N39: 0.5672798037 | O39: 1.060918406 | P39: 0.02382575176 | Q39: 0.03649559318 | R39: 0.03460406803 | S39: 0.06715613513
A40: Dallas-Fort Worth-Arlington, TX | B40: 6301085 | C40: =+'Track mile elasticities'!C39/('Track mile pop elasticities'!B40) -> 1.342626072e-05 | F40: 0.169673173 | G40: 0.3727404428 | H40: 0.007126273264 | I40: 0.01282227123 | J40: 0.01035006355 | K40: 0.02359447003 | M40: 0.0498695 | N40: 0.1953087152 | O40: 0.3652635075 | P40: 0.008202966036 | Q40: 0.01256506466 | R40: 0.01191383162 | S40: 0.02312118003
A41: Denver-Aurora, CO | B41: 2500384 | C41: =+'Track mile elasticities'!C40/('Track mile pop elasticities'!B41) -> 1.38378745e-05 | F41: 0.4406929671 | G41: 0.9681205865 | H41: 0.01850910462 | I41: 0.03330334818 | J41: 0.02688227099 | K41: 0.06128203313 | M41: 0.063835 | N41: 0.6300196554 | O41: 1.178253561 | P41: 0.02646082552 | Q41: 0.0405319225 | R41: 0.03843119898 | S41: 0.07458345041
A42: Houston-Baytown-Sugar Land, TX | B42: 5726705 | C42: =+'Track mile elasticities'!C41/('Track mile pop elasticities'!B42) -> 2.497072924e-06 | F42: 0.03472161019 | G42: 0.07627692778 | H42: 0.001458307628 | I42: 0.002623926316 | J42: 0.002118018222 | K42: 0.004828329528 | M42: 0.0091695 | N42: 0.03951325345 | O42: 0.07389710971 | P42: 0.001659556645 | Q42: 0.002542060574 | R42: 0.002410308461 | S42: 0.004677687045
A43: Little Rock-North Little Rock, AR | B43: 675921 | C43: =+'Track mile elasticities'!C42/('Track mile pop elasticities'!B43) -> 5.030173645e-06 | F43: 0.592598409 | G43: 1.301828625 | H43: 0.02488913318 | I43: 0.04478290469 | J43: 0.03614850295 | K43: 0.08240575194 | M43: 0.0137911 | N43: 0.5035063073 | O43: 0.9416501445 | P43: 0.02114726491 | Q43: 0.03239276497 | R43: 0.03071388474 | S43: 0.05960645415
A44: Los Angeles-Long Beach-Santa Ana, CA | B44: 12768395 | C44: =+'Track mile elasticities'!C43/('Track mile pop elasticities'!B44) -> 3.769463586e-05 | F44: 0.2350805435 | G44: 0.516428286 | H44: 0.009873382828 | I44: 0.01776513304 | J44: 0.01433991315 | K44: 0.0326899105 | M44: 0.2599699 | N44: 0.5024452038 | O44: 0.9396656843 | P44: 0.02110269856 | Q44: 0.03232449954 | R44: 0.03064915743 | S44: 0.05948083782
A45: Memphis, TN-MS-AR | B45: 1298529 | C45: =+'Track mile elasticities'!C44/('Track mile pop elasticities'!B45) -> 5.390715186e-06 | F45: 0.3305736074 | G45: 0.7262088088 | H45: 0.01388409151 | I45: 0.02498158302 | J45: 0.02016499005 | K45: 0.04596901759 | M45: 0.0160925 | N45: 0.3058255827 | O45: 0.5719505397 | P45: 0.01284467447 | Q45: 0.01967509856 | R45: 0.01865536055 | S45: 0.03620446916
A46: Miami-Fort Lauderdale-Miami Beach, FL | B46: 5501752 | C46: =+'Track mile elasticities'!C45/('Track mile pop elasticities'!B46) -> 1.74126351e-05 | F46: 0.2520211172 | G46: 0.5536435796 | H46: 0.01058488692 | I46: 0.01904533914 | J46: 0.01537328815 | K46: 0.03504563859 | M46: 0.0842596 | N46: 0.3779377997 | O46: 0.706813755 | P46: 0.01587338759 | Q46: 0.02431439317 | R46: 0.02305420578 | S46: 0.04474131069
A47: Minneapolis-St. Paul-Bloomington, MN-WI | B47: 3237612 | C47: =+'Track mile elasticities'!C46/('Track mile pop elasticities'!B47) -> 3.737322446e-06 | F47: 0.0919198298 | G47: 0.2019307912 | H47: 0.003860632852 | I47: 0.006946419218 | J47: 0.005607109618 | K47: 0.01278221908 | M47: 0.0118677 | N47: 0.09045731769 | O47: 0.1691719548 | P47: 0.003799207343 | Q47: 0.005819515247 | R47: 0.005517896379 | S47: 0.01070858474
A48: Nashville-Davidson--Murfreesboro, TN | B48: 1556368 | C48: =+'Track mile elasticities'!C47/('Track mile pop elasticities'!B48) -> 2.056069002e-05 | F48: 1.051959054 | G48: 2.310958633 | H48: 0.04418228029 | I48: 0.07949697697 | J48: 0.06416950232 | K48: 0.1462836815 | M48: 0.05442 | N48: 0.8628756069 | O48: 1.613737362 | P48: 0.03624077549 | Q48: 0.05551256525 | R48: 0.05263541202 | S48: 0.102149575
A49: New Orleans-Metairie-Kenner, LA | B49: 1168547 | C49: =+'Track mile elasticities'!C48/('Track mile pop elasticities'!B49) -> 1.103935058e-05 | F49: 0.752264875 | G49: 1.652586191 | H49: 0.03159512475 | I49: 0.05684896498 | J49: 0.04588815738 | K49: 0.1046087059 | M49: 0.0365221 | N49: 0.7712789946 | O49: 1.442434715 | P49: 0.03239371777 | Q49: 0.04961975419 | R49: 0.04704801867 | S49: 0.09130611745
A50: New York-Northern New Jersey-Long Island, NY-NJ-PA | B50: 18968501 | C50: =+'Track mile elasticities'!C49/('Track mile pop elasticities'!B50) -> 6.554023431e-05 | F50: 0.2751366349 | G50: 0.604424078 | H50: 0.01155573866 | I50: 0.02079218828 | J50: 0.01678333473 | K50: 0.03826004414 | M50: 0.3617382 | N50: 0.4706123378 | O50: 0.8801323231 | P50: 0.01976571819 | Q50: 0.03027655191 | R50: 0.02870735261 | S50: 0.05571237605
A51: Philadelphia-Camden-Wilmington, PA-NJ-DE-MD | B51: 5940496 | C51: =+'Track mile elasticities'!C50/('Track mile pop elasticities'!B51) -> 5.659460085e-05 | F51: 0.7586225307 | G51: 1.66655278 | H51: 0.03186214629 | I51: 0.05732941562 | J51: 0.04627597437 | K51: 0.105492791 | M51: 0.1731153 | N51: 0.7191420639 | O51: 1.344928988 | P51: 0.03020396668 | Q51: 0.0462655572 | R51: 0.0438676659 | S51: 0.08513400496
A52: Pittsburgh, PA | B52: 2355391 | C52: =+'Track mile elasticities'!C51/('Track mile pop elasticities'!B52) -> 9.340275139e-06 | F52: 0.3157694434 | G52: 0.6936868105 | H52: 0.01326231662 | I52: 0.02386282628 | J52: 0.01926193605 | K52: 0.04391037511 | M52: 0.0216074 | N52: 0.2263817682 | O52: 0.4233758776 | P52: 0.009508034264 | Q52: 0.01456413019 | R52: 0.01380928786 | S52: 0.02679969305
A53: Portland-Vancouver-Beaverton, OR-WA | B53: 2203745 | C53: =+'Track mile elasticities'!C52/('Track mile pop elasticities'!B53) -> 2.196261364e-05 | F53: 0.7935898875 | G53: 1.743369567 | H53: 0.03333077528 | I53: 0.05997191311 | J53: 0.04840898314 | K53: 0.1103552936 | M53: 0.0920501 | N53: 1.030777362 | O53: 1.927744773 | P53: 0.0432926492 | Q53: 0.06631442018 | R53: 0.06287741908 | S53: 0.1220262441
A54: Providence-New Bedford-Fall River, RI-MA | B54: 1599312 | C54: =+'Track mile elasticities'!C53/('Track mile pop elasticities'!B54) -> 4.251828286e-06 | F54: 0.2116976146 | G54: 0.4650603346 | H54: 0.008891299811 | I54: 0.01599807551 | J54: 0.01291355449 | K54: 0.02943831918 | M54: 0.0104285 | N54: 0.1609128018 | O54: 0.3009367726 | P54: 0.006758337676 | Q54: 0.01035222498 | R54: 0.009815680911 | S54: 0.01904929771
A55: Sacramento--Arden-Arcade--Roseville, CA | B55: 2101138 | C55: =+'Track mile elasticities'!C54/('Track mile pop elasticities'!B55) -> 1.756191169e-05 | F55: 0.6655652749 | G55: 1.462123275 | H55: 0.02795374155 | I55: 0.05029704065 | J55: 0.04059948177 | K55: 0.0925524033 | M55: 0.0784323 | N55: 0.9211753769 | O55: 1.722768741 | P55: 0.03868936583 | Q55: 0.05926324468 | R55: 0.05619169799 | S55: 0.1090512613
A56: St. Louis, MO-IL | B56: 2818688 | C56: =+'Track mile elasticities'!C55/('Track mile pop elasticities'!B56) -> 1.628417193e-05 | F56: 0.4600363148 | G56: 1.010614328 | H56: 0.01932152522 | I56: 0.03476513289 | J56: 0.0280622152 | K56: 0.06397188697 | M56: 0.0460684 | N56: 0.4033277185 | O56: 0.7542976105 | P56: 0.01693976418 | Q56: 0.0259478378 | R56: 0.02460299083 | S56: 0.04774703874
A57: Salt Lake City, UT | B57: 1111600 | C57: =+'Track mile elasticities'!C56/('Track mile pop elasticities'!B57) -> 1.709247931e-05 | F57: 1.22441874 | G57: 2.689820527 | H57: 0.0514255871 | I57: 0.09252982614 | J57: 0.07468954317 | K57: 0.1702656394 | M57: 0.0748899 | N57: 1.662557444 | O57: 3.109290658 | P57: 0.06982741265 | Q57: 0.1069595986 | R57: 0.1014160041 | S57: 0.1968180987
A58: San Diego-Carlsbad-San Marcos, CA | B58: 3019274 | C58: =+'Track mile elasticities'!C57/('Track mile pop elasticities'!B58) -> 3.076898287e-05 | F58: 0.8114916516 | G58: 1.782696418 | H58: 0.03408264937 | I58: 0.06132475676 | J58: 0.04950099075 | K58: 0.1128446832 | M58: 0.1155369 | N58: 0.9443220504 | O58: 1.766057311 | P58: 0.03966152611 | Q58: 0.06075237151 | R58: 0.05760364507 | S58: 0.1117914278
A59: San Francisco-Oakland-Fremont, CA | B59: 4260236 | C59: =+'Track mile elasticities'!C58/('Track mile pop elasticities'!B59) -> 4.377691752e-05 | F59: 0.818248021 | G59: 1.797538906 | H59: 0.03436641688 | I59: 0.06183533837 | J59: 0.04991312928 | K59: 0.1137842128 | M59: 0.2335954 | N59: 1.353108355 | O59: 2.53056349 | P59: 0.0568305509 | Q59: 0.08705138404 | R59: 0.08253960965 | S59: 0.1601846689
A60: San Jose-Sunnyvale-Santa Clara, CA | B60: 1810646 | C60: =+'Track mile elasticities'!C59/('Track mile pop elasticities'!B60) -> 8.748258909e-05 | F60: 3.847348449 | G60: 8.451909866 | H60: 0.1615886349 | I60: 0.2907456994 | J60: 0.2346882554 | K60: 0.5350058945 | M60: 0.4998871 | N60: 6.813030407 | O60: 12.74163 | P60: 0.2861472771 | Q60: 0.4383120719 | R60: 0.4155948549 | S60: 0.8065451788
A61: Seattle-Tacoma-Bellevue, WA | B61: 3356637 | C61: =+'Track mile elasticities'!C60/('Track mile pop elasticities'!B61) -> 2.585921564e-05 | F61: 0.6134574056 | G61: 1.347651966 | H61: 0.02576521104 | I61: 0.04635922761 | J61: 0.03742090174 | K61: 0.08530636942 | M61: 0.0826777 | N61: 0.6078353535 | O61: 1.136764804 | P61: 0.02552908485 | Q61: 0.03910470924 | R61: 0.03707795656 | S61: 0.07195721207
A62: Tampa-St. Petersburg-Clearwater, FL | B62: 2730007 | C62: =+'Track mile elasticities'!C61/('Track mile pop elasticities'!B62) -> 8.79118625e-07 | F62: 0.02564231104 | G62: 0.05633139409 | H62: 0.001076977064 | I62: 0.001937799957 | J62: 0.001564180973 | K62: 0.003565777246 | M62: 0.002551 | N62: 0.02305943411 | O62: 0.04312541699 | P62: 0.0009684962325 | Q62: 0.001483514345 | R62: 0.001406625481 | S62: 0.002729838896
A63: Trenton-Ewing, NJ | B63: 364571 | C63: =+'Track mile elasticities'!C62/('Track mile pop elasticities'!B63) -> 1.892635454e-05 | F63: 4.133884088 | G63: 9.08137544 | H63: 0.1736231317 | I63: 0.3123993151 | J63: 0.2521669294 | K63: 0.5748510654 | M63: 0.0545927 | N63: 3.695339987 | O63: 6.910970892 | P63: 0.1552042795 | Q63: 0.2377373987 | R63: 0.2254157392 | S63: 0.4374644574
A64: Washington-Arlington-Alexandria, DC-VA-MD-WV | B64: 5377936 | C64: =+'Track mile elasticities'!C63/('Track mile pop elasticities'!B64) -> 6.080399618e-05 | F64: 0.9003055695 | G64: 1.977804097 | H64: 0.03781283392 | I64: 0.06803646095 | J64: 0.05491863974 | K64: 0.1251949994 | M64: 0.2238277 | N64: 1.02707025 | O64: 1.920811786 | P64: 0.0431369505 | Q64: 0.06607592544 | R64: 0.06265128525 | S64: 0.1215873861
F66: =AVERAGE(F33:F64) -> 0.8655516824 | G66: =AVERAGE(G33:G64) -> 1.901456263 | H66: =AVERAGE(H33:H64) -> 0.03635317066 | I66: 0.06541009545 | J66: 0.05279865263 | K66: 0.1203621815 | N66: =AVERAGE(N33:N64) -> 0.9947018967 | O66: 1.860276964 | P66: 0.04177747966 | Q66: 0.06399352757 | R66: 0.0606768157 | S66: 0.1177555318
F67: =PERCENTILE(F33:F64,0.95) -> 3.976289487

Sheet Revenue mile models (hidden)
A1: Rail and total revenue miles all MSA
B2: ="(5)" -> (5) | C2: ="(6)" -> (6) | D2: ="(7)" -> (7) | E2: ="(8)" -> (8) | F2: ="(21)" -> (21) | G2: ="(22)" -> (22) | H2: ="(23)" -> (23) | I2: ="(24)" -> (24)
B3: ="eden_pcity" -> eden_pcity | C3: eden_pcity | D3: eden_pcity | E3: eden_pcity | F3: eden_pcity | G3: eden_pcity | H3: eden_pcity | I3: eden_pcity
B5: OLS | C5: OLS | D5: IV | E5: IV | F5: OLS | G5: OLS | H5: IV | I5: IV
A6: L2.railrevmiles | B6: ="0.0000480" -> 0.0000480 | C6: ="" ->  | D6: ="0.0000813" -> 0.0000813 | E6: ="" ->  | F6: ="" ->  | G6: ="" ->  | H6: ="" ->  | I6: ="" -> 
B7: ="(2.82)" -> (2.82) | C7: ="" ->  | D7: ="(3.54)" -> (3.54) | E7: ="" ->  | F7: ="" ->  | G7: ="" ->  | H7: ="" ->  | I7: ="" -> 
A9: L4.railrevmiles | B9: ="" ->  | C9: ="0.0000505" -> 0.0000505 | D9: ="" ->  | E9: ="0.0000837" -> 0.0000837 | F9: ="" ->  | G9: ="" ->  | H9: ="" ->  | I9: ="" -> 
B10: ="" ->  | C10: ="(2.89)" -> (2.89) | D10: ="" ->  | E10: ="(3.58)" -> (3.58) | F10: ="" ->  | G10: ="" ->  | H10: ="" ->  | I10: ="" -> 
A12: L2.freeartsqmiles | B12: ="1878.3" -> 1878.3 | C12: ="" ->  | D12: ="1870.0" -> 1870.0 | E12: ="" ->  | F12: ="1754.6" -> 1754.6 | G12: ="" ->  | H12: ="1705.3" -> 1705.3 | I12: ="" -> 
B13: ="(4.64)" -> (4.64) | C13: ="" ->  | D13: ="(4.62)" -> (4.62) | E13: ="" ->  | F13: ="(4.07)" -> (4.07) | G13: ="" ->  | H13: ="(3.89)" -> (3.89) | I13: ="" -> 
A15: L4.freeartsqmiles | B15: ="" ->  | C15: ="2038.4" -> 2038.4 | D15: ="" ->  | E15: ="2035.3" -> 2035.3 | F15: ="" ->  | G15: ="1777.7" -> 1777.7 | H15: ="" ->  | I15: ="1659.0" -> 1659.0
B16: ="" ->  | C16: ="(4.64)" -> (4.64) | D16: ="" ->  | E16: ="(4.64)" -> (4.64) | F16: ="" ->  | G16: ="(3.72)" -> (3.72) | H16: ="" ->  | I16: ="(3.39)" -> (3.39)
A18: population | B18: ="0.000168" -> 0.000168 | C18: ="0.000167" -> 0.000167 | D18: ="0.000101" -> 0.000101 | E18: ="0.000102" -> 0.000102 | F18: ="-0.0000430" -> -0.0000430 | G18: ="-0.0000351" -> -0.0000351 | H18: ="-0.000303" -> -0.000303 | I18: ="-0.000300" -> -0.000300
B19: ="(3.76)" -> (3.76) | C19: ="(3.75)" -> (3.75) | D19: ="(1.86)" -> (1.86) | E19: ="(1.90)" -> (1.90) | F19: ="(-0.54)" -> (-0.54) | G19: ="(-0.44)" -> (-0.44) | H19: ="(-1.85)" -> (-1.85) | I19: ="(-1.85)" -> (-1.85)
A21: L2.totrevmiles | B21: ="" ->  | C21: ="" ->  | D21: ="" ->  | E21: ="" ->  | F21: ="0.0000212" -> 0.0000212 | G21: ="" ->  | H21: ="0.0000398" -> 0.0000398 | I21: ="" -> 
B22: ="" ->  | C22: ="" ->  | D22: ="" ->  | E22: ="" ->  | F22: ="(4.00)" -> (4.00) | G22: ="" ->  | H22: ="(3.45)" -> (3.45) | I22: ="" -> 
A24: L4.totrevmiles | B24: ="" ->  | C24: ="" ->  | D24: ="" ->  | E24: ="" ->  | F24: ="" ->  | G24: ="0.0000211" -> 0.0000211 | H24: ="" ->  | I24: ="0.0000405" -> 0.0000405
B25: ="" ->  | C25: ="" ->  | D25: ="" ->  | E25: ="" ->  | F25: ="" ->  | G25: ="(3.86)" -> (3.86) | H25: ="" ->  | I25: ="(3.48)" -> (3.48)
A27: _cons | B27: ="1144.1" -> 1144.1 | C27: ="1146.2" -> 1146.2 | D27: ="1175.9" -> 1175.9 | E27: ="1175.8" -> 1175.8 | F27: ="1267.1" -> 1267.1 | G27: ="1300.3" -> 1300.3 | H27: ="1355.1" -> 1355.1 | I27: ="1404.4" -> 1404.4
B28: ="(12.08)" -> (12.08) | C28: ="(12.17)" -> (12.17) | D28: ="(12.27)" -> (12.27) | E28: ="(12.36)" -> (12.36) | F28: ="(12.10)" -> (12.10) | G28: ="(12.02)" -> (12.02) | H28: ="(11.62)" -> (11.62) | I28: ="(11.43)" -> (11.43)
A30: r2_a | B30: ="0.370" -> 0.370 | C30: ="0.371" -> 0.371 | D30: ="0.363" -> 0.363 | E30: ="0.364" -> 0.364 | F30: ="0.381" -> 0.381 | G30: ="0.375" -> 0.375 | H30: ="0.353" -> 0.353 | I30: ="0.346" -> 0.346
A31: N | B31: ="322" -> 322 | C31: 322 | D31: 322 | E31: 322 | F31: ="281" -> 281 | G31: ="276" -> 276 | H31: ="281" -> 281 | I31: ="276" -> 276
A32: widstat | B32: ="" ->  | C32: ="" ->  | D32: ="122.8" -> 122.8 | E32: ="127.3" -> 127.3 | F32: ="" ->  | G32: ="" ->  | H32: ="24.88" -> 24.88 | I32: ="27.07" -> 27.07
A33: sargan | B33: ="" ->  | C33: ="" ->  | D33: ="0.512" -> 0.512 | E33: ="0.453" -> 0.453 | F33: ="" ->  | G33: ="" ->  | H33: ="1.781" -> 1.781 | I33: ="1.728" -> 1.728
A34: sarganp | B34: ="" ->  | C34: ="" ->  | D34: ="0.774" -> 0.774 | E34: ="0.797" -> 0.797 | F34: ="" ->  | G34: ="" ->  | H34: ="0.410" -> 0.410 | I34: ="0.421" -> 0.421
A36: t statistics in parentheses

Sheet Track miles population (hidden)
A1: Population track mile models, OLS and IV, all MSAs
B2: (9) | C2: (10) | D2: (11) | E2: (12) | F2: (13) | G2: (14) | H2: (15) | I2: (16) | J2: (17) | K2: (18) | L2: (19) | M2: (20) | N2: (21) | O2: (22) | P2: (23) | Q2: (24)
B3: population | C3: population | D3: population | E3: population | F3: population | G3: population | H3: population | I3: population | J3: population | K3: population | L3: population | M3: population | N3: population | O3: population | P3: population | Q3: population
F4: Omit NYC | G4: Omit NYC | H4: Omit NYC | I4: Omit NYC | N4: Omit NYC | O4: Omit NYC | P4: Omit NYC | Q4: Omit NYC
B5: OLS | C5: OLS | D5: IV | E5: IV | F5: OLS | G5: OLS | H5: IV | I5: IV | J5: OLS | K5: OLS | L5: IV | M5: IV | N5: OLS | O5: OLS | P5: IV | Q5: IV
A6: L2.aptapc | B6: 8.00152e+10 | D6: 1.75785e+11 | F6: 6.11840e+10 | H6: 1.11385e+11
B7: (14.39) | D7: (14.22) | F7: (13.09) | H7: (12.96)
A9: L4.aptapc | C9: 7.96294e+10 | E9: 1.74931e+11 | G9: 6.08272e+10 | I9: 1.11189e+11
C10: (14.37) | E10: (14.23) | G10: (13.02) | I10: (12.94)
A12: L2.frwyartpc | B12: -286369415.5 | D12: -50537436.4 | F12: -284838304.0 | H12: -171979265.1
B13: (-4.18) | D13: (-0.52) | F13: (-5.16) | H13: (-2.61)
A15: L4.frwyartpc | C15: -288100299.6 | E15: -58902284.1 | G15: -285588585.4 | I15: -175509895.7
C16: (-4.12) | E16: (-0.60) | G16: (-5.06) | I16: (-2.61)
A18: L2.aptauzasqm | J18: 24455665.4 | L18: 46273568.8 | N18: 18336006.9 | P18: 40280231.0
J19: (18.30) | L19: (15.99) | N19: (14.42) | P19: (11.40)
A21: L4.aptauzasqm | K21: 24677544.7 | M21: 46151583.8 | O21: 18469524.6 | Q21: 40052193.7
K22: (18.12) | M22: (15.90) | O22: (14.26) | Q22: (11.35)
A24: L2.freeartuzasqm | J24: -105725.3 | L24: -41298.2 | N24: -110279.7 | P24: -54812.4
J25: (-4.13) | L25: (-1.16) | N25: (-5.01) | P25: (-1.73)
A27: L4.freeartuzasqm | K27: -108378.0 | M27: -44348.8 | O27: -112493.2 | Q27: -58031.6
K28: (-3.92) | M28: (-1.16) | O28: (-4.74) | Q28: (-1.70)
A30: _cons | B30: 869136.4 | C30: 852416.4 | D30: 334703.7 | E30: 344760.5 | F30: 872623.2 | G30: 854560.0 | H30: 615071.4 | I30: 608517.6 | J30: 852516.6 | K30: 828421.5 | L30: 447437.9 | M30: 442150.4 | N30: 885135.2 | O30: 858815.0 | P30: 532364.3 | Q30: 524823.2
B31: (7.71) | C31: (7.74) | D31: (2.07) | E31: (2.19) | F31: (9.62) | G31: (9.62) | H31: (5.59) | I31: (5.66) | J31: (7.75) | K31: (7.51) | L31: (2.91) | M31: (2.89) | N31: (9.36) | O31: (9.08) | P31: (3.82) | Q31: (3.80)
A33: N | B33: 364 | C33: 364 | D33: 361 | E33: 361 | F33: 363 | G33: 363 | H33: 360 | I33: 360 | J33: 354 | K33: 339 | L33: 351 | M33: 336 | N33: 353 | O33: 338 | P33: 350 | Q33: 335
A34: widstat | D34: 69.27 | E34: 69.61 | H34: 75.81 | I34: 75.93 | L34: 69.34 | M34: 68.51 | P34: 36.24 | Q34: 35.93
A35: sargan | D35: 1.427 | E35: 1.585 | H35: 4.982 | I35: 5.408 | L35: 1.079 | M35: 1.828 | P35: 0.429 | Q35: 0.846
A36: sarganp | D36: 0.490 | E36: 0.453 | H36: 0.0828 | I36: 0.0670 | L36: 0.583 | M36: 0.401 | P36: 0.807 | Q36: 0.655
A38: t statistics in parentheses

Sheet Track miles psqm (hidden)
A1: Track miles per square mile CBSA all MSA
B2: (5) | C2: (6) | D2: (7) | E2: (8)
B3: eden_pcity | C3: eden_pcity | D3: eden_pcity | E3: eden_pcity
B5: OLS | C5: OLS | D5: IV | E5: IV
A6: L2.aptasqmiles | B6: 12117.2 | D6: 45319.3
B7: (2.30) | D7: (3.19)
A9: L4.aptasqmiles | C9: 11715.9 | E9: 44035.4
C10: (2.20) | E10: (3.20)
A12: L2.freeartsqmiles | B12: 1877.4 | D12: 1637.8
B13: (4.97) | D13: (4.00)
A15: L4.freeartsqmiles | C15: 2005.2 | E15: 1679.2
C16: (4.85) | E16: (3.72)
A18: population | B18: 0.000168 | C18: 0.000175 | D18: -0.0000818 | E18: -0.0000645
B19: (3.45) | C19: (3.59) | D19: (-0.74) | E19: (-0.61)
A21: _cons | B21: 1130.5 | C21: 1137.0 | D21: 1276.7 | E21: 1292.0
B22: (12.42) | C22: (12.41) | D22: (11.38) | E22: (11.37)
A24: N | B24: 354 | C24: 354 | D24: 351 | E24: 351
A25: r2_a | B25: 0.347 | C25: 0.346 | D25: 0.273 | E25: 0.277
A26: widstat | D26: 21.55 | E26: 23.69
A27: sargan | D27: 1.435 | E27: 1.442
A28: sarganp | D28: 0.488 | E28: 0.486
A30: t statistics in parentheses

Sheet Productivity model estimates (hidden)
A5: Productivity models with total track miles, OLS plus IV with robust se.
A6: ="" ->  | B6: ="(1)" -> (1) | C6: ="(2)" -> (2) | D6: ="(3)" -> (3) | E6: ="(4)" -> (4) | F6: ="(5)" -> (5) | G6: ="(6)" -> (6) | H6: ="(7)" -> (7) | I6: ="(8)" -> (8)
A7: ="" ->  | B7: ="lnwage" -> lnwage | C7: ="lnwage" -> lnwage | D7: ="lngdppc00" -> lngdppc00 | E7: ="lngdppc00" -> lngdppc00 | F7: ="lnwage" -> lnwage | G7: ="lnwage" -> lnwage | H7: ="lngdppc00" -> lngdppc00 | I7: ="lngdppc00" -> lngdppc00
B8: OLS | C8: OLS | D8: OLS | E8: OLS | F8: IV | G8: IV | H8: IV | I8: IV
A9: ="L2.lneden_pcity" -> L2.lneden_pcity | B9: 0.0554 | D9: 0.152 | F9: 0.114 | H9: 0.135
A10: ="" ->  | B10: (3.54) | D10: (4.32) | F10: (3.10) | H10: (1.75)
A12: ="L4.lneden_pcity" -> L4.lneden_pcity | C12: 0.0613 | E12: 0.154 | G12: 0.109 | I12: 0.140
A13: ="" ->  | C13: (3.95) | E13: (4.41) | G13: (3.17) | I13: (1.93)
A15: ="lnhc" -> lnhc | B15: 0.149 | C15: 0.149 | D15: 0.347 | E15: 0.349 | F15: 0.123 | G15: 0.128 | H15: 0.355 | I15: 0.356
A16: ="" ->  | B16: (6.24) | C16: (6.23) | D16: (6.42) | E16: (6.47) | F16: (3.69) | G16: (3.92) | H16: (5.32) | I16: (5.43)
A18: ="lnpop" -> lnpop | B18: 0.0420 | C18: 0.0451 | D18: 0.0610 | E18: 0.0652 | F18: 0.0344 | G18: 0.0392 | H18: 0.0633 | I18: 0.0670
A19: ="" ->  | B19: (4.79) | C19: (5.22) | D19: (3.08) | E19: (3.35) | F19: (3.35) | G19: (4.04) | H19: (2.94) | I19: (3.24)
A21: ="L2.lnfwypc" -> L2.lnfwypc | B21: 1.151 | D21: 23.69 | F21: 0.829 | H21: 23.78
A22: ="" ->  | B22: (0.15) | D22: (1.37) | F22: (0.14) | H22: (1.46)
A24: ="L4.lnfwypc" -> L4.lnfwypc | C24: 1.484 | E24: 21.81 | G24: 1.528 | I24: 21.80
A25: ="" ->  | C25: (0.20) | E25: (1.29) | G25: (0.27) | I25: (1.41)
A27: ="L2.lnapta2" -> L2.lnapta2 | B27: 0.0299 | D27: 0.0245 | F27: 0.0259 | H27: 0.0257
A28: ="" ->  | B28: (4.23) | D28: (1.54) | F28: (3.01) | H28: (1.94)
A30: ="L4.lnapta2" -> L4.lnapta2 | C30: 0.0258 | E30: 0.0190 | G30: 0.0224 | I30: 0.0200
A31: ="" ->  | C31: (3.61) | E31: (1.18) | G31: (2.53) | I31: (1.53)
A33: ="_cons" -> _cons | B33: 9.754 | C33: 9.674 | D33: -4.821 | E33: -4.877 | F33: 9.383 | G33: 9.370 | H33: -4.711 | I33: -4.785
A34: ="" ->  | B34: (60.77) | C34: (60.35) | D34: (-13.32) | E34: (-13.51) | F34: (34.56) | G34: (35.71) | H34: (-8.22) | I34: (-8.66)
A36: ="N" -> N | B36: 351 | C36: 351 | D36: 351 | E36: 351 | F36: 351 | G36: 351 | H36: 351 | I36: 351
A37: ="r2_a" -> r2_a | B37: 0.500 | C37: 0.497 | D37: 0.375 | E37: 0.373 | F37: 0.480 | G37: 0.484 | H37: 0.374 | I37: 0.373
A38: ="widstat" -> widstat | F38: 20.32 | G38: 24.01 | H38: 20.32 | I38: 24.01
A39: ="j" -> j | F39: 0.279 | G39: 0.0926 | H39: 4.460 | I39: 4.096
A40: ="jp" -> jp | F40: 0.870 | G40: 0.955 | H40: 0.108 | I40: 0.129
A42: ="t statistics in parentheses" -> t statistics in parentheses

Sheet tool_trackmileage (hidden)
B1: Track mile change | C1: ='USER DATA ENTRY'!E33 -> 45 | AJ1: Agglomeration changes due to population change from track miles
J2: elasticities from (tab: Track mile elasticities) | N2: change in total payroll from track mileage increase | O2: as percent of total payroll | P2: change in total payroll from track mileage increase | Q2: as percent of total payroll | R2: change in total GDP from track mileage increase | S2: as percent of total GDP | T2: change in total GDP from track mileage increase | U2: as percent of total GDP | W2: track per sqm elasticities from (tab: Track mile elasticities) | AA2: change in total wages per 1 mile track mile per sq mi increase | AB2: as percent of total payroll | AC2: change in total wages per 1 mile track mile per sq mi increase | AD2: as percent of total payroll | AE2: change in total GDP per 1 mile track mile per sq mile increase | AF2: as percent of total GDP | AG2: change in total GDP per 1 mile track mile per sq mile increase | AH2: as percent of total GDP | AJ2: track per capita w.r.t. population elasticities (from tab: Track mile pop elasticities) | AN2: change in total wages per 1 mile track mile per capita increase | AO2: as percent of total payroll | AP2: change in total wages per 1 mile track mile per capita increase | AQ2: as percent of total payroll | AR2: change in total GDP per 1 mile track mile per capita increase | AS2: as percent of total GDP | AT2: change in total GDP per 1 mile track mile per capita increase | AU2: as percent of total GDP | AW2: track per sqm UZA w.r.t. population elasticities (from tab: Track mile pop elasticities) | BA2: change in total wages per 1 mile track mile per sq mi UZA increase | BB2: as percent of total payroll | BC2: change in total wages per 1 mile track mile per sq mi UZA increase | BD2: as percent of total payroll | BE2: change in total GDP per 1 mile track mile per sq mile UZA increase | BF2: as percent of total GDP | BG2: change in total GDP per 1 mile track mile per sq mile UZA increase | BH2: as percent of total GDP | BJ2: Average wage changes | BP2: Average GDP per capita changes
A3: =CONCATENATE("Match to selected MSA: ", 'USER DATA ENTRY'!E9) -> Match to selected MSA: Los Angeles-Long Beach-Santa Ana, CA | N3: =SUMIF($A5:$A36,'USER DATA ENTRY'!$E9,tool_trackmileage!N5:N36) ->  | O3: =SUMIF($A5:$A36,'USER DATA ENTRY'!$E9,tool_trackmileage!O5:O36) ->  | P3: =SUMIF($A5:$A36,'USER DATA ENTRY'!$E9,tool_trackmileage!P5:P36) ->  | Q3: =SUMIF($A5:$A36,'USER DATA ENTRY'!$E9,tool_trackmileage!Q5:Q36) ->  | R3: =SUMIF($A5:$A36,'USER DATA ENTRY'!$E9,tool_trackmileage!R5:R36) ->  | S3: =SUMIF($A5:$A36,'USER DATA ENTRY'!$E9,tool_trackmileage!S5:S36) ->  | T3: =SUMIF($A5:$A36,'USER DATA ENTRY'!$E9,tool_trackmileage!T5:T36) ->  | U3: =SUMIF($A5:$A36,'USER DATA ENTRY'!$E9,tool_trackmileage!U5:U36) -> 
A4: MSA name | B4: population | C4: Employed 2008 | D4: average payroll | E4: total payroll for region | F4: total GDP for region (1,000,000) | G4: GDP (1,000,000) per capita | H4: base track miles | I4: percent associated with 1 mile change | J4: wages-OLS | K4: wages-IV | L4: GDP-OLS | M4: GDP-IV | N4: wages-OLS | P4: wages-IV | R4: GDPpc - OLS | T4: GDPpc - IV | W4: wages-OLS | X4: wages-IV | Y4: GDP-OLS | Z4: GDP-IV | AA4: wages-OLS | AC4: wages-IV | AE4: GDP-OLS | AG4: GDP-IV | AJ4: wages-OLS | AK4: wages-IV | AL4: GDP-OLS | AM4: GDP-IV | AN4: wages-OLS | AP4: wages-IV | AR4: GDP-OLS | AT4: GDP-IV | AW4: wages-OLS | AX4: wages-IV | AY4: GDP-OLS | AZ4: GDP-IV | BA4: wages-OLS | BC4: wages-IV | BE4: GDP-OLS | BG4: GDP-IV | BJ4: OLS-emp | BK4: OLS-pop | BL4: OLS-total | BM4: IV-emp | BN4: IV-pop | BO4: IV-total | BP4: OLS-emp | BQ4: OLS-pop | BR4: OLS-total | BS4: IV-emp | BT4: IV-pop | BU4: IV-total
A5: Albuquerque, NM | B5: 846582 | C5: 512994 | D5: 35760.02 | E5: =C5*D5 -> 1.83446757e+10 | F5: 28740 | G5: =+F5/B5 -> 0.03394827672 | H5: 42 | I5: =+$C$1/H5 -> 1.071428571 | J5: =+'Track mile elasticities'!F32 ->  | K5: =+'Track mile elasticities'!G32 ->  | L5: =+'Track mile elasticities'!H32 ->  | M5: =+'Track mile elasticities'!I32 ->  | N5: =J5*I5*E5 ->  | O5: =N5/E5 ->  | P5: =+K5*I5*E5 ->  | Q5: =P5/E5 ->  | R5: =+L5*I5*G5*1000000*B5 ->  | S5: =+R5/F5/1000000 ->  | T5: =+M5*I5*G5*1000000*B5 ->  | U5: =+T5/F5/1000000 ->  | W5: =+'Track mile elasticities'!N32 ->  | X5: =+'Track mile elasticities'!O32 ->  | Y5: =+'Track mile elasticities'!P32 ->  | Z5: =+'Track mile elasticities'!Q32 ->  | AA5: =E5*I5*W5 ->  | AB5: =AA5/E5 ->  | AC5: =+E5*I5*X5 ->  | AD5: =AC5/E5 ->  | AE5: =+Y5*I5*G5*B5*1000000 ->  | AF5: =+AE5/F5/1000000 ->  | AG5: =+Z5*G5*B5*I5*1000000 ->  | AH5: =+AG5/F5/1000000 ->  | AJ5: =+'Track mile pop elasticities'!H33 -> 0.1959900229 | AK5: =+'Track mile pop elasticities'!I33 -> 0.3526439612 | AL5: =+'Track mile pop elasticities'!J33 -> 0.2846521761 | AM5: =+'Track mile pop elasticities'!K33 -> 0.6489058937 | AN5: =E5*I5*AJ5 -> 3852185797 | AO5: =AN5/E5 -> 0.2099893102 | AP5: =+E5*I5*AK5 -> 6931220470 | AQ5: =AP5/E5 -> 0.3778328156 | AR5: =+AL5*I5*G5*B5*1000000 -> 8765253794 | AS5: =+AR5/F5/1000000 -> 0.3049844744 | AT5: =+AM5*G5*B5*I5*1000000 -> 1.998166648e+10 | AU5: =+AT5/F5/1000000 -> 0.6952563147 | AW5: =+'Track mile pop elasticities'!P33 -> 0.1833058136 | AX5: =+'Track mile pop elasticities'!Q33 -> 0.2807825109 | AY5: =+'Track mile pop elasticities'!R33 -> 0.2662298722 | AZ5: =+'Track mile pop elasticities'!S33 -> 0.5166724692 | BA5: =E5*I5*AW5 -> 3602877541 | BB5: =BA5/E5 -> 0.196399086 | BC5: =+E5*I5*AX5 -> 5518782970 | BD5: =BC5/E5 -> 0.3008384046 | BE5: =+AY5*I5*G5*B5*1000000 -> 8197978422 | BF5: =+BE5/F5/1000000 -> 0.2852462916 | BG5: =+AZ5*G5*B5*I5*1000000 -> 1.590982153e+10 | BH5: =+BG5/F5/1000000 -> 0.5535776456 | BJ5: =+N5/C5 ->  | BK5: =+AN5/C5 -> 7509.221933 | BL5: =+(N5+AN5)/C5 ->  | BM5: =+P5/C5 ->  | BN5: =+AP5/C5 -> 13511.30904 | BO5: =+(P5+AP5)/C5 ->  | BP5: =+R5/C5 ->  | BQ5: =+AR5/C5 -> 17086.46455 | BR5: =+(R5+AR5)/C5 ->  | BS5: =+T5/C5 ->  | BT5: =+AT5/C5 -> 38951.0725 | BU5: =+(T5+AT5)/C5 -> 
A6: Atlanta-Sandy Springs-Marietta, GA | B6: 5385586 | C6: 3235326 | D6: 44729.85 | E6: =C6*D6 -> 1.447156467e+11 | F6: 244325 | G6: =+F6/B6 -> 0.04536646523 | H6: 49.5 | I6: =+$C$1/H6 -> 0.9090909091 | J6: =+'Track mile elasticities'!F33 ->  | K6: =+'Track mile elasticities'!G33 ->  | L6: =+'Track mile elasticities'!H33 ->  | M6: =+'Track mile elasticities'!I33 ->  | N6: =J6*I6*E6 ->  | O6: =N6/E6 ->  | P6: =+K6*I6*E6 ->  | Q6: =P6/E6 ->  | R6: =+L6*I6*G6*1000000*B6 ->  | S6: =+R6/F6/1000000 ->  | T6: =+M6*I6*G6*1000000*B6 ->  | W6: =+'Track mile elasticities'!N33 ->  | X6: =+'Track mile elasticities'!O33 ->  | Y6: =+'Track mile elasticities'!P33 ->  | Z6: =+'Track mile elasticities'!Q33 ->  | AA6: =E6*I6*W6 ->  | AB6: =AA6/E6 ->  | AC6: =+E6*I6*X6 ->  | AD6: =AC6/E6 ->  | AE6: =+Y6*I6*G6*B6*1000000 ->  | AF6: =+AE6/F6/1000000 ->  | AG6: =+Z6*G6*B6*I6*1000000 ->  | AH6: =+AG6/F6/1000000 ->  | AJ6: =+'Track mile pop elasticities'!H34 -> 0.005707711352 | AK6: =+'Track mile pop elasticities'!I34 -> 0.0102698592 | AL6: =+'Track mile pop elasticities'!J34 -> 0.008289771249 | AM6: =+'Track mile pop elasticities'!K34 -> 0.01889773511 | AN6: =E6*I6*AJ6 -> 750904672.1 | AO6: =AN6/E6 -> 0.005188828502 | AP6: =+E6*I6*AK6 -> 1351099378 | AQ6: =AP6/E6 -> 0.009336235641 | AR6: =+AL6*I6*G6*B6*1000000 -> 1841271237 | AS6: =+AR6/F6/1000000 -> 0.007536155681 | AT6: =+AM6*G6*B6*I6*1000000 -> 4197444663 | AU6: =+AT6/F6/1000000 -> 0.01717975919 | AW6: =+'Track mile pop elasticities'!P34 -> 0.004495250794 | AX6: =+'Track mile pop elasticities'!Q34 -> 0.006885694349 | AY6: =+'Track mile pop elasticities'!R34 -> 0.006528816629 | AZ6: =+'Track mile pop elasticities'!S34 -> 0.01267047826 | BA6: =E6*I6*AW6 -> 591393750.6 | BB6: =BA6/E6 -> 0.004086591631 | BC6: =+E6*I6*AX6 -> 905879736.9 | BD6: =BC6/E6 -> 0.006259722136 | BE6: =+AY6*I6*G6*B6*1000000 -> 1450139203 | BF6: =+BE6/F6/1000000 -> 0.005935287845 | BG6: =+AZ6*G6*B6*I6*1000000 -> 2814286002 | BH6: =+BG6/F6/1000000 -> 0.0115186166 | BJ6: =+N6/C6 ->  | BK6: =+AN6/C6 -> 232.0955206 | BL6: =+(N6+AN6)/C6 ->  | BM6: =+P6/C6 ->  | BN6: =+AP6/C6 -> 417.6084198 | BO6: =+(P6+AP6)/C6 ->  | BP6: =+R6/C6 ->  | BQ6: =+AR6/C6 -> 569.1145921 | BR6: =+(R6+AR6)/C6 ->  | BS6: =+T6/C6 ->  | BT6: =+AT6/C6 -> 1297.379202 | BU6: =+(T6+AT6)/C6 -> 
A7: Baltimore-Towson, MD | B7: 2677712 | C7: 1711130 | D7: 44573.68 | E7: 7.627136106e+10 | F7: 108896 | G7: 0.04066755499 | H7: 107 | I7: 0.4205607477 | J7: =+'Track mile elasticities'!F34 ->  | K7: =+'Track mile elasticities'!G34 ->  | L7: =+'Track mile elasticities'!H34 ->  | M7: =+'Track mile elasticities'!I34 ->  | W7: =+'Track mile elasticities'!N34 ->  | X7: =+'Track mile elasticities'!O34 ->  | Y7: =+'Track mile elasticities'!P34 ->  | Z7: =+'Track mile elasticities'!Q34 ->  | AJ7: =+'Track mile pop elasticities'!H35 -> 0.04990899006 | AK7: =+'Track mile pop elasticities'!I35 -> 0.08980101995 | AL7: =+'Track mile pop elasticities'!J35 -> 0.07248686652 | AM7: =+'Track mile pop elasticities'!K35 -> 0.1652443187 | AN7: 1600917729 | AO7: 0.02098976218 | AP7: 2880524025 | AQ7: 0.03776678409 | AR7: 3319708801 | AS7: 0.03048513078 | AT7: 7567757381 | AU7: 0.06949527421 | AW7: =+'Track mile pop elasticities'!P35 -> 0.04836849338 | AX7: =+'Track mile pop elasticities'!Q35 -> 0.07408945058 | AY7: =+'Track mile pop elasticities'!R35 -> 0.07024947848 | AZ7: =+'Track mile pop elasticities'!S35 -> 0.1363332041 | BA7: 1551503617 | BB7: 0.02034188974 | BC7: 2376548090 | BD7: 0.03115911473 | BE7: 3217242284 | BF7: 0.02954417319 | BG7: 6243703989 | BH7: 0.05733639426 | BK7: 935.5909425 | BN7: 1683.404549 | BQ7: 1940.068143 | BT7: 4422.666531
A8: Buffalo-Niagara Falls, NY | B8: 1124055 | C8: 658725 | D8: 35849.88 | E8: 23615212203 | F8: 37554 | G8: 0.03340939723 | H8: 6.4 | I8: 7.03125 | J8: =+'Track mile elasticities'!F35 ->  | K8: =+'Track mile elasticities'!G35 ->  | L8: =+'Track mile elasticities'!H35 ->  | M8: =+'Track mile elasticities'!I35 ->  | W8: =+'Track mile elasticities'!N35 ->  | X8: =+'Track mile elasticities'!O35 ->  | Y8: =+'Track mile elasticities'!P35 ->  | Z8: =+'Track mile elasticities'!Q35 ->  | AJ8: =+'Track mile pop elasticities'!H36 -> 0.01694055304 | AK8: =+'Track mile pop elasticities'!I36 -> 0.03048106042 | AL8: =+'Track mile pop elasticities'!J36 -> 0.02460413656 | AM8: =+'Track mile pop elasticities'!K36 -> 0.05608869548 | AN8: 2812884995 | AO8: 0.1191132636 | AP8: 5061211242 | AQ8: 0.2143199561 | AR8: 6496760703 | AS8: 0.1729978352 | AT8: 1.481030768e+10 | AU8: 0.3943736401 | AW8: =+'Track mile pop elasticities'!P36 -> 0.01494029277 | AX8: =+'Track mile pop elasticities'!Q36 -> 0.02288510568 | AY8: =+'Track mile pop elasticities'!R36 -> 0.02169899664 | AZ8: =+'Track mile pop elasticities'!S36 -> 0.04211125551 | BA8: 2480752856 | BB8: 0.1050489335 | BC8: 3799945033 | BD8: 0.1609108993 | BE8: 5729653966 | BF8: 0.1525710701 | BG8: 1.111954282e+10 | BH8: 0.2960947653 | BK8: 4270.196205 | BN8: 7683.344707 | BQ8: 9862.629629 | BT8: 22483.29376
A9: Charlotte-Gastonia-Concord, NC-SC | B9: 1706469 | C9: 1111511 | D9: 44341.88 | E9: 4.928648738e+10 | F9: 110738 | G9: 0.06489306281 | H9: 9.6 | I9: 4.6875 | J9: =+'Track mile elasticities'!F36 ->  | K9: =+'Track mile elasticities'!G36 ->  | L9: =+'Track mile elasticities'!H36 ->  | M9: =+'Track mile elasticities'!I36 ->  | W9: =+'Track mile elasticities'!N36 ->  | X9: =+'Track mile elasticities'!O36 ->  | Y9: =+'Track mile elasticities'!P36 ->  | Z9: =+'Track mile elasticities'!Q36 ->  | AJ9: =+'Track mile pop elasticities'!H37 -> 0.01102547123 | AK9: =+'Track mile pop elasticities'!I37 -> 0.01983808049 | AL9: =+'Track mile pop elasticities'!J37 -> 0.01601318441 | AM9: =+'Track mile pop elasticities'!K37 -> 0.03650437485 | AN9: 2547219134 | AO9: 0.05168189639 | AP9: 4583199861 | AQ9: 0.09299100229 | AR9: 8312193819 | AS9: 0.07506180191 | AT9: 1.89488506e+10 | AU9: 0.1711142571 | AW9: =+'Track mile pop elasticities'!P37 -> 0.008324056956 | AX9: =+'Track mile pop elasticities'!Q37 -> 0.01275054821 | AY9: =+'Track mile pop elasticities'!R37 -> 0.01208970177 | AZ9: =+'Track mile pop elasticities'!S37 -> 0.02346249132 | BA9: 1923110288 | BB9: 0.03901901698 | BC9: 2945764375 | BD9: 0.05976819472 | BE9: 6275575287 | BF9: 0.05667047705 | BG9: 1.217901264e+10 | BH9: 0.1099804281 | BK9: 2291.672448 | BN9: 4123.395865 | BQ9: 7478.283003 | BT9: 17047.83003
A10: Chicago-Naperville-Joliet, IL-IN-WI | B10: 9515636 | C10: 5777274 | D10: 49692.34 | E10: 2.870862639e+11 | F10: 476895 | G10: 0.0501169864 | H10: 691.3 | I10: 0.06509474902 | J10: =+'Track mile elasticities'!F37 ->  | K10: =+'Track mile elasticities'!G37 ->  | L10: =+'Track mile elasticities'!H37 ->  | M10: =+'Track mile elasticities'!I37 ->  | W10: =+'Track mile elasticities'!N37 ->  | X10: =+'Track mile elasticities'!O37 ->  | Y10: =+'Track mile elasticities'!P37 ->  | Z10: =+'Track mile elasticities'!Q37 ->  | AJ10: =+'Track mile pop elasticities'!H38 -> 0.02553369399 | AK10: =+'Track mile pop elasticities'!I38 -> 0.04594266004 | AL10: =+'Track mile pop elasticities'!J38 -> 0.0370846508 | AM10: =+'Track mile pop elasticities'!K38 -> 0.08453983665 | AN10: 477168778.4 | AO10: 0.001662109402 | AP10: 858567623.5 | AQ10: 0.002990625925 | AR10: 1151232178 | AS10: 0.002414016036 | AT10: 2624400612 | AU10: 0.005503099449 | AW10: =+'Track mile pop elasticities'!P38 -> 0.03143120162 | AX10: =+'Track mile pop elasticities'!Q38 -> 0.04814539995 | AY10: =+'Track mile pop elasticities'!R38 -> 0.04565007854 | AZ10: =+'Track mile pop elasticities'!S38 -> 0.08859313421 | BA10: 587380270.3 | BB10: 0.002046006181 | BC10: 899732004.6 | BD10: 0.003134012726 | BE10: 1417131837 | BF10: 0.002971580405 | BG10: 2750228589 | BH10: 0.005766947837 | BK10: 82.59410552 | BN10: 148.6112003 | BQ10: 199.2690978 | BT10: 454.262791
A11: Cleveland-Elyria-Mentor, OH | B11: 2094051 | C11: 1316713 | D11: 41348.39 | E11: 5.444396264e+10 | F11: 93805 | G11: 0.04479594814 | H11: 34.5 | I11: 1.304347826 | J11: =+'Track mile elasticities'!F38 ->  | K11: =+'Track mile elasticities'!G38 ->  | L11: =+'Track mile elasticities'!H38 ->  | M11: =+'Track mile elasticities'!I38 ->  | W11: =+'Track mile elasticities'!N38 ->  | X11: =+'Track mile elasticities'!O38 ->  | Y11: =+'Track mile elasticities'!P38 ->  | Z11: =+'Track mile elasticities'!Q38 ->  | AJ11: =+'Track mile pop elasticities'!H39 -> 0.02631281545 | AK11: =+'Track mile pop elasticities'!I39 -> 0.04734452975 | AL11: =+'Track mile pop elasticities'!J39 -> 0.03821623196 | AM11: =+'Track mile pop elasticities'!K39 -> 0.08711943992 | AN11: 1868574706 | AO11: 0.03432106363 | AP11: 3362118012 | AQ11: 0.06175373446 | AR11: 4675922138 | AS11: 0.04984725908 | AT11: 1.065944225e+10 | AU11: 0.1136340521 | AW11: =+'Track mile pop elasticities'!P39 -> 0.02382575176 | AX11: =+'Track mile pop elasticities'!Q39 -> 0.03649559318 | AY11: =+'Track mile pop elasticities'!R39 -> 0.03460406803 | AZ11: =+'Track mile pop elasticities'!S39 -> 0.06715613513 | BA11: 1691958702 | BB11: 0.03107706751 | BC11: 2591693102 | BD11: 0.04760294763 | BE11: 4233958175 | BF11: 0.0451357409 | BG11: 8216845116 | BH11: 0.08759495887 | BK11: 1419.120724 | BN11: 2553.417496 | BQ11: 3551.208302 | BT11: 8095.494048
A12: Dallas-Fort Worth-Arlington, TX | B12: 6301085 | C12: 4013361 | D12: 47180.46 | E12: 1.893522181e+11 | F12: 352414 | G12: 0.05592909793 | H12: 84.60001 | I12: 0.5319148307 | J12: =+'Track mile elasticities'!F39 ->  | K12: =+'Track mile elasticities'!G39 ->  | L12: =+'Track mile elasticities'!H39 ->  | M12: =+'Track mile elasticities'!I39 ->  | W12: =+'Track mile elasticities'!N39 ->  | X12: =+'Track mile elasticities'!O39 ->  | Y12: =+'Track mile elasticities'!P39 ->  | Z12: =+'Track mile elasticities'!Q39 ->  | AJ12: =+'Track mile pop elasticities'!H40 -> 0.007126273264 | AK12: =+'Track mile pop elasticities'!I40 -> 0.01282227123 | AL12: =+'Track mile pop elasticities'!J40 -> 0.01035006355 | AM12: =+'Track mile pop elasticities'!K40 -> 0.02359447003 | AN12: 717752920.2 | AO12: 0.003790570437 | AP12: 1291449581 | AQ12: 0.006820356233 | AR12: 1940163226 | AS12: 0.005505352302 | AT12: 4422883287 | AU12: 0.01255024853 | AW12: =+'Track mile pop elasticities'!P40 -> 0.008202966036 | AX12: =+'Track mile pop elasticities'!Q40 -> 0.01256506466 | AY12: =+'Track mile pop elasticities'!R40 -> 0.01191383162 | AZ12: =+'Track mile pop elasticities'!S40 -> 0.02312118003 | BA12: 826196612 | BB12: 0.004363279291 | BC12: 1265543927 | BD12: 0.006683544241 | BE12: 2233298171 | BF12: 0.006337143732 | BG12: 4334163072 | BH12: 0.01229849856 | BK12: 178.8408569 | BN12: 321.7875444 | BQ12: 483.4260427 | BT12: 1102.039733
A13: Denver-Aurora, CO | B13: 2500384 | C13: 1701841 | D13: 47081.16 | E13: 8.012464842e+10 | F13: 136608 | G13: 0.05463480809 | H13: 34.6 | I13: 1.300578035 | J13: =+'Track mile elasticities'!F40 ->  | K13: =+'Track mile elasticities'!G40 ->  | L13: =+'Track mile elasticities'!H40 ->  | M13: =+'Track mile elasticities'!I40 ->  | W13: =+'Track mile elasticities'!N40 ->  | X13: =+'Track mile elasticities'!O40 ->  | Y13: =+'Track mile elasticities'!P40 ->  | Z13: =+'Track mile elasticities'!Q40 ->  | AJ13: =+'Track mile pop elasticities'!H41 -> 0.01850910462 | AK13: =+'Track mile pop elasticities'!I41 -> 0.03330334818 | AL13: =+'Track mile pop elasticities'!J41 -> 0.02688227099 | AM13: =+'Track mile pop elasticities'!K41 -> 0.06128203313 | AN13: 1928803396 | AO13: 0.02407253491 | AP13: 3470487222 | AQ13: 0.04331360312 | AR13: 4776155995 | AS13: 0.03496249118 | AT13: 1.088793986e+10 | AU13: 0.0797020662 | AW13: =+'Track mile pop elasticities'!P41 -> 0.02646082552 | AX13: =+'Track mile pop elasticities'!Q41 -> 0.0405319225 | AY13: =+'Track mile pop elasticities'!R41 -> 0.03843119898 | AZ13: =+'Track mile pop elasticities'!S41 -> 0.07458345041 | BA13: 2757439173 | BB13: 0.03441436846 | BC13: 4223765081 | BD13: 0.0527149281 | BE13: 6828046686 | BF13: 0.04998277324 | BG13: 1.325119421e+10 | BH13: 0.09700159736 | BK13: 1133.362868 | BN13: 2039.254679 | BQ13: 2806.464291 | BT13: 6397.742128
A14: Houston-Baytown-Sugar Land, TX | B14: 5726705 | C14: 3487033 | D14: 52427.95 | E14: 1.828179918e+11 | F14: 377223 | G14: 0.06587086291 | H14: 14.3 | I14: 3.146853147 | J14: =+'Track mile elasticities'!F41 ->  | K14: =+'Track mile elasticities'!G41 ->  | L14: =+'Track mile elasticities'!H41 ->  | M14: =+'Track mile elasticities'!I41 ->  | W14: =+'Track mile elasticities'!N41 ->  | X14: =+'Track mile elasticities'!O41 ->  | Y14: =+'Track mile elasticities'!P41 ->  | Z14: =+'Track mile elasticities'!Q41 ->  | AJ14: =+'Track mile pop elasticities'!H42 -> 0.001458307628 | AK14: =+'Track mile pop elasticities'!I42 -> 0.002623926316 | AL14: =+'Track mile pop elasticities'!J42 -> 0.002118018222 | AM14: =+'Track mile pop elasticities'!K42 -> 0.004828329528 | AN14: 838966380.3 | AO14: 0.004589079949 | AP14: 1509548411 | AQ14: 0.008257110783 | AR14: 2514226115 | AS14: 0.006665092306 | AT14: 5731542849 | AU14: 0.01519404397 | AW14: =+'Track mile pop elasticities'!P42 -> 0.001659556645 | AX14: =+'Track mile pop elasticities'!Q42 -> 0.002542060574 | AY14: =+'Track mile pop elasticities'!R42 -> 0.002410308461 | AZ14: =+'Track mile pop elasticities'!S42 -> 0.004677687045 | BA14: 954745216 | BB14: 0.005222381051 | BC14: 1462450938 | BD14: 0.007999491317 | BE14: 2861193740 | BF14: 0.007584886765 | BG14: 5552720371 | BH14: 0.0147199942 | BK14: 240.5960541 | BN14: 432.9033913 | BQ14: 721.0216006 | BT14: 1643.673246
A15: Little Rock-North Little Rock, AR | B15: 675921 | C15: 436103 | D15: 36943.61 | E15: 1.611121915e+10 | F15: 25560 | G15: 0.0378150701 | H15: 3.4 | I15: 13.23529412 | J15: =+'Track mile elasticities'!F42 ->  | K15: =+'Track mile elasticities'!G42 ->  | L15: =+'Track mile elasticities'!H42 ->  | M15: =+'Track mile elasticities'!I42 ->  | W15: =+'Track mile elasticities'!N42 ->  | X15: =+'Track mile elasticities'!O42 ->  | Y15: =+'Track mile elasticities'!P42 ->  | Z15: =+'Track mile elasticities'!Q42 ->  | AJ15: =+'Track mile pop elasticities'!H43 -> 0.02488913318 | AK15: =+'Track mile pop elasticities'!I43 -> 0.04478290469 | AL15: =+'Track mile pop elasticities'!J43 -> 0.03614850295 | AM15: =+'Track mile pop elasticities'!K43 -> 0.08240575194 | AN15: 5307277224 | AO15: 0.3294149979 | AP15: 9549359890 | AQ15: 0.592714915 | AR15: 1.222882591e+10 | AS15: 0.4784360684 | AT15: 2.787738114e+10 | AU15: 1.090664364 | AW15: =+'Track mile pop elasticities'!P43 -> 0.02114726491 | AX15: =+'Track mile pop elasticities'!Q43 -> 0.03239276497 | AY15: =+'Track mile pop elasticities'!R43 -> 0.03071388474 | AZ15: =+'Track mile pop elasticities'!S43 -> 0.05960645415 | BA15: 4509373491 | BB15: 0.2798902708 | BC15: 6907327086 | BD15: 0.4287277717 | BE15: 1.039032654e+10 | BF15: 0.4065072981 | BG15: 2.016451281e+10 | BH15: 0.788908952 | BK15: 12169.77921 | BN15: 21897.02866 | BQ15: 28041.14145 | BT15: 63923.8463
A16: Los Angeles-Long Beach-Santa Ana, CA | B16: 12768395 | C16: 7823094 | D16: 47279 | E16: 369868061226 | F16: 655355 | G16: 0.05132634133 | H16: 481.3 | I16: 0.09349677956 | J16: =+'Track mile elasticities'!F43 ->  | K16: =+'Track mile elasticities'!G43 ->  | L16: =+'Track mile elasticities'!H43 ->  | M16: =+'Track mile elasticities'!I43 ->  | W16: =+'Track mile elasticities'!N43 ->  | X16: =+'Track mile elasticities'!O43 ->  | Y16: =+'Track mile elasticities'!P43 ->  | Z16: =+'Track mile elasticities'!Q43 ->  | AJ16: =+'Track mile pop elasticities'!H44 -> 0.009873382828 | AK16: =+'Track mile pop elasticities'!I44 -> 0.01776513304 | AL16: =+'Track mile pop elasticities'!J44 -> 0.01433991315 | AM16: =+'Track mile pop elasticities'!K44 -> 0.0326899105 | AN16: 341436117.6 | AO16: 0.0009231294977 | AP16: 614344461.2 | AQ16: 0.001660982728 | AR16: 878657844.1 | AS16: 0.001340735699 | AT16: 2003027911 | AU16: 0.003056401356 | AW16: =+'Track mile pop elasticities'!P44 -> 0.02110269856 | AX16: =+'Track mile pop elasticities'!Q44 -> 0.03232449954 | AY16: =+'Track mile pop elasticities'!R44 -> 0.03064915743 | AZ16: =+'Track mile pop elasticities'!S44 -> 0.05948083782 | BA16: 729762391.7 | BB16: 0.001973034355 | BC16: 1117828795 | BD16: 0.003022236608 | BE16: 1877983660 | BF16: 0.002865597516 | BG16: 3644603991 | BH16: 0.005561266781 | BK16: 43.64463952 | BN16: 78.52960237 | BQ16: 112.3159001 | BT16: 256.0403736
A17: Memphis, TN-MS-AR | B17: 1298529 | C17: 819373 | D17: 39486.45 | E17: 3.2354131e+10 | F17: 56599 | G17: 0.04358701269 | H17: 7 | I17: 6.428571429 | J17: =+'Track mile elasticities'!F44 ->  | K17: =+'Track mile elasticities'!G44 ->  | L17: =+'Track mile elasticities'!H44 ->  | M17: =+'Track mile elasticities'!I44 ->  | W17: =+'Track mile elasticities'!N44 ->  | X17: =+'Track mile elasticities'!O44 ->  | Y17: =+'Track mile elasticities'!P44 ->  | Z17: =+'Track mile elasticities'!Q44 ->  | AJ17: =+'Track mile pop elasticities'!H45 -> 0.01388409151 | AK17: =+'Track mile pop elasticities'!I45 -> 0.02498158302 | AL17: =+'Track mile pop elasticities'!J45 -> 0.02016499005 | AM17: =+'Track mile pop elasticities'!K45 -> 0.04596901759 | AN17: 2887763885 | AO17: 0.089254874 | AP17: 5195940490 | AQ17: 0.1605958909 | AR17: 7337046034 | AS17: 0.1296320789 | AT17: 1.672585989e+10 | AU17: 0.2955151131 | AW17: =+'Track mile pop elasticities'!P45 -> 0.01284467447 | AX17: =+'Track mile pop elasticities'!Q45 -> 0.01967509856 | AY17: =+'Track mile pop elasticities'!R45 -> 0.01865536055 | AZ17: =+'Track mile pop elasticities'!S45 -> 0.03620446916 | BA17: 2671574660 | BB17: 0.08257290733 | BC17: 4092240319 | BD17: 0.1264827765 | BE17: 6787766260 | BF17: 0.1199273178 | BG17: 1.317302196e+10 | BH17: 0.232743016 | BK17: 3524.358119 | BN17: 6341.361614 | BQ17: 8954.464003 | BT17: 20412.99858
A18: Miami-Fort Lauderdale-Miami Beach, FL | B18: 5501752 | C18: 3273236 | D18: 40292.35 | E18: 1.318863705e+11 | F18: 233919 | G18: 0.04251718362 | H18: 95.8 | I18: 0.4697286013 | J18: =+'Track mile elasticities'!F45 ->  | K18: =+'Track mile elasticities'!G45 ->  | L18: =+'Track mile elasticities'!H45 ->  | M18: =+'Track mile elasticities'!I45 ->  | W18: =+'Track mile elasticities'!N45 ->  | X18: =+'Track mile elasticities'!O45 ->  | Y18: =+'Track mile elasticities'!P45 ->  | Z18: =+'Track mile elasticities'!Q45 ->  | AJ18: =+'Track mile pop elasticities'!H46 -> 0.01058488692 | AK18: =+'Track mile pop elasticities'!I46 -> 0.01904533914 | AL18: =+'Track mile pop elasticities'!J46 -> 0.01537328815 | AM18: =+'Track mile pop elasticities'!K46 -> 0.03504563859 | AN18: 655742216.6 | AO18: 0.004972024129 | AP18: 1179874003 | AQ18: 0.008946140513 | AR18: 1689192991 | AS18: 0.007221273139 | AT18: 3850760260 | AU18: 0.01646193879 | AW18: =+'Track mile pop elasticities'!P46 -> 0.01587338759 | AX18: =+'Track mile pop elasticities'!Q46 -> 0.02431439317 | AY18: =+'Track mile pop elasticities'!R46 -> 0.02305420578 | AZ18: =+'Track mile pop elasticities'!S46 -> 0.04474131069 | BA18: 983369065.5 | BB18: 0.007456184149 | BC18: 1506296117 | BD18: 0.0114211659 | BE18: 2533160275 | BF18: 0.01082921983 | BG18: 4916105632 | BH18: 0.02101627329 | BK18: 200.3345364 | BN18: 360.4610247 | BQ18: 516.062084 | BT18: 1176.43832
A19: Minneapolis-St. Paul-Bloomington, MN-WI | B19: 3237612 | C19: 2285862 | D19: 48866.68 | E19: 1.117024869e+11 | F19: 175976 | G19: 0.05435364089 | H19: 12.1 | I19: 3.719008264 | J19: =+'Track mile elasticities'!F46 ->  | K19: =+'Track mile elasticities'!G46 ->  | L19: =+'Track mile elasticities'!H46 ->  | M19: =+'Track mile elasticities'!I46 ->  | W19: =+'Track mile elasticities'!N46 ->  | X19: =+'Track mile elasticities'!O46 ->  | Y19: =+'Track mile elasticities'!P46 ->  | Z19: =+'Track mile elasticities'!Q46 ->  | AJ19: =+'Track mile pop elasticities'!H47 -> 0.003860632852 | AK19: =+'Track mile pop elasticities'!I47 -> 0.006946419218 | AL19: =+'Track mile pop elasticities'!J47 -> 0.005607109618 | AM19: =+'Track mile pop elasticities'!K47 -> 0.01278221908 | AN19: 1603793642 | AO19: 0.01435772548 | AP19: 2885698642 | AQ19: 0.02583379048 | AR19: 3669607644 | AS19: 0.02085288701 | AT19: 8365402509 | AU19: 0.04753717841 | AW19: =+'Track mile pop elasticities'!P47 -> 0.003799207343 | AX19: =+'Track mile pop elasticities'!Q47 -> 0.005819515247 | AY19: =+'Track mile pop elasticities'!R47 -> 0.005517896379 | AZ19: =+'Track mile pop elasticities'!S47 -> 0.01070858474 | BA19: 1578276106 | BB19: 0.01412928351 | BC19: 2417557409 | BD19: 0.0216428253 | BE19: 3611221487 | BF19: 0.02052110224 | BG19: 7008299660 | BH19: 0.03982531515 | BK19: 701.6143766 | BN19: 1262.411573 | BQ19: 1605.349599 | BT19: 3659.627094
A20: Nashville-Davidson--Murfreesboro, TN | B20: 1556368 | C20: 1038536 | D20: 40648.57 | E20: 4.221500329e+10 | F20: 71966 | G20: 0.0462397068 | H20: 32 | I20: 1.40625 | J20: =+'Track mile elasticities'!F47 ->  | K20: =+'Track mile elasticities'!G47 ->  | L20: =+'Track mile elasticities'!H47 ->  | M20: =+'Track mile elasticities'!I47 ->  | W20: =+'Track mile elasticities'!N47 ->  | X20: =+'Track mile elasticities'!O47 ->  | Y20: =+'Track mile elasticities'!P47 ->  | Z20: =+'Track mile elasticities'!Q47 ->  | AJ20: =+'Track mile pop elasticities'!H48 -> 0.04418228029 | AK20: =+'Track mile pop elasticities'!I48 -> 0.07949697697 | AL20: =+'Track mile pop elasticities'!J48 -> 0.06416950232 | AM20: =+'Track mile pop elasticities'!K48 -> 0.1462836815 | AN20: 2622874370 | AO20: 0.06213133165 | AP20: 4719325984 | AQ20: 0.1117926239 | AR20: 6494094006 | AS20: 0.09023836264 | AT20: 1.480422856e+10 | AU20: 0.205711427 | AW20: =+'Track mile pop elasticities'!P48 -> 0.03624077549 | AX20: =+'Track mile pop elasticities'!Q48 -> 0.05551256525 | AY20: =+'Track mile pop elasticities'!R48 -> 0.05263541202 | AZ20: =+'Track mile pop elasticities'!S48 -> 0.102149575 | BA20: 2151428142 | BB20: 0.05096359053 | BC20: 3295495019 | BD20: 0.07806454488 | BE20: 5326818837 | BF20: 0.07401854816 | BG20: 1.033776044e+10 | BH20: 0.1436478399 | BK20: 2525.549784 | BN20: 4544.210296 | BQ20: 6253.123633 | BT20: 14254.90167
A21: New Orleans-Metairie-Kenner, LA | B21: 1168547 | C21: 710250 | D21: 41724.58 | E21: 29634882945 | F21: 65881 | G21: 0.05637856244 | H21: 12.9 | I21: 3.488372093 | J21: =+'Track mile elasticities'!F48 ->  | K21: =+'Track mile elasticities'!G48 ->  | L21: =+'Track mile elasticities'!H48 ->  | M21: =+'Track mile elasticities'!I48 ->  | W21: =+'Track mile elasticities'!N48 ->  | X21: =+'Track mile elasticities'!O48 ->  | Y21: =+'Track mile elasticities'!P48 ->  | Z21: =+'Track mile elasticities'!Q48 ->  | AJ21: =+'Track mile pop elasticities'!H49 -> 0.03159512475 | AK21: =+'Track mile pop elasticities'!I49 -> 0.05684896498 | AL21: =+'Track mile pop elasticities'!J49 -> 0.04588815738 | AM21: =+'Track mile pop elasticities'!K49 -> 0.1046087059 | AN21: 3266224966 | AO21: 0.1102155515 | AP21: 5876903800 | AQ21: 0.1983103429 | AR21: 1.054589894e+10 | AS21: 0.1600749676 | AT21: 2.404090519e+10 | AU21: 0.3649140904 | AW21: =+'Track mile pop elasticities'!P49 -> 0.03239371777 | AX21: =+'Track mile pop elasticities'!Q49 -> 0.04961975419 | AY21: =+'Track mile pop elasticities'!R49 -> 0.04704801867 | AZ21: =+'Track mile pop elasticities'!S49 -> 0.09130611745 | BA21: 3348781515 | BB21: 0.1130013411 | BC21: 5129566072 | BD21: 0.1730921658 | BE21: 1.08124553e+10 | BF21: 0.1641209954 | BG21: 2.098373834e+10 | BH21: 0.318509712 | BK21: 4598.697594 | BN21: 8274.415769 | BQ21: 14848.15057 | BT21: 33848.51135
A22: New York-Northern New Jersey-Long Island, NY-NJ-PA | B22: 18968501 | C22: 11166752 | D22: 63346.31 | E22: 7.073725339e+11 | F22: 1157843 | G22: 0.06104030044 | H22: 1243.2 | I22: 0.0361969112 | J22: =+'Track mile elasticities'!F49 ->  | K22: =+'Track mile elasticities'!G49 ->  | L22: =+'Track mile elasticities'!H49 ->  | M22: =+'Track mile elasticities'!I49 ->  | W22: =+'Track mile elasticities'!N49 ->  | X22: =+'Track mile elasticities'!O49 ->  | Y22: =+'Track mile elasticities'!P49 ->  | Z22: =+'Track mile elasticities'!Q49 ->  | AJ22: =+'Track mile pop elasticities'!H50 -> 0.01155573866 | AK22: =+'Track mile pop elasticities'!I50 -> 0.02079218828 | AL22: =+'Track mile pop elasticities'!J50 -> 0.01678333473 | AM22: =+'Track mile pop elasticities'!K50 -> 0.03826004414 | AN22: 295881230.9 | AO22: 0.0004182820463 | AP22: 532377759.8 | AQ22: 0.0007526129929 | AR22: 703395269 | AS22: 0.0006075048767 | AT22: 1603491468 | AU22: 0.00138489542 | AW22: =+'Track mile pop elasticities'!P50 -> 0.01976571819 | AX22: =+'Track mile pop elasticities'!Q50 -> 0.03027655191 | AY22: =+'Track mile pop elasticities'!R50 -> 0.02870735261 | AZ22: =+'Track mile pop elasticities'!S50 -> 0.05571237605 | BA22: 506095300.1 | BB22: 0.000715457946 | BC22: 775222052.8 | BD22: 0.001095917661 | BE22: 1203134915 | BF22: 0.001039117493 | BG22: 2334924637 | BH22: 0.002016615929 | BK22: 26.49662417 | BN22: 47.67525596 | BQ22: 62.99013974 | BT22: 143.5951535
A23: Philadelphia-Camden-Wilmington, PA-NJ-DE-MD | B23: 5940496 | C23: 3532815 | D23: 48715.18 | E23: 1.721017186e+11 | F23: 303279 | G23: 0.05105280771 | H23: 336.2 | I23: 0.1338488995 | J23: =+'Track mile elasticities'!F50 ->  | K23: =+'Track mile elasticities'!G50 ->  | L23: =+'Track mile elasticities'!H50 ->  | M23: =+'Track mile elasticities'!I50 ->  | W23: =+'Track mile elasticities'!N50 ->  | X23: =+'Track mile elasticities'!O50 ->  | Y23: =+'Track mile elasticities'!P50 ->  | Z23: =+'Track mile elasticities'!Q50 ->  | AJ23: =+'Track mile pop elasticities'!H51 -> 0.03186214629 | AK23: =+'Track mile pop elasticities'!I51 -> 0.05732941562 | AL23: =+'Track mile pop elasticities'!J51 -> 0.04627597437 | AM23: =+'Track mile pop elasticities'!K51 -> 0.105492791 | AN23: 733964473.9 | AO23: 0.004264713216 | AP23: 1320618956 | AQ23: 0.007673479188 | AR23: 1878506560 | AS23: 0.006193988242 | AT23: 4282327980 | AU23: 0.01412009397 | AW23: =+'Track mile pop elasticities'!P51 -> 0.03020396668 | AX23: =+'Track mile pop elasticities'!Q51 -> 0.0462655572 | AY23: =+'Track mile pop elasticities'!R51 -> 0.0438676659 | AZ23: =+'Track mile pop elasticities'!S51 -> 0.08513400496 | BA23: 695767269.2 | BB23: 0.0040427677 | BC23: 1065756055 | BD23: 0.006192593914 | BE23: 1780744744 | BF23: 0.005871638802 | BG23: 3455892371 | BH23: 0.01139509287 | BK23: 207.7562719 | BN23: 373.8149199 | BQ23: 531.7308039 | BT23: 1212.157438
